Workbook

Sheet Íindice
A1: =Entradas!$D$6&" - Introdução e Índice" -> Força Açoreana, S.A.: Azores PV & BESS (São Miguel Nascente) - Introdução e Índice
B4: Visão Geral | I4: Navegação das Folhas
B6: Nome do Projeto: | D6: Azores Photovoltaic Energy Venture | J6: Inputs | L6: Inputs | P6: Resumo | R6: Resumo do Projeto | S6: Cálculos | U6: Cálculos de Produção
B7: Entidade Promotora: | D7: Força Açoreana, S.A. | L7: Geral | R7: Informação-Chave do Projeto | U7: Produção de Eletricidade
B8: Localização: | D8: =Entradas!D7 -> Lagoa, São Miguel, Açores, Portugal | L8: Calendário | R8: Origens e Aplicações
B9: Projeções por: | D9: R. Bercuvitz | F9: rbercuvitz@bell.net | L9: Produção de Eletricidade | R9: Indicadores Financeiros
L10: Receitas | R10: Datas-Chave
L11: Detalhe Mensal de Despesas de Capital | R11: Verificações de Erros | S11: Cálculos | U11: Dívida
L12: Contas de Reserva | R12: Resumo Financeiro | U12: Dívida Subordinada
L13: Financiamento | R13: Curva de Investimento do Projeto (gráfico) | U13: Dívida Sénior
L14: Depreciações e Impostos | R14: Cobertura do Serviço da Dívida (gráfico) | U14: Plano de Amortização
R15: Amortização da Dívida Sénior (gráfico) | U15: Covenants de Dívida
R16: Fluxos de Caixa do Capital Próprio (gráfico)
L17: Guia de Estilos de Células | U17: Capital Próprio
J18: 1234 | L18: Input (específico do projeto) | P18: Cronograma | R18: Cronograma do Projeto | U18: Detalhe de Entradas de Capital Próprio
J19: 1234 | L19: Input referenciado de outra folha | R19: Cronograma | U19: Detalhe de Dividendos
J20: 1234 | L20: Cálculo | U20: Cálculo da TIR
J21: 1234 | L21: Cálculo de Soma ou Máximo | P21: AFS | R21: Demonstrações Financeiras Anuais
J22: OK | L22: Resultado Positivo da Verificação de Erros | R22: Demonstração de Resultados | U22: Custos de Arranque
J23: NO | L23: Resultado Negativo da Verificação de Erros | R23: Balanço | U23: Custos de Arranque
R24: Demonstração de Fluxos de Caixa
R25: Cascata de Caixa | U25: Despesas de Capital
U26: Detalhe e Pressupostos de Despesas de Capital
P27: QFS | R27: Demonstrações Financeiras Trimestrais | U27: Mão de Obra de Construção
R28: Demonstração de Resultados
R29: Balanço | U29: Receitas
R30: Demonstração de Fluxos de Caixa | U30: Cálculo de Receitas (Eletricidade)
R31: Cascata de Caixa
U32: Custos Operacionais
P33: MFS | R33: Demonstrações Financeiras Mensais | U33: Custos Operacionais
R34: Demonstração de Resultados | U34: Pessoal e Remunerações
R35: Balanço | U35: Despesas Mensais
R36: Demonstração de Fluxos de Caixa
R37: Cascata de Caixa | U37: Outros Cálculos
U38: Indicadores e Calendário
U39: Fatores de Indexação
U40: Aplicações de Fundos
U41: Origens de Fundos
U42: Fundo de Maneio
U43: Depreciações
U44: Impostos
U45: Resultados Transitados

Sheet DFA
A1: =Entradas!$D$6&" - Relatórios Financeiros Anuais" -> Força Açoreana, S.A.: Azores PV & BESS (São Miguel Nascente) - Relatórios Financeiros Anuais
C2: Ano | F2: 2028-2052 | G2: =YEAR(G3) -> 2026 | H2: =YEAR(H3) -> 2027 | I2: 2028 | J2: 2029 | K2: 2030 | L2: 2031 | M2: 2032 | N2: 2033 | O2: 2034 | P2: 2035 | Q2: 2036 | R2: 2037 | S2: 2038 | T2: 2039 | U2: 2040 | V2: 2041 | W2: 2042 | X2: 2043 | Y2: 2044 | Z2: 2045 | AA2: 2046 | AB2: 2047 | AC2: 2048 | AD2: 2049 | AE2: 2050 | AF2: 2051 | AG2: 2052
C3: Fim do Período | F3: 2052-12-31 | G3: 2026-12-31 | H3: =G3+365 -> 2027-12-31 | I3: =H3+365 -> 2028-12-30 | J3: =I3+366 -> 2029-12-31 | K3: =J3+365 -> 2030-12-31 | L3: 2031-12-31 | M3: 2032-12-30 | N3: =M3+366 -> 2033-12-31 | O3: 2034-12-31 | P3: 2035-12-31 | Q3: 2036-12-30 | R3: =Q3+366 -> 2037-12-31 | S3: 2038-12-31 | T3: 2039-12-31 | U3: 2040-12-30 | V3: =U3+366 -> 2041-12-31 | W3: 2042-12-31 | X3: 2043-12-31 | Y3: 2044-12-30 | Z3: =Y3+366 -> 2045-12-31 | AA3: 2046-12-31 | AB3: 2047-12-31 | AC3: 2048-12-30 | AD3: =AC3+366 -> 2049-12-31 | AE3: 2050-12-31 | AF3: 2051-12-31 | AG3: 2052-12-30
A4: · | B4: Demonstração de Resultados | D4: Unidade
A5: =Resumo!$C$49 -> OK
C6: =Cálculos!C351 -> Receitas | F6: Vida Útil do Projeto
C7: Eletricidade Produzida | D7: Kwh | F7: =SUM(G7:AR7) -> 418949425.4 | G7: =SUMIF(Cálculos!$I$8:$QJ$8, G$2, Cálculos!$I210:$QJ210) -> 0 | H7: =SUMIF(Cálculos!$I$8:$QJ$8, H$2, Cálculos!$I210:$QJ210) -> 0 | I7: =SUMIF(Cálculos!$I$8:$QJ$8, I$2, Cálculos!$I215:$QJ215) -> 18763530.73 | J7: =SUMIF(Cálculos!$I$8:$QJ$8, J$2, Cálculos!$I215:$QJ215) -> 18663512.77 | K7: =SUMIF(Cálculos!$I$8:$QJ$8, K$2, Cálculos!$I215:$QJ215) -> 18477730.69 | L7: =SUMIF(Cálculos!$I$8:$QJ$8, L$2, Cálculos!$I215:$QJ215) -> 18293797.93 | M7: =SUMIF(Cálculos!$I$8:$QJ$8, M$2, Cálculos!$I215:$QJ215) -> 18111696.09 | N7: =SUMIF(Cálculos!$I$8:$QJ$8, N$2, Cálculos!$I215:$QJ215) -> 17931406.95 | O7: =SUMIF(Cálculos!$I$8:$QJ$8, O$2, Cálculos!$I215:$QJ215) -> 17752912.45 | P7: =SUMIF(Cálculos!$I$8:$QJ$8, P$2, Cálculos!$I215:$QJ215) -> 17576194.75 | Q7: =SUMIF(Cálculos!$I$8:$QJ$8, Q$2, Cálculos!$I215:$QJ215) -> 17401236.14 | R7: =SUMIF(Cálculos!$I$8:$QJ$8, R$2, Cálculos!$I215:$QJ215) -> 17228019.13 | S7: =SUMIF(Cálculos!$I$8:$QJ$8, S$2, Cálculos!$I215:$QJ215) -> 17056526.36 | T7: =SUMIF(Cálculos!$I$8:$QJ$8, T$2, Cálculos!$I215:$QJ215) -> 16886740.69 | U7: =SUMIF(Cálculos!$I$8:$QJ$8, U$2, Cálculos!$I215:$QJ215) -> 16718645.11 | V7: =SUMIF(Cálculos!$I$8:$QJ$8, V$2, Cálculos!$I215:$QJ215) -> 16552222.81 | W7: =SUMIF(Cálculos!$I$8:$QJ$8, W$2, Cálculos!$I215:$QJ215) -> 16387457.12 | X7: =SUMIF(Cálculos!$I$8:$QJ$8, X$2, Cálculos!$I215:$QJ215) -> 16224331.56 | Y7: =SUMIF(Cálculos!$I$8:$QJ$8, Y$2, Cálculos!$I215:$QJ215) -> 16062829.8 | Z7: =SUMIF(Cálculos!$I$8:$QJ$8, Z$2, Cálculos!$I215:$QJ215) -> 15902935.67 | AA7: =SUMIF(Cálculos!$I$8:$QJ$8, AA$2, Cálculos!$I215:$QJ215) -> 15744633.18 | AB7: =SUMIF(Cálculos!$I$8:$QJ$8, AB$2, Cálculos!$I215:$QJ215) -> 15587906.47 | AC7: =SUMIF(Cálculos!$I$8:$QJ$8, AC$2, Cálculos!$I215:$QJ215) -> 15432739.87 | AD7: =SUMIF(Cálculos!$I$8:$QJ$8, AD$2, Cálculos!$I215:$QJ215) -> 15279117.85 | AE7: =SUMIF(Cálculos!$I$8:$QJ$8, AE$2, Cálculos!$I215:$QJ215) -> 15127025.02 | AF7: =SUMIF(Cálculos!$I$8:$QJ$8, AF$2, Cálculos!$I215:$QJ215) -> 14976446.17 | AG7: =SUMIF(Cálculos!$I$8:$QJ$8, AG$2, Cálculos!$I215:$QJ215) -> 14809830.12
C8: Eletricidade Vendida | D8: Kwh | F8: =SUM(G8:AR8) -> 436193123 | G8: =SUMIF(Cálculos!$I$8:$QJ$8, G$2, Cálculos!$I215:$QJ215) -> 0 | H8: =SUMIF(Cálculos!$I$8:$QJ$8, H$2, Cálculos!$I215:$QJ215) -> 0 | I8: =SUMIF(Cálculos!$I$8:$QJ$8, I$2, Cálculos!$I218:$QJ218)+SUMIF(Cálculos!$I$8:$QJ$8, I$2, Cálculos!$I225:$QJ225) -> 18882738.87 | J8: =SUMIF(Cálculos!$I$8:$QJ$8, J$2, Cálculos!$I218:$QJ218)+SUMIF(Cálculos!$I$8:$QJ$8, J$2, Cálculos!$I225:$QJ225) -> 19086551.05 | K8: =SUMIF(Cálculos!$I$8:$QJ$8, K$2, Cálculos!$I218:$QJ218)+SUMIF(Cálculos!$I$8:$QJ$8, K$2, Cálculos!$I225:$QJ225) -> 19118777.09 | L8: =SUMIF(Cálculos!$I$8:$QJ$8, L$2, Cálculos!$I218:$QJ218)+SUMIF(Cálculos!$I$8:$QJ$8, L$2, Cálculos!$I225:$QJ225) -> 19084182.13 | M8: =SUMIF(Cálculos!$I$8:$QJ$8, M$2, Cálculos!$I218:$QJ218)+SUMIF(Cálculos!$I$8:$QJ$8, M$2, Cálculos!$I225:$QJ225) -> 18933728.17 | N8: =SUMIF(Cálculos!$I$8:$QJ$8, N$2, Cálculos!$I218:$QJ218)+SUMIF(Cálculos!$I$8:$QJ$8, N$2, Cálculos!$I225:$QJ225) -> 18778374.52 | O8: =SUMIF(Cálculos!$I$8:$QJ$8, O$2, Cálculos!$I218:$QJ218)+SUMIF(Cálculos!$I$8:$QJ$8, O$2, Cálculos!$I225:$QJ225) -> 18602824.35 | P8: =SUMIF(Cálculos!$I$8:$QJ$8, P$2, Cálculos!$I218:$QJ218)+SUMIF(Cálculos!$I$8:$QJ$8, P$2, Cálculos!$I225:$QJ225) -> 18410321.6 | Q8: =SUMIF(Cálculos!$I$8:$QJ$8, Q$2, Cálculos!$I218:$QJ218)+SUMIF(Cálculos!$I$8:$QJ$8, Q$2, Cálculos!$I225:$QJ225) -> 18221993.63 | R8: =SUMIF(Cálculos!$I$8:$QJ$8, R$2, Cálculos!$I218:$QJ218)+SUMIF(Cálculos!$I$8:$QJ$8, R$2, Cálculos!$I225:$QJ225) -> 18031045.72 | S8: =SUMIF(Cálculos!$I$8:$QJ$8, S$2, Cálculos!$I218:$QJ218)+SUMIF(Cálculos!$I$8:$QJ$8, S$2, Cálculos!$I225:$QJ225) -> 17844234.63 | T8: =SUMIF(Cálculos!$I$8:$QJ$8, T$2, Cálculos!$I218:$QJ218)+SUMIF(Cálculos!$I$8:$QJ$8, T$2, Cálculos!$I225:$QJ225) -> 17659283.11 | U8: =SUMIF(Cálculos!$I$8:$QJ$8, U$2, Cálculos!$I218:$QJ218)+SUMIF(Cálculos!$I$8:$QJ$8, U$2, Cálculos!$I225:$QJ225) -> 17478263.52 | V8: =SUMIF(Cálculos!$I$8:$QJ$8, V$2, Cálculos!$I218:$QJ218)+SUMIF(Cálculos!$I$8:$QJ$8, V$2, Cálculos!$I225:$QJ225) -> 17294884.93 | W8: =SUMIF(Cálculos!$I$8:$QJ$8, W$2, Cálculos!$I218:$QJ218)+SUMIF(Cálculos!$I$8:$QJ$8, W$2, Cálculos!$I225:$QJ225) -> 17115401.79 | X8: =SUMIF(Cálculos!$I$8:$QJ$8, X$2, Cálculos!$I218:$QJ218)+SUMIF(Cálculos!$I$8:$QJ$8, X$2, Cálculos!$I225:$QJ225) -> 16937705.29 | Y8: =SUMIF(Cálculos!$I$8:$QJ$8, Y$2, Cálculos!$I218:$QJ218)+SUMIF(Cálculos!$I$8:$QJ$8, Y$2, Cálculos!$I225:$QJ225) -> 16763707.4 | Z8: =SUMIF(Cálculos!$I$8:$QJ$8, Z$2, Cálculos!$I218:$QJ218)+SUMIF(Cálculos!$I$8:$QJ$8, Z$2, Cálculos!$I225:$QJ225) -> 16587601.2 | AA8: =SUMIF(Cálculos!$I$8:$QJ$8, AA$2, Cálculos!$I218:$QJ218)+SUMIF(Cálculos!$I$8:$QJ$8, AA$2, Cálculos!$I225:$QJ225) -> 16415158.58 | AB8: =SUMIF(Cálculos!$I$8:$QJ$8, AB$2, Cálculos!$I218:$QJ218)+SUMIF(Cálculos!$I$8:$QJ$8, AB$2, Cálculos!$I225:$QJ225) -> 16244432.5 | AC8: =SUMIF(Cálculos!$I$8:$QJ$8, AC$2, Cálculos!$I218:$QJ218)+SUMIF(Cálculos!$I$8:$QJ$8, AC$2, Cálculos!$I225:$QJ225) -> 16077180.87 | AD8: =SUMIF(Cálculos!$I$8:$QJ$8, AD$2, Cálculos!$I218:$QJ218)+SUMIF(Cálculos!$I$8:$QJ$8, AD$2, Cálculos!$I225:$QJ225) -> 15908061.8 | AE8: =SUMIF(Cálculos!$I$8:$QJ$8, AE$2, Cálculos!$I218:$QJ218)+SUMIF(Cálculos!$I$8:$QJ$8, AE$2, Cálculos!$I225:$QJ225) -> 15742383.52 | AF8: =SUMIF(Cálculos!$I$8:$QJ$8, AF$2, Cálculos!$I218:$QJ218)+SUMIF(Cálculos!$I$8:$QJ$8, AF$2, Cálculos!$I225:$QJ225) -> 15578354.44 | AG8: =SUMIF(Cálculos!$I$8:$QJ$8, AG$2, Cálculos!$I218:$QJ218)+SUMIF(Cálculos!$I$8:$QJ$8, AG$2, Cálculos!$I225:$QJ225) -> 15395932.24
C9: Preço Médio do PPA | F9: =(F13-F12)/F8 -> 0.1373 | I9: =(I13-I12)/I8 -> 0.1373 | J9: 0.1373 | K9: 0.1373 | L9: 0.1373 | M9: 0.1373 | N9: 0.1373 | O9: 0.1373 | P9: 0.1373 | Q9: 0.1373 | R9: 0.1373 | S9: 0.1373 | T9: 0.1373 | U9: 0.1373 | V9: 0.1373 | W9: 0.1373 | X9: 0.1373 | Y9: 0.1373 | Z9: 0.1373 | AA9: 0.1373 | AB9: 0.1373 | AC9: 0.1373 | AD9: 0.1373 | AE9: 0.1373 | AF9: 0.1373 | AG9: 0.1373
C10: =Cálculos!C352 -> Produção Vendida | D10: EUR | F10: =SUM(G10:AR10) -> 55990694.68 | G10: =SUMIF(Cálculos!$I$8:$QJ$8, G$2, Cálculos!$I352:$QJ352) -> 0 | H10: =SUMIF(Cálculos!$I$8:$QJ$8, H$2, Cálculos!$I352:$QJ352) -> 0 | I10: =SUMIF(Cálculos!$I$8:$QJ$8, I$2, Cálculos!$I229:$QJ229) -> 2402261.935 | J10: =SUMIF(Cálculos!$I$8:$QJ$8, J$2, Cálculos!$I229:$QJ229) -> 2435667.375 | K10: =SUMIF(Cálculos!$I$8:$QJ$8, K$2, Cálculos!$I229:$QJ229) -> 2446437.253 | L10: =SUMIF(Cálculos!$I$8:$QJ$8, L$2, Cálculos!$I229:$QJ229) -> 2445441.581 | M10: =SUMIF(Cálculos!$I$8:$QJ$8, M$2, Cálculos!$I229:$QJ229) -> 2426956.232 | N10: =SUMIF(Cálculos!$I$8:$QJ$8, N$2, Cálculos!$I229:$QJ229) -> 2408702.689 | O10: =SUMIF(Cálculos!$I$8:$QJ$8, O$2, Cálculos!$I229:$QJ229) -> 2386959.464 | P10: =SUMIF(Cálculos!$I$8:$QJ$8, P$2, Cálculos!$I229:$QJ229) -> 2362696.123 | Q10: =SUMIF(Cálculos!$I$8:$QJ$8, Q$2, Cálculos!$I229:$QJ229) -> 2338535.908 | R10: =SUMIF(Cálculos!$I$8:$QJ$8, R$2, Cálculos!$I229:$QJ229) -> 2314891.61 | S10: =SUMIF(Cálculos!$I$8:$QJ$8, S$2, Cálculos!$I229:$QJ229) -> 2291345.654 | T10: =SUMIF(Cálculos!$I$8:$QJ$8, T$2, Cálculos!$I229:$QJ229) -> 2268034.081 | U10: =SUMIF(Cálculos!$I$8:$QJ$8, U$2, Cálculos!$I229:$QJ229) -> 2244816.16 | V10: =SUMIF(Cálculos!$I$8:$QJ$8, V$2, Cálculos!$I229:$QJ229) -> 2222104.776 | W10: =SUMIF(Cálculos!$I$8:$QJ$8, W$2, Cálculos!$I229:$QJ229) -> 2199482.447 | X10: =SUMIF(Cálculos!$I$8:$QJ$8, X$2, Cálculos!$I229:$QJ229) -> 2177085.307 | Y10: =SUMIF(Cálculos!$I$8:$QJ$8, Y$2, Cálculos!$I229:$QJ229) -> 2154772.717 | Z10: =SUMIF(Cálculos!$I$8:$QJ$8, Z$2, Cálculos!$I229:$QJ229) -> 2132957.652 | AA10: =SUMIF(Cálculos!$I$8:$QJ$8, AA$2, Cálculos!$I229:$QJ229) -> 2111222.719 | AB10: =SUMIF(Cálculos!$I$8:$QJ$8, AB$2, Cálculos!$I229:$QJ229) -> 2089704.143 | AC10: =SUMIF(Cálculos!$I$8:$QJ$8, AC$2, Cálculos!$I229:$QJ229) -> 2068261.37 | AD10: =SUMIF(Cálculos!$I$8:$QJ$8, AD$2, Cálculos!$I229:$QJ229) -> 2047307.465 | AE10: =SUMIF(Cálculos!$I$8:$QJ$8, AE$2, Cálculos!$I229:$QJ229) -> 2026425.119 | AF10: =SUMIF(Cálculos!$I$8:$QJ$8, AF$2, Cálculos!$I229:$QJ229) -> 2005750.643 | AG10: =SUMIF(Cálculos!$I$8:$QJ$8, AG$2, Cálculos!$I229:$QJ229) -> 1982874.259
C11: Armazenamento Vendido | D11: EUR | F11: 3898621.102 | G11: =SUMIF(Cálculos!$I$8:$QJ$8, G$2, Cálculos!$I353:$QJ353) -> 0 | H11: =SUMIF(Cálculos!$I$8:$QJ$8, H$2, Cálculos!$I353:$QJ353) -> 0 | I11: =SUMIF(Cálculos!$I$8:$QJ$8, I$2, Cálculos!$I230:$QJ230) -> 190338.1117 | J11: =SUMIF(Cálculos!$I$8:$QJ$8, J$2, Cálculos!$I230:$QJ230) -> 184916.0838 | K11: =SUMIF(Cálculos!$I$8:$QJ$8, K$2, Cálculos!$I230:$QJ230) -> 178570.8406 | L11: =SUMIF(Cálculos!$I$8:$QJ$8, L$2, Cálculos!$I230:$QJ230) -> 174816.6257 | M11: =SUMIF(Cálculos!$I$8:$QJ$8, M$2, Cálculos!$I230:$QJ230) -> 172644.6459 | N11: =SUMIF(Cálculos!$I$8:$QJ$8, N$2, Cálculos!$I230:$QJ230) -> 169568.1332 | O11: =SUMIF(Cálculos!$I$8:$QJ$8, O$2, Cálculos!$I230:$QJ230) -> 167208.3191 | P11: =SUMIF(Cálculos!$I$8:$QJ$8, P$2, Cálculos!$I230:$QJ230) -> 165041.0331 | Q11: =SUMIF(Cálculos!$I$8:$QJ$8, Q$2, Cálculos!$I230:$QJ230) -> 163343.8173 | R11: =SUMIF(Cálculos!$I$8:$QJ$8, R$2, Cálculos!$I230:$QJ230) -> 160770.9677 | S11: =SUMIF(Cálculos!$I$8:$QJ$8, S$2, Cálculos!$I230:$QJ230) -> 158667.761 | T11: =SUMIF(Cálculos!$I$8:$QJ$8, T$2, Cálculos!$I230:$QJ230) -> 156585.4902 | U11: =SUMIF(Cálculos!$I$8:$QJ$8, U$2, Cálculos!$I230:$QJ230) -> 154949.4215 | V11: =SUMIF(Cálculos!$I$8:$QJ$8, V$2, Cálculos!$I230:$QJ230) -> 152482.9249 | W11: =SUMIF(Cálculos!$I$8:$QJ$8, W$2, Cálculos!$I230:$QJ230) -> 150462.2198 | X11: =SUMIF(Cálculos!$I$8:$QJ$8, X$2, Cálculos!$I230:$QJ230) -> 148461.6293 | Y11: =SUMIF(Cálculos!$I$8:$QJ$8, Y$2, Cálculos!$I230:$QJ230) -> 146884.3092 | Z11: =SUMIF(Cálculos!$I$8:$QJ$8, Z$2, Cálculos!$I230:$QJ230) -> 144519.9937 | AA11: =SUMIF(Cálculos!$I$8:$QJ$8, AA$2, Cálculos!$I230:$QJ230) -> 142578.5539 | AB11: =SUMIF(Cálculos!$I$8:$QJ$8, AB$2, Cálculos!$I230:$QJ230) -> 140656.4398 | AC11: =SUMIF(Cálculos!$I$8:$QJ$8, AC$2, Cálculos!$I230:$QJ230) -> 139135.5636 | AD11: =SUMIF(Cálculos!$I$8:$QJ$8, AD$2, Cálculos!$I230:$QJ230) -> 136869.421 | AE11: =SUMIF(Cálculos!$I$8:$QJ$8, AE$2, Cálculos!$I230:$QJ230) -> 135004.1373 | AF11: =SUMIF(Cálculos!$I$8:$QJ$8, AF$2, Cálculos!$I230:$QJ230) -> 133157.4212 | AG11: =SUMIF(Cálculos!$I$8:$QJ$8, AG$2, Cálculos!$I230:$QJ230) -> 130987.2377
C13: Receitas Brutas | D13: =Cálculos!E355 -> EUR | F13: 59889315.78 | G13: =G10+G11+G12 -> 0 | H13: 0 | I13: 2592600.047 | J13: 2620583.459 | K13: 2625008.094 | L13: 2620258.206 | M13: 2599600.878 | N13: 2578270.822 | O13: 2554167.783 | P13: 2527737.156 | Q13: 2501879.725 | R13: 2475662.578 | S13: 2450013.415 | T13: 2424619.571 | U13: 2399765.581 | V13: 2374587.7 | W13: 2349944.666 | X13: 2325546.936 | Y13: 2301657.026 | Z13: 2277477.645 | AA13: 2253801.273 | AB13: 2230360.583 | AC13: 2207396.934 | AD13: 2184176.886 | AE13: 2161429.257 | AF13: 2138908.064 | AG13: 2113861.497
C14: menos: Custo das Mercadorias Vendidas | D14: =Cálculos!E355 -> EUR | F14: =SUM(G14:AR14) -> -3854031.97 | G14: =SUMIF(Cálculos!$I$8:$QJ$8, G$2, Cálculos!$I231:$QJ232) -> 0 | H14: =SUMIF(Cálculos!$I$8:$QJ$8, H$2, Cálculos!$I231:$QJ232) -> 0 | I14: =SUMIF(Cálculos!$I$8:$QJ$8, I$2, Cálculos!$I354:$QJ354) -> -100568.4574 | J14: =SUMIF(Cálculos!$I$8:$QJ$8, J$2, Cálculos!$I354:$QJ354) -> -131552.8494 | K14: =SUMIF(Cálculos!$I$8:$QJ$8, K$2, Cálculos!$I354:$QJ354) -> -151121.7355 | L14: =SUMIF(Cálculos!$I$8:$QJ$8, L$2, Cálculos!$I354:$QJ354) -> -168068.8581 | M14: =SUMIF(Cálculos!$I$8:$QJ$8, M$2, Cálculos!$I354:$QJ354) -> -171600.1737 | N14: =SUMIF(Cálculos!$I$8:$QJ$8, N$2, Cálculos!$I354:$QJ354) -> -173939.37 | O14: =SUMIF(Cálculos!$I$8:$QJ$8, O$2, Cálculos!$I354:$QJ354) -> -173944.5078 | P14: =SUMIF(Cálculos!$I$8:$QJ$8, P$2, Cálculos!$I354:$QJ354) -> -171784.1479 | Q14: =SUMIF(Cálculos!$I$8:$QJ$8, Q$2, Cálculos!$I354:$QJ354) -> -170112.2754 | R14: =SUMIF(Cálculos!$I$8:$QJ$8, R$2, Cálculos!$I354:$QJ354) -> -167527.7287 | S14: =SUMIF(Cálculos!$I$8:$QJ$8, S$2, Cálculos!$I354:$QJ354) -> -165431.2433 | T14: =SUMIF(Cálculos!$I$8:$QJ$8, T$2, Cálculos!$I354:$QJ354) -> -163355.627 | U14: =SUMIF(Cálculos!$I$8:$QJ$8, U$2, Cálculos!$I354:$QJ354) -> -161744.7061 | V14: =SUMIF(Cálculos!$I$8:$QJ$8, V$2, Cálculos!$I354:$QJ354) -> -159266.1725 | W14: =SUMIF(Cálculos!$I$8:$QJ$8, W$2, Cálculos!$I354:$QJ354) -> -157251.9251 | X14: =SUMIF(Cálculos!$I$8:$QJ$8, X$2, Cálculos!$I354:$QJ354) -> -155257.7282 | Y14: =SUMIF(Cálculos!$I$8:$QJ$8, Y$2, Cálculos!$I354:$QJ354) -> -153705.368 | Z14: =SUMIF(Cálculos!$I$8:$QJ$8, Z$2, Cálculos!$I354:$QJ354) -> -151328.689 | AA14: =SUMIF(Cálculos!$I$8:$QJ$8, AA$2, Cálculos!$I354:$QJ354) -> -149393.4537 | AB14: =SUMIF(Cálculos!$I$8:$QJ$8, AB$2, Cálculos!$I354:$QJ354) -> -147477.4822 | AC14: =SUMIF(Cálculos!$I$8:$QJ$8, AC$2, Cálculos!$I354:$QJ354) -> -145981.3857 | AD14: =SUMIF(Cálculos!$I$8:$QJ$8, AD$2, Cálculos!$I354:$QJ354) -> -143702.5659 | AE14: =SUMIF(Cálculos!$I$8:$QJ$8, AE$2, Cálculos!$I354:$QJ354) -> -141843.2432 | AF14: =SUMIF(Cálculos!$I$8:$QJ$8, AF$2, Cálculos!$I354:$QJ354) -> -140002.4287 | AG14: =SUMIF(Cálculos!$I$8:$QJ$8, AG$2, Cálculos!$I354:$QJ354) -> -138069.8477
C15: =Cálculos!C356 -> Menos: Custos Operacionais | D15: =Cálculos!E356 -> EUR | F15: -21471629.51 | G15: =SUMIF(Cálculos!$I$8:$QJ$8, G$2, Cálculos!$I356:$QJ356) -> 0 | H15: =SUMIF(Cálculos!$I$8:$QJ$8, H$2, Cálculos!$I356:$QJ356) -> 0 | I15: =SUMIF(Cálculos!$I$8:$QJ$8, I$2, Cálculos!$I356:$QJ356) -> -723958.252 | J15: =SUMIF(Cálculos!$I$8:$QJ$8, J$2, Cálculos!$I356:$QJ356) -> -751255.3543 | K15: =SUMIF(Cálculos!$I$8:$QJ$8, K$2, Cálculos!$I356:$QJ356) -> -754712.3696 | L15: =SUMIF(Cálculos!$I$8:$QJ$8, L$2, Cálculos!$I356:$QJ356) -> -758882.3273 | M15: =SUMIF(Cálculos!$I$8:$QJ$8, M$2, Cálculos!$I356:$QJ356) -> -763334.8733 | N15: =SUMIF(Cálculos!$I$8:$QJ$8, N$2, Cálculos!$I356:$QJ356) -> -766674.4161 | O15: =SUMIF(Cálculos!$I$8:$QJ$8, O$2, Cálculos!$I356:$QJ356) -> -770342.479 | P15: =SUMIF(Cálculos!$I$8:$QJ$8, P$2, Cálculos!$I356:$QJ356) -> -774111.0558 | Q15: =SUMIF(Cálculos!$I$8:$QJ$8, Q$2, Cálculos!$I356:$QJ356) -> -778223.75 | R15: =SUMIF(Cálculos!$I$8:$QJ$8, R$2, Cálculos!$I356:$QJ356) -> -781984.3643 | S15: =SUMIF(Cálculos!$I$8:$QJ$8, S$2, Cálculos!$I356:$QJ356) -> -786094.3843 | T15: =SUMIF(Cálculos!$I$8:$QJ$8, T$2, Cálculos!$I356:$QJ356) -> -790323.62 | U15: =SUMIF(Cálculos!$I$8:$QJ$8, U$2, Cálculos!$I356:$QJ356) -> -794907.8226 | V15: =SUMIF(Cálculos!$I$8:$QJ$8, V$2, Cálculos!$I356:$QJ356) -> -799151.0771 | W15: =SUMIF(Cálculos!$I$8:$QJ$8, W$2, Cálculos!$I356:$QJ356) -> -803755.1493 | X15: =SUMIF(Cálculos!$I$8:$QJ$8, X$2, Cálculos!$I356:$QJ356) -> -808490.1428 | Y15: =SUMIF(Cálculos!$I$8:$QJ$8, Y$2, Cálculos!$I356:$QJ356) -> -813592.1062 | Z15: =SUMIF(Cálculos!$I$8:$QJ$8, Z$2, Cálculos!$I356:$QJ356) -> -818365.4353 | AA15: =SUMIF(Cálculos!$I$8:$QJ$8, AA$2, Cálculos!$I356:$QJ356) -> -823512.2058 | AB15: =SUMIF(Cálculos!$I$8:$QJ$8, AB$2, Cálculos!$I356:$QJ356) -> -828802.8445 | AC15: =SUMIF(Cálculos!$I$8:$QJ$8, AC$2, Cálculos!$I356:$QJ356) -> -834473.7284 | AD15: =SUMIF(Cálculos!$I$8:$QJ$8, AD$2, Cálculos!$I356:$QJ356) -> -839829.5956 | AE15: =SUMIF(Cálculos!$I$8:$QJ$8, AE$2, Cálculos!$I356:$QJ356) -> -845572.864 | AF15: =SUMIF(Cálculos!$I$8:$QJ$8, AF$2, Cálculos!$I356:$QJ356) -> -851474.3168 | AG15: =SUMIF(Cálculos!$I$8:$QJ$8, AG$2, Cálculos!$I356:$QJ356) -> -2409804.974
C16: =Cálculos!C357 -> EBITDA | D16: =Cálculos!E357 -> EUR | F16: 34563654.3 | G16: =SUM(G13:G15) -> 0 | H16: 0 | I16: 1768073.337 | J16: 1737775.255 | K16: 1719173.989 | L16: 1693307.021 | M16: 1664665.831 | N16: 1637657.036 | O16: 1609880.796 | P16: 1581841.952 | Q16: 1553543.7 | R16: 1526150.485 | S16: 1498487.787 | T16: 1470940.324 | U16: 1443113.052 | V16: 1416170.451 | W16: 1388937.592 | X16: 1361799.065 | Y16: 1334359.552 | Z16: 1307783.521 | AA16: 1280895.614 | AB16: 1254080.256 | AC16: 1226941.82 | AD16: 1200644.724 | AE16: 1174013.149 | AF16: 1147431.319 | AG16: -434013.3249
C18: =Cálculos!C359 -> Menos: Depreciações e Amortizações | D18: =Cálculos!E359 -> EUR | F18: =SUM(G18:AR18) -> -16670789.51 | G18: =SUMIF(Cálculos!$I$8:$QJ$8, G$2, Cálculos!$I359:$QJ359) -> 0 | H18: =SUMIF(Cálculos!$I$8:$QJ$8, H$2, Cálculos!$I359:$QJ359) -> 0 | I18: =SUMIF(Cálculos!$I$8:$QJ$8, I$2, Cálculos!$I359:$QJ359) -> -1298360.274 | J18: =SUMIF(Cálculos!$I$8:$QJ$8, J$2, Cálculos!$I359:$QJ359) -> -1298360.274 | K18: =SUMIF(Cálculos!$I$8:$QJ$8, K$2, Cálculos!$I359:$QJ359) -> -1298360.274 | L18: =SUMIF(Cálculos!$I$8:$QJ$8, L$2, Cálculos!$I359:$QJ359) -> -1298360.274 | M18: =SUMIF(Cálculos!$I$8:$QJ$8, M$2, Cálculos!$I359:$QJ359) -> -1298360.274 | N18: =SUMIF(Cálculos!$I$8:$QJ$8, N$2, Cálculos!$I359:$QJ359) -> -1276260.274 | O18: =SUMIF(Cálculos!$I$8:$QJ$8, O$2, Cálculos!$I359:$QJ359) -> -1276260.274 | P18: =SUMIF(Cálculos!$I$8:$QJ$8, P$2, Cálculos!$I359:$QJ359) -> -703430.4542 | Q18: =SUMIF(Cálculos!$I$8:$QJ$8, Q$2, Cálculos!$I359:$QJ359) -> -703430.4542 | R18: =SUMIF(Cálculos!$I$8:$QJ$8, R$2, Cálculos!$I359:$QJ359) -> -703210.4542 | S18: =SUMIF(Cálculos!$I$8:$QJ$8, S$2, Cálculos!$I359:$QJ359) -> -463510.0592 | T18: =SUMIF(Cálculos!$I$8:$QJ$8, T$2, Cálculos!$I359:$QJ359) -> -463510.0592 | U18: =SUMIF(Cálculos!$I$8:$QJ$8, U$2, Cálculos!$I359:$QJ359) -> -406005.202 | V18: =SUMIF(Cálculos!$I$8:$QJ$8, V$2, Cálculos!$I359:$QJ359) -> -348500.3449 | W18: =SUMIF(Cálculos!$I$8:$QJ$8, W$2, Cálculos!$I359:$QJ359) -> -348500.3449 | X18: =SUMIF(Cálculos!$I$8:$QJ$8, X$2, Cálculos!$I359:$QJ359) -> -348500.3449 | Y18: =SUMIF(Cálculos!$I$8:$QJ$8, Y$2, Cálculos!$I359:$QJ359) -> -348500.3449 | Z18: =SUMIF(Cálculos!$I$8:$QJ$8, Z$2, Cálculos!$I359:$QJ359) -> -348591.4633 | AA18: =SUMIF(Cálculos!$I$8:$QJ$8, AA$2, Cálculos!$I359:$QJ359) -> -348682.5817 | AB18: =SUMIF(Cálculos!$I$8:$QJ$8, AB$2, Cálculos!$I359:$QJ359) -> -348682.5817 | AC18: =SUMIF(Cálculos!$I$8:$QJ$8, AC$2, Cálculos!$I359:$QJ359) -> -348682.5817 | AD18: =SUMIF(Cálculos!$I$8:$QJ$8, AD$2, Cálculos!$I359:$QJ359) -> -348682.5817 | AE18: =SUMIF(Cálculos!$I$8:$QJ$8, AE$2, Cálculos!$I359:$QJ359) -> -348682.5817 | AF18: =SUMIF(Cálculos!$I$8:$QJ$8, AF$2, Cálculos!$I359:$QJ359) -> -348682.5817 | AG18: =SUMIF(Cálculos!$I$8:$QJ$8, AG$2, Cálculos!$I359:$QJ359) -> -348682.5817
C19: =Cálculos!C360 -> EBIT | D19: =Cálculos!E360 -> EUR | F19: =SUM(G19:AR19) -> 17892864.79 | G19: =G16+G18 -> 0 | H19: =H16+H18 -> 0 | I19: 469713.0636 | J19: 439414.9812 | K19: 420813.715 | L19: 394946.7472 | M19: 366305.5571 | N19: 361396.7623 | O19: 333620.5225 | P19: 878411.4981 | Q19: 850113.2458 | R19: 822940.0306 | S19: 1034977.728 | T19: 1007430.265 | U19: 1037107.85 | V19: 1067670.106 | W19: 1040437.247 | X19: 1013298.72 | Y19: 985859.2067 | Z19: 959192.0576 | AA19: 932213.032 | AB19: 905397.6743 | AC19: 878259.2382 | AD19: 851962.1424 | AE19: 825330.5678 | AF19: 798748.7371 | AG19: -782695.9066
C21: =Cálculos!C362 -> Menos: Juros da Dívida Sénior | D21: =Cálculos!E362 -> EUR | F21: =SUM(G21:AR21) -> -5226496.897 | G21: =SUMIF(Cálculos!$I$8:$QJ$8, G$2, Cálculos!$I362:$QJ362) -> 0 | H21: =SUMIF(Cálculos!$I$8:$QJ$8, H$2, Cálculos!$I362:$QJ362) -> 0 | I21: =SUMIF(Cálculos!$I$8:$QJ$8, I$2, Cálculos!$I362:$QJ362) -> -493683.284 | J21: =SUMIF(Cálculos!$I$8:$QJ$8, J$2, Cálculos!$I362:$QJ362) -> -477139.0232 | K21: =SUMIF(Cálculos!$I$8:$QJ$8, K$2, Cálculos!$I362:$QJ362) -> -458692.5698 | L21: =SUMIF(Cálculos!$I$8:$QJ$8, L$2, Cálculos!$I362:$QJ362) -> -439205.5915 | M21: =SUMIF(Cálculos!$I$8:$QJ$8, M$2, Cálculos!$I362:$QJ362) -> -418619.3945 | N21: =SUMIF(Cálculos!$I$8:$QJ$8, N$2, Cálculos!$I362:$QJ362) -> -396871.9741 | O21: =SUMIF(Cálculos!$I$8:$QJ$8, O$2, Cálculos!$I362:$QJ362) -> -373897.8283 | P21: =SUMIF(Cálculos!$I$8:$QJ$8, P$2, Cálculos!$I362:$QJ362) -> -349627.76 | Q21: =SUMIF(Cálculos!$I$8:$QJ$8, Q$2, Cálculos!$I362:$QJ362) -> -323988.6691 | R21: =SUMIF(Cálculos!$I$8:$QJ$8, R$2, Cálculos!$I362:$QJ362) -> -296903.332 | S21: =SUMIF(Cálculos!$I$8:$QJ$8, S$2, Cálculos!$I362:$QJ362) -> -268290.169 | T21: =SUMIF(Cálculos!$I$8:$QJ$8, T$2, Cálculos!$I362:$QJ362) -> -238062.9986 | U21: =SUMIF(Cálculos!$I$8:$QJ$8, U$2, Cálculos!$I362:$QJ362) -> -206130.7783 | V21: =SUMIF(Cálculos!$I$8:$QJ$8, V$2, Cálculos!$I362:$QJ362) -> -172397.3297 | W21: =SUMIF(Cálculos!$I$8:$QJ$8, W$2, Cálculos!$I362:$QJ362) -> -136761.0495 | X21: =SUMIF(Cálculos!$I$8:$QJ$8, X$2, Cálculos!$I362:$QJ362) -> -99114.60293 | Y21: =SUMIF(Cálculos!$I$8:$QJ$8, Y$2, Cálculos!$I362:$QJ362) -> -59344.60088 | Z21: =SUMIF(Cálculos!$I$8:$QJ$8, Z$2, Cálculos!$I362:$QJ362) -> -17765.94119 | AA21: =SUMIF(Cálculos!$I$8:$QJ$8, AA$2, Cálculos!$I362:$QJ362) -> 0 | AB21: =SUMIF(Cálculos!$I$8:$QJ$8, AB$2, Cálculos!$I362:$QJ362) -> 0 | AC21: =SUMIF(Cálculos!$I$8:$QJ$8, AC$2, Cálculos!$I362:$QJ362) -> 0 | AD21: =SUMIF(Cálculos!$I$8:$QJ$8, AD$2, Cálculos!$I362:$QJ362) -> 0 | AE21: =SUMIF(Cálculos!$I$8:$QJ$8, AE$2, Cálculos!$I362:$QJ362) -> 0 | AF21: =SUMIF(Cálculos!$I$8:$QJ$8, AF$2, Cálculos!$I362:$QJ362) -> 0 | AG21: =SUMIF(Cálculos!$I$8:$QJ$8, AG$2, Cálculos!$I362:$QJ362) -> 0
C22: =Cálculos!C363 -> Menos: Juros da Dívida Subordinada | D22: =Cálculos!E363 -> EUR | F22: =SUM(G22:AR22) -> -5647121.092 | G22: =SUMIF(Cálculos!$I$8:$QJ$8, G$2, Cálculos!$I363:$QJ363) -> 0 | H22: 0 | I22: =SUMIF(Cálculos!$I$8:$QJ$8, I$2, Cálculos!$I363:$QJ363) -> -543118.9955 | J22: =SUMIF(Cálculos!$I$8:$QJ$8, J$2, Cálculos!$I363:$QJ363) -> -533320.2242 | K22: =SUMIF(Cálculos!$I$8:$QJ$8, K$2, Cálculos!$I363:$QJ363) -> -522573.1945 | L22: =SUMIF(Cálculos!$I$8:$QJ$8, L$2, Cálculos!$I363:$QJ363) -> -510463.1725 | M22: =SUMIF(Cálculos!$I$8:$QJ$8, M$2, Cálculos!$I363:$QJ363) -> -496817.2965 | N22: =SUMIF(Cálculos!$I$8:$QJ$8, N$2, Cálculos!$I363:$QJ363) -> -481440.7819 | O22: =SUMIF(Cálculos!$I$8:$QJ$8, O$2, Cálculos!$I363:$QJ363) -> -464114.1404 | P22: =SUMIF(Cálculos!$I$8:$QJ$8, P$2, Cálculos!$I363:$QJ363) -> -444590.0471 | Q22: =SUMIF(Cálculos!$I$8:$QJ$8, Q$2, Cálculos!$I363:$QJ363) -> -422589.81 | R22: =SUMIF(Cálculos!$I$8:$QJ$8, R$2, Cálculos!$I363:$QJ363) -> -397799.3922 | S22: =SUMIF(Cálculos!$I$8:$QJ$8, S$2, Cálculos!$I363:$QJ363) -> -369864.9289 | T22: =SUMIF(Cálculos!$I$8:$QJ$8, T$2, Cálculos!$I363:$QJ363) -> -338387.6765 | U22: =SUMIF(Cálculos!$I$8:$QJ$8, U$2, Cálculos!$I363:$QJ363) -> -302918.3205 | V22: =SUMIF(Cálculos!$I$8:$QJ$8, V$2, Cálculos!$I363:$QJ363) -> -262950.5625 | W22: =SUMIF(Cálculos!$I$8:$QJ$8, W$2, Cálculos!$I363:$QJ363) -> -217913.8923 | X22: =SUMIF(Cálculos!$I$8:$QJ$8, X$2, Cálculos!$I363:$QJ363) -> -167165.4451 | Y22: =SUMIF(Cálculos!$I$8:$QJ$8, Y$2, Cálculos!$I363:$QJ363) -> -109980.8245 | Z22: =SUMIF(Cálculos!$I$8:$QJ$8, Z$2, Cálculos!$I363:$QJ363) -> -45543.76271 | AA22: =SUMIF(Cálculos!$I$8:$QJ$8, AA$2, Cálculos!$I363:$QJ363) -> 27065.53139 | AB22: =SUMIF(Cálculos!$I$8:$QJ$8, AB$2, Cálculos!$I363:$QJ363) -> 108883.5014 | AC22: =SUMIF(Cálculos!$I$8:$QJ$8, AC$2, Cálculos!$I363:$QJ363) -> 201078.0379 | AD22: =SUMIF(Cálculos!$I$8:$QJ$8, AD$2, Cálculos!$I363:$QJ363) -> 304965.1494 | AE22: =SUMIF(Cálculos!$I$8:$QJ$8, AE$2, Cálculos!$I363:$QJ363) -> 342439.1561 | AF22: =SUMIF(Cálculos!$I$8:$QJ$8, AF$2, Cálculos!$I363:$QJ363) -> 0 | AG22: =SUMIF(Cálculos!$I$8:$QJ$8, AG$2, Cálculos!$I363:$QJ363) -> 0
C23: =Cálculos!C364 -> Mais: Juros das Contas de Reserva | D23: =Cálculos!E364 -> EUR | F23: =SUM(G23:AR23) -> 0 | G23: =SUMIF(Cálculos!$I$8:$QJ$8, G$2, Cálculos!$I364:$QJ364) -> 0 | H23: =SUMIF(Cálculos!$I$8:$QJ$8, H$2, Cálculos!$I364:$QJ364) -> 0 | I23: =SUMIF(Cálculos!$I$8:$QJ$8, I$2, Cálculos!$I364:$QJ364) -> 0 | J23: =SUMIF(Cálculos!$I$8:$QJ$8, J$2, Cálculos!$I364:$QJ364) -> 0 | K23: =SUMIF(Cálculos!$I$8:$QJ$8, K$2, Cálculos!$I364:$QJ364) -> 0 | L23: =SUMIF(Cálculos!$I$8:$QJ$8, L$2, Cálculos!$I364:$QJ364) -> 0 | M23: =SUMIF(Cálculos!$I$8:$QJ$8, M$2, Cálculos!$I364:$QJ364) -> 0 | N23: =SUMIF(Cálculos!$I$8:$QJ$8, N$2, Cálculos!$I364:$QJ364) -> 0 | O23: =SUMIF(Cálculos!$I$8:$QJ$8, O$2, Cálculos!$I364:$QJ364) -> 0 | P23: =SUMIF(Cálculos!$I$8:$QJ$8, P$2, Cálculos!$I364:$QJ364) -> 0 | Q23: =SUMIF(Cálculos!$I$8:$QJ$8, Q$2, Cálculos!$I364:$QJ364) -> 0 | R23: =SUMIF(Cálculos!$I$8:$QJ$8, R$2, Cálculos!$I364:$QJ364) -> 0 | S23: =SUMIF(Cálculos!$I$8:$QJ$8, S$2, Cálculos!$I364:$QJ364) -> 0 | T23: =SUMIF(Cálculos!$I$8:$QJ$8, T$2, Cálculos!$I364:$QJ364) -> 0 | U23: =SUMIF(Cálculos!$I$8:$QJ$8, U$2, Cálculos!$I364:$QJ364) -> 0 | V23: =SUMIF(Cálculos!$I$8:$QJ$8, V$2, Cálculos!$I364:$QJ364) -> 0 | W23: =SUMIF(Cálculos!$I$8:$QJ$8, W$2, Cálculos!$I364:$QJ364) -> 0 | X23: =SUMIF(Cálculos!$I$8:$QJ$8, X$2, Cálculos!$I364:$QJ364) -> 0 | Y23: =SUMIF(Cálculos!$I$8:$QJ$8, Y$2, Cálculos!$I364:$QJ364) -> 0 | Z23: =SUMIF(Cálculos!$I$8:$QJ$8, Z$2, Cálculos!$I364:$QJ364) -> 0 | AA23: =SUMIF(Cálculos!$I$8:$QJ$8, AA$2, Cálculos!$I364:$QJ364) -> 0 | AB23: =SUMIF(Cálculos!$I$8:$QJ$8, AB$2, Cálculos!$I364:$QJ364) -> 0 | AC23: =SUMIF(Cálculos!$I$8:$QJ$8, AC$2, Cálculos!$I364:$QJ364) -> 0 | AD23: =SUMIF(Cálculos!$I$8:$QJ$8, AD$2, Cálculos!$I364:$QJ364) -> 0 | AE23: =SUMIF(Cálculos!$I$8:$QJ$8, AE$2, Cálculos!$I364:$QJ364) -> 0 | AF23: =SUMIF(Cálculos!$I$8:$QJ$8, AF$2, Cálculos!$I364:$QJ364) -> 0 | AG23: =SUMIF(Cálculos!$I$8:$QJ$8, AG$2, Cálculos!$I364:$QJ364) -> 0
C24: =Cálculos!C365 -> EBT | D24: =Cálculos!E365 -> EUR | F24: =SUM(G24:AR24) -> 7019246.801 | G24: =G19+SUM(G21:G23) -> 0 | H24: 0 | I24: -567089.2158 | J24: -571044.2661 | K24: -560452.0494 | L24: -554722.0168 | M24: -549131.1339 | N24: -516915.9937 | O24: -504391.4462 | P24: 84193.69099 | Q24: 103534.7667 | R24: 128237.3064 | S24: 396822.6301 | T24: 430979.5896 | U24: 528058.7516 | V24: 632322.2137 | W24: 685762.3053 | X24: 747018.6725 | Y24: 816533.7813 | Z24: 895882.3536 | AA24: 959278.5634 | AB24: 1014281.176 | AC24: 1079337.276 | AD24: 1156927.292 | AE24: 1167769.724 | AF24: 798748.7371 | AG24: -782695.9066
C26: =Cálculos!C367 -> Menos: Impostos | D26: =Cálculos!E367 -> EUR | F26: =SUM(G26:AR26) -> -1065651.837 | G26: =SUMIF(Cálculos!$I$8:$QJ$8, G$2, Cálculos!$I367:$QJ367) -> 0 | H26: =SUMIF(Cálculos!$I$8:$QJ$8, H$2, Cálculos!$I367:$QJ367) -> 0 | I26: =SUMIF(Cálculos!$I$8:$QJ$8, I$2, Cálculos!$I367:$QJ367) -> 0 | J26: =SUMIF(Cálculos!$I$8:$QJ$8, J$2, Cálculos!$I367:$QJ367) -> 0 | K26: =SUMIF(Cálculos!$I$8:$QJ$8, K$2, Cálculos!$I367:$QJ367) -> 0 | L26: =SUMIF(Cálculos!$I$8:$QJ$8, L$2, Cálculos!$I367:$QJ367) -> 0 | M26: =SUMIF(Cálculos!$I$8:$QJ$8, M$2, Cálculos!$I367:$QJ367) -> 0 | N26: =SUMIF(Cálculos!$I$8:$QJ$8, N$2, Cálculos!$I367:$QJ367) -> 0 | O26: =SUMIF(Cálculos!$I$8:$QJ$8, O$2, Cálculos!$I367:$QJ367) -> 0 | P26: =SUMIF(Cálculos!$I$8:$QJ$8, P$2, Cálculos!$I367:$QJ367) -> 0 | Q26: =SUMIF(Cálculos!$I$8:$QJ$8, Q$2, Cálculos!$I367:$QJ367) -> 0 | R26: =SUMIF(Cálculos!$I$8:$QJ$8, R$2, Cálculos!$I367:$QJ367) -> 0 | S26: =SUMIF(Cálculos!$I$8:$QJ$8, S$2, Cálculos!$I367:$QJ367) -> 0 | T26: =SUMIF(Cálculos!$I$8:$QJ$8, T$2, Cálculos!$I367:$QJ367) -> 0 | U26: =SUMIF(Cálculos!$I$8:$QJ$8, U$2, Cálculos!$I367:$QJ367) -> 0 | V26: =SUMIF(Cálculos!$I$8:$QJ$8, V$2, Cálculos!$I367:$QJ367) -> 0 | W26: =SUMIF(Cálculos!$I$8:$QJ$8, W$2, Cálculos!$I367:$QJ367) -> 0 | X26: =SUMIF(Cálculos!$I$8:$QJ$8, X$2, Cálculos!$I367:$QJ367) -> 0 | Y26: =SUMIF(Cálculos!$I$8:$QJ$8, Y$2, Cálculos!$I367:$QJ367) -> 0 | Z26: =SUMIF(Cálculos!$I$8:$QJ$8, Z$2, Cálculos!$I367:$QJ367) -> 0 | AA26: =SUMIF(Cálculos!$I$8:$QJ$8, AA$2, Cálculos!$I367:$QJ367) -> 0 | AB26: =SUMIF(Cálculos!$I$8:$QJ$8, AB$2, Cálculos!$I367:$QJ367) -> -140657.9231 | AC26: =SUMIF(Cálculos!$I$8:$QJ$8, AC$2, Cálculos!$I367:$QJ367) -> -198268.4404 | AD26: =SUMIF(Cálculos!$I$8:$QJ$8, AD$2, Cálculos!$I367:$QJ367) -> -211585.2689 | AE26: =SUMIF(Cálculos!$I$8:$QJ$8, AE$2, Cálculos!$I367:$QJ367) -> -216414.0292 | AF26: =SUMIF(Cálculos!$I$8:$QJ$8, AF$2, Cálculos!$I367:$QJ367) -> -151624.5608 | AG26: =SUMIF(Cálculos!$I$8:$QJ$8, AG$2, Cálculos!$I367:$QJ367) -> -147101.6142
C27: =Cálculos!C368 -> Mais: Variação do Ativo por Impostos Diferidos | D27: =Cálculos!E368 -> EUR | F27: =SUM(G27:AR27) -> 264593.5633 | G27: =SUMIF(Cálculos!$I$8:$QJ$8, G$2, Cálculos!$I368:$QJ368) -> 0 | H27: 0 | I27: =SUMIF(Cálculos!$I$8:$QJ$8, I$2, Cálculos!$I368:$QJ368) -> 166764.8763 | J27: =SUMIF(Cálculos!$I$8:$QJ$8, J$2, Cálculos!$I368:$QJ368) -> 167429.3247 | K27: =SUMIF(Cálculos!$I$8:$QJ$8, K$2, Cálculos!$I368:$QJ368) -> 165649.8323 | L27: =SUMIF(Cálculos!$I$8:$QJ$8, L$2, Cálculos!$I368:$QJ368) -> 164687.1868 | M27: =SUMIF(Cálculos!$I$8:$QJ$8, M$2, Cálculos!$I368:$QJ368) -> 163747.9185 | N27: =SUMIF(Cálculos!$I$8:$QJ$8, N$2, Cálculos!$I368:$QJ368) -> 162048.575 | O27: =SUMIF(Cálculos!$I$8:$QJ$8, O$2, Cálculos!$I368:$QJ368) -> 159944.451 | P27: =SUMIF(Cálculos!$I$8:$QJ$8, P$2, Cálculos!$I368:$QJ368) -> 157297.5576 | Q27: =SUMIF(Cálculos!$I$8:$QJ$8, Q$2, Cálculos!$I368:$QJ368) -> 154048.2569 | R27: =SUMIF(Cálculos!$I$8:$QJ$8, R$2, Cálculos!$I368:$QJ368) -> 149935.1902 | S27: =SUMIF(Cálculos!$I$8:$QJ$8, S$2, Cálculos!$I368:$QJ368) -> -144535.8918 | T27: =SUMIF(Cálculos!$I$8:$QJ$8, T$2, Cálculos!$I368:$QJ368) -> -150274.261 | U27: =SUMIF(Cálculos!$I$8:$QJ$8, U$2, Cálculos!$I368:$QJ368) -> -156922.7442 | V27: =SUMIF(Cálculos!$I$8:$QJ$8, V$2, Cálculos!$I368:$QJ368) -> -164778.1898 | W27: =SUMIF(Cálculos!$I$8:$QJ$8, W$2, Cálculos!$I368:$QJ368) -> -173756.1252 | X27: =SUMIF(Cálculos!$I$8:$QJ$8, X$2, Cálculos!$I368:$QJ368) -> -184047.1949 | Y27: =SUMIF(Cálculos!$I$8:$QJ$8, Y$2, Cálculos!$I368:$QJ368) -> -195725.7332 | Z27: =SUMIF(Cálculos!$I$8:$QJ$8, Z$2, Cálculos!$I368:$QJ368) -> -209017.1555 | AA27: =SUMIF(Cálculos!$I$8:$QJ$8, AA$2, Cálculos!$I368:$QJ368) -> -185251.3693 | AB27: =SUMIF(Cálculos!$I$8:$QJ$8, AB$2, Cálculos!$I368:$QJ368) -> -46962.79837 | AC27: =SUMIF(Cálculos!$I$8:$QJ$8, AC$2, Cálculos!$I368:$QJ368) -> -281.7058932 | AD27: =SUMIF(Cálculos!$I$8:$QJ$8, AD$2, Cálculos!$I368:$QJ368) -> 0 | AE27: =SUMIF(Cálculos!$I$8:$QJ$8, AE$2, Cálculos!$I368:$QJ368) -> 3007.231677 | AF27: =SUMIF(Cálculos!$I$8:$QJ$8, AF$2, Cálculos!$I368:$QJ368) -> 213.28903 | AG27: =SUMIF(Cálculos!$I$8:$QJ$8, AG$2, Cálculos!$I368:$QJ368) -> 261373.0426
C28: =Cálculos!C369 -> Resultado Líquido / (Prejuízo) | D28: =Cálculos!E369 -> EUR | F28: =SUM(G28:AR28) -> 6218188.528 | G28: =G24+SUM(G26:G27) -> 0 | H28: =H24+SUM(H26:H27) -> 0 | I28: -400324.3396 | J28: -403614.9414 | K28: -394802.2171 | L28: -390034.83 | M28: -385383.2154 | N28: -354867.4188 | O28: -344446.9952 | P28: 241491.2486 | Q28: 257583.0235 | R28: 278172.4966 | S28: 252286.7383 | T28: 280705.3286 | U28: 371136.0074 | V28: 467544.0239 | W28: 512006.18 | X28: 562971.4775 | Y28: 620808.0481 | Z28: 686865.1981 | AA28: 774027.1941 | AB28: 826660.4543 | AC28: 880787.1298 | AD28: 945342.0228 | AE28: 954362.9264 | AF28: 647337.4654 | AG28: -668424.4782
A30: · | B30: Balanço | D30: Unidade
B32: Ativos Correntes
C33: Caixa Não Restrita | D33: =Cálculos!E374 -> EUR | G33: =LOOKUP(G$3, Cálculos!$I$4:$QJ$4, Cálculos!$I374:$QJ374) -> 27631.18238 | H33: =LOOKUP(H$3, Cálculos!$I$4:$QJ$4, Cálculos!$I374:$QJ374) -> 559769.1356 | I33: =LOOKUP(I$3, Cálculos!$I$4:$QJ$4, Cálculos!$I374:$QJ374) -> 644267.0709 | J33: =LOOKUP(J$3, Cálculos!$I$4:$QJ$4, Cálculos!$I374:$QJ374) -> 1095960.787 | K33: =LOOKUP(K$3, Cálculos!$I$4:$QJ$4, Cálculos!$I374:$QJ374) -> 1395524.456 | L33: =LOOKUP(L$3, Cálculos!$I$4:$QJ$4, Cálculos!$I374:$QJ374) -> 1669199.783 | M33: =LOOKUP(M$3, Cálculos!$I$4:$QJ$4, Cálculos!$I374:$QJ374) -> 1791422.223 | N33: =LOOKUP(N$3, Cálculos!$I$4:$QJ$4, Cálculos!$I374:$QJ374) -> 2132196.448 | O33: =LOOKUP(O$3, Cálculos!$I$4:$QJ$4, Cálculos!$I374:$QJ374) -> 2322383.39 | P33: =LOOKUP(P$3, Cálculos!$I$4:$QJ$4, Cálculos!$I374:$QJ374) -> 2484511.419 | Q33: =LOOKUP(Q$3, Cálculos!$I$4:$QJ$4, Cálculos!$I374:$QJ374) -> 2504278.93 | R33: =LOOKUP(R$3, Cálculos!$I$4:$QJ$4, Cálculos!$I374:$QJ374) -> 2724718.86 | S33: =LOOKUP(S$3, Cálculos!$I$4:$QJ$4, Cálculos!$I374:$QJ374) -> 2803434.478 | T33: =LOOKUP(T$3, Cálculos!$I$4:$QJ$4, Cálculos!$I374:$QJ374) -> 2854583.869 | U33: =LOOKUP(U$3, Cálculos!$I$4:$QJ$4, Cálculos!$I374:$QJ374) -> 2772450.41 | V33: =LOOKUP(V$3, Cálculos!$I$4:$QJ$4, Cálculos!$I374:$QJ374) -> 2874230.522 | W33: =LOOKUP(W$3, Cálculos!$I$4:$QJ$4, Cálculos!$I374:$QJ374) -> 2843322.849 | X33: =LOOKUP(X$3, Cálculos!$I$4:$QJ$4, Cálculos!$I374:$QJ374) -> 2785259.193 | Y33: =LOOKUP(Y$3, Cálculos!$I$4:$QJ$4, Cálculos!$I374:$QJ374) -> 2602790.798 | Z33: =LOOKUP(Z$3, Cálculos!$I$4:$QJ$4, Cálculos!$I374:$QJ374) -> 3225472.881 | AA33: =LOOKUP(AA$3, Cálculos!$I$4:$QJ$4, Cálculos!$I374:$QJ374) -> 1436654.066 | AB33: =LOOKUP(AB$3, Cálculos!$I$4:$QJ$4, Cálculos!$I374:$QJ374) -> 1942420.002 | AC33: =LOOKUP(AC$3, Cálculos!$I$4:$QJ$4, Cálculos!$I374:$QJ374) -> 2282961.45 | AD33: =LOOKUP(AD$3, Cálculos!$I$4:$QJ$4, Cálculos!$I374:$QJ374) -> 2733038.854 | AE33: =LOOKUP(AE$3, Cálculos!$I$4:$QJ$4, Cálculos!$I374:$QJ374) -> 7027024.92 | AF33: =LOOKUP(AF$3, Cálculos!$I$4:$QJ$4, Cálculos!$I374:$QJ374) -> 8024764.671 | AG33: =LOOKUP(AG$3, Cálculos!$I$4:$QJ$4, Cálculos!$I374:$QJ374) -> 8929636.253
C34: DSRA | D34: =Cálculos!E375 -> EUR | G34: =LOOKUP(G$3, Cálculos!$I$4:$QJ$4, Cálculos!$I375:$QJ375) -> 0 | H34: =LOOKUP(H$3, Cálculos!$I$4:$QJ$4, Cálculos!$I375:$QJ375) -> 201039.5556 | I34: =LOOKUP(I$3, Cálculos!$I$4:$QJ$4, Cálculos!$I375:$QJ375) -> 402079.1112 | J34: =LOOKUP(J$3, Cálculos!$I$4:$QJ$4, Cálculos!$I375:$QJ375) -> 402079.1112 | K34: =LOOKUP(K$3, Cálculos!$I$4:$QJ$4, Cálculos!$I375:$QJ375) -> 402079.1112 | L34: =LOOKUP(L$3, Cálculos!$I$4:$QJ$4, Cálculos!$I375:$QJ375) -> 402079.1112 | M34: =LOOKUP(M$3, Cálculos!$I$4:$QJ$4, Cálculos!$I375:$QJ375) -> 402079.1112 | N34: =LOOKUP(N$3, Cálculos!$I$4:$QJ$4, Cálculos!$I375:$QJ375) -> 402079.1112 | O34: =LOOKUP(O$3, Cálculos!$I$4:$QJ$4, Cálculos!$I375:$QJ375) -> 402079.1112 | P34: =LOOKUP(P$3, Cálculos!$I$4:$QJ$4, Cálculos!$I375:$QJ375) -> 402079.1112 | Q34: =LOOKUP(Q$3, Cálculos!$I$4:$QJ$4, Cálculos!$I375:$QJ375) -> 402079.1112 | R34: =LOOKUP(R$3, Cálculos!$I$4:$QJ$4, Cálculos!$I375:$QJ375) -> 402079.1112 | S34: =LOOKUP(S$3, Cálculos!$I$4:$QJ$4, Cálculos!$I375:$QJ375) -> 402079.1112 | T34: =LOOKUP(T$3, Cálculos!$I$4:$QJ$4, Cálculos!$I375:$QJ375) -> 402079.1112 | U34: =LOOKUP(U$3, Cálculos!$I$4:$QJ$4, Cálculos!$I375:$QJ375) -> 402079.1112 | V34: =LOOKUP(V$3, Cálculos!$I$4:$QJ$4, Cálculos!$I375:$QJ375) -> 402079.1112 | W34: =LOOKUP(W$3, Cálculos!$I$4:$QJ$4, Cálculos!$I375:$QJ375) -> 402079.1112 | X34: =LOOKUP(X$3, Cálculos!$I$4:$QJ$4, Cálculos!$I375:$QJ375) -> 402079.1112 | Y34: =LOOKUP(Y$3, Cálculos!$I$4:$QJ$4, Cálculos!$I375:$QJ375) -> 402079.1112 | Z34: =LOOKUP(Z$3, Cálculos!$I$4:$QJ$4, Cálculos!$I375:$QJ375) -> 0 | AA34: =LOOKUP(AA$3, Cálculos!$I$4:$QJ$4, Cálculos!$I375:$QJ375) -> 0 | AB34: =LOOKUP(AB$3, Cálculos!$I$4:$QJ$4, Cálculos!$I375:$QJ375) -> 0 | AC34: =LOOKUP(AC$3, Cálculos!$I$4:$QJ$4, Cálculos!$I375:$QJ375) -> 0 | AD34: =LOOKUP(AD$3, Cálculos!$I$4:$QJ$4, Cálculos!$I375:$QJ375) -> 0 | AE34: =LOOKUP(AE$3, Cálculos!$I$4:$QJ$4, Cálculos!$I375:$QJ375) -> 0 | AF34: =LOOKUP(AF$3, Cálculos!$I$4:$QJ$4, Cálculos!$I375:$QJ375) -> 0 | AG34: =LOOKUP(AG$3, Cálculos!$I$4:$QJ$4, Cálculos!$I375:$QJ375) -> 0
C35: =Cálculos!C376 -> Conta Reserva de Manutenção (MMRA) | D35: =Cálculos!E376 -> EUR | G35: =LOOKUP(G$3, Cálculos!$I$4:$QJ$4, Cálculos!$I376:$QJ376) -> 0 | H35: =LOOKUP(H$3, Cálculos!$I$4:$QJ$4, Cálculos!$I376:$QJ376) -> 0 | I35: =LOOKUP(I$3, Cálculos!$I$4:$QJ$4, Cálculos!$I376:$QJ376) -> 0 | J35: =LOOKUP(J$3, Cálculos!$I$4:$QJ$4, Cálculos!$I376:$QJ376) -> 0 | K35: =LOOKUP(K$3, Cálculos!$I$4:$QJ$4, Cálculos!$I376:$QJ376) -> 0 | L35: =LOOKUP(L$3, Cálculos!$I$4:$QJ$4, Cálculos!$I376:$QJ376) -> 0 | M35: =LOOKUP(M$3, Cálculos!$I$4:$QJ$4, Cálculos!$I376:$QJ376) -> 0 | N35: =LOOKUP(N$3, Cálculos!$I$4:$QJ$4, Cálculos!$I376:$QJ376) -> 0 | O35: =LOOKUP(O$3, Cálculos!$I$4:$QJ$4, Cálculos!$I376:$QJ376) -> 0 | P35: =LOOKUP(P$3, Cálculos!$I$4:$QJ$4, Cálculos!$I376:$QJ376) -> 0 | Q35: =LOOKUP(Q$3, Cálculos!$I$4:$QJ$4, Cálculos!$I376:$QJ376) -> 0 | R35: =LOOKUP(R$3, Cálculos!$I$4:$QJ$4, Cálculos!$I376:$QJ376) -> 0 | S35: =LOOKUP(S$3, Cálculos!$I$4:$QJ$4, Cálculos!$I376:$QJ376) -> 0 | T35: =LOOKUP(T$3, Cálculos!$I$4:$QJ$4, Cálculos!$I376:$QJ376) -> 0 | U35: =LOOKUP(U$3, Cálculos!$I$4:$QJ$4, Cálculos!$I376:$QJ376) -> 0 | V35: =LOOKUP(V$3, Cálculos!$I$4:$QJ$4, Cálculos!$I376:$QJ376) -> 0 | W35: =LOOKUP(W$3, Cálculos!$I$4:$QJ$4, Cálculos!$I376:$QJ376) -> 0 | X35: =LOOKUP(X$3, Cálculos!$I$4:$QJ$4, Cálculos!$I376:$QJ376) -> 0 | Y35: =LOOKUP(Y$3, Cálculos!$I$4:$QJ$4, Cálculos!$I376:$QJ376) -> 0 | Z35: =LOOKUP(Z$3, Cálculos!$I$4:$QJ$4, Cálculos!$I376:$QJ376) -> 0 | AA35: =LOOKUP(AA$3, Cálculos!$I$4:$QJ$4, Cálculos!$I376:$QJ376) -> 0 | AB35: =LOOKUP(AB$3, Cálculos!$I$4:$QJ$4, Cálculos!$I376:$QJ376) -> 0 | AC35: =LOOKUP(AC$3, Cálculos!$I$4:$QJ$4, Cálculos!$I376:$QJ376) -> 0 | AD35: =LOOKUP(AD$3, Cálculos!$I$4:$QJ$4, Cálculos!$I376:$QJ376) -> 0 | AE35: =LOOKUP(AE$3, Cálculos!$I$4:$QJ$4, Cálculos!$I376:$QJ376) -> 0 | AF35: =LOOKUP(AF$3, Cálculos!$I$4:$QJ$4, Cálculos!$I376:$QJ376) -> 0 | AG35: =LOOKUP(AG$3, Cálculos!$I$4:$QJ$4, Cálculos!$I376:$QJ376) -> 0
C36: =Cálculos!C377 -> Contas a Receber | D36: =Cálculos!E377 -> EUR | G36: =LOOKUP(G$3, Cálculos!$I$4:$QJ$4, Cálculos!$I377:$QJ377) -> 168174.7158 | H36: =LOOKUP(H$3, Cálculos!$I$4:$QJ$4, Cálculos!$I377:$QJ377) -> 0 | I36: =LOOKUP(I$3, Cálculos!$I$4:$QJ$4, Cálculos!$I377:$QJ377) -> 342548.9228 | J36: =LOOKUP(J$3, Cálculos!$I$4:$QJ$4, Cálculos!$I377:$QJ377) -> 239071.1009 | K36: =LOOKUP(K$3, Cálculos!$I$4:$QJ$4, Cálculos!$I377:$QJ377) -> 236594.916 | L36: =LOOKUP(L$3, Cálculos!$I$4:$QJ$4, Cálculos!$I377:$QJ377) -> 234143.3797 | M36: =LOOKUP(M$3, Cálculos!$I$4:$QJ$4, Cálculos!$I377:$QJ377) -> 329605.4461 | N36: =LOOKUP(N$3, Cálculos!$I$4:$QJ$4, Cálculos!$I377:$QJ377) -> 229313.2742 | O36: =LOOKUP(O$3, Cálculos!$I$4:$QJ$4, Cálculos!$I377:$QJ377) -> 226934.2216 | P36: =LOOKUP(P$3, Cálculos!$I$4:$QJ$4, Cálculos!$I377:$QJ377) -> 224578.8507 | Q36: =LOOKUP(Q$3, Cálculos!$I$4:$QJ$4, Cálculos!$I377:$QJ377) -> 316296.2664 | R36: =LOOKUP(R$3, Cálculos!$I$4:$QJ$4, Cálculos!$I377:$QJ377) -> 219938.2137 | S36: =LOOKUP(S$3, Cálculos!$I$4:$QJ$4, Cálculos!$I377:$QJ377) -> 217652.4832 | T36: =LOOKUP(T$3, Cálculos!$I$4:$QJ$4, Cálculos!$I377:$QJ377) -> 215389.5055 | U36: =LOOKUP(U$3, Cálculos!$I$4:$QJ$4, Cálculos!$I377:$QJ377) -> 303509.1604 | V36: =LOOKUP(V$3, Cálculos!$I$4:$QJ$4, Cálculos!$I377:$QJ377) -> 210930.9048 | W36: =LOOKUP(W$3, Cálculos!$I$4:$QJ$4, Cálculos!$I377:$QJ377) -> 208734.8357 | X36: =LOOKUP(X$3, Cálculos!$I$4:$QJ$4, Cálculos!$I377:$QJ377) -> 206560.6269 | Y36: =LOOKUP(Y$3, Cálculos!$I$4:$QJ$4, Cálculos!$I377:$QJ377) -> 291223.6489 | Z36: =LOOKUP(Z$3, Cálculos!$I$4:$QJ$4, Cálculos!$I377:$QJ377) -> 202276.9219 | AA36: =LOOKUP(AA$3, Cálculos!$I$4:$QJ$4, Cálculos!$I377:$QJ377) -> 200166.997 | AB36: =LOOKUP(AB$3, Cálculos!$I$4:$QJ$4, Cálculos!$I377:$QJ377) -> 198078.075 | AC36: =LOOKUP(AC$3, Cálculos!$I$4:$QJ$4, Cálculos!$I377:$QJ377) -> 279420.0559 | AD36: =LOOKUP(AD$3, Cálculos!$I$4:$QJ$4, Cálculos!$I377:$QJ377) -> 193962.4051 | AE36: =LOOKUP(AE$3, Cálculos!$I$4:$QJ$4, Cálculos!$I377:$QJ377) -> 191935.2454 | AF36: =LOOKUP(AF$3, Cálculos!$I$4:$QJ$4, Cálculos!$I377:$QJ377) -> 189928.2646 | AG36: =LOOKUP(AG$3, Cálculos!$I$4:$QJ$4, Cálculos!$I377:$QJ377) -> 268079.4776
C37: =Cálculos!C378 -> Total do Ativo Corrente | D37: =Cálculos!E378 -> EUR | G37: =SUM(G33:G36) -> 195805.8982 | H37: =SUM(H33:H36) -> 760808.6912 | I37: 1388895.105 | J37: 1737110.999 | K37: 2034198.483 | L37: 2305422.274 | M37: 2523106.78 | N37: 2763588.834 | O37: 2951396.722 | P37: 3111169.381 | Q37: 3222654.308 | R37: 3346736.185 | S37: 3423166.072 | T37: 3472052.486 | U37: 3478038.682 | V37: 3487240.538 | W37: 3454136.796 | X37: 3393898.931 | Y37: 3296093.558 | Z37: 3427749.803 | AA37: 1636821.063 | AB37: 2140498.077 | AC37: 2562381.506 | AD37: 2927001.259 | AE37: =SUM(AE33:AE36) -> 7218960.165 | AF37: 8214692.936 | AG37: 9197715.731
B39: Ativos Não Correntes
C40: =Cálculos!C381 -> Ativos Fixos Tangíveis Líquidos | D40: =Cálculos!E381 -> EUR | G40: =LOOKUP(G$3, Cálculos!$I$4:$QJ$4, Cálculos!$I381:$QJ381) -> 9054194.102 | H40: =LOOKUP(H$3, Cálculos!$I$4:$QJ$4, Cálculos!$I381:$QJ381) -> 17239191.31 | I40: =LOOKUP(I$3, Cálculos!$I$4:$QJ$4, Cálculos!$I381:$QJ381) -> 16049027.72 | J40: =LOOKUP(J$3, Cálculos!$I$4:$QJ$4, Cálculos!$I381:$QJ381) -> 14642470.76 | K40: =LOOKUP(K$3, Cálculos!$I$4:$QJ$4, Cálculos!$I381:$QJ381) -> 13344110.49 | L40: =LOOKUP(L$3, Cálculos!$I$4:$QJ$4, Cálculos!$I381:$QJ381) -> 12045750.21 | M40: =LOOKUP(M$3, Cálculos!$I$4:$QJ$4, Cálculos!$I381:$QJ381) -> 10855586.63 | N40: =LOOKUP(N$3, Cálculos!$I$4:$QJ$4, Cálculos!$I381:$QJ381) -> 9471129.667 | O40: =LOOKUP(O$3, Cálculos!$I$4:$QJ$4, Cálculos!$I381:$QJ381) -> 8194869.393 | P40: =LOOKUP(P$3, Cálculos!$I$4:$QJ$4, Cálculos!$I381:$QJ381) -> 7491438.939 | Q40: =LOOKUP(Q$3, Cálculos!$I$4:$QJ$4, Cálculos!$I381:$QJ381) -> 6846627.689 | R40: =LOOKUP(R$3, Cálculos!$I$4:$QJ$4, Cálculos!$I381:$QJ381) -> 6084798.03 | S40: =LOOKUP(S$3, Cálculos!$I$4:$QJ$4, Cálculos!$I381:$QJ381) -> 5621287.971 | T40: =LOOKUP(T$3, Cálculos!$I$4:$QJ$4, Cálculos!$I381:$QJ381) -> 5157777.912 | U40: =LOOKUP(U$3, Cálculos!$I$4:$QJ$4, Cálculos!$I381:$QJ381) -> 4780814.405 | V40: =LOOKUP(V$3, Cálculos!$I$4:$QJ$4, Cálculos!$I381:$QJ381) -> 4403272.365 | W40: =LOOKUP(W$3, Cálculos!$I$4:$QJ$4, Cálculos!$I381:$QJ381) -> 4054772.02 | X40: =LOOKUP(X$3, Cálculos!$I$4:$QJ$4, Cálculos!$I381:$QJ381) -> 3706271.675 | Y40: =LOOKUP(Y$3, Cálculos!$I$4:$QJ$4, Cálculos!$I381:$QJ381) -> 3386813.026 | Z40: =LOOKUP(Z$3, Cálculos!$I$4:$QJ$4, Cálculos!$I381:$QJ381) -> 3016957.827 | AA40: =LOOKUP(AA$3, Cálculos!$I$4:$QJ$4, Cálculos!$I381:$QJ381) -> 5122234.774 | AB40: =LOOKUP(AB$3, Cálculos!$I$4:$QJ$4, Cálculos!$I381:$QJ381) -> 4773552.192 | AC40: =LOOKUP(AC$3, Cálculos!$I$4:$QJ$4, Cálculos!$I381:$QJ381) -> 4453926.492 | AD40: =LOOKUP(AD$3, Cálculos!$I$4:$QJ$4, Cálculos!$I381:$QJ381) -> 4076187.029 | AE40: =LOOKUP(AE$3, Cálculos!$I$4:$QJ$4, Cálculos!$I381:$QJ381) -> 3727504.447 | AF40: =LOOKUP(AF$3, Cálculos!$I$4:$QJ$4, Cálculos!$I381:$QJ381) -> 3378821.865 | AG40: =LOOKUP(AG$3, Cálculos!$I$4:$QJ$4, Cálculos!$I381:$QJ381) -> 3059196.165
C41: =Cálculos!C382 -> Goodwill (líquido de amortização) | D41: =Cálculos!E382 -> EUR | G41: =LOOKUP(G$3, Cálculos!$I$4:$QJ$4, Cálculos!$I382:$QJ382) -> 0 | H41: =LOOKUP(H$3, Cálculos!$I$4:$QJ$4, Cálculos!$I382:$QJ382) -> 0 | I41: =LOOKUP(I$3, Cálculos!$I$4:$QJ$4, Cálculos!$I382:$QJ382) -> 0 | J41: =LOOKUP(J$3, Cálculos!$I$4:$QJ$4, Cálculos!$I382:$QJ382) -> 0 | K41: =LOOKUP(K$3, Cálculos!$I$4:$QJ$4, Cálculos!$I382:$QJ382) -> 0 | L41: =LOOKUP(L$3, Cálculos!$I$4:$QJ$4, Cálculos!$I382:$QJ382) -> 0 | M41: =LOOKUP(M$3, Cálculos!$I$4:$QJ$4, Cálculos!$I382:$QJ382) -> 0 | N41: =LOOKUP(N$3, Cálculos!$I$4:$QJ$4, Cálculos!$I382:$QJ382) -> 0 | O41: =LOOKUP(O$3, Cálculos!$I$4:$QJ$4, Cálculos!$I382:$QJ382) -> 0 | P41: =LOOKUP(P$3, Cálculos!$I$4:$QJ$4, Cálculos!$I382:$QJ382) -> 0 | Q41: =LOOKUP(Q$3, Cálculos!$I$4:$QJ$4, Cálculos!$I382:$QJ382) -> 0 | R41: =LOOKUP(R$3, Cálculos!$I$4:$QJ$4, Cálculos!$I382:$QJ382) -> 0 | S41: =LOOKUP(S$3, Cálculos!$I$4:$QJ$4, Cálculos!$I382:$QJ382) -> 0 | T41: =LOOKUP(T$3, Cálculos!$I$4:$QJ$4, Cálculos!$I382:$QJ382) -> 0 | U41: =LOOKUP(U$3, Cálculos!$I$4:$QJ$4, Cálculos!$I382:$QJ382) -> 0 | V41: =LOOKUP(V$3, Cálculos!$I$4:$QJ$4, Cálculos!$I382:$QJ382) -> 0 | W41: =LOOKUP(W$3, Cálculos!$I$4:$QJ$4, Cálculos!$I382:$QJ382) -> 0 | X41: =LOOKUP(X$3, Cálculos!$I$4:$QJ$4, Cálculos!$I382:$QJ382) -> 0 | Y41: =LOOKUP(Y$3, Cálculos!$I$4:$QJ$4, Cálculos!$I382:$QJ382) -> 0 | Z41: =LOOKUP(Z$3, Cálculos!$I$4:$QJ$4, Cálculos!$I382:$QJ382) -> 0 | AA41: =LOOKUP(AA$3, Cálculos!$I$4:$QJ$4, Cálculos!$I382:$QJ382) -> 0 | AB41: =LOOKUP(AB$3, Cálculos!$I$4:$QJ$4, Cálculos!$I382:$QJ382) -> 0 | AC41: =LOOKUP(AC$3, Cálculos!$I$4:$QJ$4, Cálculos!$I382:$QJ382) -> 0 | AD41: =LOOKUP(AD$3, Cálculos!$I$4:$QJ$4, Cálculos!$I382:$QJ382) -> 0 | AE41: =LOOKUP(AE$3, Cálculos!$I$4:$QJ$4, Cálculos!$I382:$QJ382) -> 0 | AF41: =LOOKUP(AF$3, Cálculos!$I$4:$QJ$4, Cálculos!$I382:$QJ382) -> 0 | AG41: =LOOKUP(AG$3, Cálculos!$I$4:$QJ$4, Cálculos!$I382:$QJ382) -> 0
C42: =Cálculos!C383 -> Ativo por Impostos Diferidos | D42: =Cálculos!E383 -> EUR | G42: =LOOKUP(G$3, Cálculos!$I$4:$QJ$4, Cálculos!$I383:$QJ383) -> 0 | H42: =LOOKUP(H$3, Cálculos!$I$4:$QJ$4, Cálculos!$I383:$QJ383) -> 0 | I42: =LOOKUP(I$3, Cálculos!$I$4:$QJ$4, Cálculos!$I383:$QJ383) -> 133739.4493 | J42: =LOOKUP(J$3, Cálculos!$I$4:$QJ$4, Cálculos!$I383:$QJ383) -> 334194.201 | K42: =LOOKUP(K$3, Cálculos!$I$4:$QJ$4, Cálculos!$I383:$QJ383) -> 499844.0333 | L42: =LOOKUP(L$3, Cálculos!$I$4:$QJ$4, Cálculos!$I383:$QJ383) -> 664531.2201 | M42: =LOOKUP(M$3, Cálculos!$I$4:$QJ$4, Cálculos!$I383:$QJ383) -> 795743.1734 | N42: =LOOKUP(N$3, Cálculos!$I$4:$QJ$4, Cálculos!$I383:$QJ383) -> 990327.7136 | O42: =LOOKUP(O$3, Cálculos!$I$4:$QJ$4, Cálculos!$I383:$QJ383) -> 1150272.165 | P42: =LOOKUP(P$3, Cálculos!$I$4:$QJ$4, Cálculos!$I383:$QJ383) -> 1307569.722 | Q42: =LOOKUP(Q$3, Cálculos!$I$4:$QJ$4, Cálculos!$I383:$QJ383) -> 1430712.823 | R42: =LOOKUP(R$3, Cálculos!$I$4:$QJ$4, Cálculos!$I383:$QJ383) -> 1611553.169 | S42: =LOOKUP(S$3, Cálculos!$I$4:$QJ$4, Cálculos!$I383:$QJ383) -> 1467017.277 | T42: =LOOKUP(T$3, Cálculos!$I$4:$QJ$4, Cálculos!$I383:$QJ383) -> 1316743.016 | U42: =LOOKUP(U$3, Cálculos!$I$4:$QJ$4, Cálculos!$I383:$QJ383) -> 1155684.498 | V42: =LOOKUP(V$3, Cálculos!$I$4:$QJ$4, Cálculos!$I383:$QJ383) -> 995042.0824 | W42: =LOOKUP(W$3, Cálculos!$I$4:$QJ$4, Cálculos!$I383:$QJ383) -> 821285.9572 | X42: =LOOKUP(X$3, Cálculos!$I$4:$QJ$4, Cálculos!$I383:$QJ383) -> 637238.7622 | Y42: =LOOKUP(Y$3, Cálculos!$I$4:$QJ$4, Cálculos!$I383:$QJ383) -> 441505.0444 | Z42: =LOOKUP(Z$3, Cálculos!$I$4:$QJ$4, Cálculos!$I383:$QJ383) -> 232495.8735 | AA42: =LOOKUP(AA$3, Cálculos!$I$4:$QJ$4, Cálculos!$I383:$QJ383) -> 47244.50427 | AB42: =LOOKUP(AB$3, Cálculos!$I$4:$QJ$4, Cálculos!$I383:$QJ383) -> 281.7058932 | AC42: =LOOKUP(AC$3, Cálculos!$I$4:$QJ$4, Cálculos!$I383:$QJ383) -> 0 | AD42: =LOOKUP(AD$3, Cálculos!$I$4:$QJ$4, Cálculos!$I383:$QJ383) -> 0 | AE42: =LOOKUP(AE$3, Cálculos!$I$4:$QJ$4, Cálculos!$I383:$QJ383) -> 3007.231677 | AF42: =LOOKUP(AF$3, Cálculos!$I$4:$QJ$4, Cálculos!$I383:$QJ383) -> 3220.520707 | AG42: =LOOKUP(AG$3, Cálculos!$I$4:$QJ$4, Cálculos!$I383:$QJ383) -> 0
C43: =Cálculos!C384 -> Total do Ativo Não Corrente | D43: =Cálculos!E384 -> EUR | G43: =SUM(G40:G42) -> 9054194.102 | H43: =SUM(H40:H42) -> 17239191.31 | I43: 16182767.17 | J43: 14976664.96 | K43: 13843954.52 | L43: 12710281.43 | M43: 11651329.8 | N43: 10461457.38 | O43: 9345141.558 | P43: 8799008.661 | Q43: 8277340.512 | R43: 7696351.2 | S43: 7088305.249 | T43: 6474520.929 | U43: 5936498.903 | V43: 5398314.448 | W43: 4876057.977 | X43: 4343510.438 | Y43: 3828318.07 | Z43: 3249453.701 | AA43: 5169479.278 | AB43: 4773833.898 | AC43: 4453926.492 | AD43: 4076187.029 | AE43: =SUM(AE40:AE42) -> 3730511.679 | AF43: 3382042.386 | AG43: 3059196.165
B45: Total de Ativos | D45: =Cálculos!E386 -> EUR | G45: =G37+G43 -> 9250000 | H45: =H37+H43 -> 18000000 | I45: 17571662.28 | J45: 16713775.96 | K45: 15878153 | L45: 15015703.71 | M45: 14174436.58 | N45: 13225046.21 | O45: 12296538.28 | P45: 11910178.04 | Q45: 11499994.82 | R45: 11043087.38 | S45: 10511471.32 | T45: 9946573.414 | U45: 9414537.585 | V45: 8885554.985 | W45: 8330194.773 | X45: 7737409.368 | Y45: 7124411.628 | Z45: 6677203.504 | AA45: 6806300.341 | AB45: 6914331.975 | AC45: 7016307.998 | AD45: 7003188.287 | AE45: =AE37+AE43 -> 10949471.84 | AF45: 11596735.32 | AG45: 12256911.9
B47: Passivos Correntes
C48: =Cálculos!C389 -> Contas a Pagar | D48: =Cálculos!E389 -> EUR | G48: =LOOKUP(G$3, Cálculos!$I$4:$QJ$4, Cálculos!$I389:$QJ389) -> 0 | H48: =LOOKUP(H$3, Cálculos!$I$4:$QJ$4, Cálculos!$I389:$QJ389) -> 0 | I48: =LOOKUP(I$3, Cálculos!$I$4:$QJ$4, Cálculos!$I389:$QJ389) -> 5111.019012 | J48: =LOOKUP(J$3, Cálculos!$I$4:$QJ$4, Cálculos!$I389:$QJ389) -> 5238.794487 | K48: =LOOKUP(K$3, Cálculos!$I$4:$QJ$4, Cálculos!$I389:$QJ389) -> 5369.76435 | L48: =LOOKUP(L$3, Cálculos!$I$4:$QJ$4, Cálculos!$I389:$QJ389) -> 5504.008458 | M48: =LOOKUP(M$3, Cálculos!$I$4:$QJ$4, Cálculos!$I389:$QJ389) -> 5641.60867 | N48: =LOOKUP(N$3, Cálculos!$I$4:$QJ$4, Cálculos!$I389:$QJ389) -> 5782.648887 | O48: =LOOKUP(O$3, Cálculos!$I$4:$QJ$4, Cálculos!$I389:$QJ389) -> 5927.215109 | P48: =LOOKUP(P$3, Cálculos!$I$4:$QJ$4, Cálculos!$I389:$QJ389) -> 6075.395486 | Q48: =LOOKUP(Q$3, Cálculos!$I$4:$QJ$4, Cálculos!$I389:$QJ389) -> 6227.280374 | R48: =LOOKUP(R$3, Cálculos!$I$4:$QJ$4, Cálculos!$I389:$QJ389) -> 6382.962383 | S48: =LOOKUP(S$3, Cálculos!$I$4:$QJ$4, Cálculos!$I389:$QJ389) -> 6542.536443 | T48: =LOOKUP(T$3, Cálculos!$I$4:$QJ$4, Cálculos!$I389:$QJ389) -> 6706.099854 | U48: =LOOKUP(U$3, Cálculos!$I$4:$QJ$4, Cálculos!$I389:$QJ389) -> 6873.75235 | V48: =LOOKUP(V$3, Cálculos!$I$4:$QJ$4, Cálculos!$I389:$QJ389) -> 7045.596159 | W48: =LOOKUP(W$3, Cálculos!$I$4:$QJ$4, Cálculos!$I389:$QJ389) -> 7221.736063 | X48: =LOOKUP(X$3, Cálculos!$I$4:$QJ$4, Cálculos!$I389:$QJ389) -> 7402.279464 | Y48: =LOOKUP(Y$3, Cálculos!$I$4:$QJ$4, Cálculos!$I389:$QJ389) -> 7587.336451 | Z48: =LOOKUP(Z$3, Cálculos!$I$4:$QJ$4, Cálculos!$I389:$QJ389) -> 7777.019862 | AA48: =LOOKUP(AA$3, Cálculos!$I$4:$QJ$4, Cálculos!$I389:$QJ389) -> 7971.445359 | AB48: =LOOKUP(AB$3, Cálculos!$I$4:$QJ$4, Cálculos!$I389:$QJ389) -> 16285.37792 | AC48: =LOOKUP(AC$3, Cálculos!$I$4:$QJ$4, Cálculos!$I389:$QJ389) -> 22652.61954 | AD48: =LOOKUP(AD$3, Cálculos!$I$4:$QJ$4, Cálculos!$I389:$QJ389) -> 18980.41469 | AE48: =LOOKUP(AE$3, Cálculos!$I$4:$QJ$4, Cálculos!$I389:$QJ389) -> 13961.88757 | AF48: =LOOKUP(AF$3, Cálculos!$I$4:$QJ$4, Cálculos!$I389:$QJ389) -> 13887.9002 | AG48: =LOOKUP(AG$3, Cálculos!$I$4:$QJ$4, Cálculos!$I389:$QJ389) -> 19003.61162
C49: =Cálculos!C390 -> Juros a Pagar: Dívida Subordinada | D49: =Cálculos!E390 -> EUR | G49: =LOOKUP(G$3, Cálculos!$I$4:$QJ$4, Cálculos!$I390:$QJ390) -> 0 | H49: =LOOKUP(H$3, Cálculos!$I$4:$QJ$4, Cálculos!$I390:$QJ390) -> 0 | I49: =LOOKUP(I$3, Cálculos!$I$4:$QJ$4, Cálculos!$I390:$QJ390) -> 44443.38846 | J49: =LOOKUP(J$3, Cálculos!$I$4:$QJ$4, Cálculos!$I390:$QJ390) -> 87661.5172 | K49: =LOOKUP(K$3, Cálculos!$I$4:$QJ$4, Cálculos!$I390:$QJ390) -> 85780.06465 | L49: =LOOKUP(L$3, Cálculos!$I$4:$QJ$4, Cálculos!$I390:$QJ390) -> 83659.99683 | M49: =LOOKUP(M$3, Cálculos!$I$4:$QJ$4, Cálculos!$I390:$QJ390) -> 40433.35888 | N49: =LOOKUP(N$3, Cálculos!$I$4:$QJ$4, Cálculos!$I390:$QJ390) -> 78579.12777 | O49: =LOOKUP(O$3, Cálculos!$I$4:$QJ$4, Cálculos!$I390:$QJ390) -> 75545.8009 | P49: =LOOKUP(P$3, Cálculos!$I$4:$QJ$4, Cálculos!$I390:$QJ390) -> 72127.77227 | Q49: =LOOKUP(Q$3, Cálculos!$I$4:$QJ$4, Cálculos!$I390:$QJ390) -> 33968.2846 | R49: =LOOKUP(R$3, Cálculos!$I$4:$QJ$4, Cálculos!$I390:$QJ390) -> 63936.26267 | S49: =LOOKUP(S$3, Cálculos!$I$4:$QJ$4, Cálculos!$I390:$QJ390) -> 59045.854 | T49: =LOOKUP(T$3, Cálculos!$I$4:$QJ$4, Cálculos!$I390:$QJ390) -> 53535.21911 | U49: =LOOKUP(U$3, Cálculos!$I$4:$QJ$4, Cálculos!$I390:$QJ390) -> 23545.12327 | V49: =LOOKUP(V$3, Cálculos!$I$4:$QJ$4, Cálculos!$I390:$QJ390) -> 40328.65371 | W49: =LOOKUP(W$3, Cálculos!$I$4:$QJ$4, Cálculos!$I390:$QJ390) -> 32444.20933 | X49: =LOOKUP(X$3, Cálculos!$I$4:$QJ$4, Cálculos!$I390:$QJ390) -> 23559.82004 | Y49: =LOOKUP(Y$3, Cálculos!$I$4:$QJ$4, Cálculos!$I390:$QJ390) -> 6740.630758 | Z49: =LOOKUP(Z$3, Cálculos!$I$4:$QJ$4, Cálculos!$I390:$QJ390) -> 2267.85092 | AA49: =LOOKUP(AA$3, Cálculos!$I$4:$QJ$4, Cálculos!$I390:$QJ390) -> -10443.65593 | AB49: =LOOKUP(AB$3, Cálculos!$I$4:$QJ$4, Cálculos!$I390:$QJ390) -> -24767.30001 | AC49: =LOOKUP(AC$3, Cálculos!$I$4:$QJ$4, Cálculos!$I390:$QJ390) -> -20352.01029 | AD49: =LOOKUP(AD$3, Cálculos!$I$4:$QJ$4, Cálculos!$I390:$QJ390) -> -59094.76788 | AE49: =LOOKUP(AE$3, Cálculos!$I$4:$QJ$4, Cálculos!$I390:$QJ390) -> 0 | AF49: =LOOKUP(AF$3, Cálculos!$I$4:$QJ$4, Cálculos!$I390:$QJ390) -> 0 | AG49: =LOOKUP(AG$3, Cálculos!$I$4:$QJ$4, Cálculos!$I390:$QJ390) -> 0
C50: =Cálculos!C391 -> Juros a Pagar: Dívida Sénior | D50: =Cálculos!E391 -> EUR | G50: =LOOKUP(G$3, Cálculos!$I$4:$QJ$4, Cálculos!$I391:$QJ391) -> 0 | H50: =LOOKUP(H$3, Cálculos!$I$4:$QJ$4, Cálculos!$I391:$QJ391) -> 0 | I50: =LOOKUP(I$3, Cálculos!$I$4:$QJ$4, Cálculos!$I391:$QJ391) -> 40377.44636 | J50: =LOOKUP(J$3, Cálculos!$I$4:$QJ$4, Cálculos!$I391:$QJ391) -> 77962.76383 | K50: =LOOKUP(K$3, Cálculos!$I$4:$QJ$4, Cálculos!$I391:$QJ391) -> 74817.63459 | L50: =LOOKUP(L$3, Cálculos!$I$4:$QJ$4, Cálculos!$I391:$QJ391) -> 71495.09534 | M50: =LOOKUP(M$3, Cálculos!$I$4:$QJ$4, Cálculos!$I391:$QJ391) -> 33914.84785 | N50: =LOOKUP(N$3, Cálculos!$I$4:$QJ$4, Cálculos!$I391:$QJ391) -> 64277.19303 | O50: =LOOKUP(O$3, Cálculos!$I$4:$QJ$4, Cálculos!$I391:$QJ391) -> 60360.09003 | P50: =LOOKUP(P$3, Cálculos!$I$4:$QJ$4, Cálculos!$I391:$QJ391) -> 56222.03162 | Q50: =LOOKUP(Q$3, Cálculos!$I$4:$QJ$4, Cálculos!$I391:$QJ391) -> 25866.00085 | R50: =LOOKUP(R$3, Cálculos!$I$4:$QJ$4, Cálculos!$I391:$QJ391) -> 47232.49108 | S50: =LOOKUP(S$3, Cálculos!$I$4:$QJ$4, Cálculos!$I391:$QJ391) -> 42353.93291 | T50: =LOOKUP(T$3, Cálculos!$I$4:$QJ$4, Cálculos!$I391:$QJ391) -> 37200.18571 | U50: =LOOKUP(U$3, Cálculos!$I$4:$QJ$4, Cálculos!$I391:$QJ391) -> 15841.55975 | V50: =LOOKUP(V$3, Cálculos!$I$4:$QJ$4, Cálculos!$I391:$QJ391) -> 26004.15731 | W50: =LOOKUP(W$3, Cálculos!$I$4:$QJ$4, Cálculos!$I391:$QJ391) -> 19928.15425 | X50: =LOOKUP(X$3, Cálculos!$I$4:$QJ$4, Cálculos!$I391:$QJ391) -> 13509.41686 | Y50: =LOOKUP(Y$3, Cálculos!$I$4:$QJ$4, Cálculos!$I391:$QJ391) -> 3356.613871 | Z50: =LOOKUP(Z$3, Cálculos!$I$4:$QJ$4, Cálculos!$I391:$QJ391) -> 0 | AA50: =LOOKUP(AA$3, Cálculos!$I$4:$QJ$4, Cálculos!$I391:$QJ391) -> 0 | AB50: =LOOKUP(AB$3, Cálculos!$I$4:$QJ$4, Cálculos!$I391:$QJ391) -> 0 | AC50: =LOOKUP(AC$3, Cálculos!$I$4:$QJ$4, Cálculos!$I391:$QJ391) -> 0 | AD50: =LOOKUP(AD$3, Cálculos!$I$4:$QJ$4, Cálculos!$I391:$QJ391) -> 0 | AE50: =LOOKUP(AE$3, Cálculos!$I$4:$QJ$4, Cálculos!$I391:$QJ391) -> 0 | AF50: =LOOKUP(AF$3, Cálculos!$I$4:$QJ$4, Cálculos!$I391:$QJ391) -> 0 | AG50: =LOOKUP(AG$3, Cálculos!$I$4:$QJ$4, Cálculos!$I391:$QJ391) -> 0
C51: =Cálculos!C392 -> Imposto a Pagar | D51: =Cálculos!E392 -> EUR | G51: =LOOKUP(G$3, Cálculos!$I$4:$QJ$4, Cálculos!$I392:$QJ392) -> 0 | H51: =LOOKUP(H$3, Cálculos!$I$4:$QJ$4, Cálculos!$I392:$QJ392) -> 0 | I51: =LOOKUP(I$3, Cálculos!$I$4:$QJ$4, Cálculos!$I392:$QJ392) -> 0 | J51: =LOOKUP(J$3, Cálculos!$I$4:$QJ$4, Cálculos!$I392:$QJ392) -> 0 | K51: =LOOKUP(K$3, Cálculos!$I$4:$QJ$4, Cálculos!$I392:$QJ392) -> 0 | L51: =LOOKUP(L$3, Cálculos!$I$4:$QJ$4, Cálculos!$I392:$QJ392) -> 0 | M51: =LOOKUP(M$3, Cálculos!$I$4:$QJ$4, Cálculos!$I392:$QJ392) -> 0 | N51: =LOOKUP(N$3, Cálculos!$I$4:$QJ$4, Cálculos!$I392:$QJ392) -> 0 | O51: =LOOKUP(O$3, Cálculos!$I$4:$QJ$4, Cálculos!$I392:$QJ392) -> 0 | P51: =LOOKUP(P$3, Cálculos!$I$4:$QJ$4, Cálculos!$I392:$QJ392) -> 0 | Q51: =LOOKUP(Q$3, Cálculos!$I$4:$QJ$4, Cálculos!$I392:$QJ392) -> 0 | R51: =LOOKUP(R$3, Cálculos!$I$4:$QJ$4, Cálculos!$I392:$QJ392) -> 0 | S51: =LOOKUP(S$3, Cálculos!$I$4:$QJ$4, Cálculos!$I392:$QJ392) -> 0 | T51: =LOOKUP(T$3, Cálculos!$I$4:$QJ$4, Cálculos!$I392:$QJ392) -> 0 | U51: =LOOKUP(U$3, Cálculos!$I$4:$QJ$4, Cálculos!$I392:$QJ392) -> 0 | V51: =LOOKUP(V$3, Cálculos!$I$4:$QJ$4, Cálculos!$I392:$QJ392) -> 0 | W51: =LOOKUP(W$3, Cálculos!$I$4:$QJ$4, Cálculos!$I392:$QJ392) -> 0 | X51: =LOOKUP(X$3, Cálculos!$I$4:$QJ$4, Cálculos!$I392:$QJ392) -> 0 | Y51: =LOOKUP(Y$3, Cálculos!$I$4:$QJ$4, Cálculos!$I392:$QJ392) -> 0 | Z51: =LOOKUP(Z$3, Cálculos!$I$4:$QJ$4, Cálculos!$I392:$QJ392) -> 0 | AA51: =LOOKUP(AA$3, Cálculos!$I$4:$QJ$4, Cálculos!$I392:$QJ392) -> 0 | AB51: =LOOKUP(AB$3, Cálculos!$I$4:$QJ$4, Cálculos!$I392:$QJ392) -> 0 | AC51: =LOOKUP(AC$3, Cálculos!$I$4:$QJ$4, Cálculos!$I392:$QJ392) -> 9169.769463 | AD51: =LOOKUP(AD$3, Cálculos!$I$4:$QJ$4, Cálculos!$I392:$QJ392) -> 2193.813386 | AE51: =LOOKUP(AE$3, Cálculos!$I$4:$QJ$4, Cálculos!$I392:$QJ392) -> 0 | AF51: =LOOKUP(AF$3, Cálculos!$I$4:$QJ$4, Cálculos!$I392:$QJ392) -> 0 | AG51: =LOOKUP(AG$3, Cálculos!$I$4:$QJ$4, Cálculos!$I392:$QJ392) -> 4574.815321
C52: =Cálculos!C393 -> Parcela Corrente da Dívida Subordinada | D52: =Cálculos!E393 -> EUR | G52: =LOOKUP(G$3, Cálculos!$I$4:$QJ$4, Cálculos!$I393:$QJ393) -> 0 | H52: =LOOKUP(H$3, Cálculos!$I$4:$QJ$4, Cálculos!$I393:$QJ393) -> 55661.15388 | I52: =LOOKUP(I$3, Cálculos!$I$4:$QJ$4, Cálculos!$I393:$QJ393) -> 83069.33363 | J52: =LOOKUP(J$3, Cálculos!$I$4:$QJ$4, Cálculos!$I393:$QJ393) -> 93604.60437 | K52: =LOOKUP(K$3, Cálculos!$I$4:$QJ$4, Cálculos!$I393:$QJ393) -> 105476.0111 | L52: =LOOKUP(L$3, Cálculos!$I$4:$QJ$4, Cálculos!$I393:$QJ393) -> 118853.0094 | M52: =LOOKUP(M$3, Cálculos!$I$4:$QJ$4, Cálculos!$I393:$QJ393) -> 133926.5459 | N52: =LOOKUP(N$3, Cálculos!$I$4:$QJ$4, Cálculos!$I393:$QJ393) -> 150911.7842 | O52: =LOOKUP(O$3, Cálculos!$I$4:$QJ$4, Cálculos!$I393:$QJ393) -> 170051.1757 | P52: =LOOKUP(P$3, Cálculos!$I$4:$QJ$4, Cálculos!$I393:$QJ393) -> 191617.9212 | Q52: =LOOKUP(Q$3, Cálculos!$I$4:$QJ$4, Cálculos!$I393:$QJ393) -> 215919.8699 | R52: =LOOKUP(R$3, Cálculos!$I$4:$QJ$4, Cálculos!$I393:$QJ393) -> 243303.9139 | S52: =LOOKUP(S$3, Cálculos!$I$4:$QJ$4, Cálculos!$I393:$QJ393) -> 274160.9401 | T52: =LOOKUP(T$3, Cálculos!$I$4:$QJ$4, Cálculos!$I393:$QJ393) -> 308931.4096 | U52: =LOOKUP(U$3, Cálculos!$I$4:$QJ$4, Cálculos!$I393:$QJ393) -> 348111.6449 | V52: =LOOKUP(V$3, Cálculos!$I$4:$QJ$4, Cálculos!$I393:$QJ393) -> 392260.9147 | W52: =LOOKUP(W$3, Cálculos!$I$4:$QJ$4, Cálculos!$I393:$QJ393) -> 442009.4171 | X52: =LOOKUP(X$3, Cálculos!$I$4:$QJ$4, Cálculos!$I393:$QJ393) -> 498067.2747 | Y52: =LOOKUP(Y$3, Cálculos!$I$4:$QJ$4, Cálculos!$I393:$QJ393) -> 561234.6718 | Z52: =LOOKUP(Z$3, Cálculos!$I$4:$QJ$4, Cálculos!$I393:$QJ393) -> 112828.404 | AA52: =LOOKUP(AA$3, Cálculos!$I$4:$QJ$4, Cálculos!$I393:$QJ393) -> -519584.872 | AB52: =LOOKUP(AB$3, Cálculos!$I$4:$QJ$4, Cálculos!$I393:$QJ393) -> -1232203.981 | AC52: =LOOKUP(AC$3, Cálculos!$I$4:$QJ$4, Cálculos!$I393:$QJ393) -> -2035201.029 | AD52: =LOOKUP(AD$3, Cálculos!$I$4:$QJ$4, Cálculos!$I393:$QJ393) -> -2940038.203 | AE52: =LOOKUP(AE$3, Cálculos!$I$4:$QJ$4, Cálculos!$I393:$QJ393) -> 0 | AF52: =LOOKUP(AF$3, Cálculos!$I$4:$QJ$4, Cálculos!$I393:$QJ393) -> 0 | AG52: =LOOKUP(AG$3, Cálculos!$I$4:$QJ$4, Cálculos!$I393:$QJ393) -> 0
C53: =Cálculos!C394 -> Parcela Corrente da Dívida Sénior | D53: =Cálculos!E394 -> EUR | G53: =LOOKUP(G$3, Cálculos!$I$4:$QJ$4, Cálculos!$I394:$QJ394) -> 2500000 | H53: =LOOKUP(H$3, Cálculos!$I$4:$QJ$4, Cálculos!$I394:$QJ394) -> 190375.3389 | I53: =LOOKUP(I$3, Cálculos!$I$4:$QJ$4, Cálculos!$I394:$QJ394) -> 324042.0071 | J53: =LOOKUP(J$3, Cálculos!$I$4:$QJ$4, Cálculos!$I394:$QJ394) -> 342320.5234 | K53: =LOOKUP(K$3, Cálculos!$I$4:$QJ$4, Cálculos!$I394:$QJ394) -> 361630.0917 | L53: =LOOKUP(L$3, Cálculos!$I$4:$QJ$4, Cálculos!$I394:$QJ394) -> 382028.8714 | M53: =LOOKUP(M$3, Cálculos!$I$4:$QJ$4, Cálculos!$I394:$QJ394) -> 403578.3026 | N53: =LOOKUP(N$3, Cálculos!$I$4:$QJ$4, Cálculos!$I394:$QJ394) -> 426343.2912 | O53: =LOOKUP(O$3, Cálculos!$I$4:$QJ$4, Cálculos!$I394:$QJ394) -> 450392.404 | P53: =LOOKUP(P$3, Cálculos!$I$4:$QJ$4, Cálculos!$I394:$QJ394) -> 475798.0759 | Q53: =LOOKUP(Q$3, Cálculos!$I$4:$QJ$4, Cálculos!$I394:$QJ394) -> 502636.8273 | R53: =LOOKUP(R$3, Cálculos!$I$4:$QJ$4, Cálculos!$I394:$QJ394) -> 530989.4953 | S53: =LOOKUP(S$3, Cálculos!$I$4:$QJ$4, Cálculos!$I394:$QJ394) -> 560941.4766 | T53: =LOOKUP(T$3, Cálculos!$I$4:$QJ$4, Cálculos!$I394:$QJ394) -> 592582.9851 | U53: =LOOKUP(U$3, Cálculos!$I$4:$QJ$4, Cálculos!$I394:$QJ394) -> 626009.3234 | V53: =LOOKUP(V$3, Cálculos!$I$4:$QJ$4, Cálculos!$I394:$QJ394) -> 661321.1699 | W53: =LOOKUP(W$3, Cálculos!$I$4:$QJ$4, Cálculos!$I394:$QJ394) -> 698624.8821 | X53: =LOOKUP(X$3, Cálculos!$I$4:$QJ$4, Cálculos!$I394:$QJ394) -> 738032.8169 | Y53: =LOOKUP(Y$3, Cálculos!$I$4:$QJ$4, Cálculos!$I394:$QJ394) -> 732352.1174 | Z53: =LOOKUP(Z$3, Cálculos!$I$4:$QJ$4, Cálculos!$I394:$QJ394) -> 0 | AA53: =LOOKUP(AA$3, Cálculos!$I$4:$QJ$4, Cálculos!$I394:$QJ394) -> 0 | AB53: =LOOKUP(AB$3, Cálculos!$I$4:$QJ$4, Cálculos!$I394:$QJ394) -> 0 | AC53: =LOOKUP(AC$3, Cálculos!$I$4:$QJ$4, Cálculos!$I394:$QJ394) -> 0 | AD53: =LOOKUP(AD$3, Cálculos!$I$4:$QJ$4, Cálculos!$I394:$QJ394) -> 0 | AE53: =LOOKUP(AE$3, Cálculos!$I$4:$QJ$4, Cálculos!$I394:$QJ394) -> 0 | AF53: =LOOKUP(AF$3, Cálculos!$I$4:$QJ$4, Cálculos!$I394:$QJ394) -> 0 | AG53: =LOOKUP(AG$3, Cálculos!$I$4:$QJ$4, Cálculos!$I394:$QJ394) -> 0
C54: =Cálculos!C395 -> Total do Passivo Corrente | D54: =Cálculos!E395 -> EUR | G54: =SUM(G48:G53) -> 2500000 | H54: =SUM(H48:H53) -> 246036.4928 | I54: 497043.1945 | J54: 606788.2033 | K54: 633073.5664 | L54: 661540.9814 | M54: 617494.664 | N54: 725894.045 | O54: 762276.6858 | P54: 801841.1965 | Q54: 784618.263 | R54: 891845.1253 | S54: 943044.74 | T54: 998955.8993 | U54: 1020381.404 | V54: 1126960.492 | W54: 1200228.399 | X54: 1280571.608 | Y54: 1311271.37 | Z54: 122873.2747 | AA54: -522057.0826 | AB54: -1240685.903 | AC54: -2023730.651 | AD54: -2977958.743 | AE54: =SUM(AE48:AE53) -> 13961.88757 | AF54: 13887.9002 | AG54: 23578.42694
B56: Passivos Não Correntes
C57: =Cálculos!C398 -> Dívida Subordinada | D57: =Cálculos!E398 -> EUR | G57: =LOOKUP(G$3, Cálculos!$I$4:$QJ$4, Cálculos!$I398:$QJ398) -> 2250000 | H57: =LOOKUP(H$3, Cálculos!$I$4:$QJ$4, Cálculos!$I398:$QJ398) -> 4444338.846 | I57: =LOOKUP(I$3, Cálculos!$I$4:$QJ$4, Cálculos!$I398:$QJ398) -> 4361269.512 | J57: =LOOKUP(J$3, Cálculos!$I$4:$QJ$4, Cálculos!$I398:$QJ398) -> 4267664.908 | K57: =LOOKUP(K$3, Cálculos!$I$4:$QJ$4, Cálculos!$I398:$QJ398) -> 4162188.897 | L57: =LOOKUP(L$3, Cálculos!$I$4:$QJ$4, Cálculos!$I398:$QJ398) -> 4043335.888 | M57: =LOOKUP(M$3, Cálculos!$I$4:$QJ$4, Cálculos!$I398:$QJ398) -> 3909409.342 | N57: =LOOKUP(N$3, Cálculos!$I$4:$QJ$4, Cálculos!$I398:$QJ398) -> 3758497.557 | O57: =LOOKUP(O$3, Cálculos!$I$4:$QJ$4, Cálculos!$I398:$QJ398) -> 3588446.382 | P57: =LOOKUP(P$3, Cálculos!$I$4:$QJ$4, Cálculos!$I398:$QJ398) -> 3396828.46 | Q57: =LOOKUP(Q$3, Cálculos!$I$4:$QJ$4, Cálculos!$I398:$QJ398) -> 3180908.591 | R57: =LOOKUP(R$3, Cálculos!$I$4:$QJ$4, Cálculos!$I398:$QJ398) -> 2937604.677 | S57: =LOOKUP(S$3, Cálculos!$I$4:$QJ$4, Cálculos!$I398:$QJ398) -> 2663443.737 | T57: =LOOKUP(T$3, Cálculos!$I$4:$QJ$4, Cálculos!$I398:$QJ398) -> 2354512.327 | U57: =LOOKUP(U$3, Cálculos!$I$4:$QJ$4, Cálculos!$I398:$QJ398) -> 2006400.682 | V57: =LOOKUP(V$3, Cálculos!$I$4:$QJ$4, Cálculos!$I398:$QJ398) -> 1614139.768 | W57: =LOOKUP(W$3, Cálculos!$I$4:$QJ$4, Cálculos!$I398:$QJ398) -> 1172130.35 | X57: =LOOKUP(X$3, Cálculos!$I$4:$QJ$4, Cálculos!$I398:$QJ398) -> 674063.0758 | Y57: =LOOKUP(Y$3, Cálculos!$I$4:$QJ$4, Cálculos!$I398:$QJ398) -> 112828.404 | Z57: =LOOKUP(Z$3, Cálculos!$I$4:$QJ$4, Cálculos!$I398:$QJ398) -> 0 | AA57: =LOOKUP(AA$3, Cálculos!$I$4:$QJ$4, Cálculos!$I398:$QJ398) -> 0 | AB57: =LOOKUP(AB$3, Cálculos!$I$4:$QJ$4, Cálculos!$I398:$QJ398) -> 0 | AC57: =LOOKUP(AC$3, Cálculos!$I$4:$QJ$4, Cálculos!$I398:$QJ398) -> 0 | AD57: =LOOKUP(AD$3, Cálculos!$I$4:$QJ$4, Cálculos!$I398:$QJ398) -> 0 | AE57: =LOOKUP(AE$3, Cálculos!$I$4:$QJ$4, Cálculos!$I398:$QJ398) -> 0 | AF57: =LOOKUP(AF$3, Cálculos!$I$4:$QJ$4, Cálculos!$I398:$QJ398) -> 0 | AG57: =LOOKUP(AG$3, Cálculos!$I$4:$QJ$4, Cálculos!$I398:$QJ398) -> 0
C58: =Cálculos!C399 -> Dívida Sénior de Longo Prazo | D58: =Cálculos!E399 -> EUR | G58: =LOOKUP(G$3, Cálculos!$I$4:$QJ$4, Cálculos!$I399:$QJ399) -> 0 | H58: =LOOKUP(H$3, Cálculos!$I$4:$QJ$4, Cálculos!$I399:$QJ399) -> 8809624.661 | I58: =LOOKUP(I$3, Cálculos!$I$4:$QJ$4, Cálculos!$I399:$QJ399) -> 8485582.654 | J58: =LOOKUP(J$3, Cálculos!$I$4:$QJ$4, Cálculos!$I399:$QJ399) -> 8143262.131 | K58: =LOOKUP(K$3, Cálculos!$I$4:$QJ$4, Cálculos!$I399:$QJ399) -> 7781632.039 | L58: =LOOKUP(L$3, Cálculos!$I$4:$QJ$4, Cálculos!$I399:$QJ399) -> 7399603.168 | M58: =LOOKUP(M$3, Cálculos!$I$4:$QJ$4, Cálculos!$I399:$QJ399) -> 6996024.865 | N58: =LOOKUP(N$3, Cálculos!$I$4:$QJ$4, Cálculos!$I399:$QJ399) -> 6569681.574 | O58: =LOOKUP(O$3, Cálculos!$I$4:$QJ$4, Cálculos!$I399:$QJ399) -> 6119289.17 | P58: =LOOKUP(P$3, Cálculos!$I$4:$QJ$4, Cálculos!$I399:$QJ399) -> 5643491.094 | Q58: =LOOKUP(Q$3, Cálculos!$I$4:$QJ$4, Cálculos!$I399:$QJ399) -> 5140854.267 | R58: =LOOKUP(R$3, Cálculos!$I$4:$QJ$4, Cálculos!$I399:$QJ399) -> 4609864.771 | S58: =LOOKUP(S$3, Cálculos!$I$4:$QJ$4, Cálculos!$I399:$QJ399) -> 4048923.295 | T58: =LOOKUP(T$3, Cálculos!$I$4:$QJ$4, Cálculos!$I399:$QJ399) -> 3456340.31 | U58: =LOOKUP(U$3, Cálculos!$I$4:$QJ$4, Cálculos!$I399:$QJ399) -> 2830330.986 | V58: =LOOKUP(V$3, Cálculos!$I$4:$QJ$4, Cálculos!$I399:$QJ399) -> 2169009.816 | W58: =LOOKUP(W$3, Cálculos!$I$4:$QJ$4, Cálculos!$I399:$QJ399) -> 1470384.934 | X58: =LOOKUP(X$3, Cálculos!$I$4:$QJ$4, Cálculos!$I399:$QJ399) -> 732352.1174 | Y58: =LOOKUP(Y$3, Cálculos!$I$4:$QJ$4, Cálculos!$I399:$QJ399) -> 0 | Z58: =LOOKUP(Z$3, Cálculos!$I$4:$QJ$4, Cálculos!$I399:$QJ399) -> 0 | AA58: =LOOKUP(AA$3, Cálculos!$I$4:$QJ$4, Cálculos!$I399:$QJ399) -> 0 | AB58: =LOOKUP(AB$3, Cálculos!$I$4:$QJ$4, Cálculos!$I399:$QJ399) -> 0 | AC58: =LOOKUP(AC$3, Cálculos!$I$4:$QJ$4, Cálculos!$I399:$QJ399) -> 0 | AD58: =LOOKUP(AD$3, Cálculos!$I$4:$QJ$4, Cálculos!$I399:$QJ399) -> 0 | AE58: =LOOKUP(AE$3, Cálculos!$I$4:$QJ$4, Cálculos!$I399:$QJ399) -> 0 | AF58: =LOOKUP(AF$3, Cálculos!$I$4:$QJ$4, Cálculos!$I399:$QJ399) -> 0 | AG58: =LOOKUP(AG$3, Cálculos!$I$4:$QJ$4, Cálculos!$I399:$QJ399) -> 0
C59: =Cálculos!C400 -> Total do Passivo Não Corrente | D59: =Cálculos!E400 -> EUR | G59: =SUM(G57:G58) -> 2250000 | H59: 13253963.51 | I59: 12846852.17 | J59: 12410927.04 | K59: 11943820.94 | L59: 11442939.06 | M59: 10905434.21 | N59: 10328179.13 | O59: 9707735.551 | P59: 9040319.554 | Q59: 8321762.857 | R59: 7547469.448 | S59: 6712367.031 | T59: 5810852.637 | U59: 4836731.669 | V59: 3783149.584 | W59: 2642515.285 | X59: 1406415.193 | Y59: 112828.404 | Z59: 0 | AA59: 0 | AB59: 0 | AC59: 0 | AD59: 0 | AE59: 0 | AF59: 0 | AG59: 0
B61: Total de Passivos | D61: =Cálculos!E402 -> EUR | G61: =G54+G59 -> 4750000 | H61: 13500000 | I61: 13343895.36 | J61: 13017715.24 | K61: 12576894.5 | L61: 12104480.04 | M61: 11522928.87 | N61: 11054073.18 | O61: 10470012.24 | P61: 9842160.751 | Q61: 9106381.12 | R61: 8439314.573 | S61: 7655411.771 | T61: 6809808.536 | U61: 5857113.072 | V61: 4910110.076 | W61: 3842743.684 | X61: 2686986.801 | Y61: 1424099.774 | Z61: 122873.2747 | AA61: -522057.0826 | AB61: -1240685.903 | AC61: -2023730.651 | AD61: -2977958.743 | AE61: 13961.88757 | AF61: 13887.9002 | AG61: 23578.42694
B63: Capital Próprio
C64: =Cálculos!C405 -> Capital Social | D64: =Cálculos!E405 -> EUR | G64: =LOOKUP(G$3, Cálculos!$I$4:$QJ$4, Cálculos!$I405:$QJ405) -> 4500000 | H64: =LOOKUP(H$3, Cálculos!$I$4:$QJ$4, Cálculos!$I405:$QJ405) -> 4500000 | I64: =LOOKUP(I$3, Cálculos!$I$4:$QJ$4, Cálculos!$I405:$QJ405) -> 4500000 | J64: =LOOKUP(J$3, Cálculos!$I$4:$QJ$4, Cálculos!$I405:$QJ405) -> 4500000 | K64: =LOOKUP(K$3, Cálculos!$I$4:$QJ$4, Cálculos!$I405:$QJ405) -> 4500000 | L64: =LOOKUP(L$3, Cálculos!$I$4:$QJ$4, Cálculos!$I405:$QJ405) -> 4500000 | M64: =LOOKUP(M$3, Cálculos!$I$4:$QJ$4, Cálculos!$I405:$QJ405) -> 4500000 | N64: =LOOKUP(N$3, Cálculos!$I$4:$QJ$4, Cálculos!$I405:$QJ405) -> 4500000 | O64: =LOOKUP(O$3, Cálculos!$I$4:$QJ$4, Cálculos!$I405:$QJ405) -> 4500000 | P64: =LOOKUP(P$3, Cálculos!$I$4:$QJ$4, Cálculos!$I405:$QJ405) -> 4500000 | Q64: =LOOKUP(Q$3, Cálculos!$I$4:$QJ$4, Cálculos!$I405:$QJ405) -> 4500000 | R64: =LOOKUP(R$3, Cálculos!$I$4:$QJ$4, Cálculos!$I405:$QJ405) -> 4500000 | S64: =LOOKUP(S$3, Cálculos!$I$4:$QJ$4, Cálculos!$I405:$QJ405) -> 4500000 | T64: =LOOKUP(T$3, Cálculos!$I$4:$QJ$4, Cálculos!$I405:$QJ405) -> 4500000 | U64: =LOOKUP(U$3, Cálculos!$I$4:$QJ$4, Cálculos!$I405:$QJ405) -> 4500000 | V64: =LOOKUP(V$3, Cálculos!$I$4:$QJ$4, Cálculos!$I405:$QJ405) -> 4500000 | W64: =LOOKUP(W$3, Cálculos!$I$4:$QJ$4, Cálculos!$I405:$QJ405) -> 4500000 | X64: =LOOKUP(X$3, Cálculos!$I$4:$QJ$4, Cálculos!$I405:$QJ405) -> 4500000 | Y64: =LOOKUP(Y$3, Cálculos!$I$4:$QJ$4, Cálculos!$I405:$QJ405) -> 4500000 | Z64: =LOOKUP(Z$3, Cálculos!$I$4:$QJ$4, Cálculos!$I405:$QJ405) -> 4500000 | AA64: =LOOKUP(AA$3, Cálculos!$I$4:$QJ$4, Cálculos!$I405:$QJ405) -> 4500000 | AB64: =LOOKUP(AB$3, Cálculos!$I$4:$QJ$4, Cálculos!$I405:$QJ405) -> 4500000 | AC64: =LOOKUP(AC$3, Cálculos!$I$4:$QJ$4, Cálculos!$I405:$QJ405) -> 4500000 | AD64: =LOOKUP(AD$3, Cálculos!$I$4:$QJ$4, Cálculos!$I405:$QJ405) -> 4500000 | AE64: =LOOKUP(AE$3, Cálculos!$I$4:$QJ$4, Cálculos!$I405:$QJ405) -> 4500000 | AF64: =LOOKUP(AF$3, Cálculos!$I$4:$QJ$4, Cálculos!$I405:$QJ405) -> 4500000 | AG64: =LOOKUP(AG$3, Cálculos!$I$4:$QJ$4, Cálculos!$I405:$QJ405) -> 4500000
C65: =Cálculos!C406 -> Resultados Transitados | D65: =Cálculos!E406 -> EUR | G65: =LOOKUP(G$3, Cálculos!$I$4:$QJ$4, Cálculos!$I406:$QJ406) -> 0 | H65: =LOOKUP(H$3, Cálculos!$I$4:$QJ$4, Cálculos!$I406:$QJ406) -> 0 | I65: =LOOKUP(I$3, Cálculos!$I$4:$QJ$4, Cálculos!$I406:$QJ406) -> -272234 | J65: =LOOKUP(J$3, Cálculos!$I$4:$QJ$4, Cálculos!$I406:$QJ406) -> -803939 | K65: =LOOKUP(K$3, Cálculos!$I$4:$QJ$4, Cálculos!$I406:$QJ406) -> -1198742 | L65: =LOOKUP(L$3, Cálculos!$I$4:$QJ$4, Cálculos!$I406:$QJ406) -> -1588776 | M65: =LOOKUP(M$3, Cálculos!$I$4:$QJ$4, Cálculos!$I406:$QJ406) -> -1848492 | N65: =LOOKUP(N$3, Cálculos!$I$4:$QJ$4, Cálculos!$I406:$QJ406) -> -2329026 | O65: =LOOKUP(O$3, Cálculos!$I$4:$QJ$4, Cálculos!$I406:$QJ406) -> -2673474 | P65: =LOOKUP(P$3, Cálculos!$I$4:$QJ$4, Cálculos!$I406:$QJ406) -> -2431984 | Q65: =LOOKUP(Q$3, Cálculos!$I$4:$QJ$4, Cálculos!$I406:$QJ406) -> -2106387 | R65: =LOOKUP(R$3, Cálculos!$I$4:$QJ$4, Cálculos!$I406:$QJ406) -> -1896228 | S65: =LOOKUP(S$3, Cálculos!$I$4:$QJ$4, Cálculos!$I406:$QJ406) -> -1643942 | T65: =LOOKUP(T$3, Cálculos!$I$4:$QJ$4, Cálculos!$I406:$QJ406) -> -1363238 | U65: =LOOKUP(U$3, Cálculos!$I$4:$QJ$4, Cálculos!$I406:$QJ406) -> -942579 | V65: =LOOKUP(V$3, Cálculos!$I$4:$QJ$4, Cálculos!$I406:$QJ406) -> -524558 | W65: =LOOKUP(W$3, Cálculos!$I$4:$QJ$4, Cálculos!$I406:$QJ406) -> -12552 | X65: =LOOKUP(X$3, Cálculos!$I$4:$QJ$4, Cálculos!$I406:$QJ406) -> 550419 | Y65: =LOOKUP(Y$3, Cálculos!$I$4:$QJ$4, Cálculos!$I406:$QJ406) -> 1200308 | Z65: =LOOKUP(Z$3, Cálculos!$I$4:$QJ$4, Cálculos!$I406:$QJ406) -> 1858092 | AA65: =LOOKUP(AA$3, Cálculos!$I$4:$QJ$4, Cálculos!$I406:$QJ406) -> 2632119 | AB65: =LOOKUP(AB$3, Cálculos!$I$4:$QJ$4, Cálculos!$I406:$QJ406) -> 3458779 | AC65: =LOOKUP(AC$3, Cálculos!$I$4:$QJ$4, Cálculos!$I406:$QJ406) -> 4343801 | AD65: =LOOKUP(AD$3, Cálculos!$I$4:$QJ$4, Cálculos!$I406:$QJ406) -> 5284909 | AE65: =LOOKUP(AE$3, Cálculos!$I$4:$QJ$4, Cálculos!$I406:$QJ406) -> 6239271 | AF65: =LOOKUP(AF$3, Cálculos!$I$4:$QJ$4, Cálculos!$I406:$QJ406) -> 6886608 | AG65: =LOOKUP(AG$3, Cálculos!$I$4:$QJ$4, Cálculos!$I406:$QJ406) -> 7537094
C66: =Cálculos!C407 -> Ajuste de Arredondamento | D66: =Cálculos!E407 -> 0 | G66: =LOOKUP(G$3, Cálculos!$I$4:$QJ$4, Cálculos!$I407:$QJ407) -> 1.862645149e-09 | H66: =LOOKUP(H$3, Cálculos!$I$4:$QJ$4, Cálculos!$I407:$QJ407) -> 0 | I66: =LOOKUP(I$3, Cálculos!$I$4:$QJ$4, Cálculos!$I407:$QJ407) -> 0.9176993668 | J66: =LOOKUP(J$3, Cálculos!$I$4:$QJ$4, Cálculos!$I407:$QJ407) -> -0.2809566054 | K66: =LOOKUP(K$3, Cálculos!$I$4:$QJ$4, Cálculos!$I407:$QJ407) -> 0.5019859131 | L66: =LOOKUP(L$3, Cálculos!$I$4:$QJ$4, Cálculos!$I407:$QJ407) -> -0.3279742599 | M66: =LOOKUP(M$3, Cálculos!$I$4:$QJ$4, Cálculos!$I407:$QJ407) -> -0.2872014716 | N66: =LOOKUP(N$3, Cálculos!$I$4:$QJ$4, Cálculos!$I407:$QJ407) -> -0.9621335957 | O66: =LOOKUP(O$3, Cálculos!$I$4:$QJ$4, Cálculos!$I407:$QJ407) -> 0.04267821461 | P66: =LOOKUP(P$3, Cálculos!$I$4:$QJ$4, Cálculos!$I407:$QJ407) -> 1.291259486 | Q66: =LOOKUP(Q$3, Cálculos!$I$4:$QJ$4, Cálculos!$I407:$QJ407) -> 0.6992636062 | R66: =LOOKUP(R$3, Cálculos!$I$4:$QJ$4, Cálculos!$I407:$QJ407) -> 0.811377652 | S66: =LOOKUP(S$3, Cálculos!$I$4:$QJ$4, Cálculos!$I407:$QJ407) -> 1.549676823 | T66: =LOOKUP(T$3, Cálculos!$I$4:$QJ$4, Cálculos!$I407:$QJ407) -> 2.878324114 | U66: =LOOKUP(U$3, Cálculos!$I$4:$QJ$4, Cálculos!$I407:$QJ407) -> 3.512466549 | V66: =LOOKUP(V$3, Cálculos!$I$4:$QJ$4, Cálculos!$I407:$QJ407) -> 2.909565317 | W66: =LOOKUP(W$3, Cálculos!$I$4:$QJ$4, Cálculos!$I407:$QJ407) -> 3.089593866 | X66: =LOOKUP(X$3, Cálculos!$I$4:$QJ$4, Cálculos!$I407:$QJ407) -> 3.567137459 | Y66: =LOOKUP(Y$3, Cálculos!$I$4:$QJ$4, Cálculos!$I407:$QJ407) -> 3.853871702 | Z66: =LOOKUP(Z$3, Cálculos!$I$4:$QJ$4, Cálculos!$I407:$QJ407) -> 196238.2291 | AA66: =LOOKUP(AA$3, Cálculos!$I$4:$QJ$4, Cálculos!$I407:$QJ407) -> 196238.4233 | AB66: =LOOKUP(AB$3, Cálculos!$I$4:$QJ$4, Cálculos!$I407:$QJ407) -> 196238.8775 | AC66: =LOOKUP(AC$3, Cálculos!$I$4:$QJ$4, Cálculos!$I407:$QJ407) -> 196237.6488 | AD66: =LOOKUP(AD$3, Cálculos!$I$4:$QJ$4, Cálculos!$I407:$QJ407) -> 196238.0302 | AE66: =LOOKUP(AE$3, Cálculos!$I$4:$QJ$4, Cálculos!$I407:$QJ407) -> 196238.9565 | AF66: =LOOKUP(AF$3, Cálculos!$I$4:$QJ$4, Cálculos!$I407:$QJ407) -> 196239.4219 | AG66: =LOOKUP(AG$3, Cálculos!$I$4:$QJ$4, Cálculos!$I407:$QJ407) -> 196239.4696
C67: =Cálculos!C408 -> Total do Capital Próprio | D67: =Cálculos!E408 -> EUR | G67: =LOOKUP(G$3, Cálculos!$I$4:$QJ$4, Cálculos!$I408:$QJ408) -> 4500000 | H67: =LOOKUP(H$3, Cálculos!$I$4:$QJ$4, Cálculos!$I408:$QJ408) -> 4500000 | I67: =LOOKUP(I$3, Cálculos!$I$4:$QJ$4, Cálculos!$I408:$QJ408) -> 4227766.918 | J67: =LOOKUP(J$3, Cálculos!$I$4:$QJ$4, Cálculos!$I408:$QJ408) -> 3696060.719 | K67: =LOOKUP(K$3, Cálculos!$I$4:$QJ$4, Cálculos!$I408:$QJ408) -> 3301258.502 | L67: =LOOKUP(L$3, Cálculos!$I$4:$QJ$4, Cálculos!$I408:$QJ408) -> 2911223.672 | M67: =LOOKUP(M$3, Cálculos!$I$4:$QJ$4, Cálculos!$I408:$QJ408) -> 2651507.713 | N67: =LOOKUP(N$3, Cálculos!$I$4:$QJ$4, Cálculos!$I408:$QJ408) -> 2170973.038 | O67: =LOOKUP(O$3, Cálculos!$I$4:$QJ$4, Cálculos!$I408:$QJ408) -> 1826526.043 | P67: =LOOKUP(P$3, Cálculos!$I$4:$QJ$4, Cálculos!$I408:$QJ408) -> 2068017.291 | Q67: =LOOKUP(Q$3, Cálculos!$I$4:$QJ$4, Cálculos!$I408:$QJ408) -> 2393613.699 | R67: =LOOKUP(R$3, Cálculos!$I$4:$QJ$4, Cálculos!$I408:$QJ408) -> 2603772.811 | S67: =LOOKUP(S$3, Cálculos!$I$4:$QJ$4, Cálculos!$I408:$QJ408) -> 2856059.55 | T67: =LOOKUP(T$3, Cálculos!$I$4:$QJ$4, Cálculos!$I408:$QJ408) -> 3136764.878 | U67: =LOOKUP(U$3, Cálculos!$I$4:$QJ$4, Cálculos!$I408:$QJ408) -> 3557424.512 | V67: =LOOKUP(V$3, Cálculos!$I$4:$QJ$4, Cálculos!$I408:$QJ408) -> 3975444.91 | W67: =LOOKUP(W$3, Cálculos!$I$4:$QJ$4, Cálculos!$I408:$QJ408) -> 4487451.09 | X67: =LOOKUP(X$3, Cálculos!$I$4:$QJ$4, Cálculos!$I408:$QJ408) -> 5050422.567 | Y67: =LOOKUP(Y$3, Cálculos!$I$4:$QJ$4, Cálculos!$I408:$QJ408) -> 5700311.854 | Z67: =LOOKUP(Z$3, Cálculos!$I$4:$QJ$4, Cálculos!$I408:$QJ408) -> 6554330.229 | AA67: =LOOKUP(AA$3, Cálculos!$I$4:$QJ$4, Cálculos!$I408:$QJ408) -> 7328357.423 | AB67: =LOOKUP(AB$3, Cálculos!$I$4:$QJ$4, Cálculos!$I408:$QJ408) -> 8155017.878 | AC67: =LOOKUP(AC$3, Cálculos!$I$4:$QJ$4, Cálculos!$I408:$QJ408) -> 9040038.649 | AD67: =LOOKUP(AD$3, Cálculos!$I$4:$QJ$4, Cálculos!$I408:$QJ408) -> 9981147.03 | AE67: =LOOKUP(AE$3, Cálculos!$I$4:$QJ$4, Cálculos!$I408:$QJ408) -> 10935509.96 | AF67: =LOOKUP(AF$3, Cálculos!$I$4:$QJ$4, Cálculos!$I408:$QJ408) -> 11582847.42 | AG67: =LOOKUP(AG$3, Cálculos!$I$4:$QJ$4, Cálculos!$I408:$QJ408) -> 12233333.47
B69: Total de Passivos e Capital Próprio | D69: =Cálculos!E410 -> EUR | G69: =G61+G67 -> 9250000 | H69: =H61+H67 -> 18000000 | I69: 17571662.28 | J69: 16713775.96 | K69: 15878153 | L69: 15015703.71 | M69: 14174436.58 | N69: 13225046.21 | O69: 12296538.28 | P69: 11910178.04 | Q69: 11499994.82 | R69: 11043087.38 | S69: 10511471.32 | T69: 9946573.414 | U69: 9414537.585 | V69: 8885554.985 | W69: 8330194.773 | X69: 7737409.368 | Y69: 7124411.628 | Z69: 6677203.504 | AA69: 6806300.341 | AB69: 6914331.975 | AC69: 7016307.998 | AD69: 7003188.287 | AE69: =AE61+AE67 -> 10949471.84 | AF69: 11596735.32 | AG69: 12256911.9
K70: =K45-K69 -> 0 | L70: =L45-L69 -> 0 | M70: =M45-M69 -> 0 | N70: 0 | O70: 0 | P70: 0 | Q70: 0 | R70: 0 | S70: 0 | T70: 0
C71: Verificação do Balanço | D71: Check | F71: =IF(COUNTIF(G71:AR71, "NO")>0, "NO", "OK") -> OK | G71: =IF(ROUND(G45-G69, 0)=0, "OK", "NO") -> OK | H71: =IF(ROUND(H45-H69, 0)=0, "OK", "NO") -> OK | I71: OK | J71: OK | K71: OK | L71: OK | M71: OK | N71: OK | O71: OK | P71: OK | Q71: OK | R71: OK | S71: OK | T71: OK | U71: OK | V71: OK | W71: OK | X71: OK | Y71: OK | Z71: OK | AA71: OK | AB71: OK | AC71: OK | AD71: OK | AE71: OK | AF71: OK | AG71: OK
A73: · | B73: Demonstração de Fluxos de Caixa | D73: Unidade
B75: Atividades Operacionais
C76: =Cálculos!C417 -> Resultado Líquido | D76: =Cálculos!E417 -> EUR | F76: =SUM(G76:AR76) -> 6218188.528 | G76: =SUMIF(Cálculos!$I$8:$QJ$8, G$2, Cálculos!$I417:$QJ417) -> 0 | H76: 0 | I76: =SUMIF(Cálculos!$I$8:$QJ$8, I$2, Cálculos!$I417:$QJ417) -> -400324.3396 | J76: =SUMIF(Cálculos!$I$8:$QJ$8, J$2, Cálculos!$I417:$QJ417) -> -403614.9414 | K76: =SUMIF(Cálculos!$I$8:$QJ$8, K$2, Cálculos!$I417:$QJ417) -> -394802.2171 | L76: =SUMIF(Cálculos!$I$8:$QJ$8, L$2, Cálculos!$I417:$QJ417) -> -390034.83 | M76: =SUMIF(Cálculos!$I$8:$QJ$8, M$2, Cálculos!$I417:$QJ417) -> -385383.2154 | N76: =SUMIF(Cálculos!$I$8:$QJ$8, N$2, Cálculos!$I417:$QJ417) -> -354867.4188 | O76: =SUMIF(Cálculos!$I$8:$QJ$8, O$2, Cálculos!$I417:$QJ417) -> -344446.9952 | P76: =SUMIF(Cálculos!$I$8:$QJ$8, P$2, Cálculos!$I417:$QJ417) -> 241491.2486 | Q76: =SUMIF(Cálculos!$I$8:$QJ$8, Q$2, Cálculos!$I417:$QJ417) -> 257583.0235 | R76: =SUMIF(Cálculos!$I$8:$QJ$8, R$2, Cálculos!$I417:$QJ417) -> 278172.4966 | S76: =SUMIF(Cálculos!$I$8:$QJ$8, S$2, Cálculos!$I417:$QJ417) -> 252286.7383 | T76: =SUMIF(Cálculos!$I$8:$QJ$8, T$2, Cálculos!$I417:$QJ417) -> 280705.3286 | U76: =SUMIF(Cálculos!$I$8:$QJ$8, U$2, Cálculos!$I417:$QJ417) -> 371136.0074 | V76: =SUMIF(Cálculos!$I$8:$QJ$8, V$2, Cálculos!$I417:$QJ417) -> 467544.0239 | W76: =SUMIF(Cálculos!$I$8:$QJ$8, W$2, Cálculos!$I417:$QJ417) -> 512006.18 | X76: =SUMIF(Cálculos!$I$8:$QJ$8, X$2, Cálculos!$I417:$QJ417) -> 562971.4775 | Y76: =SUMIF(Cálculos!$I$8:$QJ$8, Y$2, Cálculos!$I417:$QJ417) -> 620808.0481 | Z76: =SUMIF(Cálculos!$I$8:$QJ$8, Z$2, Cálculos!$I417:$QJ417) -> 686865.1981 | AA76: =SUMIF(Cálculos!$I$8:$QJ$8, AA$2, Cálculos!$I417:$QJ417) -> 774027.1941 | AB76: =SUMIF(Cálculos!$I$8:$QJ$8, AB$2, Cálculos!$I417:$QJ417) -> 826660.4543 | AC76: =SUMIF(Cálculos!$I$8:$QJ$8, AC$2, Cálculos!$I417:$QJ417) -> 880787.1298 | AD76: =SUMIF(Cálculos!$I$8:$QJ$8, AD$2, Cálculos!$I417:$QJ417) -> 945342.0228 | AE76: =SUMIF(Cálculos!$I$8:$QJ$8, AE$2, Cálculos!$I417:$QJ417) -> 954362.9264 | AF76: =SUMIF(Cálculos!$I$8:$QJ$8, AF$2, Cálculos!$I417:$QJ417) -> 647337.4654 | AG76: =SUMIF(Cálculos!$I$8:$QJ$8, AG$2, Cálculos!$I417:$QJ417) -> -668424.4782
C77: =Cálculos!C418 -> Menos: Variação do Fundo de Maneio | D77: =Cálculos!E418 -> EUR | F77: -171639.7085 | G77: =SUMIF(Cálculos!$I$8:$QJ$8, G$2, Cálculos!$I418:$QJ418) -> -168174.7158 | H77: =SUMIF(Cálculos!$I$8:$QJ$8, H$2, Cálculos!$I418:$QJ418) -> 168174.7158 | I77: =SUMIF(Cálculos!$I$8:$QJ$8, I$2, Cálculos!$I418:$QJ418) -> -236039.8616 | J77: =SUMIF(Cálculos!$I$8:$QJ$8, J$2, Cálculos!$I418:$QJ418) -> 2207.555195 | K77: =SUMIF(Cálculos!$I$8:$QJ$8, K$2, Cálculos!$I418:$QJ418) -> 2607.15479 | L77: =SUMIF(Cálculos!$I$8:$QJ$8, L$2, Cálculos!$I418:$QJ418) -> 2585.780365 | M77: =SUMIF(Cálculos!$I$8:$QJ$8, M$2, Cálculos!$I418:$QJ418) -> 2564.733155 | N77: =SUMIF(Cálculos!$I$8:$QJ$8, N$2, Cálculos!$I418:$QJ418) -> 2544.012766 | O77: =SUMIF(Cálculos!$I$8:$QJ$8, O$2, Cálculos!$I418:$QJ418) -> 2523.618877 | P77: =SUMIF(Cálculos!$I$8:$QJ$8, P$2, Cálculos!$I418:$QJ418) -> 2503.551244 | Q77: =SUMIF(Cálculos!$I$8:$QJ$8, Q$2, Cálculos!$I418:$QJ418) -> 2483.8097 | R77: =SUMIF(Cálculos!$I$8:$QJ$8, R$2, Cálculos!$I418:$QJ418) -> 2464.394157 | S77: =SUMIF(Cálculos!$I$8:$QJ$8, S$2, Cálculos!$I418:$QJ418) -> 2445.304609 | T77: =SUMIF(Cálculos!$I$8:$QJ$8, T$2, Cálculos!$I418:$QJ418) -> 2426.541127 | U77: =SUMIF(Cálculos!$I$8:$QJ$8, U$2, Cálculos!$I418:$QJ418) -> 2408.103867 | V77: =SUMIF(Cálculos!$I$8:$QJ$8, V$2, Cálculos!$I418:$QJ418) -> 2389.993068 | W77: =SUMIF(Cálculos!$I$8:$QJ$8, W$2, Cálculos!$I418:$QJ418) -> 2372.209054 | X77: =SUMIF(Cálculos!$I$8:$QJ$8, X$2, Cálculos!$I418:$QJ418) -> 2354.752235 | Y77: =SUMIF(Cálculos!$I$8:$QJ$8, Y$2, Cálculos!$I418:$QJ418) -> 2337.623106 | Z77: =SUMIF(Cálculos!$I$8:$QJ$8, Z$2, Cálculos!$I418:$QJ418) -> 2320.822255 | AA77: =SUMIF(Cálculos!$I$8:$QJ$8, AA$2, Cálculos!$I418:$QJ418) -> 2304.350359 | AB77: =SUMIF(Cálculos!$I$8:$QJ$8, AB$2, Cálculos!$I418:$QJ418) -> 10402.85461 | AC77: =SUMIF(Cálculos!$I$8:$QJ$8, AC$2, Cálculos!$I418:$QJ418) -> 4197.557972 | AD77: =SUMIF(Cálculos!$I$8:$QJ$8, AD$2, Cálculos!$I418:$QJ418) -> 4806.96204 | AE77: =SUMIF(Cálculos!$I$8:$QJ$8, AE$2, Cálculos!$I418:$QJ418) -> -5185.180781 | AF77: =SUMIF(Cálculos!$I$8:$QJ$8, AF$2, Cálculos!$I418:$QJ418) -> 1932.993404 | AG77: =SUMIF(Cálculos!$I$8:$QJ$8, AG$2, Cálculos!$I418:$QJ418) -> 4400.655939
C78: =Cálculos!C419 -> Menos: Variação do Ativo por Impostos Diferidos | D78: =Cálculos!E419 -> EUR | F78: -264593.5633 | G78: =SUMIF(Cálculos!$I$8:$QJ$8, G$2, Cálculos!$I419:$QJ419) -> 0 | H78: 0 | I78: =SUMIF(Cálculos!$I$8:$QJ$8, I$2, Cálculos!$I419:$QJ419) -> -166764.8763 | J78: =SUMIF(Cálculos!$I$8:$QJ$8, J$2, Cálculos!$I419:$QJ419) -> -167429.3247 | K78: =SUMIF(Cálculos!$I$8:$QJ$8, K$2, Cálculos!$I419:$QJ419) -> -165649.8323 | L78: =SUMIF(Cálculos!$I$8:$QJ$8, L$2, Cálculos!$I419:$QJ419) -> -164687.1868 | M78: =SUMIF(Cálculos!$I$8:$QJ$8, M$2, Cálculos!$I419:$QJ419) -> -163747.9185 | N78: =SUMIF(Cálculos!$I$8:$QJ$8, N$2, Cálculos!$I419:$QJ419) -> -162048.575 | O78: =SUMIF(Cálculos!$I$8:$QJ$8, O$2, Cálculos!$I419:$QJ419) -> -159944.451 | P78: =SUMIF(Cálculos!$I$8:$QJ$8, P$2, Cálculos!$I419:$QJ419) -> -157297.5576 | Q78: =SUMIF(Cálculos!$I$8:$QJ$8, Q$2, Cálculos!$I419:$QJ419) -> -154048.2569 | R78: =SUMIF(Cálculos!$I$8:$QJ$8, R$2, Cálculos!$I419:$QJ419) -> -149935.1902 | S78: =SUMIF(Cálculos!$I$8:$QJ$8, S$2, Cálculos!$I419:$QJ419) -> 144535.8918 | T78: =SUMIF(Cálculos!$I$8:$QJ$8, T$2, Cálculos!$I419:$QJ419) -> 150274.261 | U78: =SUMIF(Cálculos!$I$8:$QJ$8, U$2, Cálculos!$I419:$QJ419) -> 156922.7442 | V78: =SUMIF(Cálculos!$I$8:$QJ$8, V$2, Cálculos!$I419:$QJ419) -> 164778.1898 | W78: =SUMIF(Cálculos!$I$8:$QJ$8, W$2, Cálculos!$I419:$QJ419) -> 173756.1252 | X78: =SUMIF(Cálculos!$I$8:$QJ$8, X$2, Cálculos!$I419:$QJ419) -> 184047.1949 | Y78: =SUMIF(Cálculos!$I$8:$QJ$8, Y$2, Cálculos!$I419:$QJ419) -> 195725.7332 | Z78: =SUMIF(Cálculos!$I$8:$QJ$8, Z$2, Cálculos!$I419:$QJ419) -> 209017.1555 | AA78: =SUMIF(Cálculos!$I$8:$QJ$8, AA$2, Cálculos!$I419:$QJ419) -> 185251.3693 | AB78: =SUMIF(Cálculos!$I$8:$QJ$8, AB$2, Cálculos!$I419:$QJ419) -> 46962.79837 | AC78: =SUMIF(Cálculos!$I$8:$QJ$8, AC$2, Cálculos!$I419:$QJ419) -> 281.7058932 | AD78: =SUMIF(Cálculos!$I$8:$QJ$8, AD$2, Cálculos!$I419:$QJ419) -> 0 | AE78: =SUMIF(Cálculos!$I$8:$QJ$8, AE$2, Cálculos!$I419:$QJ419) -> -3007.231677 | AF78: =SUMIF(Cálculos!$I$8:$QJ$8, AF$2, Cálculos!$I419:$QJ419) -> -213.28903 | AG78: =SUMIF(Cálculos!$I$8:$QJ$8, AG$2, Cálculos!$I419:$QJ419) -> -261373.0426
C79: =Cálculos!C420 -> Mais: Depreciações | D79: =Cálculos!E420 -> EUR | F79: 16670789.51 | G79: =SUMIF(Cálculos!$I$8:$QJ$8, G$2, Cálculos!$I420:$QJ420) -> 0 | H79: =SUMIF(Cálculos!$I$8:$QJ$8, H$2, Cálculos!$I420:$QJ420) -> 0 | I79: =SUMIF(Cálculos!$I$8:$QJ$8, I$2, Cálculos!$I420:$QJ420) -> 1298360.274 | J79: =SUMIF(Cálculos!$I$8:$QJ$8, J$2, Cálculos!$I420:$QJ420) -> 1298360.274 | K79: =SUMIF(Cálculos!$I$8:$QJ$8, K$2, Cálculos!$I420:$QJ420) -> 1298360.274 | L79: =SUMIF(Cálculos!$I$8:$QJ$8, L$2, Cálculos!$I420:$QJ420) -> 1298360.274 | M79: =SUMIF(Cálculos!$I$8:$QJ$8, M$2, Cálculos!$I420:$QJ420) -> 1298360.274 | N79: =SUMIF(Cálculos!$I$8:$QJ$8, N$2, Cálculos!$I420:$QJ420) -> 1276260.274 | O79: =SUMIF(Cálculos!$I$8:$QJ$8, O$2, Cálculos!$I420:$QJ420) -> 1276260.274 | P79: =SUMIF(Cálculos!$I$8:$QJ$8, P$2, Cálculos!$I420:$QJ420) -> 703430.4542 | Q79: =SUMIF(Cálculos!$I$8:$QJ$8, Q$2, Cálculos!$I420:$QJ420) -> 703430.4542 | R79: =SUMIF(Cálculos!$I$8:$QJ$8, R$2, Cálculos!$I420:$QJ420) -> 703210.4542 | S79: =SUMIF(Cálculos!$I$8:$QJ$8, S$2, Cálculos!$I420:$QJ420) -> 463510.0592 | T79: =SUMIF(Cálculos!$I$8:$QJ$8, T$2, Cálculos!$I420:$QJ420) -> 463510.0592 | U79: =SUMIF(Cálculos!$I$8:$QJ$8, U$2, Cálculos!$I420:$QJ420) -> 406005.202 | V79: =SUMIF(Cálculos!$I$8:$QJ$8, V$2, Cálculos!$I420:$QJ420) -> 348500.3449 | W79: =SUMIF(Cálculos!$I$8:$QJ$8, W$2, Cálculos!$I420:$QJ420) -> 348500.3449 | X79: =SUMIF(Cálculos!$I$8:$QJ$8, X$2, Cálculos!$I420:$QJ420) -> 348500.3449 | Y79: =SUMIF(Cálculos!$I$8:$QJ$8, Y$2, Cálculos!$I420:$QJ420) -> 348500.3449 | Z79: =SUMIF(Cálculos!$I$8:$QJ$8, Z$2, Cálculos!$I420:$QJ420) -> 348591.4633 | AA79: =SUMIF(Cálculos!$I$8:$QJ$8, AA$2, Cálculos!$I420:$QJ420) -> 348682.5817 | AB79: =SUMIF(Cálculos!$I$8:$QJ$8, AB$2, Cálculos!$I420:$QJ420) -> 348682.5817 | AC79: =SUMIF(Cálculos!$I$8:$QJ$8, AC$2, Cálculos!$I420:$QJ420) -> 348682.5817 | AD79: =SUMIF(Cálculos!$I$8:$QJ$8, AD$2, Cálculos!$I420:$QJ420) -> 348682.5817 | AE79: =SUMIF(Cálculos!$I$8:$QJ$8, AE$2, Cálculos!$I420:$QJ420) -> 348682.5817 | AF79: =SUMIF(Cálculos!$I$8:$QJ$8, AF$2, Cálculos!$I420:$QJ420) -> 348682.5817 | AG79: =SUMIF(Cálculos!$I$8:$QJ$8, AG$2, Cálculos!$I420:$QJ420) -> 348682.5817
C80: =Cálculos!C421 -> Mais: Juros da Dívida Sénior | D80: =Cálculos!E421 -> EUR | F80: 5226496.897 | G80: =SUMIF(Cálculos!$I$8:$QJ$8, G$2, Cálculos!$I421:$QJ421) -> 0 | H80: =SUMIF(Cálculos!$I$8:$QJ$8, H$2, Cálculos!$I421:$QJ421) -> 0 | I80: =SUMIF(Cálculos!$I$8:$QJ$8, I$2, Cálculos!$I421:$QJ421) -> 493683.284 | J80: =SUMIF(Cálculos!$I$8:$QJ$8, J$2, Cálculos!$I421:$QJ421) -> 477139.0232 | K80: =SUMIF(Cálculos!$I$8:$QJ$8, K$2, Cálculos!$I421:$QJ421) -> 458692.5698 | L80: =SUMIF(Cálculos!$I$8:$QJ$8, L$2, Cálculos!$I421:$QJ421) -> 439205.5915 | M80: =SUMIF(Cálculos!$I$8:$QJ$8, M$2, Cálculos!$I421:$QJ421) -> 418619.3945 | N80: =SUMIF(Cálculos!$I$8:$QJ$8, N$2, Cálculos!$I421:$QJ421) -> 396871.9741 | O80: =SUMIF(Cálculos!$I$8:$QJ$8, O$2, Cálculos!$I421:$QJ421) -> 373897.8283 | P80: =SUMIF(Cálculos!$I$8:$QJ$8, P$2, Cálculos!$I421:$QJ421) -> 349627.76 | Q80: =SUMIF(Cálculos!$I$8:$QJ$8, Q$2, Cálculos!$I421:$QJ421) -> 323988.6691 | R80: =SUMIF(Cálculos!$I$8:$QJ$8, R$2, Cálculos!$I421:$QJ421) -> 296903.332 | S80: =SUMIF(Cálculos!$I$8:$QJ$8, S$2, Cálculos!$I421:$QJ421) -> 268290.169 | T80: =SUMIF(Cálculos!$I$8:$QJ$8, T$2, Cálculos!$I421:$QJ421) -> 238062.9986 | U80: =SUMIF(Cálculos!$I$8:$QJ$8, U$2, Cálculos!$I421:$QJ421) -> 206130.7783 | V80: =SUMIF(Cálculos!$I$8:$QJ$8, V$2, Cálculos!$I421:$QJ421) -> 172397.3297 | W80: =SUMIF(Cálculos!$I$8:$QJ$8, W$2, Cálculos!$I421:$QJ421) -> 136761.0495 | X80: =SUMIF(Cálculos!$I$8:$QJ$8, X$2, Cálculos!$I421:$QJ421) -> 99114.60293 | Y80: =SUMIF(Cálculos!$I$8:$QJ$8, Y$2, Cálculos!$I421:$QJ421) -> 59344.60088 | Z80: =SUMIF(Cálculos!$I$8:$QJ$8, Z$2, Cálculos!$I421:$QJ421) -> 17765.94119 | AA80: =SUMIF(Cálculos!$I$8:$QJ$8, AA$2, Cálculos!$I421:$QJ421) -> 0 | AB80: =SUMIF(Cálculos!$I$8:$QJ$8, AB$2, Cálculos!$I421:$QJ421) -> 0 | AC80: =SUMIF(Cálculos!$I$8:$QJ$8, AC$2, Cálculos!$I421:$QJ421) -> 0 | AD80: =SUMIF(Cálculos!$I$8:$QJ$8, AD$2, Cálculos!$I421:$QJ421) -> 0 | AE80: =SUMIF(Cálculos!$I$8:$QJ$8, AE$2, Cálculos!$I421:$QJ421) -> 0 | AF80: =SUMIF(Cálculos!$I$8:$QJ$8, AF$2, Cálculos!$I421:$QJ421) -> 0 | AG80: =SUMIF(Cálculos!$I$8:$QJ$8, AG$2, Cálculos!$I421:$QJ421) -> 0
C81: =Cálculos!C422 -> Mais: Juros da Dívida Subordinada | D81: =Cálculos!E422 -> EUR | F81: 5647121.092 | G81: =SUMIF(Cálculos!$I$8:$QJ$8, G$2, Cálculos!$I422:$QJ422) -> 0 | H81: =SUMIF(Cálculos!$I$8:$QJ$8, H$2, Cálculos!$I422:$QJ422) -> 0 | I81: =SUMIF(Cálculos!$I$8:$QJ$8, I$2, Cálculos!$I422:$QJ422) -> 543118.9955 | J81: =SUMIF(Cálculos!$I$8:$QJ$8, J$2, Cálculos!$I422:$QJ422) -> 533320.2242 | K81: =SUMIF(Cálculos!$I$8:$QJ$8, K$2, Cálculos!$I422:$QJ422) -> 522573.1945 | L81: =SUMIF(Cálculos!$I$8:$QJ$8, L$2, Cálculos!$I422:$QJ422) -> 510463.1725 | M81: =SUMIF(Cálculos!$I$8:$QJ$8, M$2, Cálculos!$I422:$QJ422) -> 496817.2965 | N81: =SUMIF(Cálculos!$I$8:$QJ$8, N$2, Cálculos!$I422:$QJ422) -> 481440.7819 | O81: =SUMIF(Cálculos!$I$8:$QJ$8, O$2, Cálculos!$I422:$QJ422) -> 464114.1404 | P81: =SUMIF(Cálculos!$I$8:$QJ$8, P$2, Cálculos!$I422:$QJ422) -> 444590.0471 | Q81: =SUMIF(Cálculos!$I$8:$QJ$8, Q$2, Cálculos!$I422:$QJ422) -> 422589.81 | R81: =SUMIF(Cálculos!$I$8:$QJ$8, R$2, Cálculos!$I422:$QJ422) -> 397799.3922 | S81: =SUMIF(Cálculos!$I$8:$QJ$8, S$2, Cálculos!$I422:$QJ422) -> 369864.9289 | T81: =SUMIF(Cálculos!$I$8:$QJ$8, T$2, Cálculos!$I422:$QJ422) -> 338387.6765 | U81: =SUMIF(Cálculos!$I$8:$QJ$8, U$2, Cálculos!$I422:$QJ422) -> 302918.3205 | V81: =SUMIF(Cálculos!$I$8:$QJ$8, V$2, Cálculos!$I422:$QJ422) -> 262950.5625 | W81: =SUMIF(Cálculos!$I$8:$QJ$8, W$2, Cálculos!$I422:$QJ422) -> 217913.8923 | X81: =SUMIF(Cálculos!$I$8:$QJ$8, X$2, Cálculos!$I422:$QJ422) -> 167165.4451 | Y81: =SUMIF(Cálculos!$I$8:$QJ$8, Y$2, Cálculos!$I422:$QJ422) -> 109980.8245 | Z81: =SUMIF(Cálculos!$I$8:$QJ$8, Z$2, Cálculos!$I422:$QJ422) -> 45543.76271 | AA81: =SUMIF(Cálculos!$I$8:$QJ$8, AA$2, Cálculos!$I422:$QJ422) -> -27065.53139 | AB81: =SUMIF(Cálculos!$I$8:$QJ$8, AB$2, Cálculos!$I422:$QJ422) -> -108883.5014 | AC81: =SUMIF(Cálculos!$I$8:$QJ$8, AC$2, Cálculos!$I422:$QJ422) -> -201078.0379 | AD81: =SUMIF(Cálculos!$I$8:$QJ$8, AD$2, Cálculos!$I422:$QJ422) -> -304965.1494 | AE81: =SUMIF(Cálculos!$I$8:$QJ$8, AE$2, Cálculos!$I422:$QJ422) -> -342439.1561 | AF81: =SUMIF(Cálculos!$I$8:$QJ$8, AF$2, Cálculos!$I422:$QJ422) -> 0 | AG81: =SUMIF(Cálculos!$I$8:$QJ$8, AG$2, Cálculos!$I422:$QJ422) -> 0
C82: =Cálculos!C423 -> Menos: Juros das Contas de Reserva | D82: =Cálculos!E423 -> EUR | F82: 0 | G82: =SUMIF(Cálculos!$I$8:$QJ$8, G$2, Cálculos!$I423:$QJ423) -> 0 | H82: =SUMIF(Cálculos!$I$8:$QJ$8, H$2, Cálculos!$I423:$QJ423) -> 0 | I82: =SUMIF(Cálculos!$I$8:$QJ$8, I$2, Cálculos!$I423:$QJ423) -> 0 | J82: =SUMIF(Cálculos!$I$8:$QJ$8, J$2, Cálculos!$I423:$QJ423) -> 0 | K82: =SUMIF(Cálculos!$I$8:$QJ$8, K$2, Cálculos!$I423:$QJ423) -> 0 | L82: =SUMIF(Cálculos!$I$8:$QJ$8, L$2, Cálculos!$I423:$QJ423) -> 0 | M82: =SUMIF(Cálculos!$I$8:$QJ$8, M$2, Cálculos!$I423:$QJ423) -> 0 | N82: =SUMIF(Cálculos!$I$8:$QJ$8, N$2, Cálculos!$I423:$QJ423) -> 0 | O82: =SUMIF(Cálculos!$I$8:$QJ$8, O$2, Cálculos!$I423:$QJ423) -> 0 | P82: =SUMIF(Cálculos!$I$8:$QJ$8, P$2, Cálculos!$I423:$QJ423) -> 0 | Q82: =SUMIF(Cálculos!$I$8:$QJ$8, Q$2, Cálculos!$I423:$QJ423) -> 0 | R82: =SUMIF(Cálculos!$I$8:$QJ$8, R$2, Cálculos!$I423:$QJ423) -> 0 | S82: =SUMIF(Cálculos!$I$8:$QJ$8, S$2, Cálculos!$I423:$QJ423) -> 0 | T82: =SUMIF(Cálculos!$I$8:$QJ$8, T$2, Cálculos!$I423:$QJ423) -> 0 | U82: =SUMIF(Cálculos!$I$8:$QJ$8, U$2, Cálculos!$I423:$QJ423) -> 0 | V82: =SUMIF(Cálculos!$I$8:$QJ$8, V$2, Cálculos!$I423:$QJ423) -> 0 | W82: =SUMIF(Cálculos!$I$8:$QJ$8, W$2, Cálculos!$I423:$QJ423) -> 0 | X82: =SUMIF(Cálculos!$I$8:$QJ$8, X$2, Cálculos!$I423:$QJ423) -> 0 | Y82: =SUMIF(Cálculos!$I$8:$QJ$8, Y$2, Cálculos!$I423:$QJ423) -> 0 | Z82: =SUMIF(Cálculos!$I$8:$QJ$8, Z$2, Cálculos!$I423:$QJ423) -> 0 | AA82: =SUMIF(Cálculos!$I$8:$QJ$8, AA$2, Cálculos!$I423:$QJ423) -> 0 | AB82: =SUMIF(Cálculos!$I$8:$QJ$8, AB$2, Cálculos!$I423:$QJ423) -> 0 | AC82: =SUMIF(Cálculos!$I$8:$QJ$8, AC$2, Cálculos!$I423:$QJ423) -> 0 | AD82: =SUMIF(Cálculos!$I$8:$QJ$8, AD$2, Cálculos!$I423:$QJ423) -> 0 | AE82: =SUMIF(Cálculos!$I$8:$QJ$8, AE$2, Cálculos!$I423:$QJ423) -> 0 | AF82: =SUMIF(Cálculos!$I$8:$QJ$8, AF$2, Cálculos!$I423:$QJ423) -> 0 | AG82: =SUMIF(Cálculos!$I$8:$QJ$8, AG$2, Cálculos!$I423:$QJ423) -> 0
C83: =Cálculos!C424 -> Fluxos de Caixa Operacionais | D83: =Cálculos!E424 -> EUR | F83: 33326362.76 | G83: =SUM(G76:G82) -> -168174.7158 | H83: =SUM(H76:H82) -> 168174.7158 | I83: =SUM(I76:I82) -> 1532033.476 | J83: 1739982.81 | K83: 1721781.143 | L83: 1695892.801 | M83: 1667230.564 | N83: 1640201.049 | O83: 1612404.415 | P83: 1584345.504 | Q83: 1556027.51 | R83: 1528614.879 | S83: 1500933.092 | T83: 1473366.865 | U83: 1445521.156 | V83: 1418560.444 | W83: 1391309.801 | X83: 1364153.818 | Y83: 1336697.175 | Z83: 1310104.343 | AA83: 1283199.964 | AB83: 1123825.188 | AC83: 1032870.937 | AD83: 993866.4172 | AE83: =SUM(AE76:AE82) -> 952413.9395 | AF83: 997739.7514 | AG83: -576714.2832
B85: Atividades de Investimento
C86: =Cálculos!C427 -> Investimento (CapEx) | D86: =Cálculos!E427 -> EUR | F86: =SUM(G86:AR86) -> -19700928.8 | G86: =SUMIF(Cálculos!$I$8:$QJ$8, G$2, Cálculos!$I429:$QJ429) -> -9054194.102 | H86: =SUMIF(Cálculos!$I$8:$QJ$8, H$2, Cálculos!$I429:$QJ429) -> -8184997.207 | I86: =SUMIF(Cálculos!$I$8:$QJ$8, I$2, Cálculos!$I429:$QJ429) -> 0 | J86: =SUMIF(Cálculos!$I$8:$QJ$8, J$2, Cálculos!$I429:$QJ429) -> 0 | K86: =SUMIF(Cálculos!$I$8:$QJ$8, K$2, Cálculos!$I429:$QJ429) -> 0 | L86: =SUMIF(Cálculos!$I$8:$QJ$8, L$2, Cálculos!$I429:$QJ429) -> 0 | M86: =SUMIF(Cálculos!$I$8:$QJ$8, M$2, Cálculos!$I429:$QJ429) -> 0 | N86: =SUMIF(Cálculos!$I$8:$QJ$8, N$2, Cálculos!$I429:$QJ429) -> 0 | O86: =SUMIF(Cálculos!$I$8:$QJ$8, O$2, Cálculos!$I429:$QJ429) -> 0 | P86: =SUMIF(Cálculos!$I$8:$QJ$8, P$2, Cálculos!$I429:$QJ429) -> 0 | Q86: =SUMIF(Cálculos!$I$8:$QJ$8, Q$2, Cálculos!$I429:$QJ429) -> 0 | R86: =SUMIF(Cálculos!$I$8:$QJ$8, R$2, Cálculos!$I429:$QJ429) -> 0 | S86: =SUMIF(Cálculos!$I$8:$QJ$8, S$2, Cálculos!$I429:$QJ429) -> 0 | T86: =SUMIF(Cálculos!$I$8:$QJ$8, T$2, Cálculos!$I429:$QJ429) -> 0 | U86: =SUMIF(Cálculos!$I$8:$QJ$8, U$2, Cálculos!$I429:$QJ429) -> 0 | V86: =SUMIF(Cálculos!$I$8:$QJ$8, V$2, Cálculos!$I429:$QJ429) -> 0 | W86: =SUMIF(Cálculos!$I$8:$QJ$8, W$2, Cálculos!$I429:$QJ429) -> 0 | X86: =SUMIF(Cálculos!$I$8:$QJ$8, X$2, Cálculos!$I429:$QJ429) -> 0 | Y86: =SUMIF(Cálculos!$I$8:$QJ$8, Y$2, Cálculos!$I429:$QJ429) -> 0 | Z86: =SUMIF(Cálculos!$I$8:$QJ$8, Z$2, Cálculos!$I429:$QJ429) -> -7777.95982 | AA86: =SUMIF(Cálculos!$I$8:$QJ$8, AA$2, Cálculos!$I429:$QJ429) -> -2453959.528 | AB86: =SUMIF(Cálculos!$I$8:$QJ$8, AB$2, Cálculos!$I429:$QJ429) -> 0 | AC86: =SUMIF(Cálculos!$I$8:$QJ$8, AC$2, Cálculos!$I429:$QJ429) -> 0 | AD86: =SUMIF(Cálculos!$I$8:$QJ$8, AD$2, Cálculos!$I429:$QJ429) -> 0 | AE86: =SUMIF(Cálculos!$I$8:$QJ$8, AE$2, Cálculos!$I429:$QJ429) -> 0 | AF86: =SUMIF(Cálculos!$I$8:$QJ$8, AF$2, Cálculos!$I429:$QJ429) -> 0 | AG86: =SUMIF(Cálculos!$I$8:$QJ$8, AG$2, Cálculos!$I429:$QJ429) -> 0
C87: =Cálculos!C429 -> Fluxos de Caixa de Investimento | D87: =Cálculos!E429 -> EUR | F87: =SUM(G87:AR87) -> -19700928.8 | G87: =SUM(G86) -> -9054194.102 | H87: =SUM(H86) -> -8184997.207 | I87: 0 | J87: 0 | K87: 0 | L87: 0 | M87: 0 | N87: 0 | O87: 0 | P87: 0 | Q87: 0 | R87: 0 | S87: 0 | T87: 0 | U87: 0 | V87: 0 | W87: 0 | X87: 0 | Y87: 0 | Z87: -7777.95982 | AA87: -2453959.528 | AB87: 0 | AC87: 0 | AD87: 0 | AE87: =SUM(AE86) -> 0 | AF87: 0 | AG87: 0
B89: Atividades de Financiamento
C90: =Cálculos!C432 -> Entradas de Capital Próprio | D90: =Cálculos!E432 -> EUR | F90: =SUM(G90:AR90) -> 4500000 | G90: =SUMIF(Cálculos!$I$8:$QJ$8, G$2, Cálculos!$I432:$QJ432) -> 4500000 | H90: =SUMIF(Cálculos!$I$8:$QJ$8, H$2, Cálculos!$I432:$QJ432) -> 0 | I90: =SUMIF(Cálculos!$I$8:$QJ$8, I$2, Cálculos!$I432:$QJ432) -> 0 | J90: =SUMIF(Cálculos!$I$8:$QJ$8, J$2, Cálculos!$I432:$QJ432) -> 0 | K90: =SUMIF(Cálculos!$I$8:$QJ$8, K$2, Cálculos!$I432:$QJ432) -> 0 | L90: =SUMIF(Cálculos!$I$8:$QJ$8, L$2, Cálculos!$I432:$QJ432) -> 0 | M90: =SUMIF(Cálculos!$I$8:$QJ$8, M$2, Cálculos!$I432:$QJ432) -> 0 | N90: =SUMIF(Cálculos!$I$8:$QJ$8, N$2, Cálculos!$I432:$QJ432) -> 0 | O90: =SUMIF(Cálculos!$I$8:$QJ$8, O$2, Cálculos!$I432:$QJ432) -> 0 | P90: =SUMIF(Cálculos!$I$8:$QJ$8, P$2, Cálculos!$I432:$QJ432) -> 0 | Q90: =SUMIF(Cálculos!$I$8:$QJ$8, Q$2, Cálculos!$I432:$QJ432) -> 0 | R90: =SUMIF(Cálculos!$I$8:$QJ$8, R$2, Cálculos!$I432:$QJ432) -> 0 | S90: =SUMIF(Cálculos!$I$8:$QJ$8, S$2, Cálculos!$I432:$QJ432) -> 0 | T90: =SUMIF(Cálculos!$I$8:$QJ$8, T$2, Cálculos!$I432:$QJ432) -> 0 | U90: =SUMIF(Cálculos!$I$8:$QJ$8, U$2, Cálculos!$I432:$QJ432) -> 0 | V90: =SUMIF(Cálculos!$I$8:$QJ$8, V$2, Cálculos!$I432:$QJ432) -> 0 | W90: =SUMIF(Cálculos!$I$8:$QJ$8, W$2, Cálculos!$I432:$QJ432) -> 0 | X90: =SUMIF(Cálculos!$I$8:$QJ$8, X$2, Cálculos!$I432:$QJ432) -> 0 | Y90: =SUMIF(Cálculos!$I$8:$QJ$8, Y$2, Cálculos!$I432:$QJ432) -> 0 | Z90: =SUMIF(Cálculos!$I$8:$QJ$8, Z$2, Cálculos!$I432:$QJ432) -> 0 | AA90: =SUMIF(Cálculos!$I$8:$QJ$8, AA$2, Cálculos!$I432:$QJ432) -> 0 | AB90: =SUMIF(Cálculos!$I$8:$QJ$8, AB$2, Cálculos!$I432:$QJ432) -> 0 | AC90: =SUMIF(Cálculos!$I$8:$QJ$8, AC$2, Cálculos!$I432:$QJ432) -> 0 | AD90: =SUMIF(Cálculos!$I$8:$QJ$8, AD$2, Cálculos!$I432:$QJ432) -> 0 | AE90: =SUMIF(Cálculos!$I$8:$QJ$8, AE$2, Cálculos!$I432:$QJ432) -> 0 | AF90: =SUMIF(Cálculos!$I$8:$QJ$8, AF$2, Cálculos!$I432:$QJ432) -> 0 | AG90: =SUMIF(Cálculos!$I$8:$QJ$8, AG$2, Cálculos!$I432:$QJ432) -> 0
C91: =Cálculos!C433 -> Utilização de Dívida Subordinada | D91: =Cálculos!E433 -> EUR | F91: 4500000 | G91: =SUMIF(Cálculos!$I$8:$QJ$8, G$2, Cálculos!$I433:$QJ433) -> 2250000 | H91: =SUMIF(Cálculos!$I$8:$QJ$8, H$2, Cálculos!$I433:$QJ433) -> 2250000 | I91: =SUMIF(Cálculos!$I$8:$QJ$8, I$2, Cálculos!$I433:$QJ433) -> 0 | J91: =SUMIF(Cálculos!$I$8:$QJ$8, J$2, Cálculos!$I433:$QJ433) -> 0 | K91: =SUMIF(Cálculos!$I$8:$QJ$8, K$2, Cálculos!$I433:$QJ433) -> 0 | L91: =SUMIF(Cálculos!$I$8:$QJ$8, L$2, Cálculos!$I433:$QJ433) -> 0 | M91: =SUMIF(Cálculos!$I$8:$QJ$8, M$2, Cálculos!$I433:$QJ433) -> 0 | N91: =SUMIF(Cálculos!$I$8:$QJ$8, N$2, Cálculos!$I433:$QJ433) -> 0 | O91: =SUMIF(Cálculos!$I$8:$QJ$8, O$2, Cálculos!$I433:$QJ433) -> 0 | P91: =SUMIF(Cálculos!$I$8:$QJ$8, P$2, Cálculos!$I433:$QJ433) -> 0 | Q91: =SUMIF(Cálculos!$I$8:$QJ$8, Q$2, Cálculos!$I433:$QJ433) -> 0 | R91: =SUMIF(Cálculos!$I$8:$QJ$8, R$2, Cálculos!$I433:$QJ433) -> 0 | S91: =SUMIF(Cálculos!$I$8:$QJ$8, S$2, Cálculos!$I433:$QJ433) -> 0 | T91: =SUMIF(Cálculos!$I$8:$QJ$8, T$2, Cálculos!$I433:$QJ433) -> 0 | U91: =SUMIF(Cálculos!$I$8:$QJ$8, U$2, Cálculos!$I433:$QJ433) -> 0 | V91: =SUMIF(Cálculos!$I$8:$QJ$8, V$2, Cálculos!$I433:$QJ433) -> 0 | W91: =SUMIF(Cálculos!$I$8:$QJ$8, W$2, Cálculos!$I433:$QJ433) -> 0 | X91: =SUMIF(Cálculos!$I$8:$QJ$8, X$2, Cálculos!$I433:$QJ433) -> 0 | Y91: =SUMIF(Cálculos!$I$8:$QJ$8, Y$2, Cálculos!$I433:$QJ433) -> 0 | Z91: =SUMIF(Cálculos!$I$8:$QJ$8, Z$2, Cálculos!$I433:$QJ433) -> 0 | AA91: =SUMIF(Cálculos!$I$8:$QJ$8, AA$2, Cálculos!$I433:$QJ433) -> 0 | AB91: =SUMIF(Cálculos!$I$8:$QJ$8, AB$2, Cálculos!$I433:$QJ433) -> 0 | AC91: =SUMIF(Cálculos!$I$8:$QJ$8, AC$2, Cálculos!$I433:$QJ433) -> 0 | AD91: =SUMIF(Cálculos!$I$8:$QJ$8, AD$2, Cálculos!$I433:$QJ433) -> 0 | AE91: =SUMIF(Cálculos!$I$8:$QJ$8, AE$2, Cálculos!$I433:$QJ433) -> 0 | AF91: =SUMIF(Cálculos!$I$8:$QJ$8, AF$2, Cálculos!$I433:$QJ433) -> 0 | AG91: =SUMIF(Cálculos!$I$8:$QJ$8, AG$2, Cálculos!$I433:$QJ433) -> 0
C92: =Cálculos!C434 -> Utilização do Empréstimo de Construção | D92: =Cálculos!E434 -> EUR | F92: 9000000 | G92: =SUMIF(Cálculos!$I$8:$QJ$8, G$2, Cálculos!$I434:$QJ434) -> 2500000 | H92: =SUMIF(Cálculos!$I$8:$QJ$8, H$2, Cálculos!$I434:$QJ434) -> 6500000 | I92: =SUMIF(Cálculos!$I$8:$QJ$8, I$2, Cálculos!$I434:$QJ434) -> 0 | J92: =SUMIF(Cálculos!$I$8:$QJ$8, J$2, Cálculos!$I434:$QJ434) -> 0 | K92: =SUMIF(Cálculos!$I$8:$QJ$8, K$2, Cálculos!$I434:$QJ434) -> 0 | L92: =SUMIF(Cálculos!$I$8:$QJ$8, L$2, Cálculos!$I434:$QJ434) -> 0 | M92: =SUMIF(Cálculos!$I$8:$QJ$8, M$2, Cálculos!$I434:$QJ434) -> 0 | N92: =SUMIF(Cálculos!$I$8:$QJ$8, N$2, Cálculos!$I434:$QJ434) -> 0 | O92: =SUMIF(Cálculos!$I$8:$QJ$8, O$2, Cálculos!$I434:$QJ434) -> 0 | P92: =SUMIF(Cálculos!$I$8:$QJ$8, P$2, Cálculos!$I434:$QJ434) -> 0 | Q92: =SUMIF(Cálculos!$I$8:$QJ$8, Q$2, Cálculos!$I434:$QJ434) -> 0 | R92: =SUMIF(Cálculos!$I$8:$QJ$8, R$2, Cálculos!$I434:$QJ434) -> 0 | S92: =SUMIF(Cálculos!$I$8:$QJ$8, S$2, Cálculos!$I434:$QJ434) -> 0 | T92: =SUMIF(Cálculos!$I$8:$QJ$8, T$2, Cálculos!$I434:$QJ434) -> 0 | U92: =SUMIF(Cálculos!$I$8:$QJ$8, U$2, Cálculos!$I434:$QJ434) -> 0 | V92: =SUMIF(Cálculos!$I$8:$QJ$8, V$2, Cálculos!$I434:$QJ434) -> 0 | W92: =SUMIF(Cálculos!$I$8:$QJ$8, W$2, Cálculos!$I434:$QJ434) -> 0 | X92: =SUMIF(Cálculos!$I$8:$QJ$8, X$2, Cálculos!$I434:$QJ434) -> 0 | Y92: =SUMIF(Cálculos!$I$8:$QJ$8, Y$2, Cálculos!$I434:$QJ434) -> 0 | Z92: =SUMIF(Cálculos!$I$8:$QJ$8, Z$2, Cálculos!$I434:$QJ434) -> 0 | AA92: =SUMIF(Cálculos!$I$8:$QJ$8, AA$2, Cálculos!$I434:$QJ434) -> 0 | AB92: =SUMIF(Cálculos!$I$8:$QJ$8, AB$2, Cálculos!$I434:$QJ434) -> 0 | AC92: =SUMIF(Cálculos!$I$8:$QJ$8, AC$2, Cálculos!$I434:$QJ434) -> 0 | AD92: =SUMIF(Cálculos!$I$8:$QJ$8, AD$2, Cálculos!$I434:$QJ434) -> 0 | AE92: =SUMIF(Cálculos!$I$8:$QJ$8, AE$2, Cálculos!$I434:$QJ434) -> 0 | AF92: =SUMIF(Cálculos!$I$8:$QJ$8, AF$2, Cálculos!$I434:$QJ434) -> 0 | AG92: =SUMIF(Cálculos!$I$8:$QJ$8, AG$2, Cálculos!$I434:$QJ434) -> 0
C93: =Cálculos!C435 -> Utilização do Empréstimo Operacional | D93: =Cálculos!E435 -> 0 | F93: 0 | G93: =SUMIF(Cálculos!$I$8:$QJ$8, G$2, Cálculos!$I435:$QJ435) -> 0 | H93: =SUMIF(Cálculos!$I$8:$QJ$8, H$2, Cálculos!$I435:$QJ435) -> 0 | I93: =SUMIF(Cálculos!$I$8:$QJ$8, I$2, Cálculos!$I435:$QJ435) -> 0 | J93: =SUMIF(Cálculos!$I$8:$QJ$8, J$2, Cálculos!$I435:$QJ435) -> 0 | K93: =SUMIF(Cálculos!$I$8:$QJ$8, K$2, Cálculos!$I435:$QJ435) -> 0 | L93: =SUMIF(Cálculos!$I$8:$QJ$8, L$2, Cálculos!$I435:$QJ435) -> 0 | M93: =SUMIF(Cálculos!$I$8:$QJ$8, M$2, Cálculos!$I435:$QJ435) -> 0 | N93: =SUMIF(Cálculos!$I$8:$QJ$8, N$2, Cálculos!$I435:$QJ435) -> 0 | O93: =SUMIF(Cálculos!$I$8:$QJ$8, O$2, Cálculos!$I435:$QJ435) -> 0 | P93: =SUMIF(Cálculos!$I$8:$QJ$8, P$2, Cálculos!$I435:$QJ435) -> 0 | Q93: =SUMIF(Cálculos!$I$8:$QJ$8, Q$2, Cálculos!$I435:$QJ435) -> 0 | R93: =SUMIF(Cálculos!$I$8:$QJ$8, R$2, Cálculos!$I435:$QJ435) -> 0 | S93: =SUMIF(Cálculos!$I$8:$QJ$8, S$2, Cálculos!$I435:$QJ435) -> 0 | T93: =SUMIF(Cálculos!$I$8:$QJ$8, T$2, Cálculos!$I435:$QJ435) -> 0 | U93: =SUMIF(Cálculos!$I$8:$QJ$8, U$2, Cálculos!$I435:$QJ435) -> 0 | V93: =SUMIF(Cálculos!$I$8:$QJ$8, V$2, Cálculos!$I435:$QJ435) -> 0 | W93: =SUMIF(Cálculos!$I$8:$QJ$8, W$2, Cálculos!$I435:$QJ435) -> 0 | X93: =SUMIF(Cálculos!$I$8:$QJ$8, X$2, Cálculos!$I435:$QJ435) -> 0 | Y93: =SUMIF(Cálculos!$I$8:$QJ$8, Y$2, Cálculos!$I435:$QJ435) -> 0 | Z93: =SUMIF(Cálculos!$I$8:$QJ$8, Z$2, Cálculos!$I435:$QJ435) -> 0 | AA93: =SUMIF(Cálculos!$I$8:$QJ$8, AA$2, Cálculos!$I435:$QJ435) -> 0 | AB93: =SUMIF(Cálculos!$I$8:$QJ$8, AB$2, Cálculos!$I435:$QJ435) -> 0 | AC93: =SUMIF(Cálculos!$I$8:$QJ$8, AC$2, Cálculos!$I435:$QJ435) -> 0 | AD93: =SUMIF(Cálculos!$I$8:$QJ$8, AD$2, Cálculos!$I435:$QJ435) -> 0 | AE93: =SUMIF(Cálculos!$I$8:$QJ$8, AE$2, Cálculos!$I435:$QJ435) -> 0 | AF93: =SUMIF(Cálculos!$I$8:$QJ$8, AF$2, Cálculos!$I435:$QJ435) -> 0 | AG93: =SUMIF(Cálculos!$I$8:$QJ$8, AG$2, Cálculos!$I435:$QJ435) -> 0
C94: =Cálculos!C436 -> Reembolso de Capital – Dívida Subordinada | D94: =Cálculos!E436 -> EUR | F94: -4500000 | G94: =SUMIF(Cálculos!$I$8:$QJ$8, G$2, Cálculos!$I436:$QJ436) -> 0 | H94: =SUMIF(Cálculos!$I$8:$QJ$8, H$2, Cálculos!$I436:$QJ436) -> 0 | I94: =SUMIF(Cálculos!$I$8:$QJ$8, I$2, Cálculos!$I436:$QJ436) -> -55661.15388 | J94: =SUMIF(Cálculos!$I$8:$QJ$8, J$2, Cálculos!$I436:$QJ436) -> -83069.33363 | K94: =SUMIF(Cálculos!$I$8:$QJ$8, K$2, Cálculos!$I436:$QJ436) -> -93604.60437 | L94: =SUMIF(Cálculos!$I$8:$QJ$8, L$2, Cálculos!$I436:$QJ436) -> -105476.0111 | M94: =SUMIF(Cálculos!$I$8:$QJ$8, M$2, Cálculos!$I436:$QJ436) -> -118853.0094 | N94: =SUMIF(Cálculos!$I$8:$QJ$8, N$2, Cálculos!$I436:$QJ436) -> -133926.5459 | O94: =SUMIF(Cálculos!$I$8:$QJ$8, O$2, Cálculos!$I436:$QJ436) -> -150911.7842 | P94: =SUMIF(Cálculos!$I$8:$QJ$8, P$2, Cálculos!$I436:$QJ436) -> -170051.1757 | Q94: =SUMIF(Cálculos!$I$8:$QJ$8, Q$2, Cálculos!$I436:$QJ436) -> -191617.9212 | R94: =SUMIF(Cálculos!$I$8:$QJ$8, R$2, Cálculos!$I436:$QJ436) -> -215919.8699 | S94: =SUMIF(Cálculos!$I$8:$QJ$8, S$2, Cálculos!$I436:$QJ436) -> -243303.9139 | T94: =SUMIF(Cálculos!$I$8:$QJ$8, T$2, Cálculos!$I436:$QJ436) -> -274160.9401 | U94: =SUMIF(Cálculos!$I$8:$QJ$8, U$2, Cálculos!$I436:$QJ436) -> -308931.4096 | V94: =SUMIF(Cálculos!$I$8:$QJ$8, V$2, Cálculos!$I436:$QJ436) -> -348111.6449 | W94: =SUMIF(Cálculos!$I$8:$QJ$8, W$2, Cálculos!$I436:$QJ436) -> -392260.9147 | X94: =SUMIF(Cálculos!$I$8:$QJ$8, X$2, Cálculos!$I436:$QJ436) -> -442009.4171 | Y94: =SUMIF(Cálculos!$I$8:$QJ$8, Y$2, Cálculos!$I436:$QJ436) -> -498067.2747 | Z94: =SUMIF(Cálculos!$I$8:$QJ$8, Z$2, Cálculos!$I436:$QJ436) -> -561234.6718 | AA94: =SUMIF(Cálculos!$I$8:$QJ$8, AA$2, Cálculos!$I436:$QJ436) -> -632413.276 | AB94: =SUMIF(Cálculos!$I$8:$QJ$8, AB$2, Cálculos!$I436:$QJ436) -> -712619.1088 | AC94: =SUMIF(Cálculos!$I$8:$QJ$8, AC$2, Cálculos!$I436:$QJ436) -> -802997.0487 | AD94: =SUMIF(Cálculos!$I$8:$QJ$8, AD$2, Cálculos!$I436:$QJ436) -> -904837.1736 | AE94: =SUMIF(Cálculos!$I$8:$QJ$8, AE$2, Cálculos!$I436:$QJ436) -> 2940038.203 | AF94: =SUMIF(Cálculos!$I$8:$QJ$8, AF$2, Cálculos!$I436:$QJ436) -> 0 | AG94: =SUMIF(Cálculos!$I$8:$QJ$8, AG$2, Cálculos!$I436:$QJ436) -> 0
C95: =Cálculos!C437 -> Reembolso do Empréstimo de Construção | D95: =Cálculos!E437 -> EUR | F95: 0 | G95: =SUMIF(Cálculos!$I$8:$QJ$8, G$2, Cálculos!$I437:$QJ437) -> 0 | H95: =SUMIF(Cálculos!$I$8:$QJ$8, H$2, Cálculos!$I437:$QJ437) -> 0 | I95: =SUMIF(Cálculos!$I$8:$QJ$8, I$2, Cálculos!$I437:$QJ437) -> 0 | J95: =SUMIF(Cálculos!$I$8:$QJ$8, J$2, Cálculos!$I437:$QJ437) -> 0 | K95: =SUMIF(Cálculos!$I$8:$QJ$8, K$2, Cálculos!$I437:$QJ437) -> 0 | L95: =SUMIF(Cálculos!$I$8:$QJ$8, L$2, Cálculos!$I437:$QJ437) -> 0 | M95: =SUMIF(Cálculos!$I$8:$QJ$8, M$2, Cálculos!$I437:$QJ437) -> 0 | N95: =SUMIF(Cálculos!$I$8:$QJ$8, N$2, Cálculos!$I437:$QJ437) -> 0 | O95: =SUMIF(Cálculos!$I$8:$QJ$8, O$2, Cálculos!$I437:$QJ437) -> 0 | P95: =SUMIF(Cálculos!$I$8:$QJ$8, P$2, Cálculos!$I437:$QJ437) -> 0 | Q95: =SUMIF(Cálculos!$I$8:$QJ$8, Q$2, Cálculos!$I437:$QJ437) -> 0 | R95: =SUMIF(Cálculos!$I$8:$QJ$8, R$2, Cálculos!$I437:$QJ437) -> 0 | S95: =SUMIF(Cálculos!$I$8:$QJ$8, S$2, Cálculos!$I437:$QJ437) -> 0 | T95: =SUMIF(Cálculos!$I$8:$QJ$8, T$2, Cálculos!$I437:$QJ437) -> 0 | U95: =SUMIF(Cálculos!$I$8:$QJ$8, U$2, Cálculos!$I437:$QJ437) -> 0 | V95: =SUMIF(Cálculos!$I$8:$QJ$8, V$2, Cálculos!$I437:$QJ437) -> 0 | W95: =SUMIF(Cálculos!$I$8:$QJ$8, W$2, Cálculos!$I437:$QJ437) -> 0 | X95: =SUMIF(Cálculos!$I$8:$QJ$8, X$2, Cálculos!$I437:$QJ437) -> 0 | Y95: =SUMIF(Cálculos!$I$8:$QJ$8, Y$2, Cálculos!$I437:$QJ437) -> 0 | Z95: =SUMIF(Cálculos!$I$8:$QJ$8, Z$2, Cálculos!$I437:$QJ437) -> 0 | AA95: =SUMIF(Cálculos!$I$8:$QJ$8, AA$2, Cálculos!$I437:$QJ437) -> 0 | AB95: =SUMIF(Cálculos!$I$8:$QJ$8, AB$2, Cálculos!$I437:$QJ437) -> 0 | AC95: =SUMIF(Cálculos!$I$8:$QJ$8, AC$2, Cálculos!$I437:$QJ437) -> 0 | AD95: =SUMIF(Cálculos!$I$8:$QJ$8, AD$2, Cálculos!$I437:$QJ437) -> 0 | AE95: =SUMIF(Cálculos!$I$8:$QJ$8, AE$2, Cálculos!$I437:$QJ437) -> 0 | AF95: =SUMIF(Cálculos!$I$8:$QJ$8, AF$2, Cálculos!$I437:$QJ437) -> 0 | AG95: =SUMIF(Cálculos!$I$8:$QJ$8, AG$2, Cálculos!$I437:$QJ437) -> 0
C96: =Cálculos!C438 -> Reembolso do Empréstimo Operacional | D96: =Cálculos!E438 -> EUR | F96: -8803765.584 | G96: =SUMIF(Cálculos!$I$8:$QJ$8, G$2, Cálculos!$I438:$QJ438) -> 0 | H96: =SUMIF(Cálculos!$I$8:$QJ$8, H$2, Cálculos!$I438:$QJ438) -> 0 | I96: =SUMIF(Cálculos!$I$8:$QJ$8, I$2, Cálculos!$I438:$QJ438) -> -190375.3389 | J96: =SUMIF(Cálculos!$I$8:$QJ$8, J$2, Cálculos!$I438:$QJ438) -> -324042.0071 | K96: =SUMIF(Cálculos!$I$8:$QJ$8, K$2, Cálculos!$I438:$QJ438) -> -342320.5234 | L96: =SUMIF(Cálculos!$I$8:$QJ$8, L$2, Cálculos!$I438:$QJ438) -> -361630.0917 | M96: =SUMIF(Cálculos!$I$8:$QJ$8, M$2, Cálculos!$I438:$QJ438) -> -382028.8714 | N96: =SUMIF(Cálculos!$I$8:$QJ$8, N$2, Cálculos!$I438:$QJ438) -> -403578.3026 | O96: =SUMIF(Cálculos!$I$8:$QJ$8, O$2, Cálculos!$I438:$QJ438) -> -426343.2912 | P96: =SUMIF(Cálculos!$I$8:$QJ$8, P$2, Cálculos!$I438:$QJ438) -> -450392.404 | Q96: =SUMIF(Cálculos!$I$8:$QJ$8, Q$2, Cálculos!$I438:$QJ438) -> -475798.0759 | R96: =SUMIF(Cálculos!$I$8:$QJ$8, R$2, Cálculos!$I438:$QJ438) -> -502636.8273 | S96: =SUMIF(Cálculos!$I$8:$QJ$8, S$2, Cálculos!$I438:$QJ438) -> -530989.4953 | T96: =SUMIF(Cálculos!$I$8:$QJ$8, T$2, Cálculos!$I438:$QJ438) -> -560941.4766 | U96: =SUMIF(Cálculos!$I$8:$QJ$8, U$2, Cálculos!$I438:$QJ438) -> -592582.9851 | V96: =SUMIF(Cálculos!$I$8:$QJ$8, V$2, Cálculos!$I438:$QJ438) -> -626009.3234 | W96: =SUMIF(Cálculos!$I$8:$QJ$8, W$2, Cálculos!$I438:$QJ438) -> -661321.1699 | X96: =SUMIF(Cálculos!$I$8:$QJ$8, X$2, Cálculos!$I438:$QJ438) -> -698624.8821 | Y96: =SUMIF(Cálculos!$I$8:$QJ$8, Y$2, Cálculos!$I438:$QJ438) -> -738032.8169 | Z96: =SUMIF(Cálculos!$I$8:$QJ$8, Z$2, Cálculos!$I438:$QJ438) -> -536117.7017 | AA96: =SUMIF(Cálculos!$I$8:$QJ$8, AA$2, Cálculos!$I438:$QJ438) -> 0 | AB96: =SUMIF(Cálculos!$I$8:$QJ$8, AB$2, Cálculos!$I438:$QJ438) -> 0 | AC96: =SUMIF(Cálculos!$I$8:$QJ$8, AC$2, Cálculos!$I438:$QJ438) -> 0 | AD96: =SUMIF(Cálculos!$I$8:$QJ$8, AD$2, Cálculos!$I438:$QJ438) -> 0 | AE96: =SUMIF(Cálculos!$I$8:$QJ$8, AE$2, Cálculos!$I438:$QJ438) -> 0 | AF96: =SUMIF(Cálculos!$I$8:$QJ$8, AF$2, Cálculos!$I438:$QJ438) -> 0 | AG96: =SUMIF(Cálculos!$I$8:$QJ$8, AG$2, Cálculos!$I438:$QJ438) -> 0
C97: =Cálculos!C439 -> Pagamento de Juros – Dívida Sénior | D97: =Cálculos!E439 -> EUR | F97: -5226496.897 | G97: =SUMIF(Cálculos!$I$8:$QJ$8, G$2, Cálculos!$I439:$QJ439) -> 0 | H97: =SUMIF(Cálculos!$I$8:$QJ$8, H$2, Cálculos!$I439:$QJ439) -> 0 | I97: =SUMIF(Cálculos!$I$8:$QJ$8, I$2, Cálculos!$I439:$QJ439) -> -412743.328 | J97: =SUMIF(Cálculos!$I$8:$QJ$8, J$2, Cálculos!$I439:$QJ439) -> -480116.2154 | K97: =SUMIF(Cálculos!$I$8:$QJ$8, K$2, Cálculos!$I439:$QJ439) -> -461837.6991 | L97: =SUMIF(Cálculos!$I$8:$QJ$8, L$2, Cálculos!$I439:$QJ439) -> -442528.1308 | M97: =SUMIF(Cálculos!$I$8:$QJ$8, M$2, Cálculos!$I439:$QJ439) -> -422129.3511 | N97: =SUMIF(Cálculos!$I$8:$QJ$8, N$2, Cálculos!$I439:$QJ439) -> -400579.9198 | O97: =SUMIF(Cálculos!$I$8:$QJ$8, O$2, Cálculos!$I439:$QJ439) -> -377814.9313 | P97: =SUMIF(Cálculos!$I$8:$QJ$8, P$2, Cálculos!$I439:$QJ439) -> -353765.8184 | Q97: =SUMIF(Cálculos!$I$8:$QJ$8, Q$2, Cálculos!$I439:$QJ439) -> -328360.1466 | R97: =SUMIF(Cálculos!$I$8:$QJ$8, R$2, Cálculos!$I439:$QJ439) -> -301521.3951 | S97: =SUMIF(Cálculos!$I$8:$QJ$8, S$2, Cálculos!$I439:$QJ439) -> -273168.7272 | T97: =SUMIF(Cálculos!$I$8:$QJ$8, T$2, Cálculos!$I439:$QJ439) -> -243216.7458 | U97: =SUMIF(Cálculos!$I$8:$QJ$8, U$2, Cálculos!$I439:$QJ439) -> -211575.2373 | V97: =SUMIF(Cálculos!$I$8:$QJ$8, V$2, Cálculos!$I439:$QJ439) -> -178148.8991 | W97: =SUMIF(Cálculos!$I$8:$QJ$8, W$2, Cálculos!$I439:$QJ439) -> -142837.0525 | X97: =SUMIF(Cálculos!$I$8:$QJ$8, X$2, Cálculos!$I439:$QJ439) -> -105533.3403 | Y97: =SUMIF(Cálculos!$I$8:$QJ$8, Y$2, Cálculos!$I439:$QJ439) -> -66125.40551 | Z97: =SUMIF(Cálculos!$I$8:$QJ$8, Z$2, Cálculos!$I439:$QJ439) -> -24494.55342 | AA97: =SUMIF(Cálculos!$I$8:$QJ$8, AA$2, Cálculos!$I439:$QJ439) -> 0 | AB97: =SUMIF(Cálculos!$I$8:$QJ$8, AB$2, Cálculos!$I439:$QJ439) -> 0 | AC97: =SUMIF(Cálculos!$I$8:$QJ$8, AC$2, Cálculos!$I439:$QJ439) -> 0 | AD97: =SUMIF(Cálculos!$I$8:$QJ$8, AD$2, Cálculos!$I439:$QJ439) -> 0 | AE97: =SUMIF(Cálculos!$I$8:$QJ$8, AE$2, Cálculos!$I439:$QJ439) -> 0 | AF97: =SUMIF(Cálculos!$I$8:$QJ$8, AF$2, Cálculos!$I439:$QJ439) -> 0 | AG97: =SUMIF(Cálculos!$I$8:$QJ$8, AG$2, Cálculos!$I439:$QJ439) -> 0
C98: =Cálculos!C440 -> Pagamento de Juros – Dívida Subordinada | D98: =Cálculos!E440 -> EUR | F98: -5647121.092 | G98: =SUMIF(Cálculos!$I$8:$QJ$8, G$2, Cálculos!$I440:$QJ440) -> 0 | H98: =SUMIF(Cálculos!$I$8:$QJ$8, H$2, Cálculos!$I440:$QJ440) -> 0 | I98: =SUMIF(Cálculos!$I$8:$QJ$8, I$2, Cálculos!$I440:$QJ440) -> -453787.7847 | J98: =SUMIF(Cálculos!$I$8:$QJ$8, J$2, Cálculos!$I440:$QJ440) -> -534989.9178 | K98: =SUMIF(Cálculos!$I$8:$QJ$8, K$2, Cálculos!$I440:$QJ440) -> -524454.6471 | L98: =SUMIF(Cálculos!$I$8:$QJ$8, L$2, Cálculos!$I440:$QJ440) -> -512583.2403 | M98: =SUMIF(Cálculos!$I$8:$QJ$8, M$2, Cálculos!$I440:$QJ440) -> -499206.242 | N98: =SUMIF(Cálculos!$I$8:$QJ$8, N$2, Cálculos!$I440:$QJ440) -> -484132.7055 | O98: =SUMIF(Cálculos!$I$8:$QJ$8, O$2, Cálculos!$I440:$QJ440) -> -467147.4673 | P98: =SUMIF(Cálculos!$I$8:$QJ$8, P$2, Cálculos!$I440:$QJ440) -> -448008.0757 | Q98: =SUMIF(Cálculos!$I$8:$QJ$8, Q$2, Cálculos!$I440:$QJ440) -> -426441.3302 | R98: =SUMIF(Cálculos!$I$8:$QJ$8, R$2, Cálculos!$I440:$QJ440) -> -402139.3816 | S98: =SUMIF(Cálculos!$I$8:$QJ$8, S$2, Cálculos!$I440:$QJ440) -> -374755.3376 | T98: =SUMIF(Cálculos!$I$8:$QJ$8, T$2, Cálculos!$I440:$QJ440) -> -343898.3114 | U98: =SUMIF(Cálculos!$I$8:$QJ$8, U$2, Cálculos!$I440:$QJ440) -> -309127.8419 | V98: =SUMIF(Cálculos!$I$8:$QJ$8, V$2, Cálculos!$I440:$QJ440) -> -269947.6066 | W98: =SUMIF(Cálculos!$I$8:$QJ$8, W$2, Cálculos!$I440:$QJ440) -> -225798.3367 | X98: =SUMIF(Cálculos!$I$8:$QJ$8, X$2, Cálculos!$I440:$QJ440) -> -176049.8344 | Y98: =SUMIF(Cálculos!$I$8:$QJ$8, Y$2, Cálculos!$I440:$QJ440) -> -119991.9767 | Z98: =SUMIF(Cálculos!$I$8:$QJ$8, Z$2, Cálculos!$I440:$QJ440) -> -56824.57962 | AA98: =SUMIF(Cálculos!$I$8:$QJ$8, AA$2, Cálculos!$I440:$QJ440) -> 14354.02455 | AB98: =SUMIF(Cálculos!$I$8:$QJ$8, AB$2, Cálculos!$I440:$QJ440) -> 94559.85733 | AC98: =SUMIF(Cálculos!$I$8:$QJ$8, AC$2, Cálculos!$I440:$QJ440) -> 184937.7973 | AD98: =SUMIF(Cálculos!$I$8:$QJ$8, AD$2, Cálculos!$I440:$QJ440) -> 286777.9222 | AE98: =SUMIF(Cálculos!$I$8:$QJ$8, AE$2, Cálculos!$I440:$QJ440) -> 401533.924 | AF98: =SUMIF(Cálculos!$I$8:$QJ$8, AF$2, Cálculos!$I440:$QJ440) -> 0 | AG98: =SUMIF(Cálculos!$I$8:$QJ$8, AG$2, Cálculos!$I440:$QJ440) -> 0
C99: =Cálculos!C441 -> Dividendos | D99: =Cálculos!E441 -> EUR | F99: 0 | G99: =SUMIF(Cálculos!$I$8:$QJ$8, G$2, Cálculos!$I441:$QJ441) -> 0 | H99: =SUMIF(Cálculos!$I$8:$QJ$8, H$2, Cálculos!$I441:$QJ441) -> 0 | I99: =SUMIF(Cálculos!$I$8:$QJ$8, I$2, Cálculos!$I441:$QJ441) -> 0 | J99: =SUMIF(Cálculos!$I$8:$QJ$8, J$2, Cálculos!$I441:$QJ441) -> 0 | K99: =SUMIF(Cálculos!$I$8:$QJ$8, K$2, Cálculos!$I441:$QJ441) -> 0 | L99: =SUMIF(Cálculos!$I$8:$QJ$8, L$2, Cálculos!$I441:$QJ441) -> 0 | M99: =SUMIF(Cálculos!$I$8:$QJ$8, M$2, Cálculos!$I441:$QJ441) -> 0 | N99: =SUMIF(Cálculos!$I$8:$QJ$8, N$2, Cálculos!$I441:$QJ441) -> 0 | O99: =SUMIF(Cálculos!$I$8:$QJ$8, O$2, Cálculos!$I441:$QJ441) -> 0 | P99: =SUMIF(Cálculos!$I$8:$QJ$8, P$2, Cálculos!$I441:$QJ441) -> 0 | Q99: =SUMIF(Cálculos!$I$8:$QJ$8, Q$2, Cálculos!$I441:$QJ441) -> 0 | R99: =SUMIF(Cálculos!$I$8:$QJ$8, R$2, Cálculos!$I441:$QJ441) -> 0 | S99: =SUMIF(Cálculos!$I$8:$QJ$8, S$2, Cálculos!$I441:$QJ441) -> 0 | T99: =SUMIF(Cálculos!$I$8:$QJ$8, T$2, Cálculos!$I441:$QJ441) -> 0 | U99: =SUMIF(Cálculos!$I$8:$QJ$8, U$2, Cálculos!$I441:$QJ441) -> 0 | V99: =SUMIF(Cálculos!$I$8:$QJ$8, V$2, Cálculos!$I441:$QJ441) -> 0 | W99: =SUMIF(Cálculos!$I$8:$QJ$8, W$2, Cálculos!$I441:$QJ441) -> 0 | X99: =SUMIF(Cálculos!$I$8:$QJ$8, X$2, Cálculos!$I441:$QJ441) -> 0 | Y99: =SUMIF(Cálculos!$I$8:$QJ$8, Y$2, Cálculos!$I441:$QJ441) -> 0 | Z99: =SUMIF(Cálculos!$I$8:$QJ$8, Z$2, Cálculos!$I441:$QJ441) -> 0 | AA99: =SUMIF(Cálculos!$I$8:$QJ$8, AA$2, Cálculos!$I441:$QJ441) -> 0 | AB99: =SUMIF(Cálculos!$I$8:$QJ$8, AB$2, Cálculos!$I441:$QJ441) -> 0 | AC99: =SUMIF(Cálculos!$I$8:$QJ$8, AC$2, Cálculos!$I441:$QJ441) -> 0 | AD99: =SUMIF(Cálculos!$I$8:$QJ$8, AD$2, Cálculos!$I441:$QJ441) -> 0 | AE99: =SUMIF(Cálculos!$I$8:$QJ$8, AE$2, Cálculos!$I441:$QJ441) -> 0 | AF99: =SUMIF(Cálculos!$I$8:$QJ$8, AF$2, Cálculos!$I441:$QJ441) -> 0 | AG99: =SUMIF(Cálculos!$I$8:$QJ$8, AG$2, Cálculos!$I441:$QJ441) -> 0
C100: =Cálculos!C442 -> Variação da DSRA | D100: =Cálculos!E442 -> EUR | F100: 0 | G100: =SUMIF(Cálculos!$I$8:$QJ$8, G$2, Cálculos!$I442:$QJ442) -> 0 | H100: =SUMIF(Cálculos!$I$8:$QJ$8, H$2, Cálculos!$I442:$QJ442) -> -201039.5556 | I100: =SUMIF(Cálculos!$I$8:$QJ$8, I$2, Cálculos!$I442:$QJ442) -> -201039.5556 | J100: =SUMIF(Cálculos!$I$8:$QJ$8, J$2, Cálculos!$I442:$QJ442) -> 0 | K100: =SUMIF(Cálculos!$I$8:$QJ$8, K$2, Cálculos!$I442:$QJ442) -> 0 | L100: =SUMIF(Cálculos!$I$8:$QJ$8, L$2, Cálculos!$I442:$QJ442) -> 0 | M100: =SUMIF(Cálculos!$I$8:$QJ$8, M$2, Cálculos!$I442:$QJ442) -> 0 | N100: =SUMIF(Cálculos!$I$8:$QJ$8, N$2, Cálculos!$I442:$QJ442) -> 0 | O100: =SUMIF(Cálculos!$I$8:$QJ$8, O$2, Cálculos!$I442:$QJ442) -> 0 | P100: =SUMIF(Cálculos!$I$8:$QJ$8, P$2, Cálculos!$I442:$QJ442) -> 0 | Q100: =SUMIF(Cálculos!$I$8:$QJ$8, Q$2, Cálculos!$I442:$QJ442) -> 0 | R100: =SUMIF(Cálculos!$I$8:$QJ$8, R$2, Cálculos!$I442:$QJ442) -> 0 | S100: =SUMIF(Cálculos!$I$8:$QJ$8, S$2, Cálculos!$I442:$QJ442) -> 0 | T100: =SUMIF(Cálculos!$I$8:$QJ$8, T$2, Cálculos!$I442:$QJ442) -> 0 | U100: =SUMIF(Cálculos!$I$8:$QJ$8, U$2, Cálculos!$I442:$QJ442) -> 0 | V100: =SUMIF(Cálculos!$I$8:$QJ$8, V$2, Cálculos!$I442:$QJ442) -> 0 | W100: =SUMIF(Cálculos!$I$8:$QJ$8, W$2, Cálculos!$I442:$QJ442) -> 0 | X100: =SUMIF(Cálculos!$I$8:$QJ$8, X$2, Cálculos!$I442:$QJ442) -> 0 | Y100: =SUMIF(Cálculos!$I$8:$QJ$8, Y$2, Cálculos!$I442:$QJ442) -> 0 | Z100: =SUMIF(Cálculos!$I$8:$QJ$8, Z$2, Cálculos!$I442:$QJ442) -> 402079.1112 | AA100: =SUMIF(Cálculos!$I$8:$QJ$8, AA$2, Cálculos!$I442:$QJ442) -> 0 | AB100: =SUMIF(Cálculos!$I$8:$QJ$8, AB$2, Cálculos!$I442:$QJ442) -> 0 | AC100: =SUMIF(Cálculos!$I$8:$QJ$8, AC$2, Cálculos!$I442:$QJ442) -> 0 | AD100: =SUMIF(Cálculos!$I$8:$QJ$8, AD$2, Cálculos!$I442:$QJ442) -> 0 | AE100: =SUMIF(Cálculos!$I$8:$QJ$8, AE$2, Cálculos!$I442:$QJ442) -> 0 | AF100: =SUMIF(Cálculos!$I$8:$QJ$8, AF$2, Cálculos!$I442:$QJ442) -> 0 | AG100: =SUMIF(Cálculos!$I$8:$QJ$8, AG$2, Cálculos!$I442:$QJ442) -> 0
C101: =Cálculos!C443 -> Variação da MMRA | D101: =Cálculos!E443 -> EUR | F101: 0 | G101: =SUMIF(Cálculos!$I$8:$QJ$8, G$2, Cálculos!$I443:$QJ443) -> 0 | H101: =SUMIF(Cálculos!$I$8:$QJ$8, H$2, Cálculos!$I443:$QJ443) -> 0 | I101: =SUMIF(Cálculos!$I$8:$QJ$8, I$2, Cálculos!$I443:$QJ443) -> 0 | J101: =SUMIF(Cálculos!$I$8:$QJ$8, J$2, Cálculos!$I443:$QJ443) -> 0 | K101: =SUMIF(Cálculos!$I$8:$QJ$8, K$2, Cálculos!$I443:$QJ443) -> 0 | L101: =SUMIF(Cálculos!$I$8:$QJ$8, L$2, Cálculos!$I443:$QJ443) -> 0 | M101: =SUMIF(Cálculos!$I$8:$QJ$8, M$2, Cálculos!$I443:$QJ443) -> 0 | N101: =SUMIF(Cálculos!$I$8:$QJ$8, N$2, Cálculos!$I443:$QJ443) -> 0 | O101: =SUMIF(Cálculos!$I$8:$QJ$8, O$2, Cálculos!$I443:$QJ443) -> 0 | P101: =SUMIF(Cálculos!$I$8:$QJ$8, P$2, Cálculos!$I443:$QJ443) -> 0 | Q101: =SUMIF(Cálculos!$I$8:$QJ$8, Q$2, Cálculos!$I443:$QJ443) -> 0 | R101: =SUMIF(Cálculos!$I$8:$QJ$8, R$2, Cálculos!$I443:$QJ443) -> 0 | S101: =SUMIF(Cálculos!$I$8:$QJ$8, S$2, Cálculos!$I443:$QJ443) -> 0 | T101: =SUMIF(Cálculos!$I$8:$QJ$8, T$2, Cálculos!$I443:$QJ443) -> 0 | U101: =SUMIF(Cálculos!$I$8:$QJ$8, U$2, Cálculos!$I443:$QJ443) -> 0 | V101: =SUMIF(Cálculos!$I$8:$QJ$8, V$2, Cálculos!$I443:$QJ443) -> 0 | W101: =SUMIF(Cálculos!$I$8:$QJ$8, W$2, Cálculos!$I443:$QJ443) -> 0 | X101: =SUMIF(Cálculos!$I$8:$QJ$8, X$2, Cálculos!$I443:$QJ443) -> 0 | Y101: =SUMIF(Cálculos!$I$8:$QJ$8, Y$2, Cálculos!$I443:$QJ443) -> 0 | Z101: =SUMIF(Cálculos!$I$8:$QJ$8, Z$2, Cálculos!$I443:$QJ443) -> 0 | AA101: =SUMIF(Cálculos!$I$8:$QJ$8, AA$2, Cálculos!$I443:$QJ443) -> 0 | AB101: =SUMIF(Cálculos!$I$8:$QJ$8, AB$2, Cálculos!$I443:$QJ443) -> 0 | AC101: =SUMIF(Cálculos!$I$8:$QJ$8, AC$2, Cálculos!$I443:$QJ443) -> 0 | AD101: =SUMIF(Cálculos!$I$8:$QJ$8, AD$2, Cálculos!$I443:$QJ443) -> 0 | AE101: =SUMIF(Cálculos!$I$8:$QJ$8, AE$2, Cálculos!$I443:$QJ443) -> 0 | AF101: =SUMIF(Cálculos!$I$8:$QJ$8, AF$2, Cálculos!$I443:$QJ443) -> 0 | AG101: =SUMIF(Cálculos!$I$8:$QJ$8, AG$2, Cálculos!$I443:$QJ443) -> 0
C102: =Cálculos!C444 -> Financiamento Inicial do Fundo de Maneio | D102: =Cálculos!E444 -> EUR | F102: 0 | G102: =SUMIF(Cálculos!$I$8:$QJ$8, G$2, Cálculos!$I444:$QJ444) -> 0 | H102: =SUMIF(Cálculos!$I$8:$QJ$8, H$2, Cálculos!$I444:$QJ444) -> 0 | I102: =SUMIF(Cálculos!$I$8:$QJ$8, I$2, Cálculos!$I444:$QJ444) -> 0 | J102: =SUMIF(Cálculos!$I$8:$QJ$8, J$2, Cálculos!$I444:$QJ444) -> 0 | K102: =SUMIF(Cálculos!$I$8:$QJ$8, K$2, Cálculos!$I444:$QJ444) -> 0 | L102: =SUMIF(Cálculos!$I$8:$QJ$8, L$2, Cálculos!$I444:$QJ444) -> 0 | M102: =SUMIF(Cálculos!$I$8:$QJ$8, M$2, Cálculos!$I444:$QJ444) -> 0 | N102: =SUMIF(Cálculos!$I$8:$QJ$8, N$2, Cálculos!$I444:$QJ444) -> 0 | O102: =SUMIF(Cálculos!$I$8:$QJ$8, O$2, Cálculos!$I444:$QJ444) -> 0 | P102: =SUMIF(Cálculos!$I$8:$QJ$8, P$2, Cálculos!$I444:$QJ444) -> 0 | Q102: =SUMIF(Cálculos!$I$8:$QJ$8, Q$2, Cálculos!$I444:$QJ444) -> 0 | R102: =SUMIF(Cálculos!$I$8:$QJ$8, R$2, Cálculos!$I444:$QJ444) -> 0 | S102: =SUMIF(Cálculos!$I$8:$QJ$8, S$2, Cálculos!$I444:$QJ444) -> 0 | T102: =SUMIF(Cálculos!$I$8:$QJ$8, T$2, Cálculos!$I444:$QJ444) -> 0 | U102: =SUMIF(Cálculos!$I$8:$QJ$8, U$2, Cálculos!$I444:$QJ444) -> 0 | V102: =SUMIF(Cálculos!$I$8:$QJ$8, V$2, Cálculos!$I444:$QJ444) -> 0 | W102: =SUMIF(Cálculos!$I$8:$QJ$8, W$2, Cálculos!$I444:$QJ444) -> 0 | X102: =SUMIF(Cálculos!$I$8:$QJ$8, X$2, Cálculos!$I444:$QJ444) -> 0 | Y102: =SUMIF(Cálculos!$I$8:$QJ$8, Y$2, Cálculos!$I444:$QJ444) -> 0 | Z102: =SUMIF(Cálculos!$I$8:$QJ$8, Z$2, Cálculos!$I444:$QJ444) -> 0 | AA102: =SUMIF(Cálculos!$I$8:$QJ$8, AA$2, Cálculos!$I444:$QJ444) -> 0 | AB102: =SUMIF(Cálculos!$I$8:$QJ$8, AB$2, Cálculos!$I444:$QJ444) -> 0 | AC102: =SUMIF(Cálculos!$I$8:$QJ$8, AC$2, Cálculos!$I444:$QJ444) -> 0 | AD102: =SUMIF(Cálculos!$I$8:$QJ$8, AD$2, Cálculos!$I444:$QJ444) -> 0 | AE102: =SUMIF(Cálculos!$I$8:$QJ$8, AE$2, Cálculos!$I444:$QJ444) -> 0 | AF102: =SUMIF(Cálculos!$I$8:$QJ$8, AF$2, Cálculos!$I444:$QJ444) -> 0 | AG102: =SUMIF(Cálculos!$I$8:$QJ$8, AG$2, Cálculos!$I444:$QJ444) -> 0
C103: =Cálculos!C445 -> Juros das Contas de Reserva | D103: =Cálculos!E445 -> EUR | F103: 0 | G103: =SUMIF(Cálculos!$I$8:$QJ$8, G$2, Cálculos!$I445:$QJ445) -> 0 | H103: =SUMIF(Cálculos!$I$8:$QJ$8, H$2, Cálculos!$I445:$QJ445) -> 0 | I103: =SUMIF(Cálculos!$I$8:$QJ$8, I$2, Cálculos!$I445:$QJ445) -> 0 | J103: =SUMIF(Cálculos!$I$8:$QJ$8, J$2, Cálculos!$I445:$QJ445) -> 0 | K103: =SUMIF(Cálculos!$I$8:$QJ$8, K$2, Cálculos!$I445:$QJ445) -> 0 | L103: =SUMIF(Cálculos!$I$8:$QJ$8, L$2, Cálculos!$I445:$QJ445) -> 0 | M103: =SUMIF(Cálculos!$I$8:$QJ$8, M$2, Cálculos!$I445:$QJ445) -> 0 | N103: =SUMIF(Cálculos!$I$8:$QJ$8, N$2, Cálculos!$I445:$QJ445) -> 0 | O103: =SUMIF(Cálculos!$I$8:$QJ$8, O$2, Cálculos!$I445:$QJ445) -> 0 | P103: =SUMIF(Cálculos!$I$8:$QJ$8, P$2, Cálculos!$I445:$QJ445) -> 0 | Q103: =SUMIF(Cálculos!$I$8:$QJ$8, Q$2, Cálculos!$I445:$QJ445) -> 0 | R103: =SUMIF(Cálculos!$I$8:$QJ$8, R$2, Cálculos!$I445:$QJ445) -> 0 | S103: =SUMIF(Cálculos!$I$8:$QJ$8, S$2, Cálculos!$I445:$QJ445) -> 0 | T103: =SUMIF(Cálculos!$I$8:$QJ$8, T$2, Cálculos!$I445:$QJ445) -> 0 | U103: =SUMIF(Cálculos!$I$8:$QJ$8, U$2, Cálculos!$I445:$QJ445) -> 0 | V103: =SUMIF(Cálculos!$I$8:$QJ$8, V$2, Cálculos!$I445:$QJ445) -> 0 | W103: =SUMIF(Cálculos!$I$8:$QJ$8, W$2, Cálculos!$I445:$QJ445) -> 0 | X103: =SUMIF(Cálculos!$I$8:$QJ$8, X$2, Cálculos!$I445:$QJ445) -> 0 | Y103: =SUMIF(Cálculos!$I$8:$QJ$8, Y$2, Cálculos!$I445:$QJ445) -> 0 | Z103: =SUMIF(Cálculos!$I$8:$QJ$8, Z$2, Cálculos!$I445:$QJ445) -> 0 | AA103: =SUMIF(Cálculos!$I$8:$QJ$8, AA$2, Cálculos!$I445:$QJ445) -> 0 | AB103: =SUMIF(Cálculos!$I$8:$QJ$8, AB$2, Cálculos!$I445:$QJ445) -> 0 | AC103: =SUMIF(Cálculos!$I$8:$QJ$8, AC$2, Cálculos!$I445:$QJ445) -> 0 | AD103: =SUMIF(Cálculos!$I$8:$QJ$8, AD$2, Cálculos!$I445:$QJ445) -> 0 | AE103: =SUMIF(Cálculos!$I$8:$QJ$8, AE$2, Cálculos!$I445:$QJ445) -> 0 | AF103: =SUMIF(Cálculos!$I$8:$QJ$8, AF$2, Cálculos!$I445:$QJ445) -> 0 | AG103: =SUMIF(Cálculos!$I$8:$QJ$8, AG$2, Cálculos!$I445:$QJ445) -> 0
C104: =Cálculos!C446 -> Fluxos de Caixa de Financiamento | D104: =Cálculos!E446 -> EUR | F104: -6177383.573 | G104: =SUM(G90:G103) -> 9250000 | H104: 8548960.444 | I104: -1313607.161 | J104: -1422217.474 | K104: -1422217.474 | L104: -1422217.474 | M104: -1422217.474 | N104: -1422217.474 | O104: -1422217.474 | P104: -1422217.474 | Q104: -1422217.474 | R104: -1422217.474 | S104: -1422217.474 | T104: -1422217.474 | U104: -1422217.474 | V104: -1422217.474 | W104: -1422217.474 | X104: -1422217.474 | Y104: -1422217.474 | Z104: -776592.3953 | AA104: -618059.2514 | AB104: -618059.2514 | AC104: -618059.2514 | AD104: -618059.2514 | AE104: 3341572.127 | AF104: 0 | AG104: 0
B106: Variação Líquida de Caixa | D106: =Cálculos!E448 -> EUR | F106: =SUM(G106:AR106) -> 7448050.388 | G106: =G83+G87+G104 -> 27631.18238 | H106: 532137.9533 | I106: 218426.3147 | J106: 317765.3362 | K106: 299563.6696 | L106: 273675.3274 | M106: 245013.09 | N106: 217983.5748 | O106: 190186.9412 | P106: 162128.0297 | Q106: 133810.0358 | R106: 106397.4051 | S106: 78715.6179 | T106: 51149.39119 | U106: 23303.68243 | V106: -3657.029965 | W106: -30907.67287 | X106: -58063.65627 | Y106: -85520.29916 | Z106: 525733.988 | AA106: -1788818.816 | AB106: 505765.9361 | AC106: 414811.686 | AD106: 375807.1658 | AE106: 4293986.067 | AF106: 997739.7514 | AG106: -576714.2832
B108: Posição de Caixa
C109: =Cálculos!C451 -> Início do Período | D109: =Cálculos!E451 -> EUR | G109: =F110 -> 0 | H109: =G110 -> 27631.18238 | I109: 559769.1356 | J109: 778195.4503 | K109: 1095960.787 | L109: =K110 -> 1395524.456 | M109: 1669199.783 | N109: 1914212.874 | O109: 2132196.448 | P109: 2322383.39 | Q109: 2484511.419 | R109: 2618321.455 | S109: 2724718.86 | T109: 2803434.478 | U109: 2854583.869 | V109: 2877887.552 | W109: 2874230.522 | X109: 2843322.849 | Y109: 2785259.193 | Z109: 2699738.893 | AA109: 3225472.881 | AB109: 1436654.066 | AC109: 1942420.002 | AD109: 2357231.688 | AE109: =AD110 -> 2733038.854 | AF109: 7027024.92 | AG109: 8024764.671
C110: =Cálculos!C452 -> Fim do Período | D110: =Cálculos!E452 -> EUR | F110: 0 | G110: =G106+G109 -> 27631.18238 | H110: =H106+H109 -> 559769.1356 | I110: 778195.4503 | J110: 1095960.787 | K110: 1395524.456 | L110: 1669199.783 | M110: 1914212.874 | N110: 2132196.448 | O110: 2322383.39 | P110: 2484511.419 | Q110: 2618321.455 | R110: 2724718.86 | S110: 2803434.478 | T110: 2854583.869 | U110: 2877887.552 | V110: 2874230.522 | W110: 2843322.849 | X110: 2785259.193 | Y110: 2699738.893 | Z110: 3225472.881 | AA110: 1436654.066 | AB110: 1942420.002 | AC110: 2357231.688 | AD110: 2733038.854 | AE110: =AE106+AE109 -> 7027024.92 | AF110: 8024764.671 | AG110: 7448050.388
A112: · | B112: Cascata de Caixa | D112: Unidade
C114: =Cálculos!C459 -> Entrada de Capital Próprio | D114: =Cálculos!E459 -> EUR | F114: =SUM(G114:AR114) -> 4500000 | G114: =SUMIF(Cálculos!$I$8:$QJ$8, G$2, Cálculos!$I459:$QJ459) -> 4500000 | H114: =SUMIF(Cálculos!$I$8:$QJ$8, H$2, Cálculos!$I459:$QJ459) -> 0 | I114: =SUMIF(Cálculos!$I$8:$QJ$8, I$2, Cálculos!$I459:$QJ459) -> 0 | J114: =SUMIF(Cálculos!$I$8:$QJ$8, J$2, Cálculos!$I459:$QJ459) -> 0 | K114: =SUMIF(Cálculos!$I$8:$QJ$8, K$2, Cálculos!$I459:$QJ459) -> 0 | L114: =SUMIF(Cálculos!$I$8:$QJ$8, L$2, Cálculos!$I459:$QJ459) -> 0 | M114: =SUMIF(Cálculos!$I$8:$QJ$8, M$2, Cálculos!$I459:$QJ459) -> 0 | N114: =SUMIF(Cálculos!$I$8:$QJ$8, N$2, Cálculos!$I459:$QJ459) -> 0 | O114: =SUMIF(Cálculos!$I$8:$QJ$8, O$2, Cálculos!$I459:$QJ459) -> 0 | P114: =SUMIF(Cálculos!$I$8:$QJ$8, P$2, Cálculos!$I459:$QJ459) -> 0 | Q114: =SUMIF(Cálculos!$I$8:$QJ$8, Q$2, Cálculos!$I459:$QJ459) -> 0 | R114: =SUMIF(Cálculos!$I$8:$QJ$8, R$2, Cálculos!$I459:$QJ459) -> 0 | S114: =SUMIF(Cálculos!$I$8:$QJ$8, S$2, Cálculos!$I459:$QJ459) -> 0 | T114: =SUMIF(Cálculos!$I$8:$QJ$8, T$2, Cálculos!$I459:$QJ459) -> 0 | U114: =SUMIF(Cálculos!$I$8:$QJ$8, U$2, Cálculos!$I459:$QJ459) -> 0 | V114: =SUMIF(Cálculos!$I$8:$QJ$8, V$2, Cálculos!$I459:$QJ459) -> 0 | W114: =SUMIF(Cálculos!$I$8:$QJ$8, W$2, Cálculos!$I459:$QJ459) -> 0 | X114: =SUMIF(Cálculos!$I$8:$QJ$8, X$2, Cálculos!$I459:$QJ459) -> 0 | Y114: =SUMIF(Cálculos!$I$8:$QJ$8, Y$2, Cálculos!$I459:$QJ459) -> 0 | Z114: =SUMIF(Cálculos!$I$8:$QJ$8, Z$2, Cálculos!$I459:$QJ459) -> 0 | AA114: =SUMIF(Cálculos!$I$8:$QJ$8, AA$2, Cálculos!$I459:$QJ459) -> 0 | AB114: =SUMIF(Cálculos!$I$8:$QJ$8, AB$2, Cálculos!$I459:$QJ459) -> 0 | AC114: =SUMIF(Cálculos!$I$8:$QJ$8, AC$2, Cálculos!$I459:$QJ459) -> 0 | AD114: =SUMIF(Cálculos!$I$8:$QJ$8, AD$2, Cálculos!$I459:$QJ459) -> 0 | AE114: =SUMIF(Cálculos!$I$8:$QJ$8, AE$2, Cálculos!$I459:$QJ459) -> 0 | AF114: =SUMIF(Cálculos!$I$8:$QJ$8, AF$2, Cálculos!$I459:$QJ459) -> 0 | AG114: =SUMIF(Cálculos!$I$8:$QJ$8, AG$2, Cálculos!$I459:$QJ459) -> 0
C115: =Cálculos!C460 -> Juros das Contas de Reserva | D115: =Cálculos!E460 -> EUR | F115: 0 | G115: =SUMIF(Cálculos!$I$8:$QJ$8, G$2, Cálculos!$I460:$QJ460) -> 0 | H115: =SUMIF(Cálculos!$I$8:$QJ$8, H$2, Cálculos!$I460:$QJ460) -> 0 | I115: =SUMIF(Cálculos!$I$8:$QJ$8, I$2, Cálculos!$I460:$QJ460) -> 0 | J115: =SUMIF(Cálculos!$I$8:$QJ$8, J$2, Cálculos!$I460:$QJ460) -> 0 | K115: =SUMIF(Cálculos!$I$8:$QJ$8, K$2, Cálculos!$I460:$QJ460) -> 0 | L115: =SUMIF(Cálculos!$I$8:$QJ$8, L$2, Cálculos!$I460:$QJ460) -> 0 | M115: =SUMIF(Cálculos!$I$8:$QJ$8, M$2, Cálculos!$I460:$QJ460) -> 0 | N115: =SUMIF(Cálculos!$I$8:$QJ$8, N$2, Cálculos!$I460:$QJ460) -> 0 | O115: =SUMIF(Cálculos!$I$8:$QJ$8, O$2, Cálculos!$I460:$QJ460) -> 0 | P115: =SUMIF(Cálculos!$I$8:$QJ$8, P$2, Cálculos!$I460:$QJ460) -> 0 | Q115: =SUMIF(Cálculos!$I$8:$QJ$8, Q$2, Cálculos!$I460:$QJ460) -> 0 | R115: =SUMIF(Cálculos!$I$8:$QJ$8, R$2, Cálculos!$I460:$QJ460) -> 0 | S115: =SUMIF(Cálculos!$I$8:$QJ$8, S$2, Cálculos!$I460:$QJ460) -> 0 | T115: =SUMIF(Cálculos!$I$8:$QJ$8, T$2, Cálculos!$I460:$QJ460) -> 0 | U115: =SUMIF(Cálculos!$I$8:$QJ$8, U$2, Cálculos!$I460:$QJ460) -> 0 | V115: =SUMIF(Cálculos!$I$8:$QJ$8, V$2, Cálculos!$I460:$QJ460) -> 0 | W115: =SUMIF(Cálculos!$I$8:$QJ$8, W$2, Cálculos!$I460:$QJ460) -> 0 | X115: =SUMIF(Cálculos!$I$8:$QJ$8, X$2, Cálculos!$I460:$QJ460) -> 0 | Y115: =SUMIF(Cálculos!$I$8:$QJ$8, Y$2, Cálculos!$I460:$QJ460) -> 0 | Z115: =SUMIF(Cálculos!$I$8:$QJ$8, Z$2, Cálculos!$I460:$QJ460) -> 0 | AA115: =SUMIF(Cálculos!$I$8:$QJ$8, AA$2, Cálculos!$I460:$QJ460) -> 0 | AB115: =SUMIF(Cálculos!$I$8:$QJ$8, AB$2, Cálculos!$I460:$QJ460) -> 0 | AC115: =SUMIF(Cálculos!$I$8:$QJ$8, AC$2, Cálculos!$I460:$QJ460) -> 0 | AD115: =SUMIF(Cálculos!$I$8:$QJ$8, AD$2, Cálculos!$I460:$QJ460) -> 0 | AE115: =SUMIF(Cálculos!$I$8:$QJ$8, AE$2, Cálculos!$I460:$QJ460) -> 0 | AF115: =SUMIF(Cálculos!$I$8:$QJ$8, AF$2, Cálculos!$I460:$QJ460) -> 0 | AG115: =SUMIF(Cálculos!$I$8:$QJ$8, AG$2, Cálculos!$I460:$QJ460) -> 0
C116: =Cálculos!C461 -> Caixa Disponível para Serviço da Dívida | D116: =Cálculos!E461 -> EUR | F116: 37826362.76 | G116: =SUMIF(Cálculos!$I$8:$QJ$8, G$2, Cálculos!$I461:$QJ461) -> 4331825.284 | H116: =SUMIF(Cálculos!$I$8:$QJ$8, H$2, Cálculos!$I461:$QJ461) -> 168174.7158 | I116: =SUMIF(Cálculos!$I$8:$QJ$8, I$2, Cálculos!$I461:$QJ461) -> 1532033.476 | J116: =SUMIF(Cálculos!$I$8:$QJ$8, J$2, Cálculos!$I461:$QJ461) -> 1739982.81 | K116: =SUMIF(Cálculos!$I$8:$QJ$8, K$2, Cálculos!$I461:$QJ461) -> 1721781.143 | L116: =SUMIF(Cálculos!$I$8:$QJ$8, L$2, Cálculos!$I461:$QJ461) -> 1695892.801 | M116: =SUMIF(Cálculos!$I$8:$QJ$8, M$2, Cálculos!$I461:$QJ461) -> 1667230.564 | N116: =SUMIF(Cálculos!$I$8:$QJ$8, N$2, Cálculos!$I461:$QJ461) -> 1640201.049 | O116: =SUMIF(Cálculos!$I$8:$QJ$8, O$2, Cálculos!$I461:$QJ461) -> 1612404.415 | P116: =SUMIF(Cálculos!$I$8:$QJ$8, P$2, Cálculos!$I461:$QJ461) -> 1584345.504 | Q116: =SUMIF(Cálculos!$I$8:$QJ$8, Q$2, Cálculos!$I461:$QJ461) -> 1556027.51 | R116: =SUMIF(Cálculos!$I$8:$QJ$8, R$2, Cálculos!$I461:$QJ461) -> 1528614.879 | S116: =SUMIF(Cálculos!$I$8:$QJ$8, S$2, Cálculos!$I461:$QJ461) -> 1500933.092 | T116: =SUMIF(Cálculos!$I$8:$QJ$8, T$2, Cálculos!$I461:$QJ461) -> 1473366.865 | U116: =SUMIF(Cálculos!$I$8:$QJ$8, U$2, Cálculos!$I461:$QJ461) -> 1445521.156 | V116: =SUMIF(Cálculos!$I$8:$QJ$8, V$2, Cálculos!$I461:$QJ461) -> 1418560.444 | W116: =SUMIF(Cálculos!$I$8:$QJ$8, W$2, Cálculos!$I461:$QJ461) -> 1391309.801 | X116: =SUMIF(Cálculos!$I$8:$QJ$8, X$2, Cálculos!$I461:$QJ461) -> 1364153.818 | Y116: =SUMIF(Cálculos!$I$8:$QJ$8, Y$2, Cálculos!$I461:$QJ461) -> 1336697.175 | Z116: =SUMIF(Cálculos!$I$8:$QJ$8, Z$2, Cálculos!$I461:$QJ461) -> 1310104.343 | AA116: =SUMIF(Cálculos!$I$8:$QJ$8, AA$2, Cálculos!$I461:$QJ461) -> 1283199.964 | AB116: =SUMIF(Cálculos!$I$8:$QJ$8, AB$2, Cálculos!$I461:$QJ461) -> 1123825.188 | AC116: =SUMIF(Cálculos!$I$8:$QJ$8, AC$2, Cálculos!$I461:$QJ461) -> 1032870.937 | AD116: =SUMIF(Cálculos!$I$8:$QJ$8, AD$2, Cálculos!$I461:$QJ461) -> 993866.4172 | AE116: =SUMIF(Cálculos!$I$8:$QJ$8, AE$2, Cálculos!$I461:$QJ461) -> 952413.9395 | AF116: =SUMIF(Cálculos!$I$8:$QJ$8, AF$2, Cálculos!$I461:$QJ461) -> 997739.7514 | AG116: =SUMIF(Cálculos!$I$8:$QJ$8, AG$2, Cálculos!$I461:$QJ461) -> -576714.2832
C117: =Cálculos!C462 -> Menos: Juros da Dívida Sénior | D117: =Cálculos!E462 -> EUR | F117: -5226496.897 | G117: =SUMIF(Cálculos!$I$8:$QJ$8, G$2, Cálculos!$I462:$QJ462) -> 0 | H117: =SUMIF(Cálculos!$I$8:$QJ$8, H$2, Cálculos!$I462:$QJ462) -> 0 | I117: =SUMIF(Cálculos!$I$8:$QJ$8, I$2, Cálculos!$I462:$QJ462) -> -412743.328 | J117: =SUMIF(Cálculos!$I$8:$QJ$8, J$2, Cálculos!$I462:$QJ462) -> -480116.2154 | K117: =SUMIF(Cálculos!$I$8:$QJ$8, K$2, Cálculos!$I462:$QJ462) -> -461837.6991 | L117: =SUMIF(Cálculos!$I$8:$QJ$8, L$2, Cálculos!$I462:$QJ462) -> -442528.1308 | M117: =SUMIF(Cálculos!$I$8:$QJ$8, M$2, Cálculos!$I462:$QJ462) -> -422129.3511 | N117: =SUMIF(Cálculos!$I$8:$QJ$8, N$2, Cálculos!$I462:$QJ462) -> -400579.9198 | O117: =SUMIF(Cálculos!$I$8:$QJ$8, O$2, Cálculos!$I462:$QJ462) -> -377814.9313 | P117: =SUMIF(Cálculos!$I$8:$QJ$8, P$2, Cálculos!$I462:$QJ462) -> -353765.8184 | Q117: =SUMIF(Cálculos!$I$8:$QJ$8, Q$2, Cálculos!$I462:$QJ462) -> -328360.1466 | R117: =SUMIF(Cálculos!$I$8:$QJ$8, R$2, Cálculos!$I462:$QJ462) -> -301521.3951 | S117: =SUMIF(Cálculos!$I$8:$QJ$8, S$2, Cálculos!$I462:$QJ462) -> -273168.7272 | T117: =SUMIF(Cálculos!$I$8:$QJ$8, T$2, Cálculos!$I462:$QJ462) -> -243216.7458 | U117: =SUMIF(Cálculos!$I$8:$QJ$8, U$2, Cálculos!$I462:$QJ462) -> -211575.2373 | V117: =SUMIF(Cálculos!$I$8:$QJ$8, V$2, Cálculos!$I462:$QJ462) -> -178148.8991 | W117: =SUMIF(Cálculos!$I$8:$QJ$8, W$2, Cálculos!$I462:$QJ462) -> -142837.0525 | X117: =SUMIF(Cálculos!$I$8:$QJ$8, X$2, Cálculos!$I462:$QJ462) -> -105533.3403 | Y117: =SUMIF(Cálculos!$I$8:$QJ$8, Y$2, Cálculos!$I462:$QJ462) -> -66125.40551 | Z117: =SUMIF(Cálculos!$I$8:$QJ$8, Z$2, Cálculos!$I462:$QJ462) -> -24494.55342 | AA117: =SUMIF(Cálculos!$I$8:$QJ$8, AA$2, Cálculos!$I462:$QJ462) -> 0 | AB117: =SUMIF(Cálculos!$I$8:$QJ$8, AB$2, Cálculos!$I462:$QJ462) -> 0 | AC117: =SUMIF(Cálculos!$I$8:$QJ$8, AC$2, Cálculos!$I462:$QJ462) -> 0 | AD117: =SUMIF(Cálculos!$I$8:$QJ$8, AD$2, Cálculos!$I462:$QJ462) -> 0 | AE117: =SUMIF(Cálculos!$I$8:$QJ$8, AE$2, Cálculos!$I462:$QJ462) -> 0 | AF117: =SUMIF(Cálculos!$I$8:$QJ$8, AF$2, Cálculos!$I462:$QJ462) -> 0 | AG117: =SUMIF(Cálculos!$I$8:$QJ$8, AG$2, Cálculos!$I462:$QJ462) -> 0
C118: =Cálculos!C463 -> Mais: Utilização de Dívida Sénior | D118: =Cálculos!E463 -> EUR | F118: 9000000 | G118: =SUMIF(Cálculos!$I$8:$QJ$8, G$2, Cálculos!$I463:$QJ463) -> 2500000 | H118: =SUMIF(Cálculos!$I$8:$QJ$8, H$2, Cálculos!$I463:$QJ463) -> 6500000 | I118: =SUMIF(Cálculos!$I$8:$QJ$8, I$2, Cálculos!$I463:$QJ463) -> 0 | J118: =SUMIF(Cálculos!$I$8:$QJ$8, J$2, Cálculos!$I463:$QJ463) -> 0 | K118: =SUMIF(Cálculos!$I$8:$QJ$8, K$2, Cálculos!$I463:$QJ463) -> 0 | L118: =SUMIF(Cálculos!$I$8:$QJ$8, L$2, Cálculos!$I463:$QJ463) -> 0 | M118: =SUMIF(Cálculos!$I$8:$QJ$8, M$2, Cálculos!$I463:$QJ463) -> 0 | N118: =SUMIF(Cálculos!$I$8:$QJ$8, N$2, Cálculos!$I463:$QJ463) -> 0 | O118: =SUMIF(Cálculos!$I$8:$QJ$8, O$2, Cálculos!$I463:$QJ463) -> 0 | P118: =SUMIF(Cálculos!$I$8:$QJ$8, P$2, Cálculos!$I463:$QJ463) -> 0 | Q118: =SUMIF(Cálculos!$I$8:$QJ$8, Q$2, Cálculos!$I463:$QJ463) -> 0 | R118: =SUMIF(Cálculos!$I$8:$QJ$8, R$2, Cálculos!$I463:$QJ463) -> 0 | S118: =SUMIF(Cálculos!$I$8:$QJ$8, S$2, Cálculos!$I463:$QJ463) -> 0 | T118: =SUMIF(Cálculos!$I$8:$QJ$8, T$2, Cálculos!$I463:$QJ463) -> 0 | U118: =SUMIF(Cálculos!$I$8:$QJ$8, U$2, Cálculos!$I463:$QJ463) -> 0 | V118: =SUMIF(Cálculos!$I$8:$QJ$8, V$2, Cálculos!$I463:$QJ463) -> 0 | W118: =SUMIF(Cálculos!$I$8:$QJ$8, W$2, Cálculos!$I463:$QJ463) -> 0 | X118: =SUMIF(Cálculos!$I$8:$QJ$8, X$2, Cálculos!$I463:$QJ463) -> 0 | Y118: =SUMIF(Cálculos!$I$8:$QJ$8, Y$2, Cálculos!$I463:$QJ463) -> 0 | Z118: =SUMIF(Cálculos!$I$8:$QJ$8, Z$2, Cálculos!$I463:$QJ463) -> 0 | AA118: =SUMIF(Cálculos!$I$8:$QJ$8, AA$2, Cálculos!$I463:$QJ463) -> 0 | AB118: =SUMIF(Cálculos!$I$8:$QJ$8, AB$2, Cálculos!$I463:$QJ463) -> 0 | AC118: =SUMIF(Cálculos!$I$8:$QJ$8, AC$2, Cálculos!$I463:$QJ463) -> 0 | AD118: =SUMIF(Cálculos!$I$8:$QJ$8, AD$2, Cálculos!$I463:$QJ463) -> 0 | AE118: =SUMIF(Cálculos!$I$8:$QJ$8, AE$2, Cálculos!$I463:$QJ463) -> 0 | AF118: =SUMIF(Cálculos!$I$8:$QJ$8, AF$2, Cálculos!$I463:$QJ463) -> 0 | AG118: =SUMIF(Cálculos!$I$8:$QJ$8, AG$2, Cálculos!$I463:$QJ463) -> 0
C119: =Cálculos!C464 -> Menos: Reembolso de Capital – Dívida Sénior | D119: =Cálculos!E464 -> EUR | F119: -8803765.584 | G119: =SUMIF(Cálculos!$I$8:$QJ$8, G$2, Cálculos!$I464:$QJ464) -> 0 | H119: =SUMIF(Cálculos!$I$8:$QJ$8, H$2, Cálculos!$I464:$QJ464) -> 0 | I119: =SUMIF(Cálculos!$I$8:$QJ$8, I$2, Cálculos!$I464:$QJ464) -> -190375.3389 | J119: =SUMIF(Cálculos!$I$8:$QJ$8, J$2, Cálculos!$I464:$QJ464) -> -324042.0071 | K119: =SUMIF(Cálculos!$I$8:$QJ$8, K$2, Cálculos!$I464:$QJ464) -> -342320.5234 | L119: =SUMIF(Cálculos!$I$8:$QJ$8, L$2, Cálculos!$I464:$QJ464) -> -361630.0917 | M119: =SUMIF(Cálculos!$I$8:$QJ$8, M$2, Cálculos!$I464:$QJ464) -> -382028.8714 | N119: =SUMIF(Cálculos!$I$8:$QJ$8, N$2, Cálculos!$I464:$QJ464) -> -403578.3026 | O119: =SUMIF(Cálculos!$I$8:$QJ$8, O$2, Cálculos!$I464:$QJ464) -> -426343.2912 | P119: =SUMIF(Cálculos!$I$8:$QJ$8, P$2, Cálculos!$I464:$QJ464) -> -450392.404 | Q119: =SUMIF(Cálculos!$I$8:$QJ$8, Q$2, Cálculos!$I464:$QJ464) -> -475798.0759 | R119: =SUMIF(Cálculos!$I$8:$QJ$8, R$2, Cálculos!$I464:$QJ464) -> -502636.8273 | S119: =SUMIF(Cálculos!$I$8:$QJ$8, S$2, Cálculos!$I464:$QJ464) -> -530989.4953 | T119: =SUMIF(Cálculos!$I$8:$QJ$8, T$2, Cálculos!$I464:$QJ464) -> -560941.4766 | U119: =SUMIF(Cálculos!$I$8:$QJ$8, U$2, Cálculos!$I464:$QJ464) -> -592582.9851 | V119: =SUMIF(Cálculos!$I$8:$QJ$8, V$2, Cálculos!$I464:$QJ464) -> -626009.3234 | W119: =SUMIF(Cálculos!$I$8:$QJ$8, W$2, Cálculos!$I464:$QJ464) -> -661321.1699 | X119: =SUMIF(Cálculos!$I$8:$QJ$8, X$2, Cálculos!$I464:$QJ464) -> -698624.8821 | Y119: =SUMIF(Cálculos!$I$8:$QJ$8, Y$2, Cálculos!$I464:$QJ464) -> -738032.8169 | Z119: =SUMIF(Cálculos!$I$8:$QJ$8, Z$2, Cálculos!$I464:$QJ464) -> -536117.7017 | AA119: =SUMIF(Cálculos!$I$8:$QJ$8, AA$2, Cálculos!$I464:$QJ464) -> 0 | AB119: =SUMIF(Cálculos!$I$8:$QJ$8, AB$2, Cálculos!$I464:$QJ464) -> 0 | AC119: =SUMIF(Cálculos!$I$8:$QJ$8, AC$2, Cálculos!$I464:$QJ464) -> 0 | AD119: =SUMIF(Cálculos!$I$8:$QJ$8, AD$2, Cálculos!$I464:$QJ464) -> 0 | AE119: =SUMIF(Cálculos!$I$8:$QJ$8, AE$2, Cálculos!$I464:$QJ464) -> 0 | AF119: =SUMIF(Cálculos!$I$8:$QJ$8, AF$2, Cálculos!$I464:$QJ464) -> 0 | AG119: =SUMIF(Cálculos!$I$8:$QJ$8, AG$2, Cálculos!$I464:$QJ464) -> 0
C120: =Cálculos!C465 -> Caixa Disponível para Contas de Reserva | D120: =Cálculos!E465 -> EUR | F120: 32796100.28 | G120: =SUMIF(Cálculos!$I$8:$QJ$8, G$2, Cálculos!$I465:$QJ465) -> 6831825.284 | H120: =SUMIF(Cálculos!$I$8:$QJ$8, H$2, Cálculos!$I465:$QJ465) -> 6668174.716 | I120: =SUMIF(Cálculos!$I$8:$QJ$8, I$2, Cálculos!$I465:$QJ465) -> 928914.8089 | J120: =SUMIF(Cálculos!$I$8:$QJ$8, J$2, Cálculos!$I465:$QJ465) -> 935824.5877 | K120: =SUMIF(Cálculos!$I$8:$QJ$8, K$2, Cálculos!$I465:$QJ465) -> 917622.921 | L120: =SUMIF(Cálculos!$I$8:$QJ$8, L$2, Cálculos!$I465:$QJ465) -> 891734.5788 | M120: =SUMIF(Cálculos!$I$8:$QJ$8, M$2, Cálculos!$I465:$QJ465) -> 863072.3415 | N120: =SUMIF(Cálculos!$I$8:$QJ$8, N$2, Cálculos!$I465:$QJ465) -> 836042.8263 | O120: =SUMIF(Cálculos!$I$8:$QJ$8, O$2, Cálculos!$I465:$QJ465) -> 808246.1926 | P120: =SUMIF(Cálculos!$I$8:$QJ$8, P$2, Cálculos!$I465:$QJ465) -> 780187.2811 | Q120: =SUMIF(Cálculos!$I$8:$QJ$8, Q$2, Cálculos!$I465:$QJ465) -> 751869.2873 | R120: =SUMIF(Cálculos!$I$8:$QJ$8, R$2, Cálculos!$I465:$QJ465) -> 724456.6565 | S120: =SUMIF(Cálculos!$I$8:$QJ$8, S$2, Cálculos!$I465:$QJ465) -> 696774.8693 | T120: =SUMIF(Cálculos!$I$8:$QJ$8, T$2, Cálculos!$I465:$QJ465) -> 669208.6426 | U120: =SUMIF(Cálculos!$I$8:$QJ$8, U$2, Cálculos!$I465:$QJ465) -> 641362.9339 | V120: =SUMIF(Cálculos!$I$8:$QJ$8, V$2, Cálculos!$I465:$QJ465) -> 614402.2215 | W120: =SUMIF(Cálculos!$I$8:$QJ$8, W$2, Cálculos!$I465:$QJ465) -> 587151.5786 | X120: =SUMIF(Cálculos!$I$8:$QJ$8, X$2, Cálculos!$I465:$QJ465) -> 559995.5952 | Y120: =SUMIF(Cálculos!$I$8:$QJ$8, Y$2, Cálculos!$I465:$QJ465) -> 532538.9523 | Z120: =SUMIF(Cálculos!$I$8:$QJ$8, Z$2, Cálculos!$I465:$QJ465) -> 749492.088 | AA120: =SUMIF(Cálculos!$I$8:$QJ$8, AA$2, Cálculos!$I465:$QJ465) -> 1283199.964 | AB120: =SUMIF(Cálculos!$I$8:$QJ$8, AB$2, Cálculos!$I465:$QJ465) -> 1123825.188 | AC120: =SUMIF(Cálculos!$I$8:$QJ$8, AC$2, Cálculos!$I465:$QJ465) -> 1032870.937 | AD120: =SUMIF(Cálculos!$I$8:$QJ$8, AD$2, Cálculos!$I465:$QJ465) -> 993866.4172 | AE120: =SUMIF(Cálculos!$I$8:$QJ$8, AE$2, Cálculos!$I465:$QJ465) -> 952413.9395 | AF120: =SUMIF(Cálculos!$I$8:$QJ$8, AF$2, Cálculos!$I465:$QJ465) -> 997739.7514 | AG120: =SUMIF(Cálculos!$I$8:$QJ$8, AG$2, Cálculos!$I465:$QJ465) -> -576714.2832
C121: =Cálculos!C466 -> Menos: Variação da DSRA | D121: =Cálculos!E466 -> EUR | F121: 0 | G121: =SUMIF(Cálculos!$I$8:$QJ$8, G$2, Cálculos!$I466:$QJ466) -> 0 | H121: =SUMIF(Cálculos!$I$8:$QJ$8, H$2, Cálculos!$I466:$QJ466) -> -201039.5556 | I121: =SUMIF(Cálculos!$I$8:$QJ$8, I$2, Cálculos!$I466:$QJ466) -> -201039.5556 | J121: =SUMIF(Cálculos!$I$8:$QJ$8, J$2, Cálculos!$I466:$QJ466) -> 0 | K121: =SUMIF(Cálculos!$I$8:$QJ$8, K$2, Cálculos!$I466:$QJ466) -> 0 | L121: =SUMIF(Cálculos!$I$8:$QJ$8, L$2, Cálculos!$I466:$QJ466) -> 0 | M121: =SUMIF(Cálculos!$I$8:$QJ$8, M$2, Cálculos!$I466:$QJ466) -> 0 | N121: =SUMIF(Cálculos!$I$8:$QJ$8, N$2, Cálculos!$I466:$QJ466) -> 0 | O121: =SUMIF(Cálculos!$I$8:$QJ$8, O$2, Cálculos!$I466:$QJ466) -> 0 | P121: =SUMIF(Cálculos!$I$8:$QJ$8, P$2, Cálculos!$I466:$QJ466) -> 0 | Q121: =SUMIF(Cálculos!$I$8:$QJ$8, Q$2, Cálculos!$I466:$QJ466) -> 0 | R121: =SUMIF(Cálculos!$I$8:$QJ$8, R$2, Cálculos!$I466:$QJ466) -> 0 | S121: =SUMIF(Cálculos!$I$8:$QJ$8, S$2, Cálculos!$I466:$QJ466) -> 0 | T121: =SUMIF(Cálculos!$I$8:$QJ$8, T$2, Cálculos!$I466:$QJ466) -> 0 | U121: =SUMIF(Cálculos!$I$8:$QJ$8, U$2, Cálculos!$I466:$QJ466) -> 0 | V121: =SUMIF(Cálculos!$I$8:$QJ$8, V$2, Cálculos!$I466:$QJ466) -> 0 | W121: =SUMIF(Cálculos!$I$8:$QJ$8, W$2, Cálculos!$I466:$QJ466) -> 0 | X121: =SUMIF(Cálculos!$I$8:$QJ$8, X$2, Cálculos!$I466:$QJ466) -> 0 | Y121: =SUMIF(Cálculos!$I$8:$QJ$8, Y$2, Cálculos!$I466:$QJ466) -> 0 | Z121: =SUMIF(Cálculos!$I$8:$QJ$8, Z$2, Cálculos!$I466:$QJ466) -> 402079.1112 | AA121: =SUMIF(Cálculos!$I$8:$QJ$8, AA$2, Cálculos!$I466:$QJ466) -> 0 | AB121: =SUMIF(Cálculos!$I$8:$QJ$8, AB$2, Cálculos!$I466:$QJ466) -> 0 | AC121: =SUMIF(Cálculos!$I$8:$QJ$8, AC$2, Cálculos!$I466:$QJ466) -> 0 | AD121: =SUMIF(Cálculos!$I$8:$QJ$8, AD$2, Cálculos!$I466:$QJ466) -> 0 | AE121: =SUMIF(Cálculos!$I$8:$QJ$8, AE$2, Cálculos!$I466:$QJ466) -> 0 | AF121: =SUMIF(Cálculos!$I$8:$QJ$8, AF$2, Cálculos!$I466:$QJ466) -> 0 | AG121: =SUMIF(Cálculos!$I$8:$QJ$8, AG$2, Cálculos!$I466:$QJ466) -> 0
C122: =Cálculos!C467 -> Menos: Variação da MMRA | D122: =Cálculos!E467 -> EUR | F122: 0 | G122: =SUMIF(Cálculos!$I$8:$QJ$8, G$2, Cálculos!$I467:$QJ467) -> 0 | H122: =SUMIF(Cálculos!$I$8:$QJ$8, H$2, Cálculos!$I467:$QJ467) -> 0 | I122: =SUMIF(Cálculos!$I$8:$QJ$8, I$2, Cálculos!$I467:$QJ467) -> 0 | J122: =SUMIF(Cálculos!$I$8:$QJ$8, J$2, Cálculos!$I467:$QJ467) -> 0 | K122: =SUMIF(Cálculos!$I$8:$QJ$8, K$2, Cálculos!$I467:$QJ467) -> 0 | L122: =SUMIF(Cálculos!$I$8:$QJ$8, L$2, Cálculos!$I467:$QJ467) -> 0 | M122: =SUMIF(Cálculos!$I$8:$QJ$8, M$2, Cálculos!$I467:$QJ467) -> 0 | N122: =SUMIF(Cálculos!$I$8:$QJ$8, N$2, Cálculos!$I467:$QJ467) -> 0 | O122: =SUMIF(Cálculos!$I$8:$QJ$8, O$2, Cálculos!$I467:$QJ467) -> 0 | P122: =SUMIF(Cálculos!$I$8:$QJ$8, P$2, Cálculos!$I467:$QJ467) -> 0 | Q122: =SUMIF(Cálculos!$I$8:$QJ$8, Q$2, Cálculos!$I467:$QJ467) -> 0 | R122: =SUMIF(Cálculos!$I$8:$QJ$8, R$2, Cálculos!$I467:$QJ467) -> 0 | S122: =SUMIF(Cálculos!$I$8:$QJ$8, S$2, Cálculos!$I467:$QJ467) -> 0 | T122: =SUMIF(Cálculos!$I$8:$QJ$8, T$2, Cálculos!$I467:$QJ467) -> 0 | U122: =SUMIF(Cálculos!$I$8:$QJ$8, U$2, Cálculos!$I467:$QJ467) -> 0 | V122: =SUMIF(Cálculos!$I$8:$QJ$8, V$2, Cálculos!$I467:$QJ467) -> 0 | W122: =SUMIF(Cálculos!$I$8:$QJ$8, W$2, Cálculos!$I467:$QJ467) -> 0 | X122: =SUMIF(Cálculos!$I$8:$QJ$8, X$2, Cálculos!$I467:$QJ467) -> 0 | Y122: =SUMIF(Cálculos!$I$8:$QJ$8, Y$2, Cálculos!$I467:$QJ467) -> 0 | Z122: =SUMIF(Cálculos!$I$8:$QJ$8, Z$2, Cálculos!$I467:$QJ467) -> 0 | AA122: =SUMIF(Cálculos!$I$8:$QJ$8, AA$2, Cálculos!$I467:$QJ467) -> 0 | AB122: =SUMIF(Cálculos!$I$8:$QJ$8, AB$2, Cálculos!$I467:$QJ467) -> 0 | AC122: =SUMIF(Cálculos!$I$8:$QJ$8, AC$2, Cálculos!$I467:$QJ467) -> 0 | AD122: =SUMIF(Cálculos!$I$8:$QJ$8, AD$2, Cálculos!$I467:$QJ467) -> 0 | AE122: =SUMIF(Cálculos!$I$8:$QJ$8, AE$2, Cálculos!$I467:$QJ467) -> 0 | AF122: =SUMIF(Cálculos!$I$8:$QJ$8, AF$2, Cálculos!$I467:$QJ467) -> 0 | AG122: =SUMIF(Cálculos!$I$8:$QJ$8, AG$2, Cálculos!$I467:$QJ467) -> 0
C123: =Cálculos!C468 -> Caixa Disponível para Dívida Subordinada | D123: =Cálculos!E468 -> EUR | F123: 32796100.28 | G123: =SUMIF(Cálculos!$I$8:$QJ$8, G$2, Cálculos!$I468:$QJ468) -> 6831825.284 | H123: =SUMIF(Cálculos!$I$8:$QJ$8, H$2, Cálculos!$I468:$QJ468) -> 6467135.16 | I123: =SUMIF(Cálculos!$I$8:$QJ$8, I$2, Cálculos!$I468:$QJ468) -> 727875.2533 | J123: =SUMIF(Cálculos!$I$8:$QJ$8, J$2, Cálculos!$I468:$QJ468) -> 935824.5877 | K123: =SUMIF(Cálculos!$I$8:$QJ$8, K$2, Cálculos!$I468:$QJ468) -> 917622.921 | L123: =SUMIF(Cálculos!$I$8:$QJ$8, L$2, Cálculos!$I468:$QJ468) -> 891734.5788 | M123: =SUMIF(Cálculos!$I$8:$QJ$8, M$2, Cálculos!$I468:$QJ468) -> 863072.3415 | N123: =SUMIF(Cálculos!$I$8:$QJ$8, N$2, Cálculos!$I468:$QJ468) -> 836042.8263 | O123: =SUMIF(Cálculos!$I$8:$QJ$8, O$2, Cálculos!$I468:$QJ468) -> 808246.1926 | P123: =SUMIF(Cálculos!$I$8:$QJ$8, P$2, Cálculos!$I468:$QJ468) -> 780187.2811 | Q123: =SUMIF(Cálculos!$I$8:$QJ$8, Q$2, Cálculos!$I468:$QJ468) -> 751869.2873 | R123: =SUMIF(Cálculos!$I$8:$QJ$8, R$2, Cálculos!$I468:$QJ468) -> 724456.6565 | S123: =SUMIF(Cálculos!$I$8:$QJ$8, S$2, Cálculos!$I468:$QJ468) -> 696774.8693 | T123: =SUMIF(Cálculos!$I$8:$QJ$8, T$2, Cálculos!$I468:$QJ468) -> 669208.6426 | U123: =SUMIF(Cálculos!$I$8:$QJ$8, U$2, Cálculos!$I468:$QJ468) -> 641362.9339 | V123: =SUMIF(Cálculos!$I$8:$QJ$8, V$2, Cálculos!$I468:$QJ468) -> 614402.2215 | W123: =SUMIF(Cálculos!$I$8:$QJ$8, W$2, Cálculos!$I468:$QJ468) -> 587151.5786 | X123: =SUMIF(Cálculos!$I$8:$QJ$8, X$2, Cálculos!$I468:$QJ468) -> 559995.5952 | Y123: =SUMIF(Cálculos!$I$8:$QJ$8, Y$2, Cálculos!$I468:$QJ468) -> 532538.9523 | Z123: =SUMIF(Cálculos!$I$8:$QJ$8, Z$2, Cálculos!$I468:$QJ468) -> 1151571.199 | AA123: =SUMIF(Cálculos!$I$8:$QJ$8, AA$2, Cálculos!$I468:$QJ468) -> 1283199.964 | AB123: =SUMIF(Cálculos!$I$8:$QJ$8, AB$2, Cálculos!$I468:$QJ468) -> 1123825.188 | AC123: =SUMIF(Cálculos!$I$8:$QJ$8, AC$2, Cálculos!$I468:$QJ468) -> 1032870.937 | AD123: =SUMIF(Cálculos!$I$8:$QJ$8, AD$2, Cálculos!$I468:$QJ468) -> 993866.4172 | AE123: =SUMIF(Cálculos!$I$8:$QJ$8, AE$2, Cálculos!$I468:$QJ468) -> 952413.9395 | AF123: =SUMIF(Cálculos!$I$8:$QJ$8, AF$2, Cálculos!$I468:$QJ468) -> 997739.7514 | AG123: =SUMIF(Cálculos!$I$8:$QJ$8, AG$2, Cálculos!$I468:$QJ468) -> -576714.2832
C124: =Cálculos!C469 -> Menos: Juros da Dívida Subordinada | D124: =Cálculos!E469 -> EUR | F124: -5647121.092 | G124: =SUMIF(Cálculos!$I$8:$QJ$8, G$2, Cálculos!$I469:$QJ469) -> 0 | H124: =SUMIF(Cálculos!$I$8:$QJ$8, H$2, Cálculos!$I469:$QJ469) -> 0 | I124: =SUMIF(Cálculos!$I$8:$QJ$8, I$2, Cálculos!$I469:$QJ469) -> -453787.7847 | J124: =SUMIF(Cálculos!$I$8:$QJ$8, J$2, Cálculos!$I469:$QJ469) -> -534989.9178 | K124: =SUMIF(Cálculos!$I$8:$QJ$8, K$2, Cálculos!$I469:$QJ469) -> -524454.6471 | L124: =SUMIF(Cálculos!$I$8:$QJ$8, L$2, Cálculos!$I469:$QJ469) -> -512583.2403 | M124: =SUMIF(Cálculos!$I$8:$QJ$8, M$2, Cálculos!$I469:$QJ469) -> -499206.242 | N124: =SUMIF(Cálculos!$I$8:$QJ$8, N$2, Cálculos!$I469:$QJ469) -> -484132.7055 | O124: =SUMIF(Cálculos!$I$8:$QJ$8, O$2, Cálculos!$I469:$QJ469) -> -467147.4673 | P124: =SUMIF(Cálculos!$I$8:$QJ$8, P$2, Cálculos!$I469:$QJ469) -> -448008.0757 | Q124: =SUMIF(Cálculos!$I$8:$QJ$8, Q$2, Cálculos!$I469:$QJ469) -> -426441.3302 | R124: =SUMIF(Cálculos!$I$8:$QJ$8, R$2, Cálculos!$I469:$QJ469) -> -402139.3816 | S124: =SUMIF(Cálculos!$I$8:$QJ$8, S$2, Cálculos!$I469:$QJ469) -> -374755.3376 | T124: =SUMIF(Cálculos!$I$8:$QJ$8, T$2, Cálculos!$I469:$QJ469) -> -343898.3114 | U124: =SUMIF(Cálculos!$I$8:$QJ$8, U$2, Cálculos!$I469:$QJ469) -> -309127.8419 | V124: =SUMIF(Cálculos!$I$8:$QJ$8, V$2, Cálculos!$I469:$QJ469) -> -269947.6066 | W124: =SUMIF(Cálculos!$I$8:$QJ$8, W$2, Cálculos!$I469:$QJ469) -> -225798.3367 | X124: =SUMIF(Cálculos!$I$8:$QJ$8, X$2, Cálculos!$I469:$QJ469) -> -176049.8344 | Y124: =SUMIF(Cálculos!$I$8:$QJ$8, Y$2, Cálculos!$I469:$QJ469) -> -119991.9767 | Z124: =SUMIF(Cálculos!$I$8:$QJ$8, Z$2, Cálculos!$I469:$QJ469) -> -56824.57962 | AA124: =SUMIF(Cálculos!$I$8:$QJ$8, AA$2, Cálculos!$I469:$QJ469) -> 14354.02455 | AB124: =SUMIF(Cálculos!$I$8:$QJ$8, AB$2, Cálculos!$I469:$QJ469) -> 94559.85733 | AC124: =SUMIF(Cálculos!$I$8:$QJ$8, AC$2, Cálculos!$I469:$QJ469) -> 184937.7973 | AD124: =SUMIF(Cálculos!$I$8:$QJ$8, AD$2, Cálculos!$I469:$QJ469) -> 286777.9222 | AE124: =SUMIF(Cálculos!$I$8:$QJ$8, AE$2, Cálculos!$I469:$QJ469) -> 401533.924 | AF124: =SUMIF(Cálculos!$I$8:$QJ$8, AF$2, Cálculos!$I469:$QJ469) -> 0 | AG124: =SUMIF(Cálculos!$I$8:$QJ$8, AG$2, Cálculos!$I469:$QJ469) -> 0
C125: =Cálculos!C470 -> Mais: Utilização de Dívida Subordinada | D125: =Cálculos!E470 -> EUR | F125: 4500000 | G125: =SUMIF(Cálculos!$I$8:$QJ$8, G$2, Cálculos!$I470:$QJ470) -> 2250000 | H125: =SUMIF(Cálculos!$I$8:$QJ$8, H$2, Cálculos!$I470:$QJ470) -> 2250000 | I125: =SUMIF(Cálculos!$I$8:$QJ$8, I$2, Cálculos!$I470:$QJ470) -> 0 | J125: =SUMIF(Cálculos!$I$8:$QJ$8, J$2, Cálculos!$I470:$QJ470) -> 0 | K125: =SUMIF(Cálculos!$I$8:$QJ$8, K$2, Cálculos!$I470:$QJ470) -> 0 | L125: =SUMIF(Cálculos!$I$8:$QJ$8, L$2, Cálculos!$I470:$QJ470) -> 0 | M125: =SUMIF(Cálculos!$I$8:$QJ$8, M$2, Cálculos!$I470:$QJ470) -> 0 | N125: =SUMIF(Cálculos!$I$8:$QJ$8, N$2, Cálculos!$I470:$QJ470) -> 0 | O125: =SUMIF(Cálculos!$I$8:$QJ$8, O$2, Cálculos!$I470:$QJ470) -> 0 | P125: =SUMIF(Cálculos!$I$8:$QJ$8, P$2, Cálculos!$I470:$QJ470) -> 0 | Q125: =SUMIF(Cálculos!$I$8:$QJ$8, Q$2, Cálculos!$I470:$QJ470) -> 0 | R125: =SUMIF(Cálculos!$I$8:$QJ$8, R$2, Cálculos!$I470:$QJ470) -> 0 | S125: =SUMIF(Cálculos!$I$8:$QJ$8, S$2, Cálculos!$I470:$QJ470) -> 0 | T125: =SUMIF(Cálculos!$I$8:$QJ$8, T$2, Cálculos!$I470:$QJ470) -> 0 | U125: =SUMIF(Cálculos!$I$8:$QJ$8, U$2, Cálculos!$I470:$QJ470) -> 0 | V125: =SUMIF(Cálculos!$I$8:$QJ$8, V$2, Cálculos!$I470:$QJ470) -> 0 | W125: =SUMIF(Cálculos!$I$8:$QJ$8, W$2, Cálculos!$I470:$QJ470) -> 0 | X125: =SUMIF(Cálculos!$I$8:$QJ$8, X$2, Cálculos!$I470:$QJ470) -> 0 | Y125: =SUMIF(Cálculos!$I$8:$QJ$8, Y$2, Cálculos!$I470:$QJ470) -> 0 | Z125: =SUMIF(Cálculos!$I$8:$QJ$8, Z$2, Cálculos!$I470:$QJ470) -> 0 | AA125: =SUMIF(Cálculos!$I$8:$QJ$8, AA$2, Cálculos!$I470:$QJ470) -> 0 | AB125: =SUMIF(Cálculos!$I$8:$QJ$8, AB$2, Cálculos!$I470:$QJ470) -> 0 | AC125: =SUMIF(Cálculos!$I$8:$QJ$8, AC$2, Cálculos!$I470:$QJ470) -> 0 | AD125: =SUMIF(Cálculos!$I$8:$QJ$8, AD$2, Cálculos!$I470:$QJ470) -> 0 | AE125: =SUMIF(Cálculos!$I$8:$QJ$8, AE$2, Cálculos!$I470:$QJ470) -> 0 | AF125: =SUMIF(Cálculos!$I$8:$QJ$8, AF$2, Cálculos!$I470:$QJ470) -> 0 | AG125: =SUMIF(Cálculos!$I$8:$QJ$8, AG$2, Cálculos!$I470:$QJ470) -> 0
C126: =Cálculos!C471 -> Menos: Reembolso de Capital – Dívida Subordinada | D126: =Cálculos!E471 -> EUR | F126: -4500000 | G126: =SUMIF(Cálculos!$I$8:$QJ$8, G$2, Cálculos!$I471:$QJ471) -> 0 | H126: =SUMIF(Cálculos!$I$8:$QJ$8, H$2, Cálculos!$I471:$QJ471) -> 0 | I126: =SUMIF(Cálculos!$I$8:$QJ$8, I$2, Cálculos!$I471:$QJ471) -> -55661.15388 | J126: =SUMIF(Cálculos!$I$8:$QJ$8, J$2, Cálculos!$I471:$QJ471) -> -83069.33363 | K126: =SUMIF(Cálculos!$I$8:$QJ$8, K$2, Cálculos!$I471:$QJ471) -> -93604.60437 | L126: =SUMIF(Cálculos!$I$8:$QJ$8, L$2, Cálculos!$I471:$QJ471) -> -105476.0111 | M126: =SUMIF(Cálculos!$I$8:$QJ$8, M$2, Cálculos!$I471:$QJ471) -> -118853.0094 | N126: =SUMIF(Cálculos!$I$8:$QJ$8, N$2, Cálculos!$I471:$QJ471) -> -133926.5459 | O126: =SUMIF(Cálculos!$I$8:$QJ$8, O$2, Cálculos!$I471:$QJ471) -> -150911.7842 | P126: =SUMIF(Cálculos!$I$8:$QJ$8, P$2, Cálculos!$I471:$QJ471) -> -170051.1757 | Q126: =SUMIF(Cálculos!$I$8:$QJ$8, Q$2, Cálculos!$I471:$QJ471) -> -191617.9212 | R126: =SUMIF(Cálculos!$I$8:$QJ$8, R$2, Cálculos!$I471:$QJ471) -> -215919.8699 | S126: =SUMIF(Cálculos!$I$8:$QJ$8, S$2, Cálculos!$I471:$QJ471) -> -243303.9139 | T126: =SUMIF(Cálculos!$I$8:$QJ$8, T$2, Cálculos!$I471:$QJ471) -> -274160.9401 | U126: =SUMIF(Cálculos!$I$8:$QJ$8, U$2, Cálculos!$I471:$QJ471) -> -308931.4096 | V126: =SUMIF(Cálculos!$I$8:$QJ$8, V$2, Cálculos!$I471:$QJ471) -> -348111.6449 | W126: =SUMIF(Cálculos!$I$8:$QJ$8, W$2, Cálculos!$I471:$QJ471) -> -392260.9147 | X126: =SUMIF(Cálculos!$I$8:$QJ$8, X$2, Cálculos!$I471:$QJ471) -> -442009.4171 | Y126: =SUMIF(Cálculos!$I$8:$QJ$8, Y$2, Cálculos!$I471:$QJ471) -> -498067.2747 | Z126: =SUMIF(Cálculos!$I$8:$QJ$8, Z$2, Cálculos!$I471:$QJ471) -> -561234.6718 | AA126: =SUMIF(Cálculos!$I$8:$QJ$8, AA$2, Cálculos!$I471:$QJ471) -> -632413.276 | AB126: =SUMIF(Cálculos!$I$8:$QJ$8, AB$2, Cálculos!$I471:$QJ471) -> -712619.1088 | AC126: =SUMIF(Cálculos!$I$8:$QJ$8, AC$2, Cálculos!$I471:$QJ471) -> -802997.0487 | AD126: =SUMIF(Cálculos!$I$8:$QJ$8, AD$2, Cálculos!$I471:$QJ471) -> -904837.1736 | AE126: =SUMIF(Cálculos!$I$8:$QJ$8, AE$2, Cálculos!$I471:$QJ471) -> 2940038.203 | AF126: =SUMIF(Cálculos!$I$8:$QJ$8, AF$2, Cálculos!$I471:$QJ471) -> 0 | AG126: =SUMIF(Cálculos!$I$8:$QJ$8, AG$2, Cálculos!$I471:$QJ471) -> 0
C127: =Cálculos!C472 -> Menos: Investimento | D127: =Cálculos!E472 -> EUR | F127: -19700928.8 | G127: =SUMIF(Cálculos!$I$8:$QJ$8, G$2, Cálculos!$I472:$QJ472) -> -9054194.102 | H127: =SUMIF(Cálculos!$I$8:$QJ$8, H$2, Cálculos!$I472:$QJ472) -> -8184997.207 | I127: =SUMIF(Cálculos!$I$8:$QJ$8, I$2, Cálculos!$I472:$QJ472) -> 0 | J127: =SUMIF(Cálculos!$I$8:$QJ$8, J$2, Cálculos!$I472:$QJ472) -> 0 | K127: =SUMIF(Cálculos!$I$8:$QJ$8, K$2, Cálculos!$I472:$QJ472) -> 0 | L127: =SUMIF(Cálculos!$I$8:$QJ$8, L$2, Cálculos!$I472:$QJ472) -> 0 | M127: =SUMIF(Cálculos!$I$8:$QJ$8, M$2, Cálculos!$I472:$QJ472) -> 0 | N127: =SUMIF(Cálculos!$I$8:$QJ$8, N$2, Cálculos!$I472:$QJ472) -> 0 | O127: =SUMIF(Cálculos!$I$8:$QJ$8, O$2, Cálculos!$I472:$QJ472) -> 0 | P127: =SUMIF(Cálculos!$I$8:$QJ$8, P$2, Cálculos!$I472:$QJ472) -> 0 | Q127: =SUMIF(Cálculos!$I$8:$QJ$8, Q$2, Cálculos!$I472:$QJ472) -> 0 | R127: =SUMIF(Cálculos!$I$8:$QJ$8, R$2, Cálculos!$I472:$QJ472) -> 0 | S127: =SUMIF(Cálculos!$I$8:$QJ$8, S$2, Cálculos!$I472:$QJ472) -> 0 | T127: =SUMIF(Cálculos!$I$8:$QJ$8, T$2, Cálculos!$I472:$QJ472) -> 0 | U127: =SUMIF(Cálculos!$I$8:$QJ$8, U$2, Cálculos!$I472:$QJ472) -> 0 | V127: =SUMIF(Cálculos!$I$8:$QJ$8, V$2, Cálculos!$I472:$QJ472) -> 0 | W127: =SUMIF(Cálculos!$I$8:$QJ$8, W$2, Cálculos!$I472:$QJ472) -> 0 | X127: =SUMIF(Cálculos!$I$8:$QJ$8, X$2, Cálculos!$I472:$QJ472) -> 0 | Y127: =SUMIF(Cálculos!$I$8:$QJ$8, Y$2, Cálculos!$I472:$QJ472) -> 0 | Z127: =SUMIF(Cálculos!$I$8:$QJ$8, Z$2, Cálculos!$I472:$QJ472) -> -7777.95982 | AA127: =SUMIF(Cálculos!$I$8:$QJ$8, AA$2, Cálculos!$I472:$QJ472) -> -2453959.528 | AB127: =SUMIF(Cálculos!$I$8:$QJ$8, AB$2, Cálculos!$I472:$QJ472) -> 0 | AC127: =SUMIF(Cálculos!$I$8:$QJ$8, AC$2, Cálculos!$I472:$QJ472) -> 0 | AD127: =SUMIF(Cálculos!$I$8:$QJ$8, AD$2, Cálculos!$I472:$QJ472) -> 0 | AE127: =SUMIF(Cálculos!$I$8:$QJ$8, AE$2, Cálculos!$I472:$QJ472) -> 0 | AF127: =SUMIF(Cálculos!$I$8:$QJ$8, AF$2, Cálculos!$I472:$QJ472) -> 0 | AG127: =SUMIF(Cálculos!$I$8:$QJ$8, AG$2, Cálculos!$I472:$QJ472) -> 0
C128: =Cálculos!C473 -> Caixa Disponível para Dividendos | D128: =Cálculos!E473 -> EUR | F128: 7448050.388 | G128: =SUMIF(Cálculos!$I$8:$QJ$8, G$2, Cálculos!$I473:$QJ473) -> 27631.18238 | H128: =SUMIF(Cálculos!$I$8:$QJ$8, H$2, Cálculos!$I473:$QJ473) -> 532137.9533 | I128: =SUMIF(Cálculos!$I$8:$QJ$8, I$2, Cálculos!$I473:$QJ473) -> 218426.3147 | J128: =SUMIF(Cálculos!$I$8:$QJ$8, J$2, Cálculos!$I473:$QJ473) -> 317765.3362 | K128: =SUMIF(Cálculos!$I$8:$QJ$8, K$2, Cálculos!$I473:$QJ473) -> 299563.6696 | L128: =SUMIF(Cálculos!$I$8:$QJ$8, L$2, Cálculos!$I473:$QJ473) -> 273675.3274 | M128: =SUMIF(Cálculos!$I$8:$QJ$8, M$2, Cálculos!$I473:$QJ473) -> 245013.09 | N128: =SUMIF(Cálculos!$I$8:$QJ$8, N$2, Cálculos!$I473:$QJ473) -> 217983.5748 | O128: =SUMIF(Cálculos!$I$8:$QJ$8, O$2, Cálculos!$I473:$QJ473) -> 190186.9412 | P128: =SUMIF(Cálculos!$I$8:$QJ$8, P$2, Cálculos!$I473:$QJ473) -> 162128.0297 | Q128: =SUMIF(Cálculos!$I$8:$QJ$8, Q$2, Cálculos!$I473:$QJ473) -> 133810.0358 | R128: =SUMIF(Cálculos!$I$8:$QJ$8, R$2, Cálculos!$I473:$QJ473) -> 106397.4051 | S128: =SUMIF(Cálculos!$I$8:$QJ$8, S$2, Cálculos!$I473:$QJ473) -> 78715.6179 | T128: =SUMIF(Cálculos!$I$8:$QJ$8, T$2, Cálculos!$I473:$QJ473) -> 51149.39119 | U128: =SUMIF(Cálculos!$I$8:$QJ$8, U$2, Cálculos!$I473:$QJ473) -> 23303.68243 | V128: =SUMIF(Cálculos!$I$8:$QJ$8, V$2, Cálculos!$I473:$QJ473) -> -3657.029965 | W128: =SUMIF(Cálculos!$I$8:$QJ$8, W$2, Cálculos!$I473:$QJ473) -> -30907.67287 | X128: =SUMIF(Cálculos!$I$8:$QJ$8, X$2, Cálculos!$I473:$QJ473) -> -58063.65627 | Y128: =SUMIF(Cálculos!$I$8:$QJ$8, Y$2, Cálculos!$I473:$QJ473) -> -85520.29916 | Z128: =SUMIF(Cálculos!$I$8:$QJ$8, Z$2, Cálculos!$I473:$QJ473) -> 525733.988 | AA128: =SUMIF(Cálculos!$I$8:$QJ$8, AA$2, Cálculos!$I473:$QJ473) -> -1788818.816 | AB128: =SUMIF(Cálculos!$I$8:$QJ$8, AB$2, Cálculos!$I473:$QJ473) -> 505765.9361 | AC128: =SUMIF(Cálculos!$I$8:$QJ$8, AC$2, Cálculos!$I473:$QJ473) -> 414811.686 | AD128: =SUMIF(Cálculos!$I$8:$QJ$8, AD$2, Cálculos!$I473:$QJ473) -> 375807.1658 | AE128: =SUMIF(Cálculos!$I$8:$QJ$8, AE$2, Cálculos!$I473:$QJ473) -> 4293986.067 | AF128: =SUMIF(Cálculos!$I$8:$QJ$8, AF$2, Cálculos!$I473:$QJ473) -> 997739.7514 | AG128: =SUMIF(Cálculos!$I$8:$QJ$8, AG$2, Cálculos!$I473:$QJ473) -> -576714.2832
C129: =Cálculos!C474 -> Dividendo | D129: =Cálculos!E474 -> EUR | F129: 0 | G129: =SUMIF(Cálculos!$I$8:$QJ$8, G$2, Cálculos!$I474:$QJ474) -> 0 | H129: =SUMIF(Cálculos!$I$8:$QJ$8, H$2, Cálculos!$I474:$QJ474) -> 0 | I129: =SUMIF(Cálculos!$I$8:$QJ$8, I$2, Cálculos!$I474:$QJ474) -> 0 | J129: =SUMIF(Cálculos!$I$8:$QJ$8, J$2, Cálculos!$I474:$QJ474) -> 0 | K129: =SUMIF(Cálculos!$I$8:$QJ$8, K$2, Cálculos!$I474:$QJ474) -> 0 | L129: =SUMIF(Cálculos!$I$8:$QJ$8, L$2, Cálculos!$I474:$QJ474) -> 0 | M129: =SUMIF(Cálculos!$I$8:$QJ$8, M$2, Cálculos!$I474:$QJ474) -> 0 | N129: =SUMIF(Cálculos!$I$8:$QJ$8, N$2, Cálculos!$I474:$QJ474) -> 0 | O129: =SUMIF(Cálculos!$I$8:$QJ$8, O$2, Cálculos!$I474:$QJ474) -> 0 | P129: =SUMIF(Cálculos!$I$8:$QJ$8, P$2, Cálculos!$I474:$QJ474) -> 0 | Q129: =SUMIF(Cálculos!$I$8:$QJ$8, Q$2, Cálculos!$I474:$QJ474) -> 0 | R129: =SUMIF(Cálculos!$I$8:$QJ$8, R$2, Cálculos!$I474:$QJ474) -> 0 | S129: =SUMIF(Cálculos!$I$8:$QJ$8, S$2, Cálculos!$I474:$QJ474) -> 0 | T129: =SUMIF(Cálculos!$I$8:$QJ$8, T$2, Cálculos!$I474:$QJ474) -> 0 | U129: =SUMIF(Cálculos!$I$8:$QJ$8, U$2, Cálculos!$I474:$QJ474) -> 0 | V129: =SUMIF(Cálculos!$I$8:$QJ$8, V$2, Cálculos!$I474:$QJ474) -> 0 | W129: =SUMIF(Cálculos!$I$8:$QJ$8, W$2, Cálculos!$I474:$QJ474) -> 0 | X129: =SUMIF(Cálculos!$I$8:$QJ$8, X$2, Cálculos!$I474:$QJ474) -> 0 | Y129: =SUMIF(Cálculos!$I$8:$QJ$8, Y$2, Cálculos!$I474:$QJ474) -> 0 | Z129: =SUMIF(Cálculos!$I$8:$QJ$8, Z$2, Cálculos!$I474:$QJ474) -> 0 | AA129: =SUMIF(Cálculos!$I$8:$QJ$8, AA$2, Cálculos!$I474:$QJ474) -> 0 | AB129: =SUMIF(Cálculos!$I$8:$QJ$8, AB$2, Cálculos!$I474:$QJ474) -> 0 | AC129: =SUMIF(Cálculos!$I$8:$QJ$8, AC$2, Cálculos!$I474:$QJ474) -> 0 | AD129: =SUMIF(Cálculos!$I$8:$QJ$8, AD$2, Cálculos!$I474:$QJ474) -> 0 | AE129: =SUMIF(Cálculos!$I$8:$QJ$8, AE$2, Cálculos!$I474:$QJ474) -> 0 | AF129: =SUMIF(Cálculos!$I$8:$QJ$8, AF$2, Cálculos!$I474:$QJ474) -> 0 | AG129: =SUMIF(Cálculos!$I$8:$QJ$8, AG$2, Cálculos!$I474:$QJ474) -> 0
C130: =Cálculos!C475 -> Variação Líquida de Caixa | D130: =Cálculos!E475 -> EUR | F130: 7448050.388 | G130: =SUMIF(Cálculos!$I$8:$QJ$8, G$2, Cálculos!$I475:$QJ475) -> 27631.18238 | H130: =SUMIF(Cálculos!$I$8:$QJ$8, H$2, Cálculos!$I475:$QJ475) -> 532137.9533 | I130: =SUMIF(Cálculos!$I$8:$QJ$8, I$2, Cálculos!$I475:$QJ475) -> 218426.3147 | J130: =SUMIF(Cálculos!$I$8:$QJ$8, J$2, Cálculos!$I475:$QJ475) -> 317765.3362 | K130: =SUMIF(Cálculos!$I$8:$QJ$8, K$2, Cálculos!$I475:$QJ475) -> 299563.6696 | L130: =SUMIF(Cálculos!$I$8:$QJ$8, L$2, Cálculos!$I475:$QJ475) -> 273675.3274 | M130: =SUMIF(Cálculos!$I$8:$QJ$8, M$2, Cálculos!$I475:$QJ475) -> 245013.09 | N130: =SUMIF(Cálculos!$I$8:$QJ$8, N$2, Cálculos!$I475:$QJ475) -> 217983.5748 | O130: =SUMIF(Cálculos!$I$8:$QJ$8, O$2, Cálculos!$I475:$QJ475) -> 190186.9412 | P130: =SUMIF(Cálculos!$I$8:$QJ$8, P$2, Cálculos!$I475:$QJ475) -> 162128.0297 | Q130: =SUMIF(Cálculos!$I$8:$QJ$8, Q$2, Cálculos!$I475:$QJ475) -> 133810.0358 | R130: =SUMIF(Cálculos!$I$8:$QJ$8, R$2, Cálculos!$I475:$QJ475) -> 106397.4051 | S130: =SUMIF(Cálculos!$I$8:$QJ$8, S$2, Cálculos!$I475:$QJ475) -> 78715.6179 | T130: =SUMIF(Cálculos!$I$8:$QJ$8, T$2, Cálculos!$I475:$QJ475) -> 51149.39119 | U130: =SUMIF(Cálculos!$I$8:$QJ$8, U$2, Cálculos!$I475:$QJ475) -> 23303.68243 | V130: =SUMIF(Cálculos!$I$8:$QJ$8, V$2, Cálculos!$I475:$QJ475) -> -3657.029965 | W130: =SUMIF(Cálculos!$I$8:$QJ$8, W$2, Cálculos!$I475:$QJ475) -> -30907.67287 | X130: =SUMIF(Cálculos!$I$8:$QJ$8, X$2, Cálculos!$I475:$QJ475) -> -58063.65627 | Y130: =SUMIF(Cálculos!$I$8:$QJ$8, Y$2, Cálculos!$I475:$QJ475) -> -85520.29916 | Z130: =SUMIF(Cálculos!$I$8:$QJ$8, Z$2, Cálculos!$I475:$QJ475) -> 525733.988 | AA130: =SUMIF(Cálculos!$I$8:$QJ$8, AA$2, Cálculos!$I475:$QJ475) -> -1788818.816 | AB130: =SUMIF(Cálculos!$I$8:$QJ$8, AB$2, Cálculos!$I475:$QJ475) -> 505765.9361 | AC130: =SUMIF(Cálculos!$I$8:$QJ$8, AC$2, Cálculos!$I475:$QJ475) -> 414811.686 | AD130: =SUMIF(Cálculos!$I$8:$QJ$8, AD$2, Cálculos!$I475:$QJ475) -> 375807.1658 | AE130: =SUMIF(Cálculos!$I$8:$QJ$8, AE$2, Cálculos!$I475:$QJ475) -> 4293986.067 | AF130: =SUMIF(Cálculos!$I$8:$QJ$8, AF$2, Cálculos!$I475:$QJ475) -> 997739.7514 | AG130: =SUMIF(Cálculos!$I$8:$QJ$8, AG$2, Cálculos!$I475:$QJ475) -> -576714.2832
C132: =Cálculos!C477 -> Saldo Inicial de Caixa | D132: =Cálculos!E477 -> EUR | G132: =F133 -> 0 | H132: =G133 -> 27631.18238 | I132: 559769.1356 | J132: 778195.4503 | K132: 1095960.787 | L132: =K133 -> 1395524.456 | M132: 1669199.783 | N132: 1914212.874 | O132: 2132196.448 | P132: 2322383.39 | Q132: 2484511.419 | R132: 2618321.455 | S132: 2724718.86 | T132: 2803434.478 | U132: 2854583.869 | V132: 2877887.552 | W132: 2874230.522 | X132: 2843322.849 | Y132: 2785259.193 | Z132: 2699738.893 | AA132: 3225472.881 | AB132: 1436654.066 | AC132: 1942420.002 | AD132: 2357231.688 | AE132: =AD133 -> 2733038.854 | AF132: 7027024.92 | AG132: 8024764.671
C133: =Cálculos!C478 -> Saldo Final de Caixa | D133: =Cálculos!E478 -> EUR | F133: 0 | G133: =G130+G132 -> 27631.18238 | H133: =H130+H132 -> 559769.1356 | I133: =I130+I132 -> 778195.4503 | J133: 1095960.787 | K133: 1395524.456 | L133: 1669199.783 | M133: 1914212.874 | N133: 2132196.448 | O133: 2322383.39 | P133: 2484511.419 | Q133: 2618321.455 | R133: 2724718.86 | S133: 2803434.478 | T133: 2854583.869 | U133: 2877887.552 | V133: 2874230.522 | W133: 2843322.849 | X133: 2785259.193 | Y133: 2699738.893 | Z133: 3225472.881 | AA133: 1436654.066 | AB133: 1942420.002 | AC133: 2357231.688 | AD133: 2733038.854 | AE133: =AE130+AE132 -> 7027024.92 | AF133: 8024764.671 | AG133: 7448050.388
C135: Verificação Anual = Mensal | D135: Check | E135: =IF(ROUND($F$28-Cálculos!$H$369+$F$106-Cálculos!$H$448, 0)=0, "OK", "NO") -> OK

Sheet DFT
A1: =Entradas!$D$6&" - Relatórios Financeiros Trimestrais" -> Força Açoreana, S.A.: Azores PV & BESS (São Miguel Nascente) - Relatórios Financeiros Trimestrais | FD1: c
C3: Ano | H3: 2026 | I3: =H3 -> 2026 | J3: 2026 | K3: =J3 -> 2026 | L3: =H3+1 -> 2027 | M3: =I3+1 -> 2027 | N3: 2027 | O3: 2027 | P3: =L3+1 -> 2028 | Q3: =M3+1 -> 2028 | R3: =N3+1 -> 2028 | S3: =O3+1 -> 2028 | T3: =P3+1 -> 2029 | U3: =Q3+1 -> 2029 | V3: =R3+1 -> 2029 | W3: =S3+1 -> 2029 | X3: =T3+1 -> 2030 | Y3: =U3+1 -> 2030 | Z3: =V3+1 -> 2030 | AA3: =W3+1 -> 2030 | AB3: =X3+1 -> 2031 | AC3: =Y3+1 -> 2031 | AD3: =Z3+1 -> 2031 | AE3: =AA3+1 -> 2031 | AF3: =AB3+1 -> 2032 | AG3: =AC3+1 -> 2032 | AH3: =AD3+1 -> 2032 | AI3: =AE3+1 -> 2032 | AJ3: =AF3+1 -> 2033 | AK3: =AG3+1 -> 2033 | AL3: =AH3+1 -> 2033 | AM3: =AI3+1 -> 2033 | AN3: =AJ3+1 -> 2034 | AO3: =AK3+1 -> 2034 | AP3: =AL3+1 -> 2034 | AQ3: =AM3+1 -> 2034 | AR3: =AN3+1 -> 2035 | AS3: =AO3+1 -> 2035 | AT3: =AP3+1 -> 2035 | AU3: =AQ3+1 -> 2035 | AV3: =AR3+1 -> 2036 | AW3: =AS3+1 -> 2036 | AX3: =AT3+1 -> 2036 | AY3: =AU3+1 -> 2036 | AZ3: =AV3+1 -> 2037 | BA3: =AW3+1 -> 2037 | BB3: =AX3+1 -> 2037 | BC3: =AY3+1 -> 2037 | BD3: =AZ3+1 -> 2038 | BE3: =BA3+1 -> 2038 | BF3: =BB3+1 -> 2038 | BG3: =BC3+1 -> 2038 | BH3: =BD3+1 -> 2039 | BI3: =BE3+1 -> 2039 | BJ3: =BF3+1 -> 2039 | BK3: =BG3+1 -> 2039 | BL3: =BH3+1 -> 2040 | BM3: =BI3+1 -> 2040 | BN3: =BJ3+1 -> 2040 | BO3: =BK3+1 -> 2040 | BP3: =BL3+1 -> 2041 | BQ3: =BM3+1 -> 2041 | BR3: =BN3+1 -> 2041 | BS3: =BO3+1 -> 2041 | BT3: =BP3+1 -> 2042 | BU3: =BQ3+1 -> 2042 | BV3: =BR3+1 -> 2042 | BW3: =BS3+1 -> 2042 | BX3: =BT3+1 -> 2043 | BY3: =BU3+1 -> 2043 | BZ3: =BV3+1 -> 2043 | CA3: =BW3+1 -> 2043 | CB3: =BX3+1 -> 2044 | CC3: =BY3+1 -> 2044 | CD3: =BZ3+1 -> 2044 | CE3: =CA3+1 -> 2044 | CF3: =CB3+1 -> 2045 | CG3: =CC3+1 -> 2045 | CH3: =CD3+1 -> 2045 | CI3: =CE3+1 -> 2045 | CJ3: =CF3+1 -> 2046 | CK3: =CG3+1 -> 2046 | CL3: =CH3+1 -> 2046 | CM3: =CI3+1 -> 2046 | CN3: =CJ3+1 -> 2047 | CO3: =CK3+1 -> 2047 | CP3: =CL3+1 -> 2047 | CQ3: =CM3+1 -> 2047 | CR3: =CN3+1 -> 2048 | CS3: =CO3+1 -> 2048 | CT3: =CP3+1 -> 2048 | CU3: =CQ3+1 -> 2048 | CV3: =CR3+1 -> 2049 | CW3: =CS3+1 -> 2049 | CX3: =CT3+1 -> 2049 | CY3: =CU3+1 -> 2049 | CZ3: =CV3+1 -> 2050 | DA3: =CW3+1 -> 2050 | DB3: =CX3+1 -> 2050 | DC3: =CY3+1 -> 2050 | DD3: =CZ3+1 -> 2051 | DE3: =DA3+1 -> 2051 | DF3: =DB3+1 -> 2051 | DG3: =DC3+1 -> 2051 | DH3: =DD3+1 -> 2052 | DI3: =DE3+1 -> 2052 | DJ3: =DF3+1 -> 2052 | DK3: =DG3+1 -> 2052
C4: Trimestre | H4: 1 | I4: =IF(H4=4, 1, H4+1) -> 2 | J4: =IF(I4=4, 1, I4+1) -> 3 | K4: =IF(J4=4, 1, J4+1) -> 4 | L4: =IF(K4=4, 1, K4+1) -> 1 | M4: =IF(L4=4, 1, L4+1) -> 2 | N4: =IF(M4=4, 1, M4+1) -> 3 | O4: 4 | P4: 1 | Q4: 2 | R4: 3 | S4: 4 | T4: 1 | U4: 2 | V4: 3 | W4: 4 | X4: 1 | Y4: 2 | Z4: 3 | AA4: 4 | AB4: 1 | AC4: 2 | AD4: 3 | AE4: 4 | AF4: 1 | AG4: 2 | AH4: 3 | AI4: 4 | AJ4: 1 | AK4: 2 | AL4: 3 | AM4: 4 | AN4: 1 | AO4: 2 | AP4: 3 | AQ4: 4 | AR4: 1 | AS4: 2 | AT4: 3 | AU4: 4 | AV4: 1 | AW4: 2 | AX4: 3 | AY4: 4 | AZ4: 1 | BA4: 2 | BB4: 3 | BC4: 4 | BD4: 1 | BE4: 2 | BF4: 3 | BG4: 4 | BH4: 1 | BI4: 2 | BJ4: 3 | BK4: 4 | BL4: 1 | BM4: 2 | BN4: 3 | BO4: 4 | BP4: 1 | BQ4: 2 | BR4: 3 | BS4: 4 | BT4: 1 | BU4: 2 | BV4: 3 | BW4: 4 | BX4: 1 | BY4: 2 | BZ4: =IF(BY4=4, 1, BY4+1) -> 3 | CA4: 4 | CB4: 1 | CC4: 2 | CD4: 3 | CE4: 4 | CF4: 1 | CG4: 2 | CH4: 3 | CI4: 4 | CJ4: 1 | CK4: 2 | CL4: 3 | CM4: 4 | CN4: 1 | CO4: 2 | CP4: 3 | CQ4: 4 | CR4: 1 | CS4: 2 | CT4: 3 | CU4: 4 | CV4: 1 | CW4: 2 | CX4: 3 | CY4: 4 | CZ4: 1 | DA4: 2 | DB4: 3 | DC4: 4 | DD4: =IF(DC4=4, 1, DC4+1) -> 1 | DE4: 2 | DF4: 3 | DG4: 4 | DH4: 1 | DI4: 2 | DJ4: 3 | DK4: 4
C5: Fim do Período | H5: =EOMONTH(DATE(H3, H4*3, 1), 0) -> 2026-03-31 | I5: =EOMONTH(DATE(I3, I4*3, 1), 0) -> 2026-06-30 | J5: =EOMONTH(DATE(J3, J4*3, 1), 0) -> 2026-09-30 | K5: 2026-12-31 | L5: 2027-03-31 | M5: 2027-06-30 | N5: 2027-09-30 | O5: 2027-12-31 | P5: 2028-03-31 | Q5: 2028-06-30 | R5: 2028-09-30 | S5: 2028-12-31 | T5: 2029-03-31 | U5: 2029-06-30 | V5: 2029-09-30 | W5: 2029-12-31 | X5: 2030-03-31 | Y5: 2030-06-30 | Z5: 2030-09-30 | AA5: 2030-12-31 | AB5: 2031-03-31 | AC5: 2031-06-30 | AD5: 2031-09-30 | AE5: 2031-12-31 | AF5: 2032-03-31 | AG5: 2032-06-30 | AH5: 2032-09-30 | AI5: 2032-12-31 | AJ5: 2033-03-31 | AK5: 2033-06-30 | AL5: 2033-09-30 | AM5: 2033-12-31 | AN5: 2034-03-31 | AO5: 2034-06-30 | AP5: 2034-09-30 | AQ5: 2034-12-31 | AR5: 2035-03-31 | AS5: 2035-06-30 | AT5: 2035-09-30 | AU5: 2035-12-31 | AV5: 2036-03-31 | AW5: 2036-06-30 | AX5: 2036-09-30 | AY5: 2036-12-31 | AZ5: 2037-03-31 | BA5: 2037-06-30 | BB5: 2037-09-30 | BC5: 2037-12-31 | BD5: 2038-03-31 | BE5: 2038-06-30 | BF5: 2038-09-30 | BG5: 2038-12-31 | BH5: 2039-03-31 | BI5: 2039-06-30 | BJ5: 2039-09-30 | BK5: 2039-12-31 | BL5: 2040-03-31 | BM5: 2040-06-30 | BN5: 2040-09-30 | BO5: 2040-12-31 | BP5: 2041-03-31 | BQ5: 2041-06-30 | BR5: 2041-09-30 | BS5: 2041-12-31 | BT5: 2042-03-31 | BU5: 2042-06-30 | BV5: =EOMONTH(DATE(BV3, BV4*3, 1), 0) -> 2042-09-30 | BW5: 2042-12-31 | BX5: 2043-03-31 | BY5: 2043-06-30 | BZ5: 2043-09-30 | CA5: 2043-12-31 | CB5: 2044-03-31 | CC5: 2044-06-30 | CD5: 2044-09-30 | CE5: 2044-12-31 | CF5: 2045-03-31 | CG5: 2045-06-30 | CH5: 2045-09-30 | CI5: 2045-12-31 | CJ5: 2046-03-31 | CK5: 2046-06-30 | CL5: 2046-09-30 | CM5: 2046-12-31 | CN5: 2047-03-31 | CO5: 2047-06-30 | CP5: 2047-09-30 | CQ5: 2047-12-31 | CR5: 2048-03-31 | CS5: 2048-06-30 | CT5: 2048-09-30 | CU5: 2048-12-31 | CV5: 2049-03-31 | CW5: 2049-06-30 | CX5: 2049-09-30 | CY5: 2049-12-31 | CZ5: 2050-03-31 | DA5: 2050-06-30 | DB5: 2050-09-30 | DC5: 2050-12-31 | DD5: =EOMONTH(DATE(DD3, DD4*3, 1), 0) -> 2051-03-31 | DE5: 2051-06-30 | DF5: 2051-09-30 | DG5: 2051-12-31 | DH5: 2052-03-31 | DI5: 2052-06-30 | DJ5: 2052-09-30 | DK5: 2052-12-31
A6: · | B6: Demonstração de Resultados | E6: Unidade
A7: =Resumo!$C$49 -> OK
C8: Receitas | AG8: .
C9: =Cálculos!C352 -> Produção Vendida | E9: EUR | G9: =SUM(H9:FC9) -> 55990694.68 | H9: =SUMIFS(Cálculos!$I229:$QJ229, Cálculos!$I$8:$QJ$8, H$3, Cálculos!$I$10:$QJ$10, H$4) -> 0 | I9: =SUMIFS(Cálculos!$I229:$QJ229, Cálculos!$I$8:$QJ$8, I$3, Cálculos!$I$10:$QJ$10, I$4) -> 0 | J9: =SUMIFS(Cálculos!$I229:$QJ229, Cálculos!$I$8:$QJ$8, J$3, Cálculos!$I$10:$QJ$10, J$4) -> 0 | K9: =SUMIFS(Cálculos!$I229:$QJ229, Cálculos!$I$8:$QJ$8, K$3, Cálculos!$I$10:$QJ$10, K$4) -> 0 | L9: =SUMIFS(Cálculos!$I229:$QJ229, Cálculos!$I$8:$QJ$8, L$3, Cálculos!$I$10:$QJ$10, L$4) -> 0 | M9: =SUMIFS(Cálculos!$I229:$QJ229, Cálculos!$I$8:$QJ$8, M$3, Cálculos!$I$10:$QJ$10, M$4) -> 0 | N9: =SUMIFS(Cálculos!$I229:$QJ229, Cálculos!$I$8:$QJ$8, N$3, Cálculos!$I$10:$QJ$10, N$4) -> 0 | O9: =SUMIFS(Cálculos!$I229:$QJ229, Cálculos!$I$8:$QJ$8, O$3, Cálculos!$I$10:$QJ$10, O$4) -> 0 | P9: =SUMIFS(Cálculos!$I229:$QJ229, Cálculos!$I$8:$QJ$8, P$3, Cálculos!$I$10:$QJ$10, P$4) -> 467996.4565 | Q9: =SUMIFS(Cálculos!$I229:$QJ229, Cálculos!$I$8:$QJ$8, Q$3, Cálculos!$I$10:$QJ$10, Q$4) -> 702028.8132 | R9: =SUMIFS(Cálculos!$I229:$QJ229, Cálculos!$I$8:$QJ$8, R$3, Cálculos!$I$10:$QJ$10, R$4) -> 801156.5688 | S9: =SUMIFS(Cálculos!$I229:$QJ229, Cálculos!$I$8:$QJ$8, S$3, Cálculos!$I$10:$QJ$10, S$4) -> 431080.0966 | T9: =SUMIFS(Cálculos!$I229:$QJ229, Cálculos!$I$8:$QJ$8, T$3, Cálculos!$I$10:$QJ$10, T$4) -> 475727.9292 | U9: =SUMIFS(Cálculos!$I229:$QJ229, Cálculos!$I$8:$QJ$8, U$3, Cálculos!$I$10:$QJ$10, U$4) -> 714314.3174 | V9: =SUMIFS(Cálculos!$I229:$QJ229, Cálculos!$I$8:$QJ$8, V$3, Cálculos!$I$10:$QJ$10, V$4) -> 814902.9526 | W9: =SUMIFS(Cálculos!$I229:$QJ229, Cálculos!$I$8:$QJ$8, W$3, Cálculos!$I$10:$QJ$10, W$4) -> 430722.1755 | X9: =SUMIFS(Cálculos!$I229:$QJ229, Cálculos!$I$8:$QJ$8, X$3, Cálculos!$I$10:$QJ$10, X$4) -> 479479.4644 | Y9: =SUMIFS(Cálculos!$I229:$QJ229, Cálculos!$I$8:$QJ$8, Y$3, Cálculos!$I$10:$QJ$10, Y$4) -> 726814.818 | Z9: =SUMIFS(Cálculos!$I229:$QJ229, Cálculos!$I$8:$QJ$8, Z$3, Cálculos!$I$10:$QJ$10, Z$4) -> 813835.0749 | AA9: =SUMIFS(Cálculos!$I229:$QJ229, Cálculos!$I$8:$QJ$8, AA$3, Cálculos!$I$10:$QJ$10, AA$4) -> 426307.8959 | AB9: =SUMIFS(Cálculos!$I229:$QJ229, Cálculos!$I$8:$QJ$8, AB$3, Cálculos!$I$10:$QJ$10, AB$4) -> 479913.8995 | AC9: =SUMIFS(Cálculos!$I229:$QJ229, Cálculos!$I$8:$QJ$8, AC$3, Cálculos!$I$10:$QJ$10, AC$4) -> 737982.9468 | AD9: =SUMIFS(Cálculos!$I229:$QJ229, Cálculos!$I$8:$QJ$8, AD$3, Cálculos!$I$10:$QJ$10, AD$4) -> 805607.1769 | AE9: =SUMIFS(Cálculos!$I229:$QJ229, Cálculos!$I$8:$QJ$8, AE$3, Cálculos!$I$10:$QJ$10, AE$4) -> 421937.5573 | AF9: =SUMIFS(Cálculos!$I229:$QJ229, Cálculos!$I$8:$QJ$8, AF$3, Cálculos!$I$10:$QJ$10, AF$4) -> 474874.3079 | AG9: =SUMIFS(Cálculos!$I229:$QJ229, Cálculos!$I$8:$QJ$8, AG$3, Cálculos!$I$10:$QJ$10, AG$4) -> 737010.0198 | AH9: =SUMIFS(Cálculos!$I229:$QJ229, Cálculos!$I$8:$QJ$8, AH$3, Cálculos!$I$10:$QJ$10, AH$4) -> 797461.1818 | AI9: =SUMIFS(Cálculos!$I229:$QJ229, Cálculos!$I$8:$QJ$8, AI$3, Cálculos!$I$10:$QJ$10, AI$4) -> 417610.7224 | AJ9: =SUMIFS(Cálculos!$I229:$QJ229, Cálculos!$I$8:$QJ$8, AJ$3, Cálculos!$I$10:$QJ$10, AJ$4) -> 470160.3011 | AK9: =SUMIFS(Cálculos!$I229:$QJ229, Cálculos!$I$8:$QJ$8, AK$3, Cálculos!$I$10:$QJ$10, AK$4) -> 735819.1554 | AL9: =SUMIFS(Cálculos!$I229:$QJ229, Cálculos!$I$8:$QJ$8, AL$3, Cálculos!$I$10:$QJ$10, AL$4) -> 789396.2744 | AM9: =SUMIFS(Cálculos!$I229:$QJ229, Cálculos!$I$8:$QJ$8, AM$3, Cálculos!$I$10:$QJ$10, AM$4) -> 413326.958 | AN9: =SUMIFS(Cálculos!$I229:$QJ229, Cálculos!$I$8:$QJ$8, AN$3, Cálculos!$I$10:$QJ$10, AN$4) -> 465356.1981 | AO9: =SUMIFS(Cálculos!$I229:$QJ229, Cálculos!$I$8:$QJ$8, AO$3, Cálculos!$I$10:$QJ$10, AO$4) -> 731105.7829 | AP9: =SUMIFS(Cálculos!$I229:$QJ229, Cálculos!$I$8:$QJ$8, AP$3, Cálculos!$I$10:$QJ$10, AP$4) -> 781411.6475 | AQ9: =SUMIFS(Cálculos!$I229:$QJ229, Cálculos!$I$8:$QJ$8, AQ$3, Cálculos!$I$10:$QJ$10, AQ$4) -> 409085.8355 | AR9: =SUMIFS(Cálculos!$I229:$QJ229, Cálculos!$I$8:$QJ$8, AR$3, Cálculos!$I$10:$QJ$10, AR$4) -> 460599.9165 | AS9: =SUMIFS(Cálculos!$I229:$QJ229, Cálculos!$I$8:$QJ$8, AS$3, Cálculos!$I$10:$QJ$10, AS$4) -> 723702.7742 | AT9: =SUMIFS(Cálculos!$I229:$QJ229, Cálculos!$I$8:$QJ$8, AT$3, Cálculos!$I$10:$QJ$10, AT$4) -> 773506.5018 | AU9: =SUMIFS(Cálculos!$I229:$QJ229, Cálculos!$I$8:$QJ$8, AU$3, Cálculos!$I$10:$QJ$10, AU$4) -> 404886.9304 | AV9: =SUMIFS(Cálculos!$I229:$QJ229, Cálculos!$I$8:$QJ$8, AV$3, Cálculos!$I$10:$QJ$10, AV$4) -> 455752.582 | AW9: =SUMIFS(Cálculos!$I229:$QJ229, Cálculos!$I$8:$QJ$8, AW$3, Cálculos!$I$10:$QJ$10, AW$4) -> 716373.4573 | AX9: =SUMIFS(Cálculos!$I229:$QJ229, Cálculos!$I$8:$QJ$8, AX$3, Cálculos!$I$10:$QJ$10, AX$4) -> 765680.0463 | AY9: =SUMIFS(Cálculos!$I229:$QJ229, Cálculos!$I$8:$QJ$8, AY$3, Cálculos!$I$10:$QJ$10, AY$4) -> 400729.8223 | AZ9: =SUMIFS(Cálculos!$I229:$QJ229, Cálculos!$I$8:$QJ$8, AZ$3, Cálculos!$I$10:$QJ$10, AZ$4) -> 451228.9184 | BA9: =SUMIFS(Cálculos!$I229:$QJ229, Cálculos!$I$8:$QJ$8, BA$3, Cálculos!$I$10:$QJ$10, BA$4) -> 709117.0986 | BB9: =SUMIFS(Cálculos!$I229:$QJ229, Cálculos!$I$8:$QJ$8, BB$3, Cálculos!$I$10:$QJ$10, BB$4) -> 757931.4977 | BC9: =SUMIFS(Cálculos!$I229:$QJ229, Cálculos!$I$8:$QJ$8, BC$3, Cálculos!$I$10:$QJ$10, BC$4) -> 396614.0954 | BD9: =SUMIFS(Cálculos!$I229:$QJ229, Cálculos!$I$8:$QJ$8, BD$3, Cálculos!$I$10:$QJ$10, BD$4) -> 446613.264 | BE9: =SUMIFS(Cálculos!$I229:$QJ229, Cálculos!$I$8:$QJ$8, BE$3, Cálculos!$I$10:$QJ$10, BE$4) -> 701932.9718 | BF9: =SUMIFS(Cálculos!$I229:$QJ229, Cálculos!$I$8:$QJ$8, BF$3, Cálculos!$I$10:$QJ$10, BF$4) -> 750260.0803 | BG9: =SUMIFS(Cálculos!$I229:$QJ229, Cálculos!$I$8:$QJ$8, BG$3, Cálculos!$I$10:$QJ$10, BG$4) -> 392539.3376 | BH9: =SUMIFS(Cálculos!$I229:$QJ229, Cálculos!$I$8:$QJ$8, BH$3, Cálculos!$I$10:$QJ$10, BH$4) -> 442043.5551 | BI9: =SUMIFS(Cálculos!$I229:$QJ229, Cálculos!$I$8:$QJ$8, BI$3, Cálculos!$I$10:$QJ$10, BI$4) -> 694820.3579 | BJ9: =SUMIFS(Cálculos!$I229:$QJ229, Cálculos!$I$8:$QJ$8, BJ$3, Cálculos!$I$10:$QJ$10, BJ$4) -> 742665.0265 | BK9: =SUMIFS(Cálculos!$I229:$QJ229, Cálculos!$I$8:$QJ$8, BK$3, Cálculos!$I$10:$QJ$10, BK$4) -> 388505.1412 | BL9: =SUMIFS(Cálculos!$I229:$QJ229, Cálculos!$I$8:$QJ$8, BL$3, Cálculos!$I$10:$QJ$10, BL$4) -> 437380.9361 | BM9: =SUMIFS(Cálculos!$I229:$QJ229, Cálculos!$I$8:$QJ$8, BM$3, Cálculos!$I$10:$QJ$10, BM$4) -> 687778.545 | BN9: =SUMIFS(Cálculos!$I229:$QJ229, Cálculos!$I$8:$QJ$8, BN$3, Cálculos!$I$10:$QJ$10, BN$4) -> 735145.5762 | BO9: =SUMIFS(Cálculos!$I229:$QJ229, Cálculos!$I$8:$QJ$8, BO$3, Cálculos!$I$10:$QJ$10, BO$4) -> 384511.1023 | BP9: =SUMIFS(Cálculos!$I229:$QJ229, Cálculos!$I$8:$QJ$8, BP$3, Cálculos!$I$10:$QJ$10, BP$4) -> 433040.1493 | BQ9: =SUMIFS(Cálculos!$I229:$QJ229, Cálculos!$I$8:$QJ$8, BQ$3, Cálculos!$I$10:$QJ$10, BQ$4) -> 680806.8285 | BR9: =SUMIFS(Cálculos!$I229:$QJ229, Cálculos!$I$8:$QJ$8, BR$3, Cálculos!$I$10:$QJ$10, BR$4) -> 727700.9766 | BS9: =SUMIFS(Cálculos!$I229:$QJ229, Cálculos!$I$8:$QJ$8, BS$3, Cálculos!$I$10:$QJ$10, BS$4) -> 380556.8213 | BT9: =SUMIFS(Cálculos!$I229:$QJ229, Cálculos!$I$8:$QJ$8, BT$3, Cálculos!$I$10:$QJ$10, BT$4) -> 428605.5512 | BU9: =SUMIFS(Cálculos!$I229:$QJ229, Cálculos!$I$8:$QJ$8, BU$3, Cálculos!$I$10:$QJ$10, BU$4) -> 673904.5104 | BV9: =SUMIFS(Cálculos!$I229:$QJ229, Cálculos!$I$8:$QJ$8, BV$3, Cálculos!$I$10:$QJ$10, BV$4) -> 720330.4827 | BW9: =SUMIFS(Cálculos!$I229:$QJ229, Cálculos!$I$8:$QJ$8, BW$3, Cálculos!$I$10:$QJ$10, BW$4) -> 376641.9024 | BX9: =SUMIFS(Cálculos!$I229:$QJ229, Cálculos!$I$8:$QJ$8, BX$3, Cálculos!$I$10:$QJ$10, BX$4) -> 424215.0963 | BY9: =SUMIFS(Cálculos!$I229:$QJ229, Cálculos!$I$8:$QJ$8, BY$3, Cálculos!$I$10:$QJ$10, BY$4) -> 667070.9001 | BZ9: =SUMIFS(Cálculos!$I229:$QJ229, Cálculos!$I$8:$QJ$8, BZ$3, Cálculos!$I$10:$QJ$10, BZ$4) -> 713033.357 | CA9: =SUMIFS(Cálculos!$I229:$QJ229, Cálculos!$I$8:$QJ$8, CA$3, Cálculos!$I$10:$QJ$10, CA$4) -> 372765.9537 | CB9: =SUMIFS(Cálculos!$I229:$QJ229, Cálculos!$I$8:$QJ$8, CB$3, Cálculos!$I$10:$QJ$10, CB$4) -> 419729.947 | CC9: =SUMIFS(Cálculos!$I229:$QJ229, Cálculos!$I$8:$QJ$8, CC$3, Cálculos!$I$10:$QJ$10, CC$4) -> 660305.3135 | CD9: =SUMIFS(Cálculos!$I229:$QJ229, Cálculos!$I$8:$QJ$8, CD$3, Cálculos!$I$10:$QJ$10, CD$4) -> 705808.8689 | CE9: =SUMIFS(Cálculos!$I229:$QJ229, Cálculos!$I$8:$QJ$8, CE$3, Cálculos!$I$10:$QJ$10, CE$4) -> 368928.5873 | CF9: =SUMIFS(Cálculos!$I229:$QJ229, Cálculos!$I$8:$QJ$8, CF$3, Cálculos!$I$10:$QJ$10, CF$4) -> 415564.8633 | CG9: =SUMIFS(Cálculos!$I229:$QJ229, Cálculos!$I$8:$QJ$8, CG$3, Cálculos!$I$10:$QJ$10, CG$4) -> 653607.0735 | CH9: =SUMIFS(Cálculos!$I229:$QJ229, Cálculos!$I$8:$QJ$8, CH$3, Cálculos!$I$10:$QJ$10, CH$4) -> 698656.2955 | CI9: =SUMIFS(Cálculos!$I229:$QJ229, Cálculos!$I$8:$QJ$8, CI$3, Cálculos!$I$10:$QJ$10, CI$4) -> 365129.4192 | CJ9: =SUMIFS(Cálculos!$I229:$QJ229, Cálculos!$I$8:$QJ$8, CJ$3, Cálculos!$I$10:$QJ$10, CJ$4) -> 411304.2194 | CK9: =SUMIFS(Cálculos!$I229:$QJ229, Cálculos!$I$8:$QJ$8, CK$3, Cálculos!$I$10:$QJ$10, CK$4) -> 646975.5098 | CL9: =SUMIFS(Cálculos!$I229:$QJ229, Cálculos!$I$8:$QJ$8, CL$3, Cálculos!$I$10:$QJ$10, CL$4) -> 691574.921 | CM9: =SUMIFS(Cálculos!$I229:$QJ229, Cálculos!$I$8:$QJ$8, CM$3, Cálculos!$I$10:$QJ$10, CM$4) -> 361368.0691 | CN9: =SUMIFS(Cálculos!$I229:$QJ229, Cálculos!$I$8:$QJ$8, CN$3, Cálculos!$I$10:$QJ$10, CN$4) -> 407085.9871 | CO9: =SUMIFS(Cálculos!$I229:$QJ229, Cálculos!$I$8:$QJ$8, CO$3, Cálculos!$I$10:$QJ$10, CO$4) -> 640409.9586 | CP9: =SUMIFS(Cálculos!$I229:$QJ229, Cálculos!$I$8:$QJ$8, CP$3, Cálculos!$I$10:$QJ$10, CP$4) -> 684564.0365 | CQ9: =SUMIFS(Cálculos!$I229:$QJ229, Cálculos!$I$8:$QJ$8, CQ$3, Cálculos!$I$10:$QJ$10, CQ$4) -> 357644.1607 | CR9: =SUMIFS(Cálculos!$I229:$QJ229, Cálculos!$I$8:$QJ$8, CR$3, Cálculos!$I$10:$QJ$10, CR$4) -> 402771.3459 | CS9: =SUMIFS(Cálculos!$I229:$QJ229, Cálculos!$I$8:$QJ$8, CS$3, Cálculos!$I$10:$QJ$10, CS$4) -> 633909.7629 | CT9: =SUMIFS(Cálculos!$I229:$QJ229, Cálculos!$I$8:$QJ$8, CT$3, Cálculos!$I$10:$QJ$10, CT$4) -> 677622.9404 | CU9: =SUMIFS(Cálculos!$I229:$QJ229, Cálculos!$I$8:$QJ$8, CU$3, Cálculos!$I$10:$QJ$10, CU$4) -> 353957.3211 | CV9: =SUMIFS(Cálculos!$I229:$QJ229, Cálculos!$I$8:$QJ$8, CV$3, Cálculos!$I$10:$QJ$10, CV$4) -> 398775.0732 | CW9: =SUMIFS(Cálculos!$I229:$QJ229, Cálculos!$I$8:$QJ$8, CW$3, Cálculos!$I$10:$QJ$10, CW$4) -> 627474.272 | CX9: =SUMIFS(Cálculos!$I229:$QJ229, Cálculos!$I$8:$QJ$8, CX$3, Cálculos!$I$10:$QJ$10, CX$4) -> 670750.9381 | CY9: =SUMIFS(Cálculos!$I229:$QJ229, Cálculos!$I$8:$QJ$8, CY$3, Cálculos!$I$10:$QJ$10, CY$4) -> 350307.1814 | CZ9: =SUMIFS(Cálculos!$I229:$QJ229, Cálculos!$I$8:$QJ$8, CZ$3, Cálculos!$I$10:$QJ$10, CZ$4) -> 394681.5597 | DA9: =SUMIFS(Cálculos!$I229:$QJ229, Cálculos!$I$8:$QJ$8, DA$3, Cálculos!$I$10:$QJ$10, DA$4) -> 621102.8418 | DB9: =SUMIFS(Cálculos!$I229:$QJ229, Cálculos!$I$8:$QJ$8, DB$3, Cálculos!$I$10:$QJ$10, DB$4) -> 663947.3416 | DC9: =SUMIFS(Cálculos!$I229:$QJ229, Cálculos!$I$8:$QJ$8, DC$3, Cálculos!$I$10:$QJ$10, DC$4) -> 346693.3762 | DD9: =SUMIFS(Cálculos!$I229:$QJ229, Cálculos!$I$8:$QJ$8, DD$3, Cálculos!$I$10:$QJ$10, DD$4) -> 390628.7943 | DE9: =SUMIFS(Cálculos!$I229:$QJ229, Cálculos!$I$8:$QJ$8, DE$3, Cálculos!$I$10:$QJ$10, DE$4) -> 614794.8348 | DF9: =SUMIFS(Cálculos!$I229:$QJ229, Cálculos!$I$8:$QJ$8, DF$3, Cálculos!$I$10:$QJ$10, DF$4) -> 657211.4702 | DG9: =SUMIFS(Cálculos!$I229:$QJ229, Cálculos!$I$8:$QJ$8, DG$3, Cálculos!$I$10:$QJ$10, DG$4) -> 343115.5439 | DH9: =SUMIFS(Cálculos!$I229:$QJ229, Cálculos!$I$8:$QJ$8, DH$3, Cálculos!$I$10:$QJ$10, DH$4) -> 386477.9728 | DI9: =SUMIFS(Cálculos!$I229:$QJ229, Cálculos!$I$8:$QJ$8, DI$3, Cálculos!$I$10:$QJ$10, DI$4) -> 608549.6195 | DJ9: =SUMIFS(Cálculos!$I229:$QJ229, Cálculos!$I$8:$QJ$8, DJ$3, Cálculos!$I$10:$QJ$10, DJ$4) -> 650542.6496 | DK9: =SUMIFS(Cálculos!$I229:$QJ229, Cálculos!$I$8:$QJ$8, DK$3, Cálculos!$I$10:$QJ$10, DK$4) -> 337304.0171
C10: Armazenamento | E10: EUR | G10: 3898621.102 | H10: =SUMIFS(Cálculos!$I230:$QJ230, Cálculos!$I$8:$QJ$8, H$3, Cálculos!$I$10:$QJ$10, H$4) -> 0 | I10: =SUMIFS(Cálculos!$I230:$QJ230, Cálculos!$I$8:$QJ$8, I$3, Cálculos!$I$10:$QJ$10, I$4) -> 0 | J10: =SUMIFS(Cálculos!$I230:$QJ230, Cálculos!$I$8:$QJ$8, J$3, Cálculos!$I$10:$QJ$10, J$4) -> 0 | K10: =SUMIFS(Cálculos!$I230:$QJ230, Cálculos!$I$8:$QJ$8, K$3, Cálculos!$I$10:$QJ$10, K$4) -> 0 | L10: =SUMIFS(Cálculos!$I230:$QJ230, Cálculos!$I$8:$QJ$8, L$3, Cálculos!$I$10:$QJ$10, L$4) -> 0 | M10: =SUMIFS(Cálculos!$I230:$QJ230, Cálculos!$I$8:$QJ$8, M$3, Cálculos!$I$10:$QJ$10, M$4) -> 0 | N10: =SUMIFS(Cálculos!$I230:$QJ230, Cálculos!$I$8:$QJ$8, N$3, Cálculos!$I$10:$QJ$10, N$4) -> 0 | O10: =SUMIFS(Cálculos!$I230:$QJ230, Cálculos!$I$8:$QJ$8, O$3, Cálculos!$I$10:$QJ$10, O$4) -> 0 | P10: =SUMIFS(Cálculos!$I230:$QJ230, Cálculos!$I$8:$QJ$8, P$3, Cálculos!$I$10:$QJ$10, P$4) -> 46660.80839 | Q10: =SUMIFS(Cálculos!$I230:$QJ230, Cálculos!$I$8:$QJ$8, Q$3, Cálculos!$I$10:$QJ$10, Q$4) -> 51020.44878 | R10: =SUMIFS(Cálculos!$I230:$QJ230, Cálculos!$I$8:$QJ$8, R$3, Cálculos!$I$10:$QJ$10, R$4) -> 47108.41442 | S10: =SUMIFS(Cálculos!$I230:$QJ230, Cálculos!$I$8:$QJ$8, S$3, Cálculos!$I$10:$QJ$10, S$4) -> 45548.44011 | T10: =SUMIFS(Cálculos!$I230:$QJ230, Cálculos!$I$8:$QJ$8, T$3, Cálculos!$I$10:$QJ$10, T$4) -> 45069.498 | U10: =SUMIFS(Cálculos!$I230:$QJ230, Cálculos!$I$8:$QJ$8, U$3, Cálculos!$I$10:$QJ$10, U$4) -> 49763.69914 | V10: =SUMIFS(Cálculos!$I230:$QJ230, Cálculos!$I$8:$QJ$8, V$3, Cálculos!$I$10:$QJ$10, V$4) -> 45337.3653 | W10: =SUMIFS(Cálculos!$I230:$QJ230, Cálculos!$I$8:$QJ$8, W$3, Cálculos!$I$10:$QJ$10, W$4) -> 44745.52133 | X10: =SUMIFS(Cálculos!$I230:$QJ230, Cálculos!$I$8:$QJ$8, X$3, Cálculos!$I$10:$QJ$10, X$4) -> 43964.9658 | Y10: =SUMIFS(Cálculos!$I230:$QJ230, Cálculos!$I$8:$QJ$8, Y$3, Cálculos!$I$10:$QJ$10, Y$4) -> 46116.12218 | Z10: =SUMIFS(Cálculos!$I230:$QJ230, Cálculos!$I$8:$QJ$8, Z$3, Cálculos!$I$10:$QJ$10, Z$4) -> 44316.38594 | AA10: =SUMIFS(Cálculos!$I230:$QJ230, Cálculos!$I$8:$QJ$8, AA$3, Cálculos!$I$10:$QJ$10, AA$4) -> 44173.36671 | AB10: =SUMIFS(Cálculos!$I230:$QJ230, Cálculos!$I$8:$QJ$8, AB$3, Cálculos!$I$10:$QJ$10, AB$4) -> 43074.02003 | AC10: =SUMIFS(Cálculos!$I230:$QJ230, Cálculos!$I$8:$QJ$8, AC$3, Cálculos!$I$10:$QJ$10, AC$4) -> 44387.19518 | AD10: =SUMIFS(Cálculos!$I230:$QJ230, Cálculos!$I$8:$QJ$8, AD$3, Cálculos!$I$10:$QJ$10, AD$4) -> 43748.50305 | AE10: =SUMIFS(Cálculos!$I230:$QJ230, Cálculos!$I$8:$QJ$8, AE$3, Cálculos!$I$10:$QJ$10, AE$4) -> 43606.90747 | AF10: =SUMIFS(Cálculos!$I230:$QJ230, Cálculos!$I$8:$QJ$8, AF$3, Cálculos!$I$10:$QJ$10, AF$4) -> 42993.71762 | AG10: =SUMIFS(Cálculos!$I230:$QJ230, Cálculos!$I$8:$QJ$8, AG$3, Cálculos!$I$10:$QJ$10, AG$4) -> 43418.56827 | AH10: =SUMIFS(Cálculos!$I230:$QJ230, Cálculos!$I$8:$QJ$8, AH$3, Cálculos!$I$10:$QJ$10, AH$4) -> 43186.27303 | AI10: =SUMIFS(Cálculos!$I230:$QJ230, Cálculos!$I$8:$QJ$8, AI$3, Cálculos!$I$10:$QJ$10, AI$4) -> 43046.08694 | AJ10: =SUMIFS(Cálculos!$I230:$QJ230, Cálculos!$I$8:$QJ$8, AJ$3, Cálculos!$I$10:$QJ$10, AJ$4) -> 41974.00098 | AK10: =SUMIFS(Cálculos!$I230:$QJ230, Cálculos!$I$8:$QJ$8, AK$3, Cálculos!$I$10:$QJ$10, AK$4) -> 42473.64365 | AL10: =SUMIFS(Cálculos!$I230:$QJ230, Cálculos!$I$8:$QJ$8, AL$3, Cálculos!$I$10:$QJ$10, AL$4) -> 42629.63962 | AM10: =SUMIFS(Cálculos!$I230:$QJ230, Cálculos!$I$8:$QJ$8, AM$3, Cálculos!$I$10:$QJ$10, AM$4) -> 42490.84898 | AN10: =SUMIFS(Cálculos!$I230:$QJ230, Cálculos!$I$8:$QJ$8, AN$3, Cálculos!$I$10:$QJ$10, AN$4) -> 41432.19019 | AO10: =SUMIFS(Cálculos!$I230:$QJ230, Cálculos!$I$8:$QJ$8, AO$3, Cálculos!$I$10:$QJ$10, AO$4) -> 41756.44378 | AP10: =SUMIFS(Cálculos!$I230:$QJ230, Cálculos!$I$8:$QJ$8, AP$3, Cálculos!$I$10:$QJ$10, AP$4) -> 42078.5471 | AQ10: =SUMIFS(Cálculos!$I230:$QJ230, Cálculos!$I$8:$QJ$8, AQ$3, Cálculos!$I$10:$QJ$10, AQ$4) -> 41941.13802 | AR10: =SUMIFS(Cálculos!$I230:$QJ230, Cálculos!$I$8:$QJ$8, AR$3, Cálculos!$I$10:$QJ$10, AR$4) -> 40895.77275 | AS10: =SUMIFS(Cálculos!$I230:$QJ230, Cálculos!$I$8:$QJ$8, AS$3, Cálculos!$I$10:$QJ$10, AS$4) -> 41215.42096 | AT10: =SUMIFS(Cálculos!$I230:$QJ230, Cálculos!$I$8:$QJ$8, AT$3, Cálculos!$I$10:$QJ$10, AT$4) -> 41532.94031 | AU10: =SUMIFS(Cálculos!$I230:$QJ230, Cálculos!$I$8:$QJ$8, AU$3, Cálculos!$I$10:$QJ$10, AU$4) -> 41396.89905 | AV10: =SUMIFS(Cálculos!$I230:$QJ230, Cálculos!$I$8:$QJ$8, AV$3, Cálculos!$I$10:$QJ$10, AV$4) -> 40813.19144 | AW10: =SUMIFS(Cálculos!$I230:$QJ230, Cálculos!$I$8:$QJ$8, AW$3, Cálculos!$I$10:$QJ$10, AW$4) -> 40679.78365 | AX10: =SUMIFS(Cálculos!$I230:$QJ230, Cálculos!$I$8:$QJ$8, AX$3, Cálculos!$I$10:$QJ$10, AX$4) -> 40992.76466 | AY10: =SUMIFS(Cálculos!$I230:$QJ230, Cálculos!$I$8:$QJ$8, AY$3, Cálculos!$I$10:$QJ$10, AY$4) -> 40858.07759 | AZ10: =SUMIFS(Cálculos!$I230:$QJ230, Cálculos!$I$8:$QJ$8, AZ$3, Cálculos!$I$10:$QJ$10, AZ$4) -> 39838.90369 | BA10: =SUMIFS(Cálculos!$I230:$QJ230, Cálculos!$I$8:$QJ$8, BA$3, Cálculos!$I$10:$QJ$10, BA$4) -> 40149.47823 | BB10: =SUMIFS(Cálculos!$I230:$QJ230, Cálculos!$I$8:$QJ$8, BB$3, Cálculos!$I$10:$QJ$10, BB$4) -> 40457.96607 | BC10: =SUMIFS(Cálculos!$I230:$QJ230, Cálculos!$I$8:$QJ$8, BC$3, Cálculos!$I$10:$QJ$10, BC$4) -> 40324.61972 | BD10: =SUMIFS(Cálculos!$I230:$QJ230, Cálculos!$I$8:$QJ$8, BD$3, Cálculos!$I$10:$QJ$10, BD$4) -> 39318.34629 | BE10: =SUMIFS(Cálculos!$I230:$QJ230, Cálculos!$I$8:$QJ$8, BE$3, Cálculos!$I$10:$QJ$10, BE$4) -> 39624.45162 | BF10: =SUMIFS(Cálculos!$I230:$QJ230, Cálculos!$I$8:$QJ$8, BF$3, Cálculos!$I$10:$QJ$10, BF$4) -> 39928.49103 | BG10: =SUMIFS(Cálculos!$I230:$QJ230, Cálculos!$I$8:$QJ$8, BG$3, Cálculos!$I$10:$QJ$10, BG$4) -> 39796.47204 | BH10: =SUMIFS(Cálculos!$I230:$QJ230, Cálculos!$I$8:$QJ$8, BH$3, Cálculos!$I$10:$QJ$10, BH$4) -> 38802.97067 | BI10: =SUMIFS(Cálculos!$I230:$QJ230, Cálculos!$I$8:$QJ$8, BI$3, Cálculos!$I$10:$QJ$10, BI$4) -> 39104.65128 | BJ10: =SUMIFS(Cálculos!$I230:$QJ230, Cálculos!$I$8:$QJ$8, BJ$3, Cálculos!$I$10:$QJ$10, BJ$4) -> 39404.28653 | BK10: =SUMIFS(Cálculos!$I230:$QJ230, Cálculos!$I$8:$QJ$8, BK$3, Cálculos!$I$10:$QJ$10, BK$4) -> 39273.5817 | BL10: =SUMIFS(Cálculos!$I230:$QJ230, Cálculos!$I$8:$QJ$8, BL$3, Cálculos!$I$10:$QJ$10, BL$4) -> 38718.19984 | BM10: =SUMIFS(Cálculos!$I230:$QJ230, Cálculos!$I$8:$QJ$8, BM$3, Cálculos!$I$10:$QJ$10, BM$4) -> 38590.02519 | BN10: =SUMIFS(Cálculos!$I230:$QJ230, Cálculos!$I$8:$QJ$8, BN$3, Cálculos!$I$10:$QJ$10, BN$4) -> 38885.30012 | BO10: =SUMIFS(Cálculos!$I230:$QJ230, Cálculos!$I$8:$QJ$8, BO$3, Cálculos!$I$10:$QJ$10, BO$4) -> 38755.89637 | BP10: =SUMIFS(Cálculos!$I230:$QJ230, Cálculos!$I$8:$QJ$8, BP$3, Cálculos!$I$10:$QJ$10, BP$4) -> 37787.55897 | BQ10: =SUMIFS(Cálculos!$I230:$QJ230, Cálculos!$I$8:$QJ$8, BQ$3, Cálculos!$I$10:$QJ$10, BQ$4) -> 38080.52183 | BR10: =SUMIFS(Cálculos!$I230:$QJ230, Cálculos!$I$8:$QJ$8, BR$3, Cálculos!$I$10:$QJ$10, BR$4) -> 38371.47986 | BS10: =SUMIFS(Cálculos!$I230:$QJ230, Cálculos!$I$8:$QJ$8, BS$3, Cálculos!$I$10:$QJ$10, BS$4) -> 38243.36422 | BT10: =SUMIFS(Cálculos!$I230:$QJ230, Cálculos!$I$8:$QJ$8, BT$3, Cálculos!$I$10:$QJ$10, BT$4) -> 37287.42125 | BU10: =SUMIFS(Cálculos!$I230:$QJ230, Cálculos!$I$8:$QJ$8, BU$3, Cálculos!$I$10:$QJ$10, BU$4) -> 37576.09022 | BV10: =SUMIFS(Cálculos!$I230:$QJ230, Cálculos!$I$8:$QJ$8, BV$3, Cálculos!$I$10:$QJ$10, BV$4) -> 37862.77431 | BW10: =SUMIFS(Cálculos!$I230:$QJ230, Cálculos!$I$8:$QJ$8, BW$3, Cálculos!$I$10:$QJ$10, BW$4) -> 37735.93398 | BX10: =SUMIFS(Cálculos!$I230:$QJ230, Cálculos!$I$8:$QJ$8, BX$3, Cálculos!$I$10:$QJ$10, BX$4) -> 36792.26206 | BY10: =SUMIFS(Cálculos!$I230:$QJ230, Cálculos!$I$8:$QJ$8, BY$3, Cálculos!$I$10:$QJ$10, BY$4) -> 37076.67988 | BZ10: =SUMIFS(Cálculos!$I230:$QJ230, Cálculos!$I$8:$QJ$8, BZ$3, Cálculos!$I$10:$QJ$10, BZ$4) -> 37359.13257 | CA10: =SUMIFS(Cálculos!$I230:$QJ230, Cálculos!$I$8:$QJ$8, CA$3, Cálculos!$I$10:$QJ$10, CA$4) -> 37233.55484 | CB10: =SUMIFS(Cálculos!$I230:$QJ230, Cálculos!$I$8:$QJ$8, CB$3, Cálculos!$I$10:$QJ$10, CB$4) -> 36705.38761 | CC10: =SUMIFS(Cálculos!$I230:$QJ230, Cálculos!$I$8:$QJ$8, CC$3, Cálculos!$I$10:$QJ$10, CC$4) -> 36582.24081 | CD10: =SUMIFS(Cálculos!$I230:$QJ230, Cálculos!$I$8:$QJ$8, CD$3, Cálculos!$I$10:$QJ$10, CD$4) -> 36860.50422 | CE10: =SUMIFS(Cálculos!$I230:$QJ230, Cálculos!$I$8:$QJ$8, CE$3, Cálculos!$I$10:$QJ$10, CE$4) -> 36736.17653 | CF10: =SUMIFS(Cálculos!$I230:$QJ230, Cálculos!$I$8:$QJ$8, CF$3, Cálculos!$I$10:$QJ$10, CF$4) -> 35816.68149 | CG10: =SUMIFS(Cálculos!$I230:$QJ230, Cálculos!$I$8:$QJ$8, CG$3, Cálculos!$I$10:$QJ$10, CG$4) -> 36092.72353 | CH10: =SUMIFS(Cálculos!$I230:$QJ230, Cálculos!$I$8:$QJ$8, CH$3, Cálculos!$I$10:$QJ$10, CH$4) -> 36366.83937 | CI10: =SUMIFS(Cálculos!$I230:$QJ230, Cálculos!$I$8:$QJ$8, CI$3, Cálculos!$I$10:$QJ$10, CI$4) -> 36243.74927 | CJ10: =SUMIFS(Cálculos!$I230:$QJ230, Cálculos!$I$8:$QJ$8, CJ$3, Cálculos!$I$10:$QJ$10, CJ$4) -> 35336.16247 | CK10: =SUMIFS(Cálculos!$I230:$QJ230, Cálculos!$I$8:$QJ$8, CK$3, Cálculos!$I$10:$QJ$10, CK$4) -> 35608.07905 | CL10: =SUMIFS(Cálculos!$I230:$QJ230, Cálculos!$I$8:$QJ$8, CL$3, Cálculos!$I$10:$QJ$10, CL$4) -> 35878.0886 | CM10: =SUMIFS(Cálculos!$I230:$QJ230, Cálculos!$I$8:$QJ$8, CM$3, Cálculos!$I$10:$QJ$10, CM$4) -> 35756.22378 | CN10: =SUMIFS(Cálculos!$I230:$QJ230, Cálculos!$I$8:$QJ$8, CN$3, Cálculos!$I$10:$QJ$10, CN$4) -> 34860.42668 | CO10: =SUMIFS(Cálculos!$I230:$QJ230, Cálculos!$I$8:$QJ$8, CO$3, Cálculos!$I$10:$QJ$10, CO$4) -> 35128.25886 | CP10: =SUMIFS(Cálculos!$I230:$QJ230, Cálculos!$I$8:$QJ$8, CP$3, Cálculos!$I$10:$QJ$10, CP$4) -> 35394.203 | CQ10: =SUMIFS(Cálculos!$I230:$QJ230, Cálculos!$I$8:$QJ$8, CQ$3, Cálculos!$I$10:$QJ$10, CQ$4) -> 35273.55126 | CR10: =SUMIFS(Cálculos!$I230:$QJ230, Cálculos!$I$8:$QJ$8, CR$3, Cálculos!$I$10:$QJ$10, CR$4) -> 34771.53112 | CS10: =SUMIFS(Cálculos!$I230:$QJ230, Cálculos!$I$8:$QJ$8, CS$3, Cálculos!$I$10:$QJ$10, CS$4) -> 34653.21495 | CT10: =SUMIFS(Cálculos!$I230:$QJ230, Cálculos!$I$8:$QJ$8, CT$3, Cálculos!$I$10:$QJ$10, CT$4) -> 34915.13414 | CU10: =SUMIFS(Cálculos!$I230:$QJ230, Cálculos!$I$8:$QJ$8, CU$3, Cálculos!$I$10:$QJ$10, CU$4) -> 34795.6834 | CV10: =SUMIFS(Cálculos!$I230:$QJ230, Cálculos!$I$8:$QJ$8, CV$3, Cálculos!$I$10:$QJ$10, CV$4) -> 33923.1148 | CW10: =SUMIFS(Cálculos!$I230:$QJ230, Cálculos!$I$8:$QJ$8, CW$3, Cálculos!$I$10:$QJ$10, CW$4) -> 34182.89976 | CX10: =SUMIFS(Cálculos!$I230:$QJ230, Cálculos!$I$8:$QJ$8, CX$3, Cálculos!$I$10:$QJ$10, CX$4) -> 34440.83407 | CY10: =SUMIFS(Cálculos!$I230:$QJ230, Cálculos!$I$8:$QJ$8, CY$3, Cálculos!$I$10:$QJ$10, CY$4) -> 34322.57238 | CZ10: =SUMIFS(Cálculos!$I230:$QJ230, Cálculos!$I$8:$QJ$8, CZ$3, Cálculos!$I$10:$QJ$10, CZ$4) -> 33461.4449 | DA10: =SUMIFS(Cálculos!$I230:$QJ230, Cálculos!$I$8:$QJ$8, DA$3, Cálculos!$I$10:$QJ$10, DA$4) -> 33717.26622 | DB10: =SUMIFS(Cálculos!$I230:$QJ230, Cálculos!$I$8:$QJ$8, DB$3, Cálculos!$I$10:$QJ$10, DB$4) -> 33971.25533 | DC10: =SUMIFS(Cálculos!$I230:$QJ230, Cálculos!$I$8:$QJ$8, DC$3, Cálculos!$I$10:$QJ$10, DC$4) -> 33854.17085 | DD10: =SUMIFS(Cálculos!$I230:$QJ230, Cálculos!$I$8:$QJ$8, DD$3, Cálculos!$I$10:$QJ$10, DD$4) -> 33004.3706 | DE10: =SUMIFS(Cálculos!$I230:$QJ230, Cálculos!$I$8:$QJ$8, DE$3, Cálculos!$I$10:$QJ$10, DE$4) -> 33256.26774 | DF10: =SUMIFS(Cálculos!$I230:$QJ230, Cálculos!$I$8:$QJ$8, DF$3, Cálculos!$I$10:$QJ$10, DF$4) -> 33506.35091 | DG10: =SUMIFS(Cálculos!$I230:$QJ230, Cálculos!$I$8:$QJ$8, DG$3, Cálculos!$I$10:$QJ$10, DG$4) -> 33390.43192 | DH10: =SUMIFS(Cálculos!$I230:$QJ230, Cálculos!$I$8:$QJ$8, DH$3, Cálculos!$I$10:$QJ$10, DH$4) -> 32913.53321 | DI10: =SUMIFS(Cálculos!$I230:$QJ230, Cálculos!$I$8:$QJ$8, DI$3, Cálculos!$I$10:$QJ$10, DI$4) -> 32799.85818 | DJ10: =SUMIFS(Cálculos!$I230:$QJ230, Cálculos!$I$8:$QJ$8, DJ$3, Cálculos!$I$10:$QJ$10, DJ$4) -> 33046.07428 | DK10: =SUMIFS(Cálculos!$I230:$QJ230, Cálculos!$I$8:$QJ$8, DK$3, Cálculos!$I$10:$QJ$10, DK$4) -> 32227.77204
C11: menos: Comprado à EDA | E11: EUR | G11: -3854031.97 | H11: =SUMIFS(Cálculos!$I354:$QJ354, Cálculos!$I$8:$QJ$8, H$3, Cálculos!$I$10:$QJ$10, H$4) -> 0 | I11: =SUMIFS(Cálculos!$I354:$QJ354, Cálculos!$I$8:$QJ$8, I$3, Cálculos!$I$10:$QJ$10, I$4) -> 0 | J11: =SUMIFS(Cálculos!$I354:$QJ354, Cálculos!$I$8:$QJ$8, J$3, Cálculos!$I$10:$QJ$10, J$4) -> 0 | K11: =SUMIFS(Cálculos!$I354:$QJ354, Cálculos!$I$8:$QJ$8, K$3, Cálculos!$I$10:$QJ$10, K$4) -> 0 | L11: =SUMIFS(Cálculos!$I354:$QJ354, Cálculos!$I$8:$QJ$8, L$3, Cálculos!$I$10:$QJ$10, L$4) -> 0 | M11: =SUMIFS(Cálculos!$I354:$QJ354, Cálculos!$I$8:$QJ$8, M$3, Cálculos!$I$10:$QJ$10, M$4) -> 0 | N11: =SUMIFS(Cálculos!$I354:$QJ354, Cálculos!$I$8:$QJ$8, N$3, Cálculos!$I$10:$QJ$10, N$4) -> 0 | O11: =SUMIFS(Cálculos!$I354:$QJ354, Cálculos!$I$8:$QJ$8, O$3, Cálculos!$I$10:$QJ$10, O$4) -> 0 | P11: =SUMIFS(Cálculos!$I354:$QJ354, Cálculos!$I$8:$QJ$8, P$3, Cálculos!$I$10:$QJ$10, P$4) -> -29028.225 | Q11: =SUMIFS(Cálculos!$I354:$QJ354, Cálculos!$I$8:$QJ$8, Q$3, Cálculos!$I$10:$QJ$10, Q$4) -> -1252.218986 | R11: =SUMIFS(Cálculos!$I354:$QJ354, Cálculos!$I$8:$QJ$8, R$3, Cálculos!$I$10:$QJ$10, R$4) -> -26159.34416 | S11: =SUMIFS(Cálculos!$I354:$QJ354, Cálculos!$I$8:$QJ$8, S$3, Cálculos!$I$10:$QJ$10, S$4) -> -44128.66923 | T11: =SUMIFS(Cálculos!$I354:$QJ354, Cálculos!$I$8:$QJ$8, T$3, Cálculos!$I$10:$QJ$10, T$4) -> -34661.34978 | U11: =SUMIFS(Cálculos!$I354:$QJ354, Cálculos!$I$8:$QJ$8, U$3, Cálculos!$I$10:$QJ$10, U$4) -> -9608.515521 | V11: =SUMIFS(Cálculos!$I354:$QJ354, Cálculos!$I$8:$QJ$8, V$3, Cálculos!$I$10:$QJ$10, V$4) -> -40847.88266 | W11: =SUMIFS(Cálculos!$I354:$QJ354, Cálculos!$I$8:$QJ$8, W$3, Cálculos!$I$10:$QJ$10, W$4) -> -46435.10142 | X11: =SUMIFS(Cálculos!$I354:$QJ354, Cálculos!$I$8:$QJ$8, X$3, Cálculos!$I$10:$QJ$10, X$4) -> -41024.53915 | Y11: =SUMIFS(Cálculos!$I354:$QJ354, Cálculos!$I$8:$QJ$8, Y$3, Cálculos!$I$10:$QJ$10, Y$4) -> -18225.08367 | Z11: =SUMIFS(Cálculos!$I354:$QJ354, Cálculos!$I$8:$QJ$8, Z$3, Cálculos!$I$10:$QJ$10, Z$4) -> -46007.33744 | AA11: =SUMIFS(Cálculos!$I354:$QJ354, Cálculos!$I$8:$QJ$8, AA$3, Cálculos!$I$10:$QJ$10, AA$4) -> -45864.77526 | AB11: =SUMIFS(Cálculos!$I354:$QJ354, Cálculos!$I$8:$QJ$8, AB$3, Cálculos!$I$10:$QJ$10, AB$4) -> -44729.10323 | AC11: =SUMIFS(Cálculos!$I354:$QJ354, Cálculos!$I$8:$QJ$8, AC$3, Cálculos!$I$10:$QJ$10, AC$4) -> -32598.35919 | AD11: =SUMIFS(Cálculos!$I354:$QJ354, Cálculos!$I$8:$QJ$8, AD$3, Cálculos!$I$10:$QJ$10, AD$4) -> -45441.26937 | AE11: =SUMIFS(Cálculos!$I354:$QJ354, Cálculos!$I$8:$QJ$8, AE$3, Cálculos!$I$10:$QJ$10, AE$4) -> -45300.12631 | AF11: =SUMIFS(Cálculos!$I354:$QJ354, Cálculos!$I$8:$QJ$8, AF$3, Cálculos!$I$10:$QJ$10, AF$4) -> -44668.97676 | AG11: =SUMIFS(Cálculos!$I354:$QJ354, Cálculos!$I$8:$QJ$8, AG$3, Cálculos!$I$10:$QJ$10, AG$4) -> -37309.26282 | AH11: =SUMIFS(Cálculos!$I354:$QJ354, Cálculos!$I$8:$QJ$8, AH$3, Cálculos!$I$10:$QJ$10, AH$4) -> -44880.83612 | AI11: =SUMIFS(Cálculos!$I354:$QJ354, Cálculos!$I$8:$QJ$8, AI$3, Cálculos!$I$10:$QJ$10, AI$4) -> -44741.09803 | AJ11: =SUMIFS(Cálculos!$I354:$QJ354, Cálculos!$I$8:$QJ$8, AJ$3, Cálculos!$I$10:$QJ$10, AJ$4) -> -43632.59958 | AK11: =SUMIFS(Cálculos!$I354:$QJ354, Cálculos!$I$8:$QJ$8, AK$3, Cálculos!$I$10:$QJ$10, AK$4) -> -41793.15438 | AL11: =SUMIFS(Cálculos!$I354:$QJ354, Cálculos!$I$8:$QJ$8, AL$3, Cálculos!$I$10:$QJ$10, AL$4) -> -44325.98158 | AM11: =SUMIFS(Cálculos!$I354:$QJ354, Cálculos!$I$8:$QJ$8, AM$3, Cálculos!$I$10:$QJ$10, AM$4) -> -44187.63448 | AN11: =SUMIFS(Cálculos!$I354:$QJ354, Cálculos!$I$8:$QJ$8, AN$3, Cálculos!$I$10:$QJ$10, AN$4) -> -43092.5203 | AO11: =SUMIFS(Cálculos!$I354:$QJ354, Cálculos!$I$8:$QJ$8, AO$3, Cálculos!$I$10:$QJ$10, AO$4) -> -43435.65696 | AP11: =SUMIFS(Cálculos!$I354:$QJ354, Cálculos!$I$8:$QJ$8, AP$3, Cálculos!$I$10:$QJ$10, AP$4) -> -43776.65022 | AQ11: =SUMIFS(Cálculos!$I354:$QJ354, Cálculos!$I$8:$QJ$8, AQ$3, Cálculos!$I$10:$QJ$10, AQ$4) -> -43639.68027 | AR11: =SUMIFS(Cálculos!$I354:$QJ354, Cálculos!$I$8:$QJ$8, AR$3, Cálculos!$I$10:$QJ$10, AR$4) -> -42557.81713 | AS11: =SUMIFS(Cálculos!$I354:$QJ354, Cálculos!$I$8:$QJ$8, AS$3, Cálculos!$I$10:$QJ$10, AS$4) -> -42896.36313 | AT11: =SUMIFS(Cálculos!$I354:$QJ354, Cálculos!$I$8:$QJ$8, AT$3, Cálculos!$I$10:$QJ$10, AT$4) -> -43232.78707 | AU11: =SUMIFS(Cálculos!$I354:$QJ354, Cálculos!$I$8:$QJ$8, AU$3, Cálculos!$I$10:$QJ$10, AU$4) -> -43097.18056 | AV11: =SUMIFS(Cálculos!$I354:$QJ354, Cálculos!$I$8:$QJ$8, AV$3, Cálculos!$I$10:$QJ$10, AV$4) -> -42495.41904 | AW11: =SUMIFS(Cálculos!$I354:$QJ354, Cálculos!$I$8:$QJ$8, AW$3, Cálculos!$I$10:$QJ$10, AW$4) -> -42362.43759 | AX11: =SUMIFS(Cálculos!$I354:$QJ354, Cálculos!$I$8:$QJ$8, AX$3, Cálculos!$I$10:$QJ$10, AX$4) -> -42694.33769 | AY11: =SUMIFS(Cálculos!$I354:$QJ354, Cálculos!$I$8:$QJ$8, AY$3, Cálculos!$I$10:$QJ$10, AY$4) -> -42560.08105 | AZ11: =SUMIFS(Cálculos!$I354:$QJ354, Cálculos!$I$8:$QJ$8, AZ$3, Cálculos!$I$10:$QJ$10, AZ$4) -> -41504.32558 | BA11: =SUMIFS(Cálculos!$I354:$QJ354, Cálculos!$I$8:$QJ$8, BA$3, Cálculos!$I$10:$QJ$10, BA$4) -> -41833.8269 | BB11: =SUMIFS(Cálculos!$I354:$QJ354, Cálculos!$I$8:$QJ$8, BB$3, Cálculos!$I$10:$QJ$10, BB$4) -> -42161.2482 | BC11: =SUMIFS(Cálculos!$I354:$QJ354, Cálculos!$I$8:$QJ$8, BC$3, Cálculos!$I$10:$QJ$10, BC$4) -> -42028.32799 | BD11: =SUMIFS(Cálculos!$I354:$QJ354, Cálculos!$I$8:$QJ$8, BD$3, Cálculos!$I$10:$QJ$10, BD$4) -> -40985.43176 | BE11: =SUMIFS(Cálculos!$I354:$QJ354, Cálculos!$I$8:$QJ$8, BE$3, Cálculos!$I$10:$QJ$10, BE$4) -> -41310.47816 | BF11: =SUMIFS(Cálculos!$I354:$QJ354, Cálculos!$I$8:$QJ$8, BF$3, Cálculos!$I$10:$QJ$10, BF$4) -> -41633.46524 | BG11: =SUMIFS(Cálculos!$I354:$QJ354, Cálculos!$I$8:$QJ$8, BG$3, Cálculos!$I$10:$QJ$10, BG$4) -> -41501.86815 | BH11: =SUMIFS(Cálculos!$I354:$QJ354, Cálculos!$I$8:$QJ$8, BH$3, Cálculos!$I$10:$QJ$10, BH$4) -> -40471.70317 | BI11: =SUMIFS(Cálculos!$I354:$QJ354, Cálculos!$I$8:$QJ$8, BI$3, Cálculos!$I$10:$QJ$10, BI$4) -> -40792.33898 | BJ11: =SUMIFS(Cálculos!$I354:$QJ354, Cálculos!$I$8:$QJ$8, BJ$3, Cálculos!$I$10:$QJ$10, BJ$4) -> -41110.93598 | BK11: =SUMIFS(Cálculos!$I354:$QJ354, Cálculos!$I$8:$QJ$8, BK$3, Cálculos!$I$10:$QJ$10, BK$4) -> -40980.64885 | BL11: =SUMIFS(Cálculos!$I354:$QJ354, Cálculos!$I$8:$QJ$8, BL$3, Cálculos!$I$10:$QJ$10, BL$4) -> -40407.12256 | BM11: =SUMIFS(Cálculos!$I354:$QJ354, Cálculos!$I$8:$QJ$8, BM$3, Cálculos!$I$10:$QJ$10, BM$4) -> -40279.35752 | BN11: =SUMIFS(Cálculos!$I354:$QJ354, Cálculos!$I$8:$QJ$8, BN$3, Cálculos!$I$10:$QJ$10, BN$4) -> -40593.60814 | BO11: =SUMIFS(Cálculos!$I354:$QJ354, Cálculos!$I$8:$QJ$8, BO$3, Cálculos!$I$10:$QJ$10, BO$4) -> -40464.61792 | BP11: =SUMIFS(Cálculos!$I354:$QJ354, Cálculos!$I$8:$QJ$8, BP$3, Cálculos!$I$10:$QJ$10, BP$4) -> -39459.53649 | BQ11: =SUMIFS(Cálculos!$I354:$QJ354, Cálculos!$I$8:$QJ$8, BQ$3, Cálculos!$I$10:$QJ$10, BQ$4) -> -39771.48242 | BR11: =SUMIFS(Cálculos!$I354:$QJ354, Cálculos!$I$8:$QJ$8, BR$3, Cálculos!$I$10:$QJ$10, BR$4) -> -40081.42992 | BS11: =SUMIFS(Cálculos!$I354:$QJ354, Cálculos!$I$8:$QJ$8, BS$3, Cálculos!$I$10:$QJ$10, BS$4) -> -39953.72372 | BT11: =SUMIFS(Cálculos!$I354:$QJ354, Cálculos!$I$8:$QJ$8, BT$3, Cálculos!$I$10:$QJ$10, BT$4) -> -38960.9971 | BU11: =SUMIFS(Cálculos!$I354:$QJ354, Cálculos!$I$8:$QJ$8, BU$3, Cálculos!$I$10:$QJ$10, BU$4) -> -39268.66286 | BV11: =SUMIFS(Cálculos!$I354:$QJ354, Cálculos!$I$8:$QJ$8, BV$3, Cálculos!$I$10:$QJ$10, BV$4) -> -39574.35008 | BW11: =SUMIFS(Cálculos!$I354:$QJ354, Cálculos!$I$8:$QJ$8, BW$3, Cálculos!$I$10:$QJ$10, BW$4) -> -39447.9151 | BX11: =SUMIFS(Cálculos!$I354:$QJ354, Cálculos!$I$8:$QJ$8, BX$3, Cálculos!$I$10:$QJ$10, BX$4) -> -38467.42032 | BY11: =SUMIFS(Cálculos!$I354:$QJ354, Cálculos!$I$8:$QJ$8, BY$3, Cálculos!$I$10:$QJ$10, BY$4) -> -38770.84852 | BZ11: =SUMIFS(Cálculos!$I354:$QJ354, Cálculos!$I$8:$QJ$8, BZ$3, Cálculos!$I$10:$QJ$10, BZ$4) -> -39072.31786 | CA11: =SUMIFS(Cálculos!$I354:$QJ354, Cálculos!$I$8:$QJ$8, CA$3, Cálculos!$I$10:$QJ$10, CA$4) -> -38947.14145 | CB11: =SUMIFS(Cálculos!$I354:$QJ354, Cálculos!$I$8:$QJ$8, CB$3, Cálculos!$I$10:$QJ$10, CB$4) -> -38400.74281 | CC11: =SUMIFS(Cálculos!$I354:$QJ354, Cálculos!$I$8:$QJ$8, CC$3, Cálculos!$I$10:$QJ$10, CC$4) -> -38277.98956 | CD11: =SUMIFS(Cálculos!$I354:$QJ354, Cálculos!$I$8:$QJ$8, CD$3, Cálculos!$I$10:$QJ$10, CD$4) -> -38575.28302 | CE11: =SUMIFS(Cálculos!$I354:$QJ354, Cálculos!$I$8:$QJ$8, CE$3, Cálculos!$I$10:$QJ$10, CE$4) -> -38451.35265 | CF11: =SUMIFS(Cálculos!$I354:$QJ354, Cálculos!$I$8:$QJ$8, CF$3, Cálculos!$I$10:$QJ$10, CF$4) -> -37494.95749 | CG11: =SUMIFS(Cálculos!$I354:$QJ354, Cálculos!$I$8:$QJ$8, CG$3, Cálculos!$I$10:$QJ$10, CG$4) -> -37790.03667 | CH11: =SUMIFS(Cálculos!$I354:$QJ354, Cálculos!$I$8:$QJ$8, CH$3, Cálculos!$I$10:$QJ$10, CH$4) -> -38083.1958 | CI11: =SUMIFS(Cálculos!$I354:$QJ354, Cálculos!$I$8:$QJ$8, CI$3, Cálculos!$I$10:$QJ$10, CI$4) -> -37960.49908 | CJ11: =SUMIFS(Cálculos!$I354:$QJ354, Cálculos!$I$8:$QJ$8, CJ$3, Cálculos!$I$10:$QJ$10, CJ$4) -> -37015.9741 | CK11: =SUMIFS(Cálculos!$I354:$QJ354, Cálculos!$I$8:$QJ$8, CK$3, Cálculos!$I$10:$QJ$10, CK$4) -> -37306.941 | CL11: =SUMIFS(Cálculos!$I354:$QJ354, Cálculos!$I$8:$QJ$8, CL$3, Cálculos!$I$10:$QJ$10, CL$4) -> -37596.00697 | CM11: =SUMIFS(Cálculos!$I354:$QJ354, Cálculos!$I$8:$QJ$8, CM$3, Cálculos!$I$10:$QJ$10, CM$4) -> -37474.53161 | CN11: =SUMIFS(Cálculos!$I354:$QJ354, Cálculos!$I$8:$QJ$8, CN$3, Cálculos!$I$10:$QJ$10, CN$4) -> -36541.75865 | CO11: =SUMIFS(Cálculos!$I354:$QJ354, Cálculos!$I$8:$QJ$8, CO$3, Cálculos!$I$10:$QJ$10, CO$4) -> -36828.65421 | CP11: =SUMIFS(Cálculos!$I354:$QJ354, Cálculos!$I$8:$QJ$8, CP$3, Cálculos!$I$10:$QJ$10, CP$4) -> -37113.66776 | CQ11: =SUMIFS(Cálculos!$I354:$QJ354, Cálculos!$I$8:$QJ$8, CQ$3, Cálculos!$I$10:$QJ$10, CQ$4) -> -36993.4016 | CR11: =SUMIFS(Cálculos!$I354:$QJ354, Cálculos!$I$8:$QJ$8, CR$3, Cálculos!$I$10:$QJ$10, CR$4) -> -36473.06649 | CS11: =SUMIFS(Cálculos!$I354:$QJ354, Cálculos!$I$8:$QJ$8, CS$3, Cálculos!$I$10:$QJ$10, CS$4) -> -36355.12843 | CT11: =SUMIFS(Cálculos!$I354:$QJ354, Cálculos!$I$8:$QJ$8, CT$3, Cálculos!$I$10:$QJ$10, CT$4) -> -36636.1299 | CU11: =SUMIFS(Cálculos!$I354:$QJ354, Cálculos!$I$8:$QJ$8, CU$3, Cálculos!$I$10:$QJ$10, CU$4) -> -36517.0609 | CV11: =SUMIFS(Cálculos!$I354:$QJ354, Cálculos!$I$8:$QJ$8, CV$3, Cálculos!$I$10:$QJ$10, CV$4) -> -35607.44221 | CW11: =SUMIFS(Cálculos!$I354:$QJ354, Cálculos!$I$8:$QJ$8, CW$3, Cálculos!$I$10:$QJ$10, CW$4) -> -35886.31626 | CX11: =SUMIFS(Cálculos!$I354:$QJ354, Cálculos!$I$8:$QJ$8, CX$3, Cálculos!$I$10:$QJ$10, CX$4) -> -36163.34558 | CY11: =SUMIFS(Cálculos!$I354:$QJ354, Cálculos!$I$8:$QJ$8, CY$3, Cálculos!$I$10:$QJ$10, CY$4) -> -36045.46183 | CZ11: =SUMIFS(Cálculos!$I354:$QJ354, Cálculos!$I$8:$QJ$8, CZ$3, Cálculos!$I$10:$QJ$10, CZ$4) -> -35147.2477 | DA11: =SUMIFS(Cálculos!$I354:$QJ354, Cálculos!$I$8:$QJ$8, DA$3, Cálculos!$I$10:$QJ$10, DA$4) -> -35422.17078 | DB11: =SUMIFS(Cálculos!$I354:$QJ354, Cálculos!$I$8:$QJ$8, DB$3, Cálculos!$I$10:$QJ$10, DB$4) -> -35695.26751 | DC11: =SUMIFS(Cálculos!$I354:$QJ354, Cálculos!$I$8:$QJ$8, DC$3, Cálculos!$I$10:$QJ$10, DC$4) -> -35578.5572 | DD11: =SUMIFS(Cálculos!$I354:$QJ354, Cálculos!$I$8:$QJ$8, DD$3, Cálculos!$I$10:$QJ$10, DD$4) -> -34691.6341 | DE11: =SUMIFS(Cálculos!$I354:$QJ354, Cálculos!$I$8:$QJ$8, DE$3, Cálculos!$I$10:$QJ$10, DE$4) -> -34962.64555 | DF11: =SUMIFS(Cálculos!$I354:$QJ354, Cálculos!$I$8:$QJ$8, DF$3, Cálculos!$I$10:$QJ$10, DF$4) -> -35231.84881 | DG11: =SUMIFS(Cálculos!$I354:$QJ354, Cálculos!$I$8:$QJ$8, DG$3, Cálculos!$I$10:$QJ$10, DG$4) -> -35116.30028 | DH11: =SUMIFS(Cálculos!$I354:$QJ354, Cálculos!$I$8:$QJ$8, DH$3, Cálculos!$I$10:$QJ$10, DH$4) -> -34621.00632 | DI11: =SUMIFS(Cálculos!$I354:$QJ354, Cálculos!$I$8:$QJ$8, DI$3, Cálculos!$I$10:$QJ$10, DI$4) -> -34507.69456 | DJ11: =SUMIFS(Cálculos!$I354:$QJ354, Cálculos!$I$8:$QJ$8, DJ$3, Cálculos!$I$10:$QJ$10, DJ$4) -> -34773.04313 | DK11: =SUMIFS(Cálculos!$I354:$QJ354, Cálculos!$I$8:$QJ$8, DK$3, Cálculos!$I$10:$QJ$10, DK$4) -> -34168.10365
C12: Receitas Totais | G12: 56035283.81 | H12: =+H9+H10+H11 -> 0 | I12: =+I9+I10+I11 -> 0 | J12: 0 | K12: 0 | L12: 0 | M12: 0 | N12: 0 | O12: 0 | P12: 485629.0399 | Q12: 751797.043 | R12: 822105.6391 | S12: 432499.8674 | T12: 486136.0775 | U12: 754469.501 | V12: 819392.4353 | W12: 429032.5955 | X12: 482419.8911 | Y12: 754705.8565 | Z12: 812144.1233 | AA12: 424616.4874 | AB12: 478258.8163 | AC12: 749771.7828 | AD12: 803914.4106 | AE12: 420244.3385 | AF12: 473199.0488 | AG12: 743119.3252 | AH12: 795766.6188 | AI12: 415915.7113 | AJ12: 468501.7025 | AK12: 736499.6446 | AL12: 787699.9325 | AM12: 411630.1725 | AN12: 463695.868 | AO12: 729426.5697 | AP12: 779713.5443 | AQ12: 407387.2932 | AR12: 458937.8722 | AS12: 722021.8321 | AT12: 771806.6551 | AU12: 403186.6488 | AV12: 454070.3544 | AW12: 714690.8034 | AX12: 763978.4733 | AY12: 399027.8189 | AZ12: 449563.4965 | BA12: 707432.7499 | BB12: 756228.2155 | BC12: 394910.3871 | BD12: 444946.1785 | BE12: 700246.9453 | BF12: 748555.1061 | BG12: 390833.9415 | BH12: 440374.8226 | BI12: 693132.6702 | BJ12: 740958.3771 | BK12: 386798.0741 | BL12: 435692.0134 | BM12: 686089.2127 | BN12: 733437.2681 | BO12: 382802.3808 | BP12: 431368.1717 | BQ12: 679115.8679 | BR12: 725991.0265 | BS12: 378846.4618 | BT12: 426931.9753 | BU12: =+BU9+BU10+BU11 -> 672211.9378 | BV12: 718618.907 | BW12: 374929.9212 | BX12: 422539.9381 | BY12: 665376.7314 | BZ12: 711320.1717 | CA12: 371052.3671 | CB12: 418034.5918 | CC12: 658609.5647 | CD12: 704094.0901 | CE12: 367213.4112 | CF12: 413886.5873 | CG12: 651909.7604 | CH12: 696939.9391 | CI12: 363412.6694 | CJ12: 409624.4077 | CK12: 645276.6478 | CL12: 689857.0026 | CM12: 359649.7613 | CN12: 405404.6551 | CO12: 638709.5633 | CP12: 682844.5717 | CQ12: 355924.3103 | CR12: 401069.8106 | CS12: 632207.8494 | CT12: 675901.9447 | CU12: 352235.9436 | CV12: 397090.7457 | CW12: 625770.8555 | CX12: 669028.4266 | CY12: 348584.2919 | CZ12: 392995.7569 | DA12: 619397.9373 | DB12: 662223.3295 | DC12: 344968.9899 | DD12: 388941.5308 | DE12: 613088.457 | DF12: 655485.9723 | DG12: 341389.6756 | DH12: 384770.4997 | DI12: 606841.7831 | DJ12: 648815.6808 | DK12: 335363.6855
C13: =Cálculos!C356 -> Menos: Custos Operacionais | E13: =Cálculos!E356 -> EUR | G13: -21471629.51 | H13: =SUMIFS(Cálculos!$I356:$QJ356, Cálculos!$I$8:$QJ$8, H$3, Cálculos!$I$10:$QJ$10, H$4) -> 0 | I13: =SUMIFS(Cálculos!$I356:$QJ356, Cálculos!$I$8:$QJ$8, I$3, Cálculos!$I$10:$QJ$10, I$4) -> 0 | J13: =SUMIFS(Cálculos!$I356:$QJ356, Cálculos!$I$8:$QJ$8, J$3, Cálculos!$I$10:$QJ$10, J$4) -> 0 | K13: =SUMIFS(Cálculos!$I356:$QJ356, Cálculos!$I$8:$QJ$8, K$3, Cálculos!$I$10:$QJ$10, K$4) -> 0 | L13: =SUMIFS(Cálculos!$I356:$QJ356, Cálculos!$I$8:$QJ$8, L$3, Cálculos!$I$10:$QJ$10, L$4) -> 0 | M13: =SUMIFS(Cálculos!$I356:$QJ356, Cálculos!$I$8:$QJ$8, M$3, Cálculos!$I$10:$QJ$10, M$4) -> 0 | N13: =SUMIFS(Cálculos!$I356:$QJ356, Cálculos!$I$8:$QJ$8, N$3, Cálculos!$I$10:$QJ$10, N$4) -> 0 | O13: =SUMIFS(Cálculos!$I356:$QJ356, Cálculos!$I$8:$QJ$8, O$3, Cálculos!$I$10:$QJ$10, O$4) -> 0 | P13: =SUMIFS(Cálculos!$I356:$QJ356, Cálculos!$I$8:$QJ$8, P$3, Cálculos!$I$10:$QJ$10, P$4) -> -175267.6991 | Q13: =SUMIFS(Cálculos!$I356:$QJ356, Cálculos!$I$8:$QJ$8, Q$3, Cálculos!$I$10:$QJ$10, Q$4) -> -190341.0591 | R13: =SUMIFS(Cálculos!$I356:$QJ356, Cálculos!$I$8:$QJ$8, R$3, Cálculos!$I$10:$QJ$10, R$4) -> -183070.8046 | S13: =SUMIFS(Cálculos!$I356:$QJ356, Cálculos!$I$8:$QJ$8, S$3, Cálculos!$I$10:$QJ$10, S$4) -> -175278.6892 | T13: =SUMIFS(Cálculos!$I356:$QJ356, Cálculos!$I$8:$QJ$8, T$3, Cálculos!$I$10:$QJ$10, T$4) -> -184796.3151 | U13: =SUMIFS(Cálculos!$I356:$QJ356, Cálculos!$I$8:$QJ$8, U$3, Cálculos!$I$10:$QJ$10, U$4) -> -190399.0572 | V13: =SUMIFS(Cálculos!$I356:$QJ356, Cálculos!$I$8:$QJ$8, V$3, Cálculos!$I$10:$QJ$10, V$4) -> -191933.5894 | W13: =SUMIFS(Cálculos!$I356:$QJ356, Cálculos!$I$8:$QJ$8, W$3, Cálculos!$I$10:$QJ$10, W$4) -> -184126.3926 | X13: =SUMIFS(Cálculos!$I356:$QJ356, Cálculos!$I$8:$QJ$8, X$3, Cálculos!$I$10:$QJ$10, X$4) -> -185661.9664 | Y13: =SUMIFS(Cálculos!$I356:$QJ356, Cálculos!$I$8:$QJ$8, Y$3, Cálculos!$I$10:$QJ$10, Y$4) -> -191343.7593 | Z13: =SUMIFS(Cálculos!$I356:$QJ356, Cálculos!$I$8:$QJ$8, Z$3, Cálculos!$I$10:$QJ$10, Z$4) -> -192728.5983 | AA13: =SUMIFS(Cálculos!$I356:$QJ356, Cálculos!$I$8:$QJ$8, AA$3, Cálculos!$I$10:$QJ$10, AA$4) -> -184978.0456 | AB13: =SUMIFS(Cálculos!$I356:$QJ356, Cálculos!$I$8:$QJ$8, AB$3, Cálculos!$I$10:$QJ$10, AB$4) -> -186542.2194 | AC13: =SUMIFS(Cálculos!$I356:$QJ356, Cálculos!$I$8:$QJ$8, AC$3, Cálculos!$I$10:$QJ$10, AC$4) -> -192208.5523 | AD13: =SUMIFS(Cálculos!$I356:$QJ356, Cálculos!$I$8:$QJ$8, AD$3, Cálculos!$I$10:$QJ$10, AD$4) -> -193902.4785 | AE13: =SUMIFS(Cálculos!$I356:$QJ356, Cálculos!$I$8:$QJ$8, AE$3, Cálculos!$I$10:$QJ$10, AE$4) -> -186229.0771 | AF13: =SUMIFS(Cálculos!$I356:$QJ356, Cálculos!$I$8:$QJ$8, AF$3, Cálculos!$I$10:$QJ$10, AF$4) -> -188039.659 | AG13: =SUMIFS(Cálculos!$I356:$QJ356, Cálculos!$I$8:$QJ$8, AG$3, Cálculos!$I$10:$QJ$10, AG$4) -> -193438.0645 | AH13: =SUMIFS(Cálculos!$I356:$QJ356, Cálculos!$I$8:$QJ$8, AH$3, Cálculos!$I$10:$QJ$10, AH$4) -> -194727.084 | AI13: =SUMIFS(Cálculos!$I356:$QJ356, Cálculos!$I$8:$QJ$8, AI$3, Cálculos!$I$10:$QJ$10, AI$4) -> -187130.0658 | AJ13: =SUMIFS(Cálculos!$I356:$QJ356, Cálculos!$I$8:$QJ$8, AJ$3, Cálculos!$I$10:$QJ$10, AJ$4) -> -188721.8888 | AK13: =SUMIFS(Cálculos!$I356:$QJ356, Cálculos!$I$8:$QJ$8, AK$3, Cálculos!$I$10:$QJ$10, AK$4) -> -194317.9213 | AL13: =SUMIFS(Cálculos!$I356:$QJ356, Cálculos!$I$8:$QJ$8, AL$3, Cálculos!$I$10:$QJ$10, AL$4) -> -195578.0006 | AM13: =SUMIFS(Cálculos!$I356:$QJ356, Cálculos!$I$8:$QJ$8, AM$3, Cálculos!$I$10:$QJ$10, AM$4) -> -188056.6054 | AN13: =SUMIFS(Cálculos!$I356:$QJ356, Cálculos!$I$8:$QJ$8, AN$3, Cálculos!$I$10:$QJ$10, AN$4) -> -189663.3287 | AO13: =SUMIFS(Cálculos!$I356:$QJ356, Cálculos!$I$8:$QJ$8, AO$3, Cálculos!$I$10:$QJ$10, AO$4) -> -195214.0164 | AP13: =SUMIFS(Cálculos!$I356:$QJ356, Cálculos!$I$8:$QJ$8, AP$3, Cálculos!$I$10:$QJ$10, AP$4) -> -196455.8295 | AQ13: =SUMIFS(Cálculos!$I356:$QJ356, Cálculos!$I$8:$QJ$8, AQ$3, Cálculos!$I$10:$QJ$10, AQ$4) -> -189009.3045 | AR13: =SUMIFS(Cálculos!$I356:$QJ356, Cálculos!$I$8:$QJ$8, AR$3, Cálculos!$I$10:$QJ$10, AR$4) -> -190631.6644 | AS13: =SUMIFS(Cálculos!$I356:$QJ356, Cálculos!$I$8:$QJ$8, AS$3, Cálculos!$I$10:$QJ$10, AS$4) -> -196129.4172 | AT13: =SUMIFS(Cálculos!$I356:$QJ356, Cálculos!$I$8:$QJ$8, AT$3, Cálculos!$I$10:$QJ$10, AT$4) -> -197361.1872 | AU13: =SUMIFS(Cálculos!$I356:$QJ356, Cálculos!$I$8:$QJ$8, AU$3, Cálculos!$I$10:$QJ$10, AU$4) -> -189988.7871 | AV13: =SUMIFS(Cálculos!$I356:$QJ356, Cálculos!$I$8:$QJ$8, AV$3, Cálculos!$I$10:$QJ$10, AV$4) -> -191860.4705 | AW13: =SUMIFS(Cálculos!$I356:$QJ356, Cálculos!$I$8:$QJ$8, AW$3, Cálculos!$I$10:$QJ$10, AW$4) -> -197072.8795 | AX13: =SUMIFS(Cálculos!$I356:$QJ356, Cálculos!$I$8:$QJ$8, AX$3, Cálculos!$I$10:$QJ$10, AX$4) -> -198294.7065 | AY13: =SUMIFS(Cálculos!$I356:$QJ356, Cálculos!$I$8:$QJ$8, AY$3, Cálculos!$I$10:$QJ$10, AY$4) -> -190995.6934 | AZ13: =SUMIFS(Cálculos!$I356:$QJ356, Cálculos!$I$8:$QJ$8, AZ$3, Cálculos!$I$10:$QJ$10, AZ$4) -> -192651.5948 | BA13: =SUMIFS(Cálculos!$I356:$QJ356, Cálculos!$I$8:$QJ$8, BA$3, Cálculos!$I$10:$QJ$10, BA$4) -> -198045.0534 | BB13: =SUMIFS(Cálculos!$I356:$QJ356, Cálculos!$I$8:$QJ$8, BB$3, Cálculos!$I$10:$QJ$10, BB$4) -> -199257.0363 | BC13: =SUMIFS(Cálculos!$I356:$QJ356, Cálculos!$I$8:$QJ$8, BC$3, Cálculos!$I$10:$QJ$10, BC$4) -> -192030.6798 | BD13: =SUMIFS(Cálculos!$I356:$QJ356, Cálculos!$I$8:$QJ$8, BD$3, Cálculos!$I$10:$QJ$10, BD$4) -> -193704.5168 | BE13: =SUMIFS(Cálculos!$I356:$QJ356, Cálculos!$I$8:$QJ$8, BE$3, Cálculos!$I$10:$QJ$10, BE$4) -> -199046.6057 | BF13: =SUMIFS(Cálculos!$I356:$QJ356, Cálculos!$I$8:$QJ$8, BF$3, Cálculos!$I$10:$QJ$10, BF$4) -> -200248.8425 | BG13: =SUMIFS(Cálculos!$I356:$QJ356, Cálculos!$I$8:$QJ$8, BG$3, Cálculos!$I$10:$QJ$10, BG$4) -> -193094.4192 | BH13: =SUMIFS(Cálculos!$I356:$QJ356, Cálculos!$I$8:$QJ$8, BH$3, Cálculos!$I$10:$QJ$10, BH$4) -> -194786.9897 | BI13: =SUMIFS(Cálculos!$I356:$QJ356, Cálculos!$I$8:$QJ$8, BI$3, Cálculos!$I$10:$QJ$10, BI$4) -> -200078.2203 | BJ13: =SUMIFS(Cálculos!$I356:$QJ356, Cálculos!$I$8:$QJ$8, BJ$3, Cálculos!$I$10:$QJ$10, BJ$4) -> -201270.808 | BK13: =SUMIFS(Cálculos!$I356:$QJ356, Cálculos!$I$8:$QJ$8, BK$3, Cálculos!$I$10:$QJ$10, BK$4) -> -194187.602 | BL13: =SUMIFS(Cálculos!$I356:$QJ356, Cálculos!$I$8:$QJ$8, BL$3, Cálculos!$I$10:$QJ$10, BL$4) -> -196132.6547 | BM13: =SUMIFS(Cálculos!$I356:$QJ356, Cálculos!$I$8:$QJ$8, BM$3, Cálculos!$I$10:$QJ$10, BM$4) -> -201140.5987 | BN13: =SUMIFS(Cálculos!$I356:$QJ356, Cálculos!$I$8:$QJ$8, BN$3, Cálculos!$I$10:$QJ$10, BN$4) -> -202323.6334 | BO13: =SUMIFS(Cálculos!$I356:$QJ356, Cálculos!$I$8:$QJ$8, BO$3, Cálculos!$I$10:$QJ$10, BO$4) -> -195310.9357 | BP13: =SUMIFS(Cálculos!$I356:$QJ356, Cálculos!$I$8:$QJ$8, BP$3, Cálculos!$I$10:$QJ$10, BP$4) -> -197043.4331 | BQ13: =SUMIFS(Cálculos!$I356:$QJ356, Cálculos!$I$8:$QJ$8, BQ$3, Cálculos!$I$10:$QJ$10, BQ$4) -> -202234.4606 | BR13: =SUMIFS(Cálculos!$I356:$QJ356, Cálculos!$I$8:$QJ$8, BR$3, Cálculos!$I$10:$QJ$10, BR$4) -> -203408.0374 | BS13: =SUMIFS(Cálculos!$I356:$QJ356, Cálculos!$I$8:$QJ$8, BS$3, Cálculos!$I$10:$QJ$10, BS$4) -> -196465.1461 | BT13: =SUMIFS(Cálculos!$I356:$QJ356, Cálculos!$I$8:$QJ$8, BT$3, Cálculos!$I$10:$QJ$10, BT$4) -> -198218.8711 | BU13: =SUMIFS(Cálculos!$I356:$QJ356, Cálculos!$I$8:$QJ$8, BU$3, Cálculos!$I$10:$QJ$10, BU$4) -> -203360.544 | BV13: =SUMIFS(Cálculos!$I356:$QJ356, Cálculos!$I$8:$QJ$8, BV$3, Cálculos!$I$10:$QJ$10, BV$4) -> -204524.757 | BW13: =SUMIFS(Cálculos!$I356:$QJ356, Cálculos!$I$8:$QJ$8, BW$3, Cálculos!$I$10:$QJ$10, BW$4) -> -197650.9773 | BX13: =SUMIFS(Cálculos!$I356:$QJ356, Cálculos!$I$8:$QJ$8, BX$3, Cálculos!$I$10:$QJ$10, BX$4) -> -199426.7964 | BY13: =SUMIFS(Cálculos!$I356:$QJ356, Cálculos!$I$8:$QJ$8, BY$3, Cálculos!$I$10:$QJ$10, BY$4) -> -204519.6059 | BZ13: =SUMIFS(Cálculos!$I356:$QJ356, Cálculos!$I$8:$QJ$8, BZ$3, Cálculos!$I$10:$QJ$10, BZ$4) -> -205674.5483 | CA13: =SUMIFS(Cálculos!$I356:$QJ356, Cálculos!$I$8:$QJ$8, CA$3, Cálculos!$I$10:$QJ$10, CA$4) -> -198869.1922 | CB13: =SUMIFS(Cálculos!$I356:$QJ356, Cálculos!$I$8:$QJ$8, CB$3, Cálculos!$I$10:$QJ$10, CB$4) -> -200900.9233 | CC13: =SUMIFS(Cálculos!$I356:$QJ356, Cálculos!$I$8:$QJ$8, CC$3, Cálculos!$I$10:$QJ$10, CC$4) -> -205712.4228 | CD13: =SUMIFS(Cálculos!$I356:$QJ356, Cálculos!$I$8:$QJ$8, CD$3, Cálculos!$I$10:$QJ$10, CD$4) -> -206858.1869 | CE13: =SUMIFS(Cálculos!$I356:$QJ356, Cálculos!$I$8:$QJ$8, CE$3, Cálculos!$I$10:$QJ$10, CE$4) -> -200120.5733 | CF13: =SUMIFS(Cálculos!$I356:$QJ356, Cálculos!$I$8:$QJ$8, CF$3, Cálculos!$I$10:$QJ$10, CF$4) -> -201943.2538 | CG13: =SUMIFS(Cálculos!$I356:$QJ356, Cálculos!$I$8:$QJ$8, CG$3, Cálculos!$I$10:$QJ$10, CG$4) -> -206939.7909 | CH13: =SUMIFS(Cálculos!$I356:$QJ356, Cálculos!$I$8:$QJ$8, CH$3, Cálculos!$I$10:$QJ$10, CH$4) -> -208076.468 | CI13: =SUMIFS(Cálculos!$I356:$QJ356, Cálculos!$I$8:$QJ$8, CI$3, Cálculos!$I$10:$QJ$10, CI$4) -> -201405.9226 | CJ13: =SUMIFS(Cálculos!$I356:$QJ356, Cálculos!$I$8:$QJ$8, CJ$3, Cálculos!$I$10:$QJ$10, CJ$4) -> -203253.4085 | CK13: =SUMIFS(Cálculos!$I356:$QJ356, Cálculos!$I$8:$QJ$8, CK$3, Cálculos!$I$10:$QJ$10, CK$4) -> -208202.5269 | CL13: =SUMIFS(Cálculos!$I356:$QJ356, Cálculos!$I$8:$QJ$8, CL$3, Cálculos!$I$10:$QJ$10, CL$4) -> -209330.2076 | CM13: =SUMIFS(Cálculos!$I356:$QJ356, Cálculos!$I$8:$QJ$8, CM$3, Cálculos!$I$10:$QJ$10, CM$4) -> -202726.0628 | CN13: =SUMIFS(Cálculos!$I356:$QJ356, Cálculos!$I$8:$QJ$8, CN$3, Cálculos!$I$10:$QJ$10, CN$4) -> -204599.2967 | CO13: =SUMIFS(Cálculos!$I356:$QJ356, Cálculos!$I$8:$QJ$8, CO$3, Cálculos!$I$10:$QJ$10, CO$4) -> -209501.4685 | CP13: =SUMIFS(Cálculos!$I356:$QJ356, Cálculos!$I$8:$QJ$8, CP$3, Cálculos!$I$10:$QJ$10, CP$4) -> -210620.2422 | CQ13: =SUMIFS(Cálculos!$I356:$QJ356, Cálculos!$I$8:$QJ$8, CQ$3, Cálculos!$I$10:$QJ$10, CQ$4) -> -204081.837 | CR13: =SUMIFS(Cálculos!$I356:$QJ356, Cálculos!$I$8:$QJ$8, CR$3, Cálculos!$I$10:$QJ$10, CR$4) -> -206214.7138 | CS13: =SUMIFS(Cálculos!$I356:$QJ356, Cálculos!$I$8:$QJ$8, CS$3, Cálculos!$I$10:$QJ$10, CS$4) -> -210837.4745 | CT13: =SUMIFS(Cálculos!$I356:$QJ356, Cálculos!$I$8:$QJ$8, CT$3, Cálculos!$I$10:$QJ$10, CT$4) -> -211947.43 | CU13: =SUMIFS(Cálculos!$I356:$QJ356, Cálculos!$I$8:$QJ$8, CU$3, Cálculos!$I$10:$QJ$10, CU$4) -> -205474.11 | CV13: =SUMIFS(Cálculos!$I356:$QJ356, Cálculos!$I$8:$QJ$8, CV$3, Cálculos!$I$10:$QJ$10, CV$4) -> -207401.7502 | CW13: =SUMIFS(Cálculos!$I356:$QJ356, Cálculos!$I$8:$QJ$8, CW$3, Cálculos!$I$10:$QJ$10, CW$4) -> -212211.426 | CX13: =SUMIFS(Cálculos!$I356:$QJ356, Cálculos!$I$8:$QJ$8, CX$3, Cálculos!$I$10:$QJ$10, CX$4) -> -213312.651 | CY13: =SUMIFS(Cálculos!$I356:$QJ356, Cálculos!$I$8:$QJ$8, CY$3, Cálculos!$I$10:$QJ$10, CY$4) -> -206903.7683 | CZ13: =SUMIFS(Cálculos!$I356:$QJ356, Cálculos!$I$8:$QJ$8, CZ$3, Cálculos!$I$10:$QJ$10, CZ$4) -> -208860.1091 | DA13: =SUMIFS(Cálculos!$I356:$QJ356, Cálculos!$I$8:$QJ$8, DA$3, Cálculos!$I$10:$QJ$10, DA$4) -> -213624.2263 | DB13: =SUMIFS(Cálculos!$I356:$QJ356, Cálculos!$I$8:$QJ$8, DB$3, Cálculos!$I$10:$QJ$10, DB$4) -> -214716.8077 | DC13: =SUMIFS(Cálculos!$I356:$QJ356, Cálculos!$I$8:$QJ$8, DC$3, Cálculos!$I$10:$QJ$10, DC$4) -> -208371.7209 | DD13: =SUMIFS(Cálculos!$I356:$QJ356, Cálculos!$I$8:$QJ$8, DD$3, Cálculos!$I$10:$QJ$10, DD$4) -> -210357.7896 | DE13: =SUMIFS(Cálculos!$I356:$QJ356, Cálculos!$I$8:$QJ$8, DE$3, Cálculos!$I$10:$QJ$10, DE$4) -> -215076.8018 | DF13: =SUMIFS(Cálculos!$I356:$QJ356, Cálculos!$I$8:$QJ$8, DF$3, Cálculos!$I$10:$QJ$10, DF$4) -> -216160.8257 | DG13: =SUMIFS(Cálculos!$I356:$QJ356, Cálculos!$I$8:$QJ$8, DG$3, Cálculos!$I$10:$QJ$10, DG$4) -> -209878.8997 | DH13: =SUMIFS(Cálculos!$I356:$QJ356, Cálculos!$I$8:$QJ$8, DH$3, Cálculos!$I$10:$QJ$10, DH$4) -> -212128.6769 | DI13: =SUMIFS(Cálculos!$I356:$QJ356, Cálculos!$I$8:$QJ$8, DI$3, Cálculos!$I$10:$QJ$10, DI$4) -> -216570.1025 | DJ13: =SUMIFS(Cálculos!$I356:$QJ356, Cálculos!$I$8:$QJ$8, DJ$3, Cálculos!$I$10:$QJ$10, DJ$4) -> -217645.6541 | DK13: =SUMIFS(Cálculos!$I356:$QJ356, Cálculos!$I$8:$QJ$8, DK$3, Cálculos!$I$10:$QJ$10, DK$4) -> -1763460.541
C14: =Cálculos!C357 -> EBITDA | G14: 34563654.3 | H14: =SUM(H12:H13) -> 0 | I14: 0 | J14: 0 | K14: 0 | L14: 0 | M14: 0 | N14: 0 | O14: 0 | P14: 310361.3408 | Q14: 561455.9838 | R14: 639034.8344 | S14: 257221.1782 | T14: 301339.7624 | U14: 564070.4439 | V14: 627458.8458 | W14: 244906.2028 | X14: 296757.9246 | Y14: 563362.0971 | Z14: 619415.5251 | AA14: 239638.4418 | AB14: 291716.5969 | AC14: 557563.2304 | AD14: 610011.9321 | AE14: 234015.2614 | AF14: 285159.3898 | AG14: 549681.2607 | AH14: 601039.5348 | AI14: 228785.6455 | AJ14: 279779.8136 | AK14: 542181.7234 | AL14: 592121.9319 | AM14: 223573.5671 | AN14: =SUM(AN12:AN13) -> 274032.5392 | AO14: 534212.5533 | AP14: 583257.7149 | AQ14: 218377.9888 | AR14: 268306.2078 | AS14: 525892.4149 | AT14: 574445.4678 | AU14: 213197.8617 | AV14: 262209.8839 | AW14: 517617.9239 | AX14: 565683.7668 | AY14: 208032.1255 | AZ14: 256911.9018 | BA14: 509387.6965 | BB14: 556971.1792 | BC14: 202879.7074 | BD14: 251241.6617 | BE14: 501200.3395 | BF14: 548306.2636 | BG14: 197739.5223 | BH14: 245587.8329 | BI14: 493054.4499 | BJ14: 539687.5691 | BK14: 192610.4721 | BL14: 239559.3586 | BM14: 484948.614 | BN14: 531113.6347 | BO14: 187491.4451 | BP14: 234324.7387 | BQ14: 476881.4073 | BR14: 522582.9891 | BS14: 182381.3157 | BT14: =SUM(BT12:BT13) -> 228713.1042 | BU14: 468851.3938 | BV14: 514094.15 | BW14: 177278.944 | BX14: 223113.1417 | BY14: 460857.1255 | BZ14: 505645.6234 | CA14: 172183.1748 | CB14: 217133.6685 | CC14: 452897.142 | CD14: 497235.9032 | CE14: 167092.8379 | CF14: 211943.3335 | CG14: 444969.9695 | CH14: 488863.4711 | CI14: 162006.7468 | CJ14: 206370.9992 | CK14: 437074.1209 | CL14: 480526.795 | CM14: 156923.6985 | CN14: 200805.3584 | CO14: 429208.0948 | CP14: 472224.3295 | CQ14: 151842.4733 | CR14: 194855.0968 | CS14: 421370.3748 | CT14: 463954.5146 | CU14: 146761.8336 | CV14: 189688.9955 | CW14: 413559.4295 | CX14: 455715.7755 | CY14: 141680.5236 | CZ14: =SUM(CZ12:CZ13) -> 184135.6478 | DA14: 405773.711 | DB14: 447506.5217 | DC14: 136597.2689 | DD14: 178583.7411 | DE14: 398011.6552 | DF14: 439325.1466 | DG14: 131510.7758 | DH14: 172641.8229 | DI14: 390271.6806 | DJ14: 431170.0267 | DK14: -1428096.855
C16: =Cálculos!C359 -> Menos: Depreciações e Amortizações | E16: =Cálculos!E359 -> EUR | G16: =SUM(H16:FC16) -> -16670789.51 | H16: =SUMIFS(Cálculos!$I359:$QJ359, Cálculos!$I$8:$QJ$8, H$3, Cálculos!$I$10:$QJ$10, H$4) -> 0 | I16: =SUMIFS(Cálculos!$I359:$QJ359, Cálculos!$I$8:$QJ$8, I$3, Cálculos!$I$10:$QJ$10, I$4) -> 0 | J16: =SUMIFS(Cálculos!$I359:$QJ359, Cálculos!$I$8:$QJ$8, J$3, Cálculos!$I$10:$QJ$10, J$4) -> 0 | K16: =SUMIFS(Cálculos!$I359:$QJ359, Cálculos!$I$8:$QJ$8, K$3, Cálculos!$I$10:$QJ$10, K$4) -> 0 | L16: =SUMIFS(Cálculos!$I359:$QJ359, Cálculos!$I$8:$QJ$8, L$3, Cálculos!$I$10:$QJ$10, L$4) -> 0 | M16: =SUMIFS(Cálculos!$I359:$QJ359, Cálculos!$I$8:$QJ$8, M$3, Cálculos!$I$10:$QJ$10, M$4) -> 0 | N16: =SUMIFS(Cálculos!$I359:$QJ359, Cálculos!$I$8:$QJ$8, N$3, Cálculos!$I$10:$QJ$10, N$4) -> 0 | O16: =SUMIFS(Cálculos!$I359:$QJ359, Cálculos!$I$8:$QJ$8, O$3, Cálculos!$I$10:$QJ$10, O$4) -> 0 | P16: =SUMIFS(Cálculos!$I359:$QJ359, Cálculos!$I$8:$QJ$8, P$3, Cálculos!$I$10:$QJ$10, P$4) -> -324590.0684 | Q16: =SUMIFS(Cálculos!$I359:$QJ359, Cálculos!$I$8:$QJ$8, Q$3, Cálculos!$I$10:$QJ$10, Q$4) -> -324590.0684 | R16: =SUMIFS(Cálculos!$I359:$QJ359, Cálculos!$I$8:$QJ$8, R$3, Cálculos!$I$10:$QJ$10, R$4) -> -324590.0684 | S16: =SUMIFS(Cálculos!$I359:$QJ359, Cálculos!$I$8:$QJ$8, S$3, Cálculos!$I$10:$QJ$10, S$4) -> -324590.0684 | T16: =SUMIFS(Cálculos!$I359:$QJ359, Cálculos!$I$8:$QJ$8, T$3, Cálculos!$I$10:$QJ$10, T$4) -> -324590.0684 | U16: =SUMIFS(Cálculos!$I359:$QJ359, Cálculos!$I$8:$QJ$8, U$3, Cálculos!$I$10:$QJ$10, U$4) -> -324590.0684 | V16: =SUMIFS(Cálculos!$I359:$QJ359, Cálculos!$I$8:$QJ$8, V$3, Cálculos!$I$10:$QJ$10, V$4) -> -324590.0684 | W16: =SUMIFS(Cálculos!$I359:$QJ359, Cálculos!$I$8:$QJ$8, W$3, Cálculos!$I$10:$QJ$10, W$4) -> -324590.0684 | X16: =SUMIFS(Cálculos!$I359:$QJ359, Cálculos!$I$8:$QJ$8, X$3, Cálculos!$I$10:$QJ$10, X$4) -> -324590.0684 | Y16: =SUMIFS(Cálculos!$I359:$QJ359, Cálculos!$I$8:$QJ$8, Y$3, Cálculos!$I$10:$QJ$10, Y$4) -> -324590.0684 | Z16: =SUMIFS(Cálculos!$I359:$QJ359, Cálculos!$I$8:$QJ$8, Z$3, Cálculos!$I$10:$QJ$10, Z$4) -> -324590.0684 | AA16: =SUMIFS(Cálculos!$I359:$QJ359, Cálculos!$I$8:$QJ$8, AA$3, Cálculos!$I$10:$QJ$10, AA$4) -> -324590.0684 | AB16: =SUMIFS(Cálculos!$I359:$QJ359, Cálculos!$I$8:$QJ$8, AB$3, Cálculos!$I$10:$QJ$10, AB$4) -> -324590.0684 | AC16: =SUMIFS(Cálculos!$I359:$QJ359, Cálculos!$I$8:$QJ$8, AC$3, Cálculos!$I$10:$QJ$10, AC$4) -> -324590.0684 | AD16: =SUMIFS(Cálculos!$I359:$QJ359, Cálculos!$I$8:$QJ$8, AD$3, Cálculos!$I$10:$QJ$10, AD$4) -> -324590.0684 | AE16: =SUMIFS(Cálculos!$I359:$QJ359, Cálculos!$I$8:$QJ$8, AE$3, Cálculos!$I$10:$QJ$10, AE$4) -> -324590.0684 | AF16: =SUMIFS(Cálculos!$I359:$QJ359, Cálculos!$I$8:$QJ$8, AF$3, Cálculos!$I$10:$QJ$10, AF$4) -> -324590.0684 | AG16: =SUMIFS(Cálculos!$I359:$QJ359, Cálculos!$I$8:$QJ$8, AG$3, Cálculos!$I$10:$QJ$10, AG$4) -> -324590.0684 | AH16: =SUMIFS(Cálculos!$I359:$QJ359, Cálculos!$I$8:$QJ$8, AH$3, Cálculos!$I$10:$QJ$10, AH$4) -> -324590.0684 | AI16: =SUMIFS(Cálculos!$I359:$QJ359, Cálculos!$I$8:$QJ$8, AI$3, Cálculos!$I$10:$QJ$10, AI$4) -> -324590.0684 | AJ16: =SUMIFS(Cálculos!$I359:$QJ359, Cálculos!$I$8:$QJ$8, AJ$3, Cálculos!$I$10:$QJ$10, AJ$4) -> -319065.0684 | AK16: =SUMIFS(Cálculos!$I359:$QJ359, Cálculos!$I$8:$QJ$8, AK$3, Cálculos!$I$10:$QJ$10, AK$4) -> -319065.0684 | AL16: =SUMIFS(Cálculos!$I359:$QJ359, Cálculos!$I$8:$QJ$8, AL$3, Cálculos!$I$10:$QJ$10, AL$4) -> -319065.0684 | AM16: =SUMIFS(Cálculos!$I359:$QJ359, Cálculos!$I$8:$QJ$8, AM$3, Cálculos!$I$10:$QJ$10, AM$4) -> -319065.0684 | AN16: =SUMIFS(Cálculos!$I359:$QJ359, Cálculos!$I$8:$QJ$8, AN$3, Cálculos!$I$10:$QJ$10, AN$4) -> -319065.0684 | AO16: =SUMIFS(Cálculos!$I359:$QJ359, Cálculos!$I$8:$QJ$8, AO$3, Cálculos!$I$10:$QJ$10, AO$4) -> -319065.0684 | AP16: =SUMIFS(Cálculos!$I359:$QJ359, Cálculos!$I$8:$QJ$8, AP$3, Cálculos!$I$10:$QJ$10, AP$4) -> -319065.0684 | AQ16: =SUMIFS(Cálculos!$I359:$QJ359, Cálculos!$I$8:$QJ$8, AQ$3, Cálculos!$I$10:$QJ$10, AQ$4) -> -319065.0684 | AR16: =SUMIFS(Cálculos!$I359:$QJ359, Cálculos!$I$8:$QJ$8, AR$3, Cálculos!$I$10:$QJ$10, AR$4) -> -175857.6136 | AS16: =SUMIFS(Cálculos!$I359:$QJ359, Cálculos!$I$8:$QJ$8, AS$3, Cálculos!$I$10:$QJ$10, AS$4) -> -175857.6136 | AT16: =SUMIFS(Cálculos!$I359:$QJ359, Cálculos!$I$8:$QJ$8, AT$3, Cálculos!$I$10:$QJ$10, AT$4) -> -175857.6136 | AU16: =SUMIFS(Cálculos!$I359:$QJ359, Cálculos!$I$8:$QJ$8, AU$3, Cálculos!$I$10:$QJ$10, AU$4) -> -175857.6136 | AV16: =SUMIFS(Cálculos!$I359:$QJ359, Cálculos!$I$8:$QJ$8, AV$3, Cálculos!$I$10:$QJ$10, AV$4) -> -175857.6136 | AW16: =SUMIFS(Cálculos!$I359:$QJ359, Cálculos!$I$8:$QJ$8, AW$3, Cálculos!$I$10:$QJ$10, AW$4) -> -175857.6136 | AX16: =SUMIFS(Cálculos!$I359:$QJ359, Cálculos!$I$8:$QJ$8, AX$3, Cálculos!$I$10:$QJ$10, AX$4) -> -175857.6136 | AY16: =SUMIFS(Cálculos!$I359:$QJ359, Cálculos!$I$8:$QJ$8, AY$3, Cálculos!$I$10:$QJ$10, AY$4) -> -175857.6136 | AZ16: =SUMIFS(Cálculos!$I359:$QJ359, Cálculos!$I$8:$QJ$8, AZ$3, Cálculos!$I$10:$QJ$10, AZ$4) -> -175857.6136 | BA16: =SUMIFS(Cálculos!$I359:$QJ359, Cálculos!$I$8:$QJ$8, BA$3, Cálculos!$I$10:$QJ$10, BA$4) -> -175857.6136 | BB16: =SUMIFS(Cálculos!$I359:$QJ359, Cálculos!$I$8:$QJ$8, BB$3, Cálculos!$I$10:$QJ$10, BB$4) -> -175747.6136 | BC16: =SUMIFS(Cálculos!$I359:$QJ359, Cálculos!$I$8:$QJ$8, BC$3, Cálculos!$I$10:$QJ$10, BC$4) -> -175747.6136 | BD16: =SUMIFS(Cálculos!$I359:$QJ359, Cálculos!$I$8:$QJ$8, BD$3, Cálculos!$I$10:$QJ$10, BD$4) -> -115877.5148 | BE16: =SUMIFS(Cálculos!$I359:$QJ359, Cálculos!$I$8:$QJ$8, BE$3, Cálculos!$I$10:$QJ$10, BE$4) -> -115877.5148 | BF16: =SUMIFS(Cálculos!$I359:$QJ359, Cálculos!$I$8:$QJ$8, BF$3, Cálculos!$I$10:$QJ$10, BF$4) -> -115877.5148 | BG16: =SUMIFS(Cálculos!$I359:$QJ359, Cálculos!$I$8:$QJ$8, BG$3, Cálculos!$I$10:$QJ$10, BG$4) -> -115877.5148 | BH16: =SUMIFS(Cálculos!$I359:$QJ359, Cálculos!$I$8:$QJ$8, BH$3, Cálculos!$I$10:$QJ$10, BH$4) -> -115877.5148 | BI16: =SUMIFS(Cálculos!$I359:$QJ359, Cálculos!$I$8:$QJ$8, BI$3, Cálculos!$I$10:$QJ$10, BI$4) -> -115877.5148 | BJ16: =SUMIFS(Cálculos!$I359:$QJ359, Cálculos!$I$8:$QJ$8, BJ$3, Cálculos!$I$10:$QJ$10, BJ$4) -> -115877.5148 | BK16: =SUMIFS(Cálculos!$I359:$QJ359, Cálculos!$I$8:$QJ$8, BK$3, Cálculos!$I$10:$QJ$10, BK$4) -> -115877.5148 | BL16: =SUMIFS(Cálculos!$I359:$QJ359, Cálculos!$I$8:$QJ$8, BL$3, Cálculos!$I$10:$QJ$10, BL$4) -> -115877.5148 | BM16: =SUMIFS(Cálculos!$I359:$QJ359, Cálculos!$I$8:$QJ$8, BM$3, Cálculos!$I$10:$QJ$10, BM$4) -> -115877.5148 | BN16: =SUMIFS(Cálculos!$I359:$QJ359, Cálculos!$I$8:$QJ$8, BN$3, Cálculos!$I$10:$QJ$10, BN$4) -> -87125.08622 | BO16: =SUMIFS(Cálculos!$I359:$QJ359, Cálculos!$I$8:$QJ$8, BO$3, Cálculos!$I$10:$QJ$10, BO$4) -> -87125.08622 | BP16: =SUMIFS(Cálculos!$I359:$QJ359, Cálculos!$I$8:$QJ$8, BP$3, Cálculos!$I$10:$QJ$10, BP$4) -> -87125.08622 | BQ16: =SUMIFS(Cálculos!$I359:$QJ359, Cálculos!$I$8:$QJ$8, BQ$3, Cálculos!$I$10:$QJ$10, BQ$4) -> -87125.08622 | BR16: =SUMIFS(Cálculos!$I359:$QJ359, Cálculos!$I$8:$QJ$8, BR$3, Cálculos!$I$10:$QJ$10, BR$4) -> -87125.08622 | BS16: =SUMIFS(Cálculos!$I359:$QJ359, Cálculos!$I$8:$QJ$8, BS$3, Cálculos!$I$10:$QJ$10, BS$4) -> -87125.08622 | BT16: =SUMIFS(Cálculos!$I359:$QJ359, Cálculos!$I$8:$QJ$8, BT$3, Cálculos!$I$10:$QJ$10, BT$4) -> -87125.08622 | BU16: =SUMIFS(Cálculos!$I359:$QJ359, Cálculos!$I$8:$QJ$8, BU$3, Cálculos!$I$10:$QJ$10, BU$4) -> -87125.08622 | BV16: =SUMIFS(Cálculos!$I359:$QJ359, Cálculos!$I$8:$QJ$8, BV$3, Cálculos!$I$10:$QJ$10, BV$4) -> -87125.08622 | BW16: =SUMIFS(Cálculos!$I359:$QJ359, Cálculos!$I$8:$QJ$8, BW$3, Cálculos!$I$10:$QJ$10, BW$4) -> -87125.08622 | BX16: =SUMIFS(Cálculos!$I359:$QJ359, Cálculos!$I$8:$QJ$8, BX$3, Cálculos!$I$10:$QJ$10, BX$4) -> -87125.08622 | BY16: =SUMIFS(Cálculos!$I359:$QJ359, Cálculos!$I$8:$QJ$8, BY$3, Cálculos!$I$10:$QJ$10, BY$4) -> -87125.08622 | BZ16: =SUMIFS(Cálculos!$I359:$QJ359, Cálculos!$I$8:$QJ$8, BZ$3, Cálculos!$I$10:$QJ$10, BZ$4) -> -87125.08622 | CA16: =SUMIFS(Cálculos!$I359:$QJ359, Cálculos!$I$8:$QJ$8, CA$3, Cálculos!$I$10:$QJ$10, CA$4) -> -87125.08622 | CB16: =SUMIFS(Cálculos!$I359:$QJ359, Cálculos!$I$8:$QJ$8, CB$3, Cálculos!$I$10:$QJ$10, CB$4) -> -87125.08622 | CC16: =SUMIFS(Cálculos!$I359:$QJ359, Cálculos!$I$8:$QJ$8, CC$3, Cálculos!$I$10:$QJ$10, CC$4) -> -87125.08622 | CD16: =SUMIFS(Cálculos!$I359:$QJ359, Cálculos!$I$8:$QJ$8, CD$3, Cálculos!$I$10:$QJ$10, CD$4) -> -87125.08622 | CE16: =SUMIFS(Cálculos!$I359:$QJ359, Cálculos!$I$8:$QJ$8, CE$3, Cálculos!$I$10:$QJ$10, CE$4) -> -87125.08622 | CF16: =SUMIFS(Cálculos!$I359:$QJ359, Cálculos!$I$8:$QJ$8, CF$3, Cálculos!$I$10:$QJ$10, CF$4) -> -87125.08622 | CG16: =SUMIFS(Cálculos!$I359:$QJ359, Cálculos!$I$8:$QJ$8, CG$3, Cálculos!$I$10:$QJ$10, CG$4) -> -87125.08622 | CH16: =SUMIFS(Cálculos!$I359:$QJ359, Cálculos!$I$8:$QJ$8, CH$3, Cálculos!$I$10:$QJ$10, CH$4) -> -87170.64542 | CI16: =SUMIFS(Cálculos!$I359:$QJ359, Cálculos!$I$8:$QJ$8, CI$3, Cálculos!$I$10:$QJ$10, CI$4) -> -87170.64542 | CJ16: =SUMIFS(Cálculos!$I359:$QJ359, Cálculos!$I$8:$QJ$8, CJ$3, Cálculos!$I$10:$QJ$10, CJ$4) -> -87170.64542 | CK16: =SUMIFS(Cálculos!$I359:$QJ359, Cálculos!$I$8:$QJ$8, CK$3, Cálculos!$I$10:$QJ$10, CK$4) -> -87170.64542 | CL16: =SUMIFS(Cálculos!$I359:$QJ359, Cálculos!$I$8:$QJ$8, CL$3, Cálculos!$I$10:$QJ$10, CL$4) -> -87170.64542 | CM16: =SUMIFS(Cálculos!$I359:$QJ359, Cálculos!$I$8:$QJ$8, CM$3, Cálculos!$I$10:$QJ$10, CM$4) -> -87170.64542 | CN16: =SUMIFS(Cálculos!$I359:$QJ359, Cálculos!$I$8:$QJ$8, CN$3, Cálculos!$I$10:$QJ$10, CN$4) -> -87170.64542 | CO16: =SUMIFS(Cálculos!$I359:$QJ359, Cálculos!$I$8:$QJ$8, CO$3, Cálculos!$I$10:$QJ$10, CO$4) -> -87170.64542 | CP16: =SUMIFS(Cálculos!$I359:$QJ359, Cálculos!$I$8:$QJ$8, CP$3, Cálculos!$I$10:$QJ$10, CP$4) -> -87170.64542 | CQ16: =SUMIFS(Cálculos!$I359:$QJ359, Cálculos!$I$8:$QJ$8, CQ$3, Cálculos!$I$10:$QJ$10, CQ$4) -> -87170.64542 | CR16: =SUMIFS(Cálculos!$I359:$QJ359, Cálculos!$I$8:$QJ$8, CR$3, Cálculos!$I$10:$QJ$10, CR$4) -> -87170.64542 | CS16: =SUMIFS(Cálculos!$I359:$QJ359, Cálculos!$I$8:$QJ$8, CS$3, Cálculos!$I$10:$QJ$10, CS$4) -> -87170.64542 | CT16: =SUMIFS(Cálculos!$I359:$QJ359, Cálculos!$I$8:$QJ$8, CT$3, Cálculos!$I$10:$QJ$10, CT$4) -> -87170.64542 | CU16: =SUMIFS(Cálculos!$I359:$QJ359, Cálculos!$I$8:$QJ$8, CU$3, Cálculos!$I$10:$QJ$10, CU$4) -> -87170.64542 | CV16: =SUMIFS(Cálculos!$I359:$QJ359, Cálculos!$I$8:$QJ$8, CV$3, Cálculos!$I$10:$QJ$10, CV$4) -> -87170.64542 | CW16: =SUMIFS(Cálculos!$I359:$QJ359, Cálculos!$I$8:$QJ$8, CW$3, Cálculos!$I$10:$QJ$10, CW$4) -> -87170.64542 | CX16: =SUMIFS(Cálculos!$I359:$QJ359, Cálculos!$I$8:$QJ$8, CX$3, Cálculos!$I$10:$QJ$10, CX$4) -> -87170.64542 | CY16: =SUMIFS(Cálculos!$I359:$QJ359, Cálculos!$I$8:$QJ$8, CY$3, Cálculos!$I$10:$QJ$10, CY$4) -> -87170.64542 | CZ16: =SUMIFS(Cálculos!$I359:$QJ359, Cálculos!$I$8:$QJ$8, CZ$3, Cálculos!$I$10:$QJ$10, CZ$4) -> -87170.64542 | DA16: =SUMIFS(Cálculos!$I359:$QJ359, Cálculos!$I$8:$QJ$8, DA$3, Cálculos!$I$10:$QJ$10, DA$4) -> -87170.64542 | DB16: =SUMIFS(Cálculos!$I359:$QJ359, Cálculos!$I$8:$QJ$8, DB$3, Cálculos!$I$10:$QJ$10, DB$4) -> -87170.64542 | DC16: =SUMIFS(Cálculos!$I359:$QJ359, Cálculos!$I$8:$QJ$8, DC$3, Cálculos!$I$10:$QJ$10, DC$4) -> -87170.64542 | DD16: =SUMIFS(Cálculos!$I359:$QJ359, Cálculos!$I$8:$QJ$8, DD$3, Cálculos!$I$10:$QJ$10, DD$4) -> -87170.64542 | DE16: =SUMIFS(Cálculos!$I359:$QJ359, Cálculos!$I$8:$QJ$8, DE$3, Cálculos!$I$10:$QJ$10, DE$4) -> -87170.64542 | DF16: =SUMIFS(Cálculos!$I359:$QJ359, Cálculos!$I$8:$QJ$8, DF$3, Cálculos!$I$10:$QJ$10, DF$4) -> -87170.64542 | DG16: =SUMIFS(Cálculos!$I359:$QJ359, Cálculos!$I$8:$QJ$8, DG$3, Cálculos!$I$10:$QJ$10, DG$4) -> -87170.64542 | DH16: =SUMIFS(Cálculos!$I359:$QJ359, Cálculos!$I$8:$QJ$8, DH$3, Cálculos!$I$10:$QJ$10, DH$4) -> -87170.64542 | DI16: =SUMIFS(Cálculos!$I359:$QJ359, Cálculos!$I$8:$QJ$8, DI$3, Cálculos!$I$10:$QJ$10, DI$4) -> -87170.64542 | DJ16: =SUMIFS(Cálculos!$I359:$QJ359, Cálculos!$I$8:$QJ$8, DJ$3, Cálculos!$I$10:$QJ$10, DJ$4) -> -87170.64542 | DK16: =SUMIFS(Cálculos!$I359:$QJ359, Cálculos!$I$8:$QJ$8, DK$3, Cálculos!$I$10:$QJ$10, DK$4) -> -87170.64542
C17: =Cálculos!C360 -> EBIT | E17: =Cálculos!E360 -> EUR | G17: =SUM(H17:FC17) -> 17892864.79 | H17: =H14+H16 -> 0 | I17: =I14+I16 -> 0 | J17: 0 | K17: 0 | L17: 0 | M17: 0 | N17: 0 | O17: 0 | P17: -14228.72761 | Q17: 236865.9154 | R17: 314444.766 | S17: -67368.89018 | T17: -23250.30604 | U17: 239480.3755 | V17: 302868.7774 | W17: -79683.8656 | X17: -27832.14377 | Y17: 238772.0287 | Z17: 294825.4566 | AA17: -84951.62663 | AB17: -32873.47152 | AC17: 232973.162 | AD17: 285421.8637 | AE17: -90574.80697 | AF17: -39430.67861 | AG17: 225091.1923 | AH17: 276449.4664 | AI17: -95804.42296 | AJ17: -39285.25477 | AK17: 223116.655 | AL17: 273056.8634 | AM17: -95491.50133 | AN17: -45032.5292 | AO17: 215147.4849 | AP17: 264192.6465 | AQ17: -100687.0796 | AR17: 92448.59424 | AS17: 350034.8014 | AT17: 398587.8543 | AU17: 37340.24818 | AV17: 86352.27033 | AW17: 341760.3103 | AX17: 389826.1532 | AY17: 32174.51191 | AZ17: 81054.28822 | BA17: 333530.0829 | BB17: 381223.5656 | BC17: 27132.09381 | BD17: 135364.1469 | BE17: 385322.8247 | BF17: 432428.7488 | BG17: 81862.0075 | BH17: 129710.3181 | BI17: 377176.9351 | BJ17: 423810.0543 | BK17: 76732.95729 | BL17: 123681.8438 | BM17: 369071.0992 | BN17: 443988.5485 | BO17: 100366.3589 | BP17: 147199.6524 | BQ17: 389756.3211 | BR17: 435457.9029 | BS17: 95256.22953 | BT17: 141588.0179 | BU17: =BU14+BU16 -> 381726.3076 | BV17: 426969.0638 | BW17: 90153.85776 | BX17: 135988.0554 | BY17: 373732.0393 | BZ17: 418520.5371 | CA17: 85058.08862 | CB17: 130008.5823 | CC17: 365772.0557 | CD17: 410110.817 | CE17: 79967.75167 | CF17: 124818.2473 | CG17: 357844.8833 | CH17: 401692.8256 | CI17: 74836.10134 | CJ17: 119200.3538 | CK17: 349903.4755 | CL17: 393356.1496 | CM17: 69753.05312 | CN17: 113634.713 | CO17: 342037.4494 | CP17: 385053.6841 | CQ17: 64671.82789 | CR17: 107684.4514 | CS17: 334199.7294 | CT17: 376783.8692 | CU17: 59591.18814 | CV17: 102518.3501 | CW17: 326388.784 | CX17: 368545.1301 | CY17: 54509.87815 | CZ17: 96965.0024 | DA17: 318603.0656 | DB17: 360335.8763 | DC17: 49426.62351 | DD17: =DD14+DD16 -> 91413.09569 | DE17: 310841.0098 | DF17: 352154.5012 | DG17: 44340.13042 | DH17: 85471.17747 | DI17: 303101.0352 | DJ17: 343999.3813 | DK17: -1515267.501
C19: =Cálculos!C362 -> Menos: Juros da Dívida Sénior | E19: =Cálculos!E362 -> EUR | G19: =SUM(H19:FC19) -> -5226496.897 | H19: =SUMIFS(Cálculos!$I362:$QJ362, Cálculos!$I$8:$QJ$8, H$3, Cálculos!$I$10:$QJ$10, H$4) -> 0 | I19: =SUMIFS(Cálculos!$I362:$QJ362, Cálculos!$I$8:$QJ$8, I$3, Cálculos!$I$10:$QJ$10, I$4) -> 0 | J19: =SUMIFS(Cálculos!$I362:$QJ362, Cálculos!$I$8:$QJ$8, J$3, Cálculos!$I$10:$QJ$10, J$4) -> 0 | K19: =SUMIFS(Cálculos!$I362:$QJ362, Cálculos!$I$8:$QJ$8, K$3, Cálculos!$I$10:$QJ$10, K$4) -> 0 | L19: =SUMIFS(Cálculos!$I362:$QJ362, Cálculos!$I$8:$QJ$8, L$3, Cálculos!$I$10:$QJ$10, L$4) -> 0 | M19: =SUMIFS(Cálculos!$I362:$QJ362, Cálculos!$I$8:$QJ$8, M$3, Cálculos!$I$10:$QJ$10, M$4) -> 0 | N19: =SUMIFS(Cálculos!$I362:$QJ362, Cálculos!$I$8:$QJ$8, N$3, Cálculos!$I$10:$QJ$10, N$4) -> 0 | O19: =SUMIFS(Cálculos!$I362:$QJ362, Cálculos!$I$8:$QJ$8, O$3, Cálculos!$I$10:$QJ$10, O$4) -> 0 | P19: =SUMIFS(Cálculos!$I362:$QJ362, Cálculos!$I$8:$QJ$8, P$3, Cálculos!$I$10:$QJ$10, P$4) -> -124318.054 | Q19: =SUMIFS(Cálculos!$I362:$QJ362, Cálculos!$I$8:$QJ$8, Q$3, Cálculos!$I$10:$QJ$10, Q$4) -> -124188.1881 | R19: =SUMIFS(Cálculos!$I362:$QJ362, Cálculos!$I$8:$QJ$8, R$3, Cálculos!$I$10:$QJ$10, R$4) -> -123126.6311 | S19: =SUMIFS(Cálculos!$I362:$QJ362, Cálculos!$I$8:$QJ$8, S$3, Cálculos!$I$10:$QJ$10, S$4) -> -122050.4108 | T19: =SUMIFS(Cálculos!$I362:$QJ362, Cálculos!$I$8:$QJ$8, T$3, Cálculos!$I$10:$QJ$10, T$4) -> -120959.3245 | U19: =SUMIFS(Cálculos!$I362:$QJ362, Cálculos!$I$8:$QJ$8, U$3, Cálculos!$I$10:$QJ$10, U$4) -> -119853.1668 | V19: =SUMIFS(Cálculos!$I362:$QJ362, Cálculos!$I$8:$QJ$8, V$3, Cálculos!$I$10:$QJ$10, V$4) -> -118731.7297 | W19: =SUMIFS(Cálculos!$I362:$QJ362, Cálculos!$I$8:$QJ$8, W$3, Cálculos!$I$10:$QJ$10, W$4) -> -117594.8021 | X19: =SUMIFS(Cálculos!$I362:$QJ362, Cálculos!$I$8:$QJ$8, X$3, Cálculos!$I$10:$QJ$10, X$4) -> -116442.17 | Y19: =SUMIFS(Cálculos!$I362:$QJ362, Cálculos!$I$8:$QJ$8, Y$3, Cálculos!$I$10:$QJ$10, Y$4) -> -115273.6164 | Z19: =SUMIFS(Cálculos!$I362:$QJ362, Cálculos!$I$8:$QJ$8, Z$3, Cálculos!$I$10:$QJ$10, Z$4) -> -114088.9214 | AA19: =SUMIFS(Cálculos!$I362:$QJ362, Cálculos!$I$8:$QJ$8, AA$3, Cálculos!$I$10:$QJ$10, AA$4) -> -112887.8621 | AB19: =SUMIFS(Cálculos!$I362:$QJ362, Cálculos!$I$8:$QJ$8, AB$3, Cálculos!$I$10:$QJ$10, AB$4) -> -111670.2124 | AC19: =SUMIFS(Cálculos!$I362:$QJ362, Cálculos!$I$8:$QJ$8, AC$3, Cálculos!$I$10:$QJ$10, AC$4) -> -110435.7432 | AD19: =SUMIFS(Cálculos!$I362:$QJ362, Cálculos!$I$8:$QJ$8, AD$3, Cálculos!$I$10:$QJ$10, AD$4) -> -109184.2222 | AE19: =SUMIFS(Cálculos!$I362:$QJ362, Cálculos!$I$8:$QJ$8, AE$3, Cálculos!$I$10:$QJ$10, AE$4) -> -107915.4137 | AF19: =SUMIFS(Cálculos!$I362:$QJ362, Cálculos!$I$8:$QJ$8, AF$3, Cálculos!$I$10:$QJ$10, AF$4) -> -106629.079 | AG19: =SUMIFS(Cálculos!$I362:$QJ362, Cálculos!$I$8:$QJ$8, AG$3, Cálculos!$I$10:$QJ$10, AG$4) -> -105324.976 | AH19: =SUMIFS(Cálculos!$I362:$QJ362, Cálculos!$I$8:$QJ$8, AH$3, Cálculos!$I$10:$QJ$10, AH$4) -> -104002.8593 | AI19: =SUMIFS(Cálculos!$I362:$QJ362, Cálculos!$I$8:$QJ$8, AI$3, Cálculos!$I$10:$QJ$10, AI$4) -> -102662.4801 | AJ19: =SUMIFS(Cálculos!$I362:$QJ362, Cálculos!$I$8:$QJ$8, AJ$3, Cálculos!$I$10:$QJ$10, AJ$4) -> -101303.586 | AK19: =SUMIFS(Cálculos!$I362:$QJ362, Cálculos!$I$8:$QJ$8, AK$3, Cálculos!$I$10:$QJ$10, AK$4) -> -99925.9214 | AL19: =SUMIFS(Cálculos!$I362:$QJ362, Cálculos!$I$8:$QJ$8, AL$3, Cálculos!$I$10:$QJ$10, AL$4) -> -98529.22692 | AM19: =SUMIFS(Cálculos!$I362:$QJ362, Cálculos!$I$8:$QJ$8, AM$3, Cálculos!$I$10:$QJ$10, AM$4) -> -97113.23975 | AN19: =SUMIFS(Cálculos!$I362:$QJ362, Cálculos!$I$8:$QJ$8, AN$3, Cálculos!$I$10:$QJ$10, AN$4) -> -95677.69338 | AO19: =SUMIFS(Cálculos!$I362:$QJ362, Cálculos!$I$8:$QJ$8, AO$3, Cálculos!$I$10:$QJ$10, AO$4) -> -94222.31763 | AP19: =SUMIFS(Cálculos!$I362:$QJ362, Cálculos!$I$8:$QJ$8, AP$3, Cálculos!$I$10:$QJ$10, AP$4) -> -92746.83862 | AQ19: =SUMIFS(Cálculos!$I362:$QJ362, Cálculos!$I$8:$QJ$8, AQ$3, Cálculos!$I$10:$QJ$10, AQ$4) -> -91250.97863 | AR19: =SUMIFS(Cálculos!$I362:$QJ362, Cálculos!$I$8:$QJ$8, AR$3, Cálculos!$I$10:$QJ$10, AR$4) -> -89734.45616 | AS19: =SUMIFS(Cálculos!$I362:$QJ362, Cálculos!$I$8:$QJ$8, AS$3, Cálculos!$I$10:$QJ$10, AS$4) -> -88196.98579 | AT19: =SUMIFS(Cálculos!$I362:$QJ362, Cálculos!$I$8:$QJ$8, AT$3, Cálculos!$I$10:$QJ$10, AT$4) -> -86638.27815 | AU19: =SUMIFS(Cálculos!$I362:$QJ362, Cálculos!$I$8:$QJ$8, AU$3, Cálculos!$I$10:$QJ$10, AU$4) -> -85058.03991 | AV19: =SUMIFS(Cálculos!$I362:$QJ362, Cálculos!$I$8:$QJ$8, AV$3, Cálculos!$I$10:$QJ$10, AV$4) -> -83455.97365 | AW19: =SUMIFS(Cálculos!$I362:$QJ362, Cálculos!$I$8:$QJ$8, AW$3, Cálculos!$I$10:$QJ$10, AW$4) -> -81831.77786 | AX19: =SUMIFS(Cálculos!$I362:$QJ362, Cálculos!$I$8:$QJ$8, AX$3, Cálculos!$I$10:$QJ$10, AX$4) -> -80185.14687 | AY19: =SUMIFS(Cálculos!$I362:$QJ362, Cálculos!$I$8:$QJ$8, AY$3, Cálculos!$I$10:$QJ$10, AY$4) -> -78515.77077 | AZ19: =SUMIFS(Cálculos!$I362:$QJ362, Cálculos!$I$8:$QJ$8, AZ$3, Cálculos!$I$10:$QJ$10, AZ$4) -> -76823.33538 | BA19: =SUMIFS(Cálculos!$I362:$QJ362, Cálculos!$I$8:$QJ$8, BA$3, Cálculos!$I$10:$QJ$10, BA$4) -> -75107.52218 | BB19: =SUMIFS(Cálculos!$I362:$QJ362, Cálculos!$I$8:$QJ$8, BB$3, Cálculos!$I$10:$QJ$10, BB$4) -> -73368.00825 | BC19: =SUMIFS(Cálculos!$I362:$QJ362, Cálculos!$I$8:$QJ$8, BC$3, Cálculos!$I$10:$QJ$10, BC$4) -> -71604.46622 | BD19: =SUMIFS(Cálculos!$I362:$QJ362, Cálculos!$I$8:$QJ$8, BD$3, Cálculos!$I$10:$QJ$10, BD$4) -> -69816.56417 | BE19: =SUMIFS(Cálculos!$I362:$QJ362, Cálculos!$I$8:$QJ$8, BE$3, Cálculos!$I$10:$QJ$10, BE$4) -> -68003.96562 | BF19: =SUMIFS(Cálculos!$I362:$QJ362, Cálculos!$I$8:$QJ$8, BF$3, Cálculos!$I$10:$QJ$10, BF$4) -> -66166.32943 | BG19: =SUMIFS(Cálculos!$I362:$QJ362, Cálculos!$I$8:$QJ$8, BG$3, Cálculos!$I$10:$QJ$10, BG$4) -> -64303.30977 | BH19: =SUMIFS(Cálculos!$I362:$QJ362, Cálculos!$I$8:$QJ$8, BH$3, Cálculos!$I$10:$QJ$10, BH$4) -> -62414.55599 | BI19: =SUMIFS(Cálculos!$I362:$QJ362, Cálculos!$I$8:$QJ$8, BI$3, Cálculos!$I$10:$QJ$10, BI$4) -> -60499.71263 | BJ19: =SUMIFS(Cálculos!$I362:$QJ362, Cálculos!$I$8:$QJ$8, BJ$3, Cálculos!$I$10:$QJ$10, BJ$4) -> -58558.41932 | BK19: =SUMIFS(Cálculos!$I362:$QJ362, Cálculos!$I$8:$QJ$8, BK$3, Cálculos!$I$10:$QJ$10, BK$4) -> -56590.3107 | BL19: =SUMIFS(Cálculos!$I362:$QJ362, Cálculos!$I$8:$QJ$8, BL$3, Cálculos!$I$10:$QJ$10, BL$4) -> -54595.01636 | BM19: =SUMIFS(Cálculos!$I362:$QJ362, Cálculos!$I$8:$QJ$8, BM$3, Cálculos!$I$10:$QJ$10, BM$4) -> -52572.16079 | BN19: =SUMIFS(Cálculos!$I362:$QJ362, Cálculos!$I$8:$QJ$8, BN$3, Cálculos!$I$10:$QJ$10, BN$4) -> -50521.36328 | BO19: =SUMIFS(Cálculos!$I362:$QJ362, Cálculos!$I$8:$QJ$8, BO$3, Cálculos!$I$10:$QJ$10, BO$4) -> -48442.23786 | BP19: =SUMIFS(Cálculos!$I362:$QJ362, Cálculos!$I$8:$QJ$8, BP$3, Cálculos!$I$10:$QJ$10, BP$4) -> -46334.39324 | BQ19: =SUMIFS(Cálculos!$I362:$QJ362, Cálculos!$I$8:$QJ$8, BQ$3, Cálculos!$I$10:$QJ$10, BQ$4) -> -44197.43271 | BR19: =SUMIFS(Cálculos!$I362:$QJ362, Cálculos!$I$8:$QJ$8, BR$3, Cálculos!$I$10:$QJ$10, BR$4) -> -42030.9541 | BS19: =SUMIFS(Cálculos!$I362:$QJ362, Cálculos!$I$8:$QJ$8, BS$3, Cálculos!$I$10:$QJ$10, BS$4) -> -39834.54967 | BT19: =SUMIFS(Cálculos!$I362:$QJ362, Cálculos!$I$8:$QJ$8, BT$3, Cálculos!$I$10:$QJ$10, BT$4) -> -37607.80604 | BU19: =SUMIFS(Cálculos!$I362:$QJ362, Cálculos!$I$8:$QJ$8, BU$3, Cálculos!$I$10:$QJ$10, BU$4) -> -35350.30414 | BV19: =SUMIFS(Cálculos!$I362:$QJ362, Cálculos!$I$8:$QJ$8, BV$3, Cálculos!$I$10:$QJ$10, BV$4) -> -33061.61911 | BW19: =SUMIFS(Cálculos!$I362:$QJ362, Cálculos!$I$8:$QJ$8, BW$3, Cálculos!$I$10:$QJ$10, BW$4) -> -30741.3202 | BX19: =SUMIFS(Cálculos!$I362:$QJ362, Cálculos!$I$8:$QJ$8, BX$3, Cálculos!$I$10:$QJ$10, BX$4) -> -28388.97073 | BY19: =SUMIFS(Cálculos!$I362:$QJ362, Cálculos!$I$8:$QJ$8, BY$3, Cálculos!$I$10:$QJ$10, BY$4) -> -26004.12798 | BZ19: =SUMIFS(Cálculos!$I362:$QJ362, Cálculos!$I$8:$QJ$8, BZ$3, Cálculos!$I$10:$QJ$10, BZ$4) -> -23586.34312 | CA19: =SUMIFS(Cálculos!$I362:$QJ362, Cálculos!$I$8:$QJ$8, CA$3, Cálculos!$I$10:$QJ$10, CA$4) -> -21135.16111 | CB19: =SUMIFS(Cálculos!$I362:$QJ362, Cálculos!$I$8:$QJ$8, CB$3, Cálculos!$I$10:$QJ$10, CB$4) -> -18650.12064 | CC19: =SUMIFS(Cálculos!$I362:$QJ362, Cálculos!$I$8:$QJ$8, CC$3, Cálculos!$I$10:$QJ$10, CC$4) -> -16130.75401 | CD19: =SUMIFS(Cálculos!$I362:$QJ362, Cálculos!$I$8:$QJ$8, CD$3, Cálculos!$I$10:$QJ$10, CD$4) -> -13576.58708 | CE19: =SUMIFS(Cálculos!$I362:$QJ362, Cálculos!$I$8:$QJ$8, CE$3, Cálculos!$I$10:$QJ$10, CE$4) -> -10987.13914 | CF19: =SUMIFS(Cálculos!$I362:$QJ362, Cálculos!$I$8:$QJ$8, CF$3, Cálculos!$I$10:$QJ$10, CF$4) -> -8361.922856 | CG19: =SUMIFS(Cálculos!$I362:$QJ362, Cálculos!$I$8:$QJ$8, CG$3, Cálculos!$I$10:$QJ$10, CG$4) -> -5700.444149 | CH19: =SUMIFS(Cálculos!$I362:$QJ362, Cálculos!$I$8:$QJ$8, CH$3, Cálculos!$I$10:$QJ$10, CH$4) -> -3002.202125 | CI19: =SUMIFS(Cálculos!$I362:$QJ362, Cálculos!$I$8:$QJ$8, CI$3, Cálculos!$I$10:$QJ$10, CI$4) -> -701.3720629 | CJ19: =SUMIFS(Cálculos!$I362:$QJ362, Cálculos!$I$8:$QJ$8, CJ$3, Cálculos!$I$10:$QJ$10, CJ$4) -> 0 | CK19: =SUMIFS(Cálculos!$I362:$QJ362, Cálculos!$I$8:$QJ$8, CK$3, Cálculos!$I$10:$QJ$10, CK$4) -> 0 | CL19: =SUMIFS(Cálculos!$I362:$QJ362, Cálculos!$I$8:$QJ$8, CL$3, Cálculos!$I$10:$QJ$10, CL$4) -> 0 | CM19: =SUMIFS(Cálculos!$I362:$QJ362, Cálculos!$I$8:$QJ$8, CM$3, Cálculos!$I$10:$QJ$10, CM$4) -> 0 | CN19: =SUMIFS(Cálculos!$I362:$QJ362, Cálculos!$I$8:$QJ$8, CN$3, Cálculos!$I$10:$QJ$10, CN$4) -> 0 | CO19: =SUMIFS(Cálculos!$I362:$QJ362, Cálculos!$I$8:$QJ$8, CO$3, Cálculos!$I$10:$QJ$10, CO$4) -> 0 | CP19: =SUMIFS(Cálculos!$I362:$QJ362, Cálculos!$I$8:$QJ$8, CP$3, Cálculos!$I$10:$QJ$10, CP$4) -> 0 | CQ19: =SUMIFS(Cálculos!$I362:$QJ362, Cálculos!$I$8:$QJ$8, CQ$3, Cálculos!$I$10:$QJ$10, CQ$4) -> 0 | CR19: =SUMIFS(Cálculos!$I362:$QJ362, Cálculos!$I$8:$QJ$8, CR$3, Cálculos!$I$10:$QJ$10, CR$4) -> 0 | CS19: =SUMIFS(Cálculos!$I362:$QJ362, Cálculos!$I$8:$QJ$8, CS$3, Cálculos!$I$10:$QJ$10, CS$4) -> 0 | CT19: =SUMIFS(Cálculos!$I362:$QJ362, Cálculos!$I$8:$QJ$8, CT$3, Cálculos!$I$10:$QJ$10, CT$4) -> 0 | CU19: =SUMIFS(Cálculos!$I362:$QJ362, Cálculos!$I$8:$QJ$8, CU$3, Cálculos!$I$10:$QJ$10, CU$4) -> 0 | CV19: =SUMIFS(Cálculos!$I362:$QJ362, Cálculos!$I$8:$QJ$8, CV$3, Cálculos!$I$10:$QJ$10, CV$4) -> 0 | CW19: =SUMIFS(Cálculos!$I362:$QJ362, Cálculos!$I$8:$QJ$8, CW$3, Cálculos!$I$10:$QJ$10, CW$4) -> 0 | CX19: =SUMIFS(Cálculos!$I362:$QJ362, Cálculos!$I$8:$QJ$8, CX$3, Cálculos!$I$10:$QJ$10, CX$4) -> 0 | CY19: =SUMIFS(Cálculos!$I362:$QJ362, Cálculos!$I$8:$QJ$8, CY$3, Cálculos!$I$10:$QJ$10, CY$4) -> 0 | CZ19: =SUMIFS(Cálculos!$I362:$QJ362, Cálculos!$I$8:$QJ$8, CZ$3, Cálculos!$I$10:$QJ$10, CZ$4) -> 0 | DA19: =SUMIFS(Cálculos!$I362:$QJ362, Cálculos!$I$8:$QJ$8, DA$3, Cálculos!$I$10:$QJ$10, DA$4) -> 0 | DB19: =SUMIFS(Cálculos!$I362:$QJ362, Cálculos!$I$8:$QJ$8, DB$3, Cálculos!$I$10:$QJ$10, DB$4) -> 0 | DC19: =SUMIFS(Cálculos!$I362:$QJ362, Cálculos!$I$8:$QJ$8, DC$3, Cálculos!$I$10:$QJ$10, DC$4) -> 0 | DD19: =SUMIFS(Cálculos!$I362:$QJ362, Cálculos!$I$8:$QJ$8, DD$3, Cálculos!$I$10:$QJ$10, DD$4) -> 0 | DE19: =SUMIFS(Cálculos!$I362:$QJ362, Cálculos!$I$8:$QJ$8, DE$3, Cálculos!$I$10:$QJ$10, DE$4) -> 0 | DF19: =SUMIFS(Cálculos!$I362:$QJ362, Cálculos!$I$8:$QJ$8, DF$3, Cálculos!$I$10:$QJ$10, DF$4) -> 0 | DG19: =SUMIFS(Cálculos!$I362:$QJ362, Cálculos!$I$8:$QJ$8, DG$3, Cálculos!$I$10:$QJ$10, DG$4) -> 0 | DH19: =SUMIFS(Cálculos!$I362:$QJ362, Cálculos!$I$8:$QJ$8, DH$3, Cálculos!$I$10:$QJ$10, DH$4) -> 0 | DI19: =SUMIFS(Cálculos!$I362:$QJ362, Cálculos!$I$8:$QJ$8, DI$3, Cálculos!$I$10:$QJ$10, DI$4) -> 0 | DJ19: =SUMIFS(Cálculos!$I362:$QJ362, Cálculos!$I$8:$QJ$8, DJ$3, Cálculos!$I$10:$QJ$10, DJ$4) -> 0 | DK19: =SUMIFS(Cálculos!$I362:$QJ362, Cálculos!$I$8:$QJ$8, DK$3, Cálculos!$I$10:$QJ$10, DK$4) -> 0
C20: =Cálculos!C363 -> Menos: Juros da Dívida Subordinada | E20: =Cálculos!E363 -> EUR | G20: =SUM(H20:FC20) -> -5647121.092 | H20: =SUMIFS(Cálculos!$I363:$QJ363, Cálculos!$I$8:$QJ$8, H$3, Cálculos!$I$10:$QJ$10, H$4) -> 0 | I20: =SUMIFS(Cálculos!$I363:$QJ363, Cálculos!$I$8:$QJ$8, I$3, Cálculos!$I$10:$QJ$10, I$4) -> 0 | J20: =SUMIFS(Cálculos!$I363:$QJ363, Cálculos!$I$8:$QJ$8, J$3, Cálculos!$I$10:$QJ$10, J$4) -> 0 | K20: =SUMIFS(Cálculos!$I363:$QJ363, Cálculos!$I$8:$QJ$8, K$3, Cálculos!$I$10:$QJ$10, K$4) -> 0 | L20: =SUMIFS(Cálculos!$I363:$QJ363, Cálculos!$I$8:$QJ$8, L$3, Cálculos!$I$10:$QJ$10, L$4) -> 0 | M20: =SUMIFS(Cálculos!$I363:$QJ363, Cálculos!$I$8:$QJ$8, M$3, Cálculos!$I$10:$QJ$10, M$4) -> 0 | N20: =SUMIFS(Cálculos!$I363:$QJ363, Cálculos!$I$8:$QJ$8, N$3, Cálculos!$I$10:$QJ$10, N$4) -> 0 | O20: =SUMIFS(Cálculos!$I363:$QJ363, Cálculos!$I$8:$QJ$8, O$3, Cálculos!$I$10:$QJ$10, O$4) -> 0 | P20: =SUMIFS(Cálculos!$I363:$QJ363, Cálculos!$I$8:$QJ$8, P$3, Cálculos!$I$10:$QJ$10, P$4) -> -136354.5 | Q20: =SUMIFS(Cálculos!$I363:$QJ363, Cálculos!$I$8:$QJ$8, Q$3, Cálculos!$I$10:$QJ$10, Q$4) -> -136457.7495 | R20: =SUMIFS(Cálculos!$I363:$QJ363, Cálculos!$I$8:$QJ$8, R$3, Cálculos!$I$10:$QJ$10, R$4) -> -135442.3306 | S20: =SUMIFS(Cálculos!$I363:$QJ363, Cálculos!$I$8:$QJ$8, S$3, Cálculos!$I$10:$QJ$10, S$4) -> -134864.4154 | T20: =SUMIFS(Cálculos!$I363:$QJ363, Cálculos!$I$8:$QJ$8, T$3, Cálculos!$I$10:$QJ$10, T$4) -> -134268.9887 | U20: =SUMIFS(Cálculos!$I363:$QJ363, Cálculos!$I$8:$QJ$8, U$3, Cálculos!$I$10:$QJ$10, U$4) -> -133655.5199 | V20: =SUMIFS(Cálculos!$I363:$QJ363, Cálculos!$I$8:$QJ$8, V$3, Cálculos!$I$10:$QJ$10, V$4) -> -133023.4625 | W20: =SUMIFS(Cálculos!$I363:$QJ363, Cálculos!$I$8:$QJ$8, W$3, Cálculos!$I$10:$QJ$10, W$4) -> -132372.2531 | X20: =SUMIFS(Cálculos!$I363:$QJ363, Cálculos!$I$8:$QJ$8, X$3, Cálculos!$I$10:$QJ$10, X$4) -> -131701.3114 | Y20: =SUMIFS(Cálculos!$I363:$QJ363, Cálculos!$I$8:$QJ$8, Y$3, Cálculos!$I$10:$QJ$10, Y$4) -> -131010.0395 | Z20: =SUMIFS(Cálculos!$I363:$QJ363, Cálculos!$I$8:$QJ$8, Z$3, Cálculos!$I$10:$QJ$10, Z$4) -> -130297.8213 | AA20: =SUMIFS(Cálculos!$I363:$QJ363, Cálculos!$I$8:$QJ$8, AA$3, Cálculos!$I$10:$QJ$10, AA$4) -> -129564.0223 | AB20: =SUMIFS(Cálculos!$I363:$QJ363, Cálculos!$I$8:$QJ$8, AB$3, Cálculos!$I$10:$QJ$10, AB$4) -> -128807.9884 | AC20: =SUMIFS(Cálculos!$I363:$QJ363, Cálculos!$I$8:$QJ$8, AC$3, Cálculos!$I$10:$QJ$10, AC$4) -> -128029.0459 | AD20: =SUMIFS(Cálculos!$I363:$QJ363, Cálculos!$I$8:$QJ$8, AD$3, Cálculos!$I$10:$QJ$10, AD$4) -> -127226.5007 | AE20: =SUMIFS(Cálculos!$I363:$QJ363, Cálculos!$I$8:$QJ$8, AE$3, Cálculos!$I$10:$QJ$10, AE$4) -> -126399.6375 | AF20: =SUMIFS(Cálculos!$I363:$QJ363, Cálculos!$I$8:$QJ$8, AF$3, Cálculos!$I$10:$QJ$10, AF$4) -> -125547.7196 | AG20: =SUMIFS(Cálculos!$I363:$QJ363, Cálculos!$I$8:$QJ$8, AG$3, Cálculos!$I$10:$QJ$10, AG$4) -> -124669.9877 | AH20: =SUMIFS(Cálculos!$I363:$QJ363, Cálculos!$I$8:$QJ$8, AH$3, Cálculos!$I$10:$QJ$10, AH$4) -> -123765.6597 | AI20: =SUMIFS(Cálculos!$I363:$QJ363, Cálculos!$I$8:$QJ$8, AI$3, Cálculos!$I$10:$QJ$10, AI$4) -> -122833.9296 | AJ20: =SUMIFS(Cálculos!$I363:$QJ363, Cálculos!$I$8:$QJ$8, AJ$3, Cálculos!$I$10:$QJ$10, AJ$4) -> -121873.9671 | AK20: =SUMIFS(Cálculos!$I363:$QJ363, Cálculos!$I$8:$QJ$8, AK$3, Cálculos!$I$10:$QJ$10, AK$4) -> -120884.9168 | AL20: =SUMIFS(Cálculos!$I363:$QJ363, Cálculos!$I$8:$QJ$8, AL$3, Cálculos!$I$10:$QJ$10, AL$4) -> -119865.8974 | AM20: =SUMIFS(Cálculos!$I363:$QJ363, Cálculos!$I$8:$QJ$8, AM$3, Cálculos!$I$10:$QJ$10, AM$4) -> -118816.0006 | AN20: =SUMIFS(Cálculos!$I363:$QJ363, Cálculos!$I$8:$QJ$8, AN$3, Cálculos!$I$10:$QJ$10, AN$4) -> -117734.2909 | AO20: =SUMIFS(Cálculos!$I363:$QJ363, Cálculos!$I$8:$QJ$8, AO$3, Cálculos!$I$10:$QJ$10, AO$4) -> -116619.8043 | AP20: =SUMIFS(Cálculos!$I363:$QJ363, Cálculos!$I$8:$QJ$8, AP$3, Cálculos!$I$10:$QJ$10, AP$4) -> -115471.5476 | AQ20: =SUMIFS(Cálculos!$I363:$QJ363, Cálculos!$I$8:$QJ$8, AQ$3, Cálculos!$I$10:$QJ$10, AQ$4) -> -114288.4976 | AR20: =SUMIFS(Cálculos!$I363:$QJ363, Cálculos!$I$8:$QJ$8, AR$3, Cálculos!$I$10:$QJ$10, AR$4) -> -113069.6001 | AS20: =SUMIFS(Cálculos!$I363:$QJ363, Cálculos!$I$8:$QJ$8, AS$3, Cálculos!$I$10:$QJ$10, AS$4) -> -111813.7687 | AT20: =SUMIFS(Cálculos!$I363:$QJ363, Cálculos!$I$8:$QJ$8, AT$3, Cálculos!$I$10:$QJ$10, AT$4) -> -110519.8843 | AU20: =SUMIFS(Cálculos!$I363:$QJ363, Cálculos!$I$8:$QJ$8, AU$3, Cálculos!$I$10:$QJ$10, AU$4) -> -109186.794 | AV20: =SUMIFS(Cálculos!$I363:$QJ363, Cálculos!$I$8:$QJ$8, AV$3, Cálculos!$I$10:$QJ$10, AV$4) -> -107813.3097 | AW20: =SUMIFS(Cálculos!$I363:$QJ363, Cálculos!$I$8:$QJ$8, AW$3, Cálculos!$I$10:$QJ$10, AW$4) -> -106398.2075 | AX20: =SUMIFS(Cálculos!$I363:$QJ363, Cálculos!$I$8:$QJ$8, AX$3, Cálculos!$I$10:$QJ$10, AX$4) -> -104940.2262 | AY20: =SUMIFS(Cálculos!$I363:$QJ363, Cálculos!$I$8:$QJ$8, AY$3, Cálculos!$I$10:$QJ$10, AY$4) -> -103438.0666 | AZ20: =SUMIFS(Cálculos!$I363:$QJ363, Cálculos!$I$8:$QJ$8, AZ$3, Cálculos!$I$10:$QJ$10, AZ$4) -> -101890.3902 | BA20: =SUMIFS(Cálculos!$I363:$QJ363, Cálculos!$I$8:$QJ$8, BA$3, Cálculos!$I$10:$QJ$10, BA$4) -> -100295.8175 | BB20: =SUMIFS(Cálculos!$I363:$QJ363, Cálculos!$I$8:$QJ$8, BB$3, Cálculos!$I$10:$QJ$10, BB$4) -> -98652.92775 | BC20: =SUMIFS(Cálculos!$I363:$QJ363, Cálculos!$I$8:$QJ$8, BC$3, Cálculos!$I$10:$QJ$10, BC$4) -> -96960.25676 | BD20: =SUMIFS(Cálculos!$I363:$QJ363, Cálculos!$I$8:$QJ$8, BD$3, Cálculos!$I$10:$QJ$10, BD$4) -> -95216.29616 | BE20: =SUMIFS(Cálculos!$I363:$QJ363, Cálculos!$I$8:$QJ$8, BE$3, Cálculos!$I$10:$QJ$10, BE$4) -> -93419.49181 | BF20: =SUMIFS(Cálculos!$I363:$QJ363, Cálculos!$I$8:$QJ$8, BF$3, Cálculos!$I$10:$QJ$10, BF$4) -> -91568.24248 | BG20: =SUMIFS(Cálculos!$I363:$QJ363, Cálculos!$I$8:$QJ$8, BG$3, Cálculos!$I$10:$QJ$10, BG$4) -> -89660.89845 | BH20: =SUMIFS(Cálculos!$I363:$QJ363, Cálculos!$I$8:$QJ$8, BH$3, Cálculos!$I$10:$QJ$10, BH$4) -> -87695.75999 | BI20: =SUMIFS(Cálculos!$I363:$QJ363, Cálculos!$I$8:$QJ$8, BI$3, Cálculos!$I$10:$QJ$10, BI$4) -> -85671.07587 | BJ20: =SUMIFS(Cálculos!$I363:$QJ363, Cálculos!$I$8:$QJ$8, BJ$3, Cálculos!$I$10:$QJ$10, BJ$4) -> -83585.0418 | BK20: =SUMIFS(Cálculos!$I363:$QJ363, Cálculos!$I$8:$QJ$8, BK$3, Cálculos!$I$10:$QJ$10, BK$4) -> -81435.79881 | BL20: =SUMIFS(Cálculos!$I363:$QJ363, Cálculos!$I$8:$QJ$8, BL$3, Cálculos!$I$10:$QJ$10, BL$4) -> -79221.4316 | BM20: =SUMIFS(Cálculos!$I363:$QJ363, Cálculos!$I$8:$QJ$8, BM$3, Cálculos!$I$10:$QJ$10, BM$4) -> -76939.96686 | BN20: =SUMIFS(Cálculos!$I363:$QJ363, Cálculos!$I$8:$QJ$8, BN$3, Cálculos!$I$10:$QJ$10, BN$4) -> -74589.37145 | BO20: =SUMIFS(Cálculos!$I363:$QJ363, Cálculos!$I$8:$QJ$8, BO$3, Cálculos!$I$10:$QJ$10, BO$4) -> -72167.55065 | BP20: =SUMIFS(Cálculos!$I363:$QJ363, Cálculos!$I$8:$QJ$8, BP$3, Cálculos!$I$10:$QJ$10, BP$4) -> -69672.34625 | BQ20: =SUMIFS(Cálculos!$I363:$QJ363, Cálculos!$I$8:$QJ$8, BQ$3, Cálculos!$I$10:$QJ$10, BQ$4) -> -67101.53467 | BR20: =SUMIFS(Cálculos!$I363:$QJ363, Cálculos!$I$8:$QJ$8, BR$3, Cálculos!$I$10:$QJ$10, BR$4) -> -64452.82493 | BS20: =SUMIFS(Cálculos!$I363:$QJ363, Cálculos!$I$8:$QJ$8, BS$3, Cálculos!$I$10:$QJ$10, BS$4) -> -61723.85664 | BT20: =SUMIFS(Cálculos!$I363:$QJ363, Cálculos!$I$8:$QJ$8, BT$3, Cálculos!$I$10:$QJ$10, BT$4) -> -58912.19787 | BU20: =SUMIFS(Cálculos!$I363:$QJ363, Cálculos!$I$8:$QJ$8, BU$3, Cálculos!$I$10:$QJ$10, BU$4) -> -56015.34303 | BV20: =SUMIFS(Cálculos!$I363:$QJ363, Cálculos!$I$8:$QJ$8, BV$3, Cálculos!$I$10:$QJ$10, BV$4) -> -53030.7106 | BW20: =SUMIFS(Cálculos!$I363:$QJ363, Cálculos!$I$8:$QJ$8, BW$3, Cálculos!$I$10:$QJ$10, BW$4) -> -49955.64082 | BX20: =SUMIFS(Cálculos!$I363:$QJ363, Cálculos!$I$8:$QJ$8, BX$3, Cálculos!$I$10:$QJ$10, BX$4) -> -46787.39334 | BY20: =SUMIFS(Cálculos!$I363:$QJ363, Cálculos!$I$8:$QJ$8, BY$3, Cálculos!$I$10:$QJ$10, BY$4) -> -43523.14481 | BZ20: =SUMIFS(Cálculos!$I363:$QJ363, Cálculos!$I$8:$QJ$8, BZ$3, Cálculos!$I$10:$QJ$10, BZ$4) -> -40159.98627 | CA20: =SUMIFS(Cálculos!$I363:$QJ363, Cálculos!$I$8:$QJ$8, CA$3, Cálculos!$I$10:$QJ$10, CA$4) -> -36694.92067 | CB20: =SUMIFS(Cálculos!$I363:$QJ363, Cálculos!$I$8:$QJ$8, CB$3, Cálculos!$I$10:$QJ$10, CB$4) -> -33124.86012 | CC20: =SUMIFS(Cálculos!$I363:$QJ363, Cálculos!$I$8:$QJ$8, CC$3, Cálculos!$I$10:$QJ$10, CC$4) -> -29446.62316 | CD20: =SUMIFS(Cálculos!$I363:$QJ363, Cálculos!$I$8:$QJ$8, CD$3, Cálculos!$I$10:$QJ$10, CD$4) -> -25656.93194 | CE20: =SUMIFS(Cálculos!$I363:$QJ363, Cálculos!$I$8:$QJ$8, CE$3, Cálculos!$I$10:$QJ$10, CE$4) -> -21752.40929 | CF20: =SUMIFS(Cálculos!$I363:$QJ363, Cálculos!$I$8:$QJ$8, CF$3, Cálculos!$I$10:$QJ$10, CF$4) -> -17729.5757 | CG20: =SUMIFS(Cálculos!$I363:$QJ363, Cálculos!$I$8:$QJ$8, CG$3, Cálculos!$I$10:$QJ$10, CG$4) -> -13584.84623 | CH20: =SUMIFS(Cálculos!$I363:$QJ363, Cálculos!$I$8:$QJ$8, CH$3, Cálculos!$I$10:$QJ$10, CH$4) -> -9314.527315 | CI20: =SUMIFS(Cálculos!$I363:$QJ363, Cálculos!$I$8:$QJ$8, CI$3, Cálculos!$I$10:$QJ$10, CI$4) -> -4914.813462 | CJ20: =SUMIFS(Cálculos!$I363:$QJ363, Cálculos!$I$8:$QJ$8, CJ$3, Cálculos!$I$10:$QJ$10, CJ$4) -> -381.7838807 | CK20: =SUMIFS(Cálculos!$I363:$QJ363, Cálculos!$I$8:$QJ$8, CK$3, Cálculos!$I$10:$QJ$10, CK$4) -> 4288.60103 | CL20: =SUMIFS(Cálculos!$I363:$QJ363, Cálculos!$I$8:$QJ$8, CL$3, Cálculos!$I$10:$QJ$10, CL$4) -> 9100.503275 | CM20: =SUMIFS(Cálculos!$I363:$QJ363, Cálculos!$I$8:$QJ$8, CM$3, Cálculos!$I$10:$QJ$10, CM$4) -> 14058.21097 | CN20: =SUMIFS(Cálculos!$I363:$QJ363, Cálculos!$I$8:$QJ$8, CN$3, Cálculos!$I$10:$QJ$10, CN$4) -> 19166.14216 | CO20: =SUMIFS(Cálculos!$I363:$QJ363, Cálculos!$I$8:$QJ$8, CO$3, Cálculos!$I$10:$QJ$10, CO$4) -> 24428.84878 | CP20: =SUMIFS(Cálculos!$I363:$QJ363, Cálculos!$I$8:$QJ$8, CP$3, Cálculos!$I$10:$QJ$10, CP$4) -> 29851.02067 | CQ20: =SUMIFS(Cálculos!$I363:$QJ363, Cálculos!$I$8:$QJ$8, CQ$3, Cálculos!$I$10:$QJ$10, CQ$4) -> 35437.48979 | CR20: =SUMIFS(Cálculos!$I363:$QJ363, Cálculos!$I$8:$QJ$8, CR$3, Cálculos!$I$10:$QJ$10, CR$4) -> 41193.23452 | CS20: =SUMIFS(Cálculos!$I363:$QJ363, Cálculos!$I$8:$QJ$8, CS$3, Cálculos!$I$10:$QJ$10, CS$4) -> 47123.38406 | CT20: =SUMIFS(Cálculos!$I363:$QJ363, Cálculos!$I$8:$QJ$8, CT$3, Cálculos!$I$10:$QJ$10, CT$4) -> 53233.22307 | CU20: =SUMIFS(Cálculos!$I363:$QJ363, Cálculos!$I$8:$QJ$8, CU$3, Cálculos!$I$10:$QJ$10, CU$4) -> 59528.1963 | CV20: =SUMIFS(Cálculos!$I363:$QJ363, Cálculos!$I$8:$QJ$8, CV$3, Cálculos!$I$10:$QJ$10, CV$4) -> 66013.91352 | CW20: =SUMIFS(Cálculos!$I363:$QJ363, Cálculos!$I$8:$QJ$8, CW$3, Cálculos!$I$10:$QJ$10, CW$4) -> 72696.15446 | CX20: =SUMIFS(Cálculos!$I363:$QJ363, Cálculos!$I$8:$QJ$8, CX$3, Cálculos!$I$10:$QJ$10, CX$4) -> 79580.87398 | CY20: =SUMIFS(Cálculos!$I363:$QJ363, Cálculos!$I$8:$QJ$8, CY$3, Cálculos!$I$10:$QJ$10, CY$4) -> 86674.20739 | CZ20: =SUMIFS(Cálculos!$I363:$QJ363, Cálculos!$I$8:$QJ$8, CZ$3, Cálculos!$I$10:$QJ$10, CZ$4) -> 93982.47589 | DA20: =SUMIFS(Cálculos!$I363:$QJ363, Cálculos!$I$8:$QJ$8, DA$3, Cálculos!$I$10:$QJ$10, DA$4) -> 101512.1922 | DB20: =SUMIFS(Cálculos!$I363:$QJ363, Cálculos!$I$8:$QJ$8, DB$3, Cálculos!$I$10:$QJ$10, DB$4) -> 109270.0665 | DC20: =SUMIFS(Cálculos!$I363:$QJ363, Cálculos!$I$8:$QJ$8, DC$3, Cálculos!$I$10:$QJ$10, DC$4) -> 37674.42144 | DD20: =SUMIFS(Cálculos!$I363:$QJ363, Cálculos!$I$8:$QJ$8, DD$3, Cálculos!$I$10:$QJ$10, DD$4) -> 0 | DE20: =SUMIFS(Cálculos!$I363:$QJ363, Cálculos!$I$8:$QJ$8, DE$3, Cálculos!$I$10:$QJ$10, DE$4) -> 0 | DF20: =SUMIFS(Cálculos!$I363:$QJ363, Cálculos!$I$8:$QJ$8, DF$3, Cálculos!$I$10:$QJ$10, DF$4) -> 0 | DG20: =SUMIFS(Cálculos!$I363:$QJ363, Cálculos!$I$8:$QJ$8, DG$3, Cálculos!$I$10:$QJ$10, DG$4) -> 0 | DH20: =SUMIFS(Cálculos!$I363:$QJ363, Cálculos!$I$8:$QJ$8, DH$3, Cálculos!$I$10:$QJ$10, DH$4) -> 0 | DI20: =SUMIFS(Cálculos!$I363:$QJ363, Cálculos!$I$8:$QJ$8, DI$3, Cálculos!$I$10:$QJ$10, DI$4) -> 0 | DJ20: =SUMIFS(Cálculos!$I363:$QJ363, Cálculos!$I$8:$QJ$8, DJ$3, Cálculos!$I$10:$QJ$10, DJ$4) -> 0 | DK20: =SUMIFS(Cálculos!$I363:$QJ363, Cálculos!$I$8:$QJ$8, DK$3, Cálculos!$I$10:$QJ$10, DK$4) -> 0
C21: =Cálculos!C364 -> Mais: Juros das Contas de Reserva | E21: =Cálculos!E364 -> EUR | G21: =SUM(H21:FC21) -> 0 | H21: =SUMIFS(Cálculos!$I364:$QJ364, Cálculos!$I$8:$QJ$8, H$3, Cálculos!$I$10:$QJ$10, H$4) -> 0 | I21: =SUMIFS(Cálculos!$I364:$QJ364, Cálculos!$I$8:$QJ$8, I$3, Cálculos!$I$10:$QJ$10, I$4) -> 0 | J21: =SUMIFS(Cálculos!$I364:$QJ364, Cálculos!$I$8:$QJ$8, J$3, Cálculos!$I$10:$QJ$10, J$4) -> 0 | K21: =SUMIFS(Cálculos!$I364:$QJ364, Cálculos!$I$8:$QJ$8, K$3, Cálculos!$I$10:$QJ$10, K$4) -> 0 | L21: =SUMIFS(Cálculos!$I364:$QJ364, Cálculos!$I$8:$QJ$8, L$3, Cálculos!$I$10:$QJ$10, L$4) -> 0 | M21: =SUMIFS(Cálculos!$I364:$QJ364, Cálculos!$I$8:$QJ$8, M$3, Cálculos!$I$10:$QJ$10, M$4) -> 0 | N21: =SUMIFS(Cálculos!$I364:$QJ364, Cálculos!$I$8:$QJ$8, N$3, Cálculos!$I$10:$QJ$10, N$4) -> 0 | O21: =SUMIFS(Cálculos!$I364:$QJ364, Cálculos!$I$8:$QJ$8, O$3, Cálculos!$I$10:$QJ$10, O$4) -> 0 | P21: =SUMIFS(Cálculos!$I364:$QJ364, Cálculos!$I$8:$QJ$8, P$3, Cálculos!$I$10:$QJ$10, P$4) -> 0 | Q21: =SUMIFS(Cálculos!$I364:$QJ364, Cálculos!$I$8:$QJ$8, Q$3, Cálculos!$I$10:$QJ$10, Q$4) -> 0 | R21: =SUMIFS(Cálculos!$I364:$QJ364, Cálculos!$I$8:$QJ$8, R$3, Cálculos!$I$10:$QJ$10, R$4) -> 0 | S21: =SUMIFS(Cálculos!$I364:$QJ364, Cálculos!$I$8:$QJ$8, S$3, Cálculos!$I$10:$QJ$10, S$4) -> 0 | T21: =SUMIFS(Cálculos!$I364:$QJ364, Cálculos!$I$8:$QJ$8, T$3, Cálculos!$I$10:$QJ$10, T$4) -> 0 | U21: =SUMIFS(Cálculos!$I364:$QJ364, Cálculos!$I$8:$QJ$8, U$3, Cálculos!$I$10:$QJ$10, U$4) -> 0 | V21: =SUMIFS(Cálculos!$I364:$QJ364, Cálculos!$I$8:$QJ$8, V$3, Cálculos!$I$10:$QJ$10, V$4) -> 0 | W21: =SUMIFS(Cálculos!$I364:$QJ364, Cálculos!$I$8:$QJ$8, W$3, Cálculos!$I$10:$QJ$10, W$4) -> 0 | X21: =SUMIFS(Cálculos!$I364:$QJ364, Cálculos!$I$8:$QJ$8, X$3, Cálculos!$I$10:$QJ$10, X$4) -> 0 | Y21: =SUMIFS(Cálculos!$I364:$QJ364, Cálculos!$I$8:$QJ$8, Y$3, Cálculos!$I$10:$QJ$10, Y$4) -> 0 | Z21: =SUMIFS(Cálculos!$I364:$QJ364, Cálculos!$I$8:$QJ$8, Z$3, Cálculos!$I$10:$QJ$10, Z$4) -> 0 | AA21: =SUMIFS(Cálculos!$I364:$QJ364, Cálculos!$I$8:$QJ$8, AA$3, Cálculos!$I$10:$QJ$10, AA$4) -> 0 | AB21: =SUMIFS(Cálculos!$I364:$QJ364, Cálculos!$I$8:$QJ$8, AB$3, Cálculos!$I$10:$QJ$10, AB$4) -> 0 | AC21: =SUMIFS(Cálculos!$I364:$QJ364, Cálculos!$I$8:$QJ$8, AC$3, Cálculos!$I$10:$QJ$10, AC$4) -> 0 | AD21: =SUMIFS(Cálculos!$I364:$QJ364, Cálculos!$I$8:$QJ$8, AD$3, Cálculos!$I$10:$QJ$10, AD$4) -> 0 | AE21: =SUMIFS(Cálculos!$I364:$QJ364, Cálculos!$I$8:$QJ$8, AE$3, Cálculos!$I$10:$QJ$10, AE$4) -> 0 | AF21: =SUMIFS(Cálculos!$I364:$QJ364, Cálculos!$I$8:$QJ$8, AF$3, Cálculos!$I$10:$QJ$10, AF$4) -> 0 | AG21: =SUMIFS(Cálculos!$I364:$QJ364, Cálculos!$I$8:$QJ$8, AG$3, Cálculos!$I$10:$QJ$10, AG$4) -> 0 | AH21: =SUMIFS(Cálculos!$I364:$QJ364, Cálculos!$I$8:$QJ$8, AH$3, Cálculos!$I$10:$QJ$10, AH$4) -> 0 | AI21: =SUMIFS(Cálculos!$I364:$QJ364, Cálculos!$I$8:$QJ$8, AI$3, Cálculos!$I$10:$QJ$10, AI$4) -> 0 | AJ21: =SUMIFS(Cálculos!$I364:$QJ364, Cálculos!$I$8:$QJ$8, AJ$3, Cálculos!$I$10:$QJ$10, AJ$4) -> 0 | AK21: =SUMIFS(Cálculos!$I364:$QJ364, Cálculos!$I$8:$QJ$8, AK$3, Cálculos!$I$10:$QJ$10, AK$4) -> 0 | AL21: =SUMIFS(Cálculos!$I364:$QJ364, Cálculos!$I$8:$QJ$8, AL$3, Cálculos!$I$10:$QJ$10, AL$4) -> 0 | AM21: =SUMIFS(Cálculos!$I364:$QJ364, Cálculos!$I$8:$QJ$8, AM$3, Cálculos!$I$10:$QJ$10, AM$4) -> 0 | AN21: =SUMIFS(Cálculos!$I364:$QJ364, Cálculos!$I$8:$QJ$8, AN$3, Cálculos!$I$10:$QJ$10, AN$4) -> 0 | AO21: =SUMIFS(Cálculos!$I364:$QJ364, Cálculos!$I$8:$QJ$8, AO$3, Cálculos!$I$10:$QJ$10, AO$4) -> 0 | AP21: =SUMIFS(Cálculos!$I364:$QJ364, Cálculos!$I$8:$QJ$8, AP$3, Cálculos!$I$10:$QJ$10, AP$4) -> 0 | AQ21: =SUMIFS(Cálculos!$I364:$QJ364, Cálculos!$I$8:$QJ$8, AQ$3, Cálculos!$I$10:$QJ$10, AQ$4) -> 0 | AR21: =SUMIFS(Cálculos!$I364:$QJ364, Cálculos!$I$8:$QJ$8, AR$3, Cálculos!$I$10:$QJ$10, AR$4) -> 0 | AS21: =SUMIFS(Cálculos!$I364:$QJ364, Cálculos!$I$8:$QJ$8, AS$3, Cálculos!$I$10:$QJ$10, AS$4) -> 0 | AT21: =SUMIFS(Cálculos!$I364:$QJ364, Cálculos!$I$8:$QJ$8, AT$3, Cálculos!$I$10:$QJ$10, AT$4) -> 0 | AU21: =SUMIFS(Cálculos!$I364:$QJ364, Cálculos!$I$8:$QJ$8, AU$3, Cálculos!$I$10:$QJ$10, AU$4) -> 0 | AV21: =SUMIFS(Cálculos!$I364:$QJ364, Cálculos!$I$8:$QJ$8, AV$3, Cálculos!$I$10:$QJ$10, AV$4) -> 0 | AW21: =SUMIFS(Cálculos!$I364:$QJ364, Cálculos!$I$8:$QJ$8, AW$3, Cálculos!$I$10:$QJ$10, AW$4) -> 0 | AX21: =SUMIFS(Cálculos!$I364:$QJ364, Cálculos!$I$8:$QJ$8, AX$3, Cálculos!$I$10:$QJ$10, AX$4) -> 0 | AY21: =SUMIFS(Cálculos!$I364:$QJ364, Cálculos!$I$8:$QJ$8, AY$3, Cálculos!$I$10:$QJ$10, AY$4) -> 0 | AZ21: =SUMIFS(Cálculos!$I364:$QJ364, Cálculos!$I$8:$QJ$8, AZ$3, Cálculos!$I$10:$QJ$10, AZ$4) -> 0 | BA21: =SUMIFS(Cálculos!$I364:$QJ364, Cálculos!$I$8:$QJ$8, BA$3, Cálculos!$I$10:$QJ$10, BA$4) -> 0 | BB21: =SUMIFS(Cálculos!$I364:$QJ364, Cálculos!$I$8:$QJ$8, BB$3, Cálculos!$I$10:$QJ$10, BB$4) -> 0 | BC21: =SUMIFS(Cálculos!$I364:$QJ364, Cálculos!$I$8:$QJ$8, BC$3, Cálculos!$I$10:$QJ$10, BC$4) -> 0 | BD21: =SUMIFS(Cálculos!$I364:$QJ364, Cálculos!$I$8:$QJ$8, BD$3, Cálculos!$I$10:$QJ$10, BD$4) -> 0 | BE21: =SUMIFS(Cálculos!$I364:$QJ364, Cálculos!$I$8:$QJ$8, BE$3, Cálculos!$I$10:$QJ$10, BE$4) -> 0 | BF21: =SUMIFS(Cálculos!$I364:$QJ364, Cálculos!$I$8:$QJ$8, BF$3, Cálculos!$I$10:$QJ$10, BF$4) -> 0 | BG21: =SUMIFS(Cálculos!$I364:$QJ364, Cálculos!$I$8:$QJ$8, BG$3, Cálculos!$I$10:$QJ$10, BG$4) -> 0 | BH21: =SUMIFS(Cálculos!$I364:$QJ364, Cálculos!$I$8:$QJ$8, BH$3, Cálculos!$I$10:$QJ$10, BH$4) -> 0 | BI21: =SUMIFS(Cálculos!$I364:$QJ364, Cálculos!$I$8:$QJ$8, BI$3, Cálculos!$I$10:$QJ$10, BI$4) -> 0 | BJ21: =SUMIFS(Cálculos!$I364:$QJ364, Cálculos!$I$8:$QJ$8, BJ$3, Cálculos!$I$10:$QJ$10, BJ$4) -> 0 | BK21: =SUMIFS(Cálculos!$I364:$QJ364, Cálculos!$I$8:$QJ$8, BK$3, Cálculos!$I$10:$QJ$10, BK$4) -> 0 | BL21: =SUMIFS(Cálculos!$I364:$QJ364, Cálculos!$I$8:$QJ$8, BL$3, Cálculos!$I$10:$QJ$10, BL$4) -> 0 | BM21: =SUMIFS(Cálculos!$I364:$QJ364, Cálculos!$I$8:$QJ$8, BM$3, Cálculos!$I$10:$QJ$10, BM$4) -> 0 | BN21: =SUMIFS(Cálculos!$I364:$QJ364, Cálculos!$I$8:$QJ$8, BN$3, Cálculos!$I$10:$QJ$10, BN$4) -> 0 | BO21: =SUMIFS(Cálculos!$I364:$QJ364, Cálculos!$I$8:$QJ$8, BO$3, Cálculos!$I$10:$QJ$10, BO$4) -> 0 | BP21: =SUMIFS(Cálculos!$I364:$QJ364, Cálculos!$I$8:$QJ$8, BP$3, Cálculos!$I$10:$QJ$10, BP$4) -> 0 | BQ21: =SUMIFS(Cálculos!$I364:$QJ364, Cálculos!$I$8:$QJ$8, BQ$3, Cálculos!$I$10:$QJ$10, BQ$4) -> 0 | BR21: =SUMIFS(Cálculos!$I364:$QJ364, Cálculos!$I$8:$QJ$8, BR$3, Cálculos!$I$10:$QJ$10, BR$4) -> 0 | BS21: =SUMIFS(Cálculos!$I364:$QJ364, Cálculos!$I$8:$QJ$8, BS$3, Cálculos!$I$10:$QJ$10, BS$4) -> 0 | BT21: =SUMIFS(Cálculos!$I364:$QJ364, Cálculos!$I$8:$QJ$8, BT$3, Cálculos!$I$10:$QJ$10, BT$4) -> 0 | BU21: =SUMIFS(Cálculos!$I364:$QJ364, Cálculos!$I$8:$QJ$8, BU$3, Cálculos!$I$10:$QJ$10, BU$4) -> 0 | BV21: =SUMIFS(Cálculos!$I364:$QJ364, Cálculos!$I$8:$QJ$8, BV$3, Cálculos!$I$10:$QJ$10, BV$4) -> 0 | BW21: =SUMIFS(Cálculos!$I364:$QJ364, Cálculos!$I$8:$QJ$8, BW$3, Cálculos!$I$10:$QJ$10, BW$4) -> 0 | BX21: =SUMIFS(Cálculos!$I364:$QJ364, Cálculos!$I$8:$QJ$8, BX$3, Cálculos!$I$10:$QJ$10, BX$4) -> 0 | BY21: =SUMIFS(Cálculos!$I364:$QJ364, Cálculos!$I$8:$QJ$8, BY$3, Cálculos!$I$10:$QJ$10, BY$4) -> 0 | BZ21: =SUMIFS(Cálculos!$I364:$QJ364, Cálculos!$I$8:$QJ$8, BZ$3, Cálculos!$I$10:$QJ$10, BZ$4) -> 0 | CA21: =SUMIFS(Cálculos!$I364:$QJ364, Cálculos!$I$8:$QJ$8, CA$3, Cálculos!$I$10:$QJ$10, CA$4) -> 0 | CB21: =SUMIFS(Cálculos!$I364:$QJ364, Cálculos!$I$8:$QJ$8, CB$3, Cálculos!$I$10:$QJ$10, CB$4) -> 0 | CC21: =SUMIFS(Cálculos!$I364:$QJ364, Cálculos!$I$8:$QJ$8, CC$3, Cálculos!$I$10:$QJ$10, CC$4) -> 0 | CD21: =SUMIFS(Cálculos!$I364:$QJ364, Cálculos!$I$8:$QJ$8, CD$3, Cálculos!$I$10:$QJ$10, CD$4) -> 0 | CE21: =SUMIFS(Cálculos!$I364:$QJ364, Cálculos!$I$8:$QJ$8, CE$3, Cálculos!$I$10:$QJ$10, CE$4) -> 0 | CF21: =SUMIFS(Cálculos!$I364:$QJ364, Cálculos!$I$8:$QJ$8, CF$3, Cálculos!$I$10:$QJ$10, CF$4) -> 0 | CG21: =SUMIFS(Cálculos!$I364:$QJ364, Cálculos!$I$8:$QJ$8, CG$3, Cálculos!$I$10:$QJ$10, CG$4) -> 0 | CH21: =SUMIFS(Cálculos!$I364:$QJ364, Cálculos!$I$8:$QJ$8, CH$3, Cálculos!$I$10:$QJ$10, CH$4) -> 0 | CI21: =SUMIFS(Cálculos!$I364:$QJ364, Cálculos!$I$8:$QJ$8, CI$3, Cálculos!$I$10:$QJ$10, CI$4) -> 0 | CJ21: =SUMIFS(Cálculos!$I364:$QJ364, Cálculos!$I$8:$QJ$8, CJ$3, Cálculos!$I$10:$QJ$10, CJ$4) -> 0 | CK21: =SUMIFS(Cálculos!$I364:$QJ364, Cálculos!$I$8:$QJ$8, CK$3, Cálculos!$I$10:$QJ$10, CK$4) -> 0 | CL21: =SUMIFS(Cálculos!$I364:$QJ364, Cálculos!$I$8:$QJ$8, CL$3, Cálculos!$I$10:$QJ$10, CL$4) -> 0 | CM21: =SUMIFS(Cálculos!$I364:$QJ364, Cálculos!$I$8:$QJ$8, CM$3, Cálculos!$I$10:$QJ$10, CM$4) -> 0 | CN21: =SUMIFS(Cálculos!$I364:$QJ364, Cálculos!$I$8:$QJ$8, CN$3, Cálculos!$I$10:$QJ$10, CN$4) -> 0 | CO21: =SUMIFS(Cálculos!$I364:$QJ364, Cálculos!$I$8:$QJ$8, CO$3, Cálculos!$I$10:$QJ$10, CO$4) -> 0 | CP21: =SUMIFS(Cálculos!$I364:$QJ364, Cálculos!$I$8:$QJ$8, CP$3, Cálculos!$I$10:$QJ$10, CP$4) -> 0 | CQ21: =SUMIFS(Cálculos!$I364:$QJ364, Cálculos!$I$8:$QJ$8, CQ$3, Cálculos!$I$10:$QJ$10, CQ$4) -> 0 | CR21: =SUMIFS(Cálculos!$I364:$QJ364, Cálculos!$I$8:$QJ$8, CR$3, Cálculos!$I$10:$QJ$10, CR$4) -> 0 | CS21: =SUMIFS(Cálculos!$I364:$QJ364, Cálculos!$I$8:$QJ$8, CS$3, Cálculos!$I$10:$QJ$10, CS$4) -> 0 | CT21: =SUMIFS(Cálculos!$I364:$QJ364, Cálculos!$I$8:$QJ$8, CT$3, Cálculos!$I$10:$QJ$10, CT$4) -> 0 | CU21: =SUMIFS(Cálculos!$I364:$QJ364, Cálculos!$I$8:$QJ$8, CU$3, Cálculos!$I$10:$QJ$10, CU$4) -> 0 | CV21: =SUMIFS(Cálculos!$I364:$QJ364, Cálculos!$I$8:$QJ$8, CV$3, Cálculos!$I$10:$QJ$10, CV$4) -> 0 | CW21: =SUMIFS(Cálculos!$I364:$QJ364, Cálculos!$I$8:$QJ$8, CW$3, Cálculos!$I$10:$QJ$10, CW$4) -> 0 | CX21: =SUMIFS(Cálculos!$I364:$QJ364, Cálculos!$I$8:$QJ$8, CX$3, Cálculos!$I$10:$QJ$10, CX$4) -> 0 | CY21: =SUMIFS(Cálculos!$I364:$QJ364, Cálculos!$I$8:$QJ$8, CY$3, Cálculos!$I$10:$QJ$10, CY$4) -> 0 | CZ21: =SUMIFS(Cálculos!$I364:$QJ364, Cálculos!$I$8:$QJ$8, CZ$3, Cálculos!$I$10:$QJ$10, CZ$4) -> 0 | DA21: =SUMIFS(Cálculos!$I364:$QJ364, Cálculos!$I$8:$QJ$8, DA$3, Cálculos!$I$10:$QJ$10, DA$4) -> 0 | DB21: =SUMIFS(Cálculos!$I364:$QJ364, Cálculos!$I$8:$QJ$8, DB$3, Cálculos!$I$10:$QJ$10, DB$4) -> 0 | DC21: =SUMIFS(Cálculos!$I364:$QJ364, Cálculos!$I$8:$QJ$8, DC$3, Cálculos!$I$10:$QJ$10, DC$4) -> 0 | DD21: =SUMIFS(Cálculos!$I364:$QJ364, Cálculos!$I$8:$QJ$8, DD$3, Cálculos!$I$10:$QJ$10, DD$4) -> 0 | DE21: =SUMIFS(Cálculos!$I364:$QJ364, Cálculos!$I$8:$QJ$8, DE$3, Cálculos!$I$10:$QJ$10, DE$4) -> 0 | DF21: =SUMIFS(Cálculos!$I364:$QJ364, Cálculos!$I$8:$QJ$8, DF$3, Cálculos!$I$10:$QJ$10, DF$4) -> 0 | DG21: =SUMIFS(Cálculos!$I364:$QJ364, Cálculos!$I$8:$QJ$8, DG$3, Cálculos!$I$10:$QJ$10, DG$4) -> 0 | DH21: =SUMIFS(Cálculos!$I364:$QJ364, Cálculos!$I$8:$QJ$8, DH$3, Cálculos!$I$10:$QJ$10, DH$4) -> 0 | DI21: =SUMIFS(Cálculos!$I364:$QJ364, Cálculos!$I$8:$QJ$8, DI$3, Cálculos!$I$10:$QJ$10, DI$4) -> 0 | DJ21: =SUMIFS(Cálculos!$I364:$QJ364, Cálculos!$I$8:$QJ$8, DJ$3, Cálculos!$I$10:$QJ$10, DJ$4) -> 0 | DK21: =SUMIFS(Cálculos!$I364:$QJ364, Cálculos!$I$8:$QJ$8, DK$3, Cálculos!$I$10:$QJ$10, DK$4) -> 0
C22: =Cálculos!C365 -> EBT | E22: =Cálculos!E365 -> EUR | G22: =SUM(H22:FC22) -> 7019246.801 | H22: =H17+SUM(H19:H21) -> 0 | I22: =I17+SUM(I19:I21) -> 0 | J22: 0 | K22: 0 | L22: 0 | M22: 0 | N22: 0 | O22: 0 | P22: -274901.2816 | Q22: -23780.02214 | R22: 55875.80425 | S22: -324283.7163 | T22: -278478.6192 | U22: -14028.31132 | V22: 51113.58518 | W22: -329650.9208 | X22: -275975.6251 | Y22: -7511.627129 | Z22: 50438.7139 | AA22: -327403.511 | AB22: -273351.6723 | AC22: -5491.627096 | AD22: 49011.14082 | AE22: -324889.8582 | AF22: -271607.4772 | AG22: -4903.771443 | AH22: 48680.94737 | AI22: -321300.8326 | AJ22: -262462.8079 | AK22: 2305.816708 | AL22: 54661.73914 | AM22: -311420.7417 | AN22: -258444.5134 | AO22: 4305.362979 | AP22: 55974.26022 | AQ22: -306226.5559 | AR22: -110355.462 | AS22: 150024.0469 | AT22: 201429.6918 | AU22: -156904.5857 | AV22: -104917.013 | AW22: 153530.325 | AX22: 204700.7802 | AY22: -149779.3255 | AZ22: -97659.43731 | BA22: 158126.7432 | BB22: 209202.6296 | BC22: -141432.6292 | BD22: -29668.71339 | BE22: 223899.3673 | BF22: 274694.1769 | BG22: -72102.20072 | BH22: -20399.99789 | BI22: 231006.1466 | BJ22: 281666.5932 | BK22: -61293.15222 | BL22: -10134.60413 | BM22: 239558.9716 | BN22: 318877.8138 | BO22: -20243.42963 | BP22: 31192.91294 | BQ22: 278457.3537 | BR22: 328974.1239 | BS22: -6302.176775 | BT22: 45068.01404 | BU22: =BU17+SUM(BU19:BU21) -> 290360.6604 | BV22: 340876.7341 | BW22: 9456.896751 | BX22: 60811.69136 | BY22: 304204.7665 | BZ22: 354774.2077 | CA22: 27228.00684 | CB22: 78233.60154 | CC22: 320194.6786 | CD22: 370877.298 | CE22: 47228.20324 | CF22: 98726.74875 | CG22: 338559.5929 | CH22: 389376.0962 | CI22: 69219.91581 | CJ22: 118818.5699 | CK22: 354192.0765 | CL22: 402456.6528 | CM22: 83811.26409 | CN22: 132800.8552 | CO22: 366466.2982 | CP22: 414904.7047 | CQ22: 100109.3177 | CR22: 148877.6859 | CS22: 381323.1135 | CT22: 430017.0923 | CU22: 119119.3844 | CV22: 168532.2636 | CW22: 399084.9385 | CX22: 448126.0041 | CY22: 141184.0855 | CZ22: 190947.4783 | DA22: 420115.2578 | DB22: 469605.9428 | DC22: 87101.04495 | DD22: =DD17+SUM(DD19:DD21) -> 91413.09569 | DE22: 310841.0098 | DF22: 352154.5012 | DG22: 44340.13042 | DH22: 85471.17747 | DI22: 303101.0352 | DJ22: 343999.3813 | DK22: -1515267.501
C24: =Cálculos!C367 -> Menos: Impostos | E24: =Cálculos!E367 -> EUR | G24: =SUM(H24:FC24) -> -1065651.837 | H24: =SUMIFS(Cálculos!$I367:$QJ367, Cálculos!$I$8:$QJ$8, H$3, Cálculos!$I$10:$QJ$10, H$4) -> 0 | I24: =SUMIFS(Cálculos!$I367:$QJ367, Cálculos!$I$8:$QJ$8, I$3, Cálculos!$I$10:$QJ$10, I$4) -> 0 | J24: =SUMIFS(Cálculos!$I367:$QJ367, Cálculos!$I$8:$QJ$8, J$3, Cálculos!$I$10:$QJ$10, J$4) -> 0 | K24: =SUMIFS(Cálculos!$I367:$QJ367, Cálculos!$I$8:$QJ$8, K$3, Cálculos!$I$10:$QJ$10, K$4) -> 0 | L24: =SUMIFS(Cálculos!$I367:$QJ367, Cálculos!$I$8:$QJ$8, L$3, Cálculos!$I$10:$QJ$10, L$4) -> 0 | M24: =SUMIFS(Cálculos!$I367:$QJ367, Cálculos!$I$8:$QJ$8, M$3, Cálculos!$I$10:$QJ$10, M$4) -> 0 | N24: =SUMIFS(Cálculos!$I367:$QJ367, Cálculos!$I$8:$QJ$8, N$3, Cálculos!$I$10:$QJ$10, N$4) -> 0 | O24: =SUMIFS(Cálculos!$I367:$QJ367, Cálculos!$I$8:$QJ$8, O$3, Cálculos!$I$10:$QJ$10, O$4) -> 0 | P24: =SUMIFS(Cálculos!$I367:$QJ367, Cálculos!$I$8:$QJ$8, P$3, Cálculos!$I$10:$QJ$10, P$4) -> 0 | Q24: =SUMIFS(Cálculos!$I367:$QJ367, Cálculos!$I$8:$QJ$8, Q$3, Cálculos!$I$10:$QJ$10, Q$4) -> 0 | R24: =SUMIFS(Cálculos!$I367:$QJ367, Cálculos!$I$8:$QJ$8, R$3, Cálculos!$I$10:$QJ$10, R$4) -> 0 | S24: =SUMIFS(Cálculos!$I367:$QJ367, Cálculos!$I$8:$QJ$8, S$3, Cálculos!$I$10:$QJ$10, S$4) -> 0 | T24: =SUMIFS(Cálculos!$I367:$QJ367, Cálculos!$I$8:$QJ$8, T$3, Cálculos!$I$10:$QJ$10, T$4) -> 0 | U24: =SUMIFS(Cálculos!$I367:$QJ367, Cálculos!$I$8:$QJ$8, U$3, Cálculos!$I$10:$QJ$10, U$4) -> 0 | V24: =SUMIFS(Cálculos!$I367:$QJ367, Cálculos!$I$8:$QJ$8, V$3, Cálculos!$I$10:$QJ$10, V$4) -> 0 | W24: =SUMIFS(Cálculos!$I367:$QJ367, Cálculos!$I$8:$QJ$8, W$3, Cálculos!$I$10:$QJ$10, W$4) -> 0 | X24: =SUMIFS(Cálculos!$I367:$QJ367, Cálculos!$I$8:$QJ$8, X$3, Cálculos!$I$10:$QJ$10, X$4) -> 0 | Y24: =SUMIFS(Cálculos!$I367:$QJ367, Cálculos!$I$8:$QJ$8, Y$3, Cálculos!$I$10:$QJ$10, Y$4) -> 0 | Z24: =SUMIFS(Cálculos!$I367:$QJ367, Cálculos!$I$8:$QJ$8, Z$3, Cálculos!$I$10:$QJ$10, Z$4) -> 0 | AA24: =SUMIFS(Cálculos!$I367:$QJ367, Cálculos!$I$8:$QJ$8, AA$3, Cálculos!$I$10:$QJ$10, AA$4) -> 0 | AB24: =SUMIFS(Cálculos!$I367:$QJ367, Cálculos!$I$8:$QJ$8, AB$3, Cálculos!$I$10:$QJ$10, AB$4) -> 0 | AC24: =SUMIFS(Cálculos!$I367:$QJ367, Cálculos!$I$8:$QJ$8, AC$3, Cálculos!$I$10:$QJ$10, AC$4) -> 0 | AD24: =SUMIFS(Cálculos!$I367:$QJ367, Cálculos!$I$8:$QJ$8, AD$3, Cálculos!$I$10:$QJ$10, AD$4) -> 0 | AE24: =SUMIFS(Cálculos!$I367:$QJ367, Cálculos!$I$8:$QJ$8, AE$3, Cálculos!$I$10:$QJ$10, AE$4) -> 0 | AF24: =SUMIFS(Cálculos!$I367:$QJ367, Cálculos!$I$8:$QJ$8, AF$3, Cálculos!$I$10:$QJ$10, AF$4) -> 0 | AG24: =SUMIFS(Cálculos!$I367:$QJ367, Cálculos!$I$8:$QJ$8, AG$3, Cálculos!$I$10:$QJ$10, AG$4) -> 0 | AH24: =SUMIFS(Cálculos!$I367:$QJ367, Cálculos!$I$8:$QJ$8, AH$3, Cálculos!$I$10:$QJ$10, AH$4) -> 0 | AI24: =SUMIFS(Cálculos!$I367:$QJ367, Cálculos!$I$8:$QJ$8, AI$3, Cálculos!$I$10:$QJ$10, AI$4) -> 0 | AJ24: =SUMIFS(Cálculos!$I367:$QJ367, Cálculos!$I$8:$QJ$8, AJ$3, Cálculos!$I$10:$QJ$10, AJ$4) -> 0 | AK24: =SUMIFS(Cálculos!$I367:$QJ367, Cálculos!$I$8:$QJ$8, AK$3, Cálculos!$I$10:$QJ$10, AK$4) -> 0 | AL24: =SUMIFS(Cálculos!$I367:$QJ367, Cálculos!$I$8:$QJ$8, AL$3, Cálculos!$I$10:$QJ$10, AL$4) -> 0 | AM24: =SUMIFS(Cálculos!$I367:$QJ367, Cálculos!$I$8:$QJ$8, AM$3, Cálculos!$I$10:$QJ$10, AM$4) -> 0 | AN24: =SUMIFS(Cálculos!$I367:$QJ367, Cálculos!$I$8:$QJ$8, AN$3, Cálculos!$I$10:$QJ$10, AN$4) -> 0 | AO24: =SUMIFS(Cálculos!$I367:$QJ367, Cálculos!$I$8:$QJ$8, AO$3, Cálculos!$I$10:$QJ$10, AO$4) -> 0 | AP24: =SUMIFS(Cálculos!$I367:$QJ367, Cálculos!$I$8:$QJ$8, AP$3, Cálculos!$I$10:$QJ$10, AP$4) -> 0 | AQ24: =SUMIFS(Cálculos!$I367:$QJ367, Cálculos!$I$8:$QJ$8, AQ$3, Cálculos!$I$10:$QJ$10, AQ$4) -> 0 | AR24: =SUMIFS(Cálculos!$I367:$QJ367, Cálculos!$I$8:$QJ$8, AR$3, Cálculos!$I$10:$QJ$10, AR$4) -> 0 | AS24: =SUMIFS(Cálculos!$I367:$QJ367, Cálculos!$I$8:$QJ$8, AS$3, Cálculos!$I$10:$QJ$10, AS$4) -> 0 | AT24: =SUMIFS(Cálculos!$I367:$QJ367, Cálculos!$I$8:$QJ$8, AT$3, Cálculos!$I$10:$QJ$10, AT$4) -> 0 | AU24: =SUMIFS(Cálculos!$I367:$QJ367, Cálculos!$I$8:$QJ$8, AU$3, Cálculos!$I$10:$QJ$10, AU$4) -> 0 | AV24: =SUMIFS(Cálculos!$I367:$QJ367, Cálculos!$I$8:$QJ$8, AV$3, Cálculos!$I$10:$QJ$10, AV$4) -> 0 | AW24: =SUMIFS(Cálculos!$I367:$QJ367, Cálculos!$I$8:$QJ$8, AW$3, Cálculos!$I$10:$QJ$10, AW$4) -> 0 | AX24: =SUMIFS(Cálculos!$I367:$QJ367, Cálculos!$I$8:$QJ$8, AX$3, Cálculos!$I$10:$QJ$10, AX$4) -> 0 | AY24: =SUMIFS(Cálculos!$I367:$QJ367, Cálculos!$I$8:$QJ$8, AY$3, Cálculos!$I$10:$QJ$10, AY$4) -> 0 | AZ24: =SUMIFS(Cálculos!$I367:$QJ367, Cálculos!$I$8:$QJ$8, AZ$3, Cálculos!$I$10:$QJ$10, AZ$4) -> 0 | BA24: =SUMIFS(Cálculos!$I367:$QJ367, Cálculos!$I$8:$QJ$8, BA$3, Cálculos!$I$10:$QJ$10, BA$4) -> 0 | BB24: =SUMIFS(Cálculos!$I367:$QJ367, Cálculos!$I$8:$QJ$8, BB$3, Cálculos!$I$10:$QJ$10, BB$4) -> 0 | BC24: =SUMIFS(Cálculos!$I367:$QJ367, Cálculos!$I$8:$QJ$8, BC$3, Cálculos!$I$10:$QJ$10, BC$4) -> 0 | BD24: =SUMIFS(Cálculos!$I367:$QJ367, Cálculos!$I$8:$QJ$8, BD$3, Cálculos!$I$10:$QJ$10, BD$4) -> 0 | BE24: =SUMIFS(Cálculos!$I367:$QJ367, Cálculos!$I$8:$QJ$8, BE$3, Cálculos!$I$10:$QJ$10, BE$4) -> 0 | BF24: =SUMIFS(Cálculos!$I367:$QJ367, Cálculos!$I$8:$QJ$8, BF$3, Cálculos!$I$10:$QJ$10, BF$4) -> 0 | BG24: =SUMIFS(Cálculos!$I367:$QJ367, Cálculos!$I$8:$QJ$8, BG$3, Cálculos!$I$10:$QJ$10, BG$4) -> 0 | BH24: =SUMIFS(Cálculos!$I367:$QJ367, Cálculos!$I$8:$QJ$8, BH$3, Cálculos!$I$10:$QJ$10, BH$4) -> 0 | BI24: =SUMIFS(Cálculos!$I367:$QJ367, Cálculos!$I$8:$QJ$8, BI$3, Cálculos!$I$10:$QJ$10, BI$4) -> 0 | BJ24: =SUMIFS(Cálculos!$I367:$QJ367, Cálculos!$I$8:$QJ$8, BJ$3, Cálculos!$I$10:$QJ$10, BJ$4) -> 0 | BK24: =SUMIFS(Cálculos!$I367:$QJ367, Cálculos!$I$8:$QJ$8, BK$3, Cálculos!$I$10:$QJ$10, BK$4) -> 0 | BL24: =SUMIFS(Cálculos!$I367:$QJ367, Cálculos!$I$8:$QJ$8, BL$3, Cálculos!$I$10:$QJ$10, BL$4) -> 0 | BM24: =SUMIFS(Cálculos!$I367:$QJ367, Cálculos!$I$8:$QJ$8, BM$3, Cálculos!$I$10:$QJ$10, BM$4) -> 0 | BN24: =SUMIFS(Cálculos!$I367:$QJ367, Cálculos!$I$8:$QJ$8, BN$3, Cálculos!$I$10:$QJ$10, BN$4) -> 0 | BO24: =SUMIFS(Cálculos!$I367:$QJ367, Cálculos!$I$8:$QJ$8, BO$3, Cálculos!$I$10:$QJ$10, BO$4) -> 0 | BP24: =SUMIFS(Cálculos!$I367:$QJ367, Cálculos!$I$8:$QJ$8, BP$3, Cálculos!$I$10:$QJ$10, BP$4) -> 0 | BQ24: =SUMIFS(Cálculos!$I367:$QJ367, Cálculos!$I$8:$QJ$8, BQ$3, Cálculos!$I$10:$QJ$10, BQ$4) -> 0 | BR24: =SUMIFS(Cálculos!$I367:$QJ367, Cálculos!$I$8:$QJ$8, BR$3, Cálculos!$I$10:$QJ$10, BR$4) -> 0 | BS24: =SUMIFS(Cálculos!$I367:$QJ367, Cálculos!$I$8:$QJ$8, BS$3, Cálculos!$I$10:$QJ$10, BS$4) -> 0 | BT24: =SUMIFS(Cálculos!$I367:$QJ367, Cálculos!$I$8:$QJ$8, BT$3, Cálculos!$I$10:$QJ$10, BT$4) -> 0 | BU24: =SUMIFS(Cálculos!$I367:$QJ367, Cálculos!$I$8:$QJ$8, BU$3, Cálculos!$I$10:$QJ$10, BU$4) -> 0 | BV24: =SUMIFS(Cálculos!$I367:$QJ367, Cálculos!$I$8:$QJ$8, BV$3, Cálculos!$I$10:$QJ$10, BV$4) -> 0 | BW24: =SUMIFS(Cálculos!$I367:$QJ367, Cálculos!$I$8:$QJ$8, BW$3, Cálculos!$I$10:$QJ$10, BW$4) -> 0 | BX24: =SUMIFS(Cálculos!$I367:$QJ367, Cálculos!$I$8:$QJ$8, BX$3, Cálculos!$I$10:$QJ$10, BX$4) -> 0 | BY24: =SUMIFS(Cálculos!$I367:$QJ367, Cálculos!$I$8:$QJ$8, BY$3, Cálculos!$I$10:$QJ$10, BY$4) -> 0 | BZ24: =SUMIFS(Cálculos!$I367:$QJ367, Cálculos!$I$8:$QJ$8, BZ$3, Cálculos!$I$10:$QJ$10, BZ$4) -> 0 | CA24: =SUMIFS(Cálculos!$I367:$QJ367, Cálculos!$I$8:$QJ$8, CA$3, Cálculos!$I$10:$QJ$10, CA$4) -> 0 | CB24: =SUMIFS(Cálculos!$I367:$QJ367, Cálculos!$I$8:$QJ$8, CB$3, Cálculos!$I$10:$QJ$10, CB$4) -> 0 | CC24: =SUMIFS(Cálculos!$I367:$QJ367, Cálculos!$I$8:$QJ$8, CC$3, Cálculos!$I$10:$QJ$10, CC$4) -> 0 | CD24: =SUMIFS(Cálculos!$I367:$QJ367, Cálculos!$I$8:$QJ$8, CD$3, Cálculos!$I$10:$QJ$10, CD$4) -> 0 | CE24: =SUMIFS(Cálculos!$I367:$QJ367, Cálculos!$I$8:$QJ$8, CE$3, Cálculos!$I$10:$QJ$10, CE$4) -> 0 | CF24: =SUMIFS(Cálculos!$I367:$QJ367, Cálculos!$I$8:$QJ$8, CF$3, Cálculos!$I$10:$QJ$10, CF$4) -> 0 | CG24: =SUMIFS(Cálculos!$I367:$QJ367, Cálculos!$I$8:$QJ$8, CG$3, Cálculos!$I$10:$QJ$10, CG$4) -> 0 | CH24: =SUMIFS(Cálculos!$I367:$QJ367, Cálculos!$I$8:$QJ$8, CH$3, Cálculos!$I$10:$QJ$10, CH$4) -> 0 | CI24: =SUMIFS(Cálculos!$I367:$QJ367, Cálculos!$I$8:$QJ$8, CI$3, Cálculos!$I$10:$QJ$10, CI$4) -> 0 | CJ24: =SUMIFS(Cálculos!$I367:$QJ367, Cálculos!$I$8:$QJ$8, CJ$3, Cálculos!$I$10:$QJ$10, CJ$4) -> 0 | CK24: =SUMIFS(Cálculos!$I367:$QJ367, Cálculos!$I$8:$QJ$8, CK$3, Cálculos!$I$10:$QJ$10, CK$4) -> 0 | CL24: =SUMIFS(Cálculos!$I367:$QJ367, Cálculos!$I$8:$QJ$8, CL$3, Cálculos!$I$10:$QJ$10, CL$4) -> 0 | CM24: =SUMIFS(Cálculos!$I367:$QJ367, Cálculos!$I$8:$QJ$8, CM$3, Cálculos!$I$10:$QJ$10, CM$4) -> 0 | CN24: =SUMIFS(Cálculos!$I367:$QJ367, Cálculos!$I$8:$QJ$8, CN$3, Cálculos!$I$10:$QJ$10, CN$4) -> 0 | CO24: =SUMIFS(Cálculos!$I367:$QJ367, Cálculos!$I$8:$QJ$8, CO$3, Cálculos!$I$10:$QJ$10, CO$4) -> -45243.11945 | CP24: =SUMIFS(Cálculos!$I367:$QJ367, Cálculos!$I$8:$QJ$8, CP$3, Cálculos!$I$10:$QJ$10, CP$4) -> -74009.36138 | CQ24: =SUMIFS(Cálculos!$I367:$QJ367, Cálculos!$I$8:$QJ$8, CQ$3, Cálculos!$I$10:$QJ$10, CQ$4) -> -21405.44225 | CR24: =SUMIFS(Cálculos!$I367:$QJ367, Cálculos!$I$8:$QJ$8, CR$3, Cálculos!$I$10:$QJ$10, CR$4) -> -29035.11632 | CS24: =SUMIFS(Cálculos!$I367:$QJ367, Cálculos!$I$8:$QJ$8, CS$3, Cálculos!$I$10:$QJ$10, CS$4) -> -68367.65405 | CT24: =SUMIFS(Cálculos!$I367:$QJ367, Cálculos!$I$8:$QJ$8, CT$3, Cálculos!$I$10:$QJ$10, CT$4) -> -76548.24248 | CU24: =SUMIFS(Cálculos!$I367:$QJ367, Cálculos!$I$8:$QJ$8, CU$3, Cálculos!$I$10:$QJ$10, CU$4) -> -24317.42757 | CV24: =SUMIFS(Cálculos!$I367:$QJ367, Cálculos!$I$8:$QJ$8, CV$3, Cálculos!$I$10:$QJ$10, CV$4) -> -32618.79127 | CW24: =SUMIFS(Cálculos!$I367:$QJ367, Cálculos!$I$8:$QJ$8, CW$3, Cálculos!$I$10:$QJ$10, CW$4) -> -71351.64065 | CX24: =SUMIFS(Cálculos!$I367:$QJ367, Cálculos!$I$8:$QJ$8, CX$3, Cálculos!$I$10:$QJ$10, CX$4) -> -79590.53967 | CY24: =SUMIFS(Cálculos!$I367:$QJ367, Cálculos!$I$8:$QJ$8, CY$3, Cálculos!$I$10:$QJ$10, CY$4) -> -28024.29735 | CZ24: =SUMIFS(Cálculos!$I367:$QJ367, Cálculos!$I$8:$QJ$8, CZ$3, Cálculos!$I$10:$QJ$10, CZ$4) -> -36384.54733 | DA24: =SUMIFS(Cálculos!$I367:$QJ367, Cálculos!$I$8:$QJ$8, DA$3, Cálculos!$I$10:$QJ$10, DA$4) -> -74884.73429 | DB24: =SUMIFS(Cálculos!$I367:$QJ367, Cálculos!$I$8:$QJ$8, DB$3, Cálculos!$I$10:$QJ$10, DB$4) -> -83199.16938 | DC24: =SUMIFS(Cálculos!$I367:$QJ367, Cálculos!$I$8:$QJ$8, DC$3, Cálculos!$I$10:$QJ$10, DC$4) -> -21945.57821 | DD24: =SUMIFS(Cálculos!$I367:$QJ367, Cálculos!$I$8:$QJ$8, DD$3, Cálculos!$I$10:$QJ$10, DD$4) -> -16655.53938 | DE24: =SUMIFS(Cálculos!$I367:$QJ367, Cálculos!$I$8:$QJ$8, DE$3, Cálculos!$I$10:$QJ$10, DE$4) -> -56526.66063 | DF24: =SUMIFS(Cálculos!$I367:$QJ367, Cálculos!$I$8:$QJ$8, DF$3, Cálculos!$I$10:$QJ$10, DF$4) -> -63467.32718 | DG24: =SUMIFS(Cálculos!$I367:$QJ367, Cálculos!$I$8:$QJ$8, DG$3, Cálculos!$I$10:$QJ$10, DG$4) -> -14975.0336 | DH24: =SUMIFS(Cálculos!$I367:$QJ367, Cálculos!$I$8:$QJ$8, DH$3, Cálculos!$I$10:$QJ$10, DH$4) -> -15444.00809 | DI24: =SUMIFS(Cálculos!$I367:$QJ367, Cálculos!$I$8:$QJ$8, DI$3, Cálculos!$I$10:$QJ$10, DI$4) -> -55226.34489 | DJ24: =SUMIFS(Cálculos!$I367:$QJ367, Cálculos!$I$8:$QJ$8, DJ$3, Cálculos!$I$10:$QJ$10, DJ$4) -> -62097.26703 | DK24: =SUMIFS(Cálculos!$I367:$QJ367, Cálculos!$I$8:$QJ$8, DK$3, Cálculos!$I$10:$QJ$10, DK$4) -> -14333.99422
C25: =Cálculos!C368 -> Mais: Variação do Ativo por Impostos Diferidos | E25: =Cálculos!E368 -> EUR | G25: =SUM(H25:FC25) -> 264593.5633 | H25: =SUMIFS(Cálculos!$I368:$QJ368, Cálculos!$I$8:$QJ$8, H$3, Cálculos!$I$10:$QJ$10, H$4) -> 0 | I25: =SUMIFS(Cálculos!$I368:$QJ368, Cálculos!$I$8:$QJ$8, I$3, Cálculos!$I$10:$QJ$10, I$4) -> 0 | J25: =SUMIFS(Cálculos!$I368:$QJ368, Cálculos!$I$8:$QJ$8, J$3, Cálculos!$I$10:$QJ$10, J$4) -> 0 | K25: =SUMIFS(Cálculos!$I368:$QJ368, Cálculos!$I$8:$QJ$8, K$3, Cálculos!$I$10:$QJ$10, K$4) -> 0 | L25: =SUMIFS(Cálculos!$I368:$QJ368, Cálculos!$I$8:$QJ$8, L$3, Cálculos!$I$10:$QJ$10, L$4) -> 0 | M25: =SUMIFS(Cálculos!$I368:$QJ368, Cálculos!$I$8:$QJ$8, M$3, Cálculos!$I$10:$QJ$10, M$4) -> 0 | N25: =SUMIFS(Cálculos!$I368:$QJ368, Cálculos!$I$8:$QJ$8, N$3, Cálculos!$I$10:$QJ$10, N$4) -> 0 | O25: =SUMIFS(Cálculos!$I368:$QJ368, Cálculos!$I$8:$QJ$8, O$3, Cálculos!$I$10:$QJ$10, O$4) -> 0 | P25: =SUMIFS(Cálculos!$I368:$QJ368, Cálculos!$I$8:$QJ$8, P$3, Cálculos!$I$10:$QJ$10, P$4) -> 64056.88732 | Q25: =SUMIFS(Cálculos!$I368:$QJ368, Cálculos!$I$8:$QJ$8, Q$3, Cálculos!$I$10:$QJ$10, Q$4) -> 21868.51572 | R25: =SUMIFS(Cálculos!$I368:$QJ368, Cálculos!$I$8:$QJ$8, R$3, Cálculos!$I$10:$QJ$10, R$4) -> 8486.336889 | S25: =SUMIFS(Cálculos!$I368:$QJ368, Cálculos!$I$8:$QJ$8, S$3, Cálculos!$I$10:$QJ$10, S$4) -> 72353.13634 | T25: =SUMIFS(Cálculos!$I368:$QJ368, Cálculos!$I$8:$QJ$8, T$3, Cálculos!$I$10:$QJ$10, T$4) -> 64657.88002 | U25: =SUMIFS(Cálculos!$I368:$QJ368, Cálculos!$I$8:$QJ$8, U$3, Cálculos!$I$10:$QJ$10, U$4) -> 20230.2283 | V25: =SUMIFS(Cálculos!$I368:$QJ368, Cálculos!$I$8:$QJ$8, V$3, Cálculos!$I$10:$QJ$10, V$4) -> 9286.389693 | W25: =SUMIFS(Cálculos!$I368:$QJ368, Cálculos!$I$8:$QJ$8, W$3, Cálculos!$I$10:$QJ$10, W$4) -> 73254.8267 | X25: =SUMIFS(Cálculos!$I368:$QJ368, Cálculos!$I$8:$QJ$8, X$3, Cálculos!$I$10:$QJ$10, X$4) -> 64237.37702 | Y25: =SUMIFS(Cálculos!$I368:$QJ368, Cálculos!$I$8:$QJ$8, Y$3, Cálculos!$I$10:$QJ$10, Y$4) -> 19135.42536 | Z25: =SUMIFS(Cálculos!$I368:$QJ368, Cálculos!$I$8:$QJ$8, Z$3, Cálculos!$I$10:$QJ$10, Z$4) -> 9399.768067 | AA25: =SUMIFS(Cálculos!$I368:$QJ368, Cálculos!$I$8:$QJ$8, AA$3, Cálculos!$I$10:$QJ$10, AA$4) -> 72877.26185 | AB25: =SUMIFS(Cálculos!$I368:$QJ368, Cálculos!$I$8:$QJ$8, AB$3, Cálculos!$I$10:$QJ$10, AB$4) -> 63796.55296 | AC25: =SUMIFS(Cálculos!$I368:$QJ368, Cálculos!$I$8:$QJ$8, AC$3, Cálculos!$I$10:$QJ$10, AC$4) -> 18796.06536 | AD25: =SUMIFS(Cálculos!$I368:$QJ368, Cálculos!$I$8:$QJ$8, AD$3, Cálculos!$I$10:$QJ$10, AD$4) -> 9639.600345 | AE25: =SUMIFS(Cálculos!$I368:$QJ368, Cálculos!$I$8:$QJ$8, AE$3, Cálculos!$I$10:$QJ$10, AE$4) -> 72454.96818 | AF25: =SUMIFS(Cálculos!$I368:$QJ368, Cálculos!$I$8:$QJ$8, AF$3, Cálculos!$I$10:$QJ$10, AF$4) -> 63503.52817 | AG25: =SUMIFS(Cálculos!$I368:$QJ368, Cálculos!$I$8:$QJ$8, AG$3, Cálculos!$I$10:$QJ$10, AG$4) -> 18697.30561 | AH25: =SUMIFS(Cálculos!$I368:$QJ368, Cálculos!$I$8:$QJ$8, AH$3, Cálculos!$I$10:$QJ$10, AH$4) -> 9695.072845 | AI25: =SUMIFS(Cálculos!$I368:$QJ368, Cálculos!$I$8:$QJ$8, AI$3, Cálculos!$I$10:$QJ$10, AI$4) -> 71852.01188 | AJ25: =SUMIFS(Cálculos!$I368:$QJ368, Cálculos!$I$8:$QJ$8, AJ$3, Cálculos!$I$10:$QJ$10, AJ$4) -> 62895.42373 | AK25: =SUMIFS(Cálculos!$I368:$QJ368, Cálculos!$I$8:$QJ$8, AK$3, Cálculos!$I$10:$QJ$10, AK$4) -> 18414.2948 | AL25: =SUMIFS(Cálculos!$I368:$QJ368, Cálculos!$I$8:$QJ$8, AL$3, Cálculos!$I$10:$QJ$10, AL$4) -> 9618.499827 | AM25: =SUMIFS(Cálculos!$I368:$QJ368, Cálculos!$I$8:$QJ$8, AM$3, Cálculos!$I$10:$QJ$10, AM$4) -> 71120.3566 | AN25: =SUMIFS(Cálculos!$I368:$QJ368, Cálculos!$I$8:$QJ$8, AN$3, Cálculos!$I$10:$QJ$10, AN$4) -> 62220.35026 | AO25: =SUMIFS(Cálculos!$I368:$QJ368, Cálculos!$I$8:$QJ$8, AO$3, Cálculos!$I$10:$QJ$10, AO$4) -> 18078.37102 | AP25: =SUMIFS(Cálculos!$I368:$QJ368, Cálculos!$I$8:$QJ$8, AP$3, Cálculos!$I$10:$QJ$10, AP$4) -> 9397.996287 | AQ25: =SUMIFS(Cálculos!$I368:$QJ368, Cálculos!$I$8:$QJ$8, AQ$3, Cálculos!$I$10:$QJ$10, AQ$4) -> 70247.73339 | AR25: =SUMIFS(Cálculos!$I368:$QJ368, Cálculos!$I$8:$QJ$8, AR$3, Cálculos!$I$10:$QJ$10, AR$4) -> 61400.24203 | AS25: =SUMIFS(Cálculos!$I368:$QJ368, Cálculos!$I$8:$QJ$8, AS$3, Cálculos!$I$10:$QJ$10, AS$4) -> 17656.48454 | AT25: =SUMIFS(Cálculos!$I368:$QJ368, Cálculos!$I$8:$QJ$8, AT$3, Cálculos!$I$10:$QJ$10, AT$4) -> 9020.336196 | AU25: =SUMIFS(Cálculos!$I368:$QJ368, Cálculos!$I$8:$QJ$8, AU$3, Cálculos!$I$10:$QJ$10, AU$4) -> 69220.49482 | AV25: =SUMIFS(Cálculos!$I368:$QJ368, Cálculos!$I$8:$QJ$8, AV$3, Cálculos!$I$10:$QJ$10, AV$4) -> 60486.58261 | AW25: =SUMIFS(Cálculos!$I368:$QJ368, Cálculos!$I$8:$QJ$8, AW$3, Cálculos!$I$10:$QJ$10, AW$4) -> 17067.42982 | AX25: =SUMIFS(Cálculos!$I368:$QJ368, Cálculos!$I$8:$QJ$8, AX$3, Cálculos!$I$10:$QJ$10, AX$4) -> 8470.793352 | AY25: =SUMIFS(Cálculos!$I368:$QJ368, Cálculos!$I$8:$QJ$8, AY$3, Cálculos!$I$10:$QJ$10, AY$4) -> 68023.4511 | AZ25: =SUMIFS(Cálculos!$I368:$QJ368, Cálculos!$I$8:$QJ$8, AZ$3, Cálculos!$I$10:$QJ$10, AZ$4) -> 59267.30989 | BA25: =SUMIFS(Cálculos!$I368:$QJ368, Cálculos!$I$8:$QJ$8, BA$3, Cálculos!$I$10:$QJ$10, BA$4) -> 16295.23156 | BB25: =SUMIFS(Cálculos!$I368:$QJ368, Cálculos!$I$8:$QJ$8, BB$3, Cálculos!$I$10:$QJ$10, BB$4) -> 7732.962641 | BC25: =SUMIFS(Cálculos!$I368:$QJ368, Cálculos!$I$8:$QJ$8, BC$3, Cálculos!$I$10:$QJ$10, BC$4) -> 66639.68612 | BD25: =SUMIFS(Cálculos!$I368:$QJ368, Cálculos!$I$8:$QJ$8, BD$3, Cálculos!$I$10:$QJ$10, BD$4) -> -14483.07864 | BE25: =SUMIFS(Cálculos!$I368:$QJ368, Cálculos!$I$8:$QJ$8, BE$3, Cálculos!$I$10:$QJ$10, BE$4) -> -57082.5162 | BF25: =SUMIFS(Cálculos!$I368:$QJ368, Cálculos!$I$8:$QJ$8, BF$3, Cálculos!$I$10:$QJ$10, BF$4) -> -65616.0442 | BG25: =SUMIFS(Cálculos!$I368:$QJ368, Cálculos!$I$8:$QJ$8, BG$3, Cálculos!$I$10:$QJ$10, BG$4) -> -7354.252764 | BH25: =SUMIFS(Cálculos!$I368:$QJ368, Cálculos!$I$8:$QJ$8, BH$3, Cálculos!$I$10:$QJ$10, BH$4) -> -16040.22284 | BI25: =SUMIFS(Cálculos!$I368:$QJ368, Cálculos!$I$8:$QJ$8, BI$3, Cálculos!$I$10:$QJ$10, BI$4) -> -58276.45511 | BJ25: =SUMIFS(Cálculos!$I368:$QJ368, Cálculos!$I$8:$QJ$8, BJ$3, Cálculos!$I$10:$QJ$10, BJ$4) -> -66787.41014 | BK25: =SUMIFS(Cálculos!$I368:$QJ368, Cálculos!$I$8:$QJ$8, BK$3, Cálculos!$I$10:$QJ$10, BK$4) -> -9170.172913 | BL25: =SUMIFS(Cálculos!$I368:$QJ368, Cálculos!$I$8:$QJ$8, BL$3, Cálculos!$I$10:$QJ$10, BL$4) -> -17764.80899 | BM25: =SUMIFS(Cálculos!$I368:$QJ368, Cálculos!$I$8:$QJ$8, BM$3, Cálculos!$I$10:$QJ$10, BM$4) -> -59713.32971 | BN25: =SUMIFS(Cálculos!$I368:$QJ368, Cálculos!$I$8:$QJ$8, BN$3, Cálculos!$I$10:$QJ$10, BN$4) -> -68208.4872 | BO25: =SUMIFS(Cálculos!$I368:$QJ368, Cálculos!$I$8:$QJ$8, BO$3, Cálculos!$I$10:$QJ$10, BO$4) -> -11236.11831 | BP25: =SUMIFS(Cálculos!$I368:$QJ368, Cálculos!$I$8:$QJ$8, BP$3, Cálculos!$I$10:$QJ$10, BP$4) -> -19877.42386 | BQ25: =SUMIFS(Cálculos!$I368:$QJ368, Cálculos!$I$8:$QJ$8, BQ$3, Cálculos!$I$10:$QJ$10, BQ$4) -> -61417.8499 | BR25: =SUMIFS(Cálculos!$I368:$QJ368, Cálculos!$I$8:$QJ$8, BR$3, Cálculos!$I$10:$QJ$10, BR$4) -> -69904.6673 | BS25: =SUMIFS(Cálculos!$I368:$QJ368, Cálculos!$I$8:$QJ$8, BS$3, Cálculos!$I$10:$QJ$10, BS$4) -> -13578.24879 | BT25: =SUMIFS(Cálculos!$I368:$QJ368, Cálculos!$I$8:$QJ$8, BT$3, Cálculos!$I$10:$QJ$10, BT$4) -> -22208.44084 | BU25: =SUMIFS(Cálculos!$I368:$QJ368, Cálculos!$I$8:$QJ$8, BU$3, Cálculos!$I$10:$QJ$10, BU$4) -> -63417.60543 | BV25: =SUMIFS(Cálculos!$I368:$QJ368, Cálculos!$I$8:$QJ$8, BV$3, Cálculos!$I$10:$QJ$10, BV$4) -> -71904.30581 | BW25: =SUMIFS(Cálculos!$I368:$QJ368, Cálculos!$I$8:$QJ$8, BW$3, Cálculos!$I$10:$QJ$10, BW$4) -> -16225.77314 | BX25: =SUMIFS(Cálculos!$I368:$QJ368, Cálculos!$I$8:$QJ$8, BX$3, Cálculos!$I$10:$QJ$10, BX$4) -> -24853.37863 | BY25: =SUMIFS(Cálculos!$I368:$QJ368, Cálculos!$I$8:$QJ$8, BY$3, Cálculos!$I$10:$QJ$10, BY$4) -> -65743.41526 | BZ25: =SUMIFS(Cálculos!$I368:$QJ368, Cálculos!$I$8:$QJ$8, BZ$3, Cálculos!$I$10:$QJ$10, BZ$4) -> -74239.08139 | CA25: =SUMIFS(Cálculos!$I368:$QJ368, Cálculos!$I$8:$QJ$8, CA$3, Cálculos!$I$10:$QJ$10, CA$4) -> -19211.31963 | CB25: =SUMIFS(Cálculos!$I368:$QJ368, Cálculos!$I$8:$QJ$8, CB$3, Cálculos!$I$10:$QJ$10, CB$4) -> -27780.25954 | CC25: =SUMIFS(Cálculos!$I368:$QJ368, Cálculos!$I$8:$QJ$8, CC$3, Cálculos!$I$10:$QJ$10, CC$4) -> -68429.72048 | CD25: =SUMIFS(Cálculos!$I368:$QJ368, Cálculos!$I$8:$QJ$8, CD$3, Cálculos!$I$10:$QJ$10, CD$4) -> -76944.40055 | CE25: =SUMIFS(Cálculos!$I368:$QJ368, Cálculos!$I$8:$QJ$8, CE$3, Cálculos!$I$10:$QJ$10, CE$4) -> -22571.35263 | CF25: =SUMIFS(Cálculos!$I368:$QJ368, Cálculos!$I$8:$QJ$8, CF$3, Cálculos!$I$10:$QJ$10, CF$4) -> -31223.10827 | CG25: =SUMIFS(Cálculos!$I368:$QJ368, Cálculos!$I$8:$QJ$8, CG$3, Cálculos!$I$10:$QJ$10, CG$4) -> -71515.02609 | CH25: =SUMIFS(Cálculos!$I368:$QJ368, Cálculos!$I$8:$QJ$8, CH$3, Cálculos!$I$10:$QJ$10, CH$4) -> -80038.0743 | CI25: =SUMIFS(Cálculos!$I368:$QJ368, Cálculos!$I$8:$QJ$8, CI$3, Cálculos!$I$10:$QJ$10, CI$4) -> -26240.94686 | CJ25: =SUMIFS(Cálculos!$I368:$QJ368, Cálculos!$I$8:$QJ$8, CJ$3, Cálculos!$I$10:$QJ$10, CJ$4) -> -31137.97741 | CK25: =SUMIFS(Cálculos!$I368:$QJ368, Cálculos!$I$8:$QJ$8, CK$3, Cálculos!$I$10:$QJ$10, CK$4) -> -63809.63984 | CL25: =SUMIFS(Cálculos!$I368:$QJ368, Cálculos!$I$8:$QJ$8, CL$3, Cálculos!$I$10:$QJ$10, CL$4) -> -71918.08866 | CM25: =SUMIFS(Cálculos!$I368:$QJ368, Cálculos!$I$8:$QJ$8, CM$3, Cálculos!$I$10:$QJ$10, CM$4) -> -18385.66335 | CN25: =SUMIFS(Cálculos!$I368:$QJ368, Cálculos!$I$8:$QJ$8, CN$3, Cálculos!$I$10:$QJ$10, CN$4) -> -26615.91465 | CO25: =SUMIFS(Cálculos!$I368:$QJ368, Cálculos!$I$8:$QJ$8, CO$3, Cálculos!$I$10:$QJ$10, CO$4) -> -20628.58962 | CP25: =SUMIFS(Cálculos!$I368:$QJ368, Cálculos!$I$8:$QJ$8, CP$3, Cálculos!$I$10:$QJ$10, CP$4) -> 0 | CQ25: =SUMIFS(Cálculos!$I368:$QJ368, Cálculos!$I$8:$QJ$8, CQ$3, Cálculos!$I$10:$QJ$10, CQ$4) -> 281.7058932 | CR25: =SUMIFS(Cálculos!$I368:$QJ368, Cálculos!$I$8:$QJ$8, CR$3, Cálculos!$I$10:$QJ$10, CR$4) -> -281.7058932 | CS25: =SUMIFS(Cálculos!$I368:$QJ368, Cálculos!$I$8:$QJ$8, CS$3, Cálculos!$I$10:$QJ$10, CS$4) -> 0 | CT25: =SUMIFS(Cálculos!$I368:$QJ368, Cálculos!$I$8:$QJ$8, CT$3, Cálculos!$I$10:$QJ$10, CT$4) -> 0 | CU25: =SUMIFS(Cálculos!$I368:$QJ368, Cálculos!$I$8:$QJ$8, CU$3, Cálculos!$I$10:$QJ$10, CU$4) -> 0 | CV25: =SUMIFS(Cálculos!$I368:$QJ368, Cálculos!$I$8:$QJ$8, CV$3, Cálculos!$I$10:$QJ$10, CV$4) -> 0 | CW25: =SUMIFS(Cálculos!$I368:$QJ368, Cálculos!$I$8:$QJ$8, CW$3, Cálculos!$I$10:$QJ$10, CW$4) -> 0 | CX25: =SUMIFS(Cálculos!$I368:$QJ368, Cálculos!$I$8:$QJ$8, CX$3, Cálculos!$I$10:$QJ$10, CX$4) -> 0 | CY25: =SUMIFS(Cálculos!$I368:$QJ368, Cálculos!$I$8:$QJ$8, CY$3, Cálculos!$I$10:$QJ$10, CY$4) -> 0 | CZ25: =SUMIFS(Cálculos!$I368:$QJ368, Cálculos!$I$8:$QJ$8, CZ$3, Cálculos!$I$10:$QJ$10, CZ$4) -> 0 | DA25: =SUMIFS(Cálculos!$I368:$QJ368, Cálculos!$I$8:$QJ$8, DA$3, Cálculos!$I$10:$QJ$10, DA$4) -> 0 | DB25: =SUMIFS(Cálculos!$I368:$QJ368, Cálculos!$I$8:$QJ$8, DB$3, Cálculos!$I$10:$QJ$10, DB$4) -> 0 | DC25: =SUMIFS(Cálculos!$I368:$QJ368, Cálculos!$I$8:$QJ$8, DC$3, Cálculos!$I$10:$QJ$10, DC$4) -> 3007.231677 | DD25: =SUMIFS(Cálculos!$I368:$QJ368, Cálculos!$I$8:$QJ$8, DD$3, Cálculos!$I$10:$QJ$10, DD$4) -> -3007.231677 | DE25: =SUMIFS(Cálculos!$I368:$QJ368, Cálculos!$I$8:$QJ$8, DE$3, Cálculos!$I$10:$QJ$10, DE$4) -> 0 | DF25: =SUMIFS(Cálculos!$I368:$QJ368, Cálculos!$I$8:$QJ$8, DF$3, Cálculos!$I$10:$QJ$10, DF$4) -> 0 | DG25: =SUMIFS(Cálculos!$I368:$QJ368, Cálculos!$I$8:$QJ$8, DG$3, Cálculos!$I$10:$QJ$10, DG$4) -> 3220.520707 | DH25: =SUMIFS(Cálculos!$I368:$QJ368, Cálculos!$I$8:$QJ$8, DH$3, Cálculos!$I$10:$QJ$10, DH$4) -> -3220.520707 | DI25: =SUMIFS(Cálculos!$I368:$QJ368, Cálculos!$I$8:$QJ$8, DI$3, Cálculos!$I$10:$QJ$10, DI$4) -> 0 | DJ25: =SUMIFS(Cálculos!$I368:$QJ368, Cálculos!$I$8:$QJ$8, DJ$3, Cálculos!$I$10:$QJ$10, DJ$4) -> 0 | DK25: =SUMIFS(Cálculos!$I368:$QJ368, Cálculos!$I$8:$QJ$8, DK$3, Cálculos!$I$10:$QJ$10, DK$4) -> 264593.5633
